Workbook

Sheet Inicio

Sheet Norma (hidden)
H3: Ultima actualizacion : | I3: =TODAY() -> 2019-11-29 | AC3: G,PRIX CROACIA-ZAGREB | AQ3: Gran Prix Budapest | BJ3: Cto Europa SUB23 | BL3: GRAND SLAM ABU DHABI | BM3: European Open (RUMANIA) | BT3: GRAND SLAM JAPON
AQ5: QUINTO
A6: El Ranking Nacional recogerá las siguientes competiciones, con la puntuación que se concreta:
D9: Oro | E9: Plata | F9: Bronce | G9: Quinto | H9: Septimo
C10: CTO. MUNDO ABS/MASTER | D10: 150 | E10: 120 | F10: 100 | G10: 50 | H10: 30
C11: CTO. EUROPA ABSOLUTO | D11: 100 | E11: 85 | F11: 70 | G11: 30 | H11: 15
C12: CTO. EUROPA SUB 23 | D12: 100 | E12: 85 | F12: 70 | G12: 30 | H12: 15
C13: GRAND SLAM | D13: 75 | E13: 60 | F13: 50 | G13: 20 * | H13: 7 * | BJ13: 0
C14: GRAND PRIX | D14: 60 | E14: 50 | F14: 35 | G14: 15 * | H14: 5 *
C15: JUEGOS MEDITERRANEO | D15: 60 | E15: 50 | F15: 35 | G15: 15 * | H15: 5 *
C16: CTO ESPAÑA ABSOLUTO | D16: 30 | E16: 20 | F16: 15 | J16: *1 | K16: Oro | L16: Plata | M16: Bronce
C17: DOS MEJORES RESULTADOS EN COPAS DE ESPAÑA | D17: *1 | J17: Super Copa de España | K17: 12 | L17: 8 | M17: 6
C18: SECTOR CTO ESPAÑA ABSOLUTO | D18: 10 | J18: Copa de España “A” | K18: 9 | L18: 6 | M18: 4
C19: CLASIFICACIÓN POR COPAS ABSOLUTA | D19: 10 | J19: Copa de España | K19: 6 | L19: 4 | M19: 2
C20: CONTINENTAL OPEN OFICIALES PUNTUABLES | D20: 30 | E20: 20 | F20: 15
C21: EUROPEAN CUP MALAGA | D21: 30 | E21: 20 | F21: 15
C22: *Para que un quinto puesto en GS o GP puntúe es necesario haber ganado 3 combates como mínimo. En el caso del séptimo puesto, será necesario haber ganado un mínimo de 2 combates. | BJ22: 0
C25: Ü La Suma de puntuacion (*1 ) Copas se realizará a la finalización de la Última Copa de España 2017-

Sheet -60 kg (hidden)
AA1: Z
C2: Ranking | D2: Nation | E2: Continent | F2: IJF ID | G2: Y.o B. | H2: FAMILY NAME | I2: Given name | J2: Total score
C3: Puesto | D3: Comunidad | E3: Continent | F3: España ID | G3: A. de N. | H3: APELLIDOS | I3: Nombre | J3: Ranking Nacional Absoluto | K3: Puntuación Año Anterior | L3: Clasificación Equipo Absoluto | O3: Master ABS | Q3: Campeonato Mundo | S3: Campeonato Europa | U3: Campeonato Europa S23 | W3: Gran Slam (Francia) | Y3: Grand Slam (Abu Dhabi) | AA3: GRAND SLAM OSAKA | AC3: GRAND SLAM OSAKA | AK3: Gran Prix Croacia - ZAGREB | AL3: GRAND SLAM BRASILIA | AP3: Gran Prix Croacia - ZAGREB | AR3: Gran Prix (Marruecos) | AT3: Gran Prix (La Haya) | AV3: Gran Prix (Tunez) | AX3: Gran Prix (Duseldorf) | AZ3: Gran Prix (China) | BB3: Gran Prix (Uzbekistan) | BD3: Gran Prix Budapest | BJ3: Open de Oceania | BL3: Campeonato España | BN3: European Open (Odivelas) | BP3: European Open (Sofia) | BR3: European Open (Roma) | BT3: European Open (POLONIA) | BV3: European Open (RUMANIA) | BX3: European Open (Glasgow) | BZ3: Open Panamericano | CF3: European Cup Málaga | CP3: Puntuación Año Anterior
K4: 0.5 | L4: Oro | M4: Plata | N4: Bronce | O4: Medalla | P4: Puntos | Q4: Medalla | R4: Puntos | S4: Medalla | T4: Puntos | U4: Medalla | V4: Puntos | W4: Medalla | X4: Puntos | Y4: Medalla | Z4: Puntos | AA4: Medalla | AB4: Puntos | AC4: Medalla | AD4: Puntos | AE4: Medalla | AF4: Puntos | AG4: Medalla | AH4: Puntos | AI4: Medalla | AJ4: Puntos | AK4: Medalla | AL4: Medalla | AM4: Puntos | AN4: Medalla | AO4: Puntos | AP4: Medalla | AQ4: Puntos | AR4: Medalla | AS4: Puntos | AT4: Medalla | AU4: Puntos | AV4: Medalla | AW4: Puntos | AX4: Medalla | AY4: Puntos | AZ4: Medalla | BA4: Puntos | BB4: Medalla | BC4: Puntos | BD4: Medalla | BE4: Puntos | BF4: Medalla | BG4: Puntos | BH4: Medalla | BI4: Puntos | BJ4: Medalla | BK4: Puntos | BL4: Medalla | BM4: Puntos | BN4: Medalla | BO4: Puntos | BP4: Medalla | BQ4: Puntos | BR4: Medalla | BS4: Puntos | BT4: Medalla | BU4: Puntos | BV4: Medalla | BW4: Puntos | BX4: Medalla | BY4: Puntos | BZ4: Medalla | CA4: Puntos | CB4: Medalla | CC4: Puntos | CD4: Medalla | CE4: Puntos | CF4: Medalla | CG4: Puntos | CH4: Medalla | CI4: Puntos | CJ4: Medalla | CK4: Puntos | CP4: 1
C5: =RANK(J5,$J$5:$J$43,0) -> 1 | D5: GAL | H5: GARRIGOS ROSA | I5: FRANCISCO | J5: =SUM(O5:CK5)+K5 -> 170 | K5: =CP5*50/100 -> 110 | L5: =COUNTIF(O5:CK5,$L$4) -> 1 | M5: =COUNTIF(O5:CK5,$M$4) -> 0 | N5: =COUNTIF(O5:CK5,$N$4) -> 1 | P5: =IF(O5="Oro",150,IF(O5="Plata",120,IF(O5="Bronce",100,IF(O5="Quinto",50,IF(O5="Septimo",30,0))))) -> 0 | R5: =IF(Q5="Oro",150,IF(Q5="Plata",120,IF(Q5="Bronce",100,IF(Q5="Quinto",50,IF(Q5="Septimo",30,0))))) -> 0 | T5: =IF(S5="Oro",100,IF(S5="Plata",85,IF(S5="Bronce",70,IF(S5="Quinto",30,IF(S5="Septimo",15,0))))) -> 0 | V5: =IF(U5="Oro",100,IF(U5="Plata",85,IF(U5="Bronce",70,IF(U5="Quinto",30,IF(U5="Septimo",15,0))))) -> 0 | X5: =IF(W5="Oro",75,IF(W5="Plata",60,IF(W5="Bronce",50,IF(W5="Quinto",20,IF(W5="Septimo",7,0))))) -> 0 | Y5: 0 | Z5: =IF(Y5="Oro",75,IF(Y5="Plata",60,IF(Y5="Bronce",50,IF(Y5="Quinto",20,IF(Y5="Septimo",7,0))))) -> 0 | AB5: =IF(AA5="Oro",75,IF(AA5="Plata",60,IF(AA5="Bronce",50,IF(AA5="Quinto",20,IF(AA5="Septimo",7,0))))) -> 0 | AD5: =IF(AC5="Oro",75,IF(AC5="Plata",60,IF(AC5="Bronce",50,IF(AC5="Quinto",20,IF(AC5="Septimo",7,0))))) -> 0 | AF5: =IF(AE5="Oro",75,IF(AE5="Plata",60,IF(AE5="Bronce",50,IF(AE5="Quinto",20,IF(AE5="Septimo",7,0))))) -> 0 | AH5: =IF(AG5="Oro",75,IF(AG5="Plata",60,IF(AG5="Bronce",50,IF(AG5="Quinto",20,IF(AG5="Septimo",7,0))))) -> 0 | AJ5: =IF(AI5="Oro",75,IF(AI5="Plata",60,IF(AI5="Bronce",50,IF(AI5="Quinto",20,IF(AI5="Septimo",7,0))))) -> 0 | AK5: Bronce | AM5: =IF(AL5="Oro",75,IF(AL5="Plata",60,IF(AL5="Bronce",50,IF(AL5="Quinto",20,IF(AL5="Septimo",7,0))))) -> 0 | AO5: =IF(AN5="Oro",75,IF(AN5="Plata",60,IF(AN5="Bronce",50,IF(AN5="Quinto",20,IF(AN5="Septimo",7,0))))) -> 0 | AQ5: =IF(AP5="Oro",60,IF(AP5="Plata",50,IF(AP5="Bronce",35,IF(AP5="Quinto",15,IF(AP5="Septimo",5,0))))) -> 0 | AS5: =IF(AR5="Oro",60,IF(AR5="Plata",50,IF(AR5="Bronce",35,IF(AR5="Quinto",15,IF(AR5="Septimo",5,0))))) -> 0 | AU5: =IF(AT5="Oro",60,IF(AT5="Plata",50,IF(AT5="Bronce",35,IF(AT5="Quinto",15,IF(AT5="Septimo",5,0))))) -> 0 | AW5: =IF(AV5="Oro",60,IF(AV5="Plata",50,IF(AV5="Bronce",35,IF(AV5="Quinto",15,IF(AV5="Septimo",5,0))))) -> 0 | AY5: =IF(AX5="Oro",60,IF(AX5="Plata",50,IF(AX5="Bronce",35,IF(AX5="Quinto",15,IF(AX5="Septimo",5,0))))) -> 0 | BA5: =IF(AZ5="Oro",60,IF(AZ5="Plata",50,IF(AZ5="Bronce",35,IF(AZ5="Quinto",15,IF(AZ5="Septimo",5,0))))) -> 0 | BC5: =IF(BB5="Oro",60,IF(BB5="Plata",50,IF(BB5="Bronce",35,IF(BB5="Quinto",15,IF(BB5="Septimo",5,0))))) -> 0 | BE5: =IF(BD5="Oro",60,IF(BD5="Plata",50,IF(BD5="Bronce",35,IF(BD5="Quinto",15,IF(BD5="Septimo",5,0))))) -> 0 | BG5: =IF(BF5="Oro",60,IF(BF5="Plata",50,IF(BF5="Bronce",35,IF(BF5="Quinto",15,IF(BF5="Septimo",5,0))))) -> 0 | BI5: =IF(BH5="Oro",60,IF(BH5="Plata",50,IF(BH5="Bronce",35,IF(BH5="Quinto",15,IF(BH5="Septimo",5,0))))) -> 0 | BJ5: ORO | BK5: =IF(BJ5="Oro",60,IF(BJ5="Plata",50,IF(BJ5="Bronce",35,IF(BJ5="Quinto",15,IF(BJ5="Septimo",5,0))))) -> 60 | BM5: =IF(BL5="Oro",30,IF(BL5="Plata",20,IF(BL5="Bronce",15,0))) -> 0 | BO5: =IF(BN5="Oro",30,IF(BN5="Plata",20,IF(BN5="Bronce",15,0))) -> 0 | BQ5: =IF(BP5="Oro",30,IF(BP5="Plata",20,IF(BP5="Bronce",15,0))) -> 0 | BS5: =IF(BR5="Oro",30,IF(BR5="Plata",20,IF(BR5="Bronce",15,0))) -> 0 | BU5: =IF(BT5="Oro",30,IF(BT5="Plata",20,IF(BT5="Bronce",15,0))) -> 0 | BW5: =IF(BV5="Oro",30,IF(BV5="Plata",20,IF(BV5="Bronce",15,0))) -> 0 | BY5: =IF(BX5="Oro",30,IF(BX5="Plata",20,IF(BX5="Bronce",15,0))) -> 0 | CA5: =IF(BZ5="Oro",30,IF(BZ5="Plata",20,IF(BZ5="Bronce",15,0))) -> 0 | CC5: =IF(CB5="Oro",30,IF(CB5="Plata",20,IF(CB5="Bronce",15,0))) -> 0 | CE5: =IF(CD5="Oro",30,IF(CD5="Plata",20,IF(CD5="Bronce",15,0))) -> 0 | CG5: =IF(CF5="Oro",30,IF(CF5="Plata",20,IF(CF5="Bronce",15,0))) -> 0 | CI5: =IF(CH5="Oro",30,IF(CH5="Plata",20,IF(CH5="Bronce",15,0))) -> 0 | CK5: =IF(CJ5="Oro",30,IF(CJ5="Plata",20,IF(CJ5="Bronce",15,0))) -> 0 | CP5: =SUMIFS('2019'!H:H,'2019'!A:A,"-60 kg",'2019'!D:D,'-60 kg'!H5,'2019'!E:E,'-60 kg'!I5) -> 220
C6: 2 | D6: MAD | F6: 47495553R | G6: 1989 | H6: NUÑEZ RODRIGUEZ | I6: JUSTO ALEJANDRO | J6: 35 | K6: 15 | L6: 0 | M6: 0 | N6: 0 | P6: 0 | R6: 0 | T6: 0 | V6: 0 | X6: 0 | Z6: 0 | AA6: Quinto | AB6: 20 | AD6: 0 | AF6: 0 | AH6: 0 | AJ6: 0 | AM6: 0 | AO6: 0 | AQ6: 0 | AS6: 0 | AU6: 0 | AW6: 0 | AY6: 0 | BA6: 0 | BC6: 0 | BE6: 0 | BG6: 0 | BI6: 0 | BK6: 0 | BM6: 0 | BO6: 0 | BQ6: 0 | BS6: 0 | BU6: 0 | BW6: 0 | BY6: 0 | CA6: 0 | CC6: 0 | CE6: 0 | CG6: 0 | CI6: 0 | CK6: 0 | CP6: =SUMIFS('2019'!H:H,'2019'!A:A,"-60 kg",'2019'!D:D,'-60 kg'!H6,'2019'!E:E,'-60 kg'!I6) -> 30
C7: 3 | D7: ARA | F7: 73022553Z | G7: 1999 | H7: IBAÑEZ BAÑON | I7: Sergio | J7: 30 | K7: 10 | L7: 0 | M7: 0 | N7: 0 | P7: 0 | R7: 0 | T7: 0 | V7: 0 | X7: 0 | Z7: 0 | AA7: Quinto | AB7: 20 | AD7: 0 | AF7: 0 | AH7: 0 | AJ7: 0 | AM7: 0 | AO7: 0 | AQ7: 0 | AS7: 0 | AU7: 0 | AW7: 0 | AY7: 0 | BA7: 0 | BC7: 0 | BE7: 0 | BG7: 0 | BI7: 0 | BK7: 0 | BM7: 0 | BO7: 0 | BQ7: 0 | BS7: 0 | BU7: 0 | BW7: 0 | BY7: 0 | CA7: 0 | CC7: 0 | CE7: 0 | CG7: 0 | CI7: 0 | CK7: 0 | CP7: =SUMIFS('2019'!H:H,'2019'!A:A,"-60 kg",'2019'!D:D,'-60 kg'!H7,'2019'!E:E,'-60 kg'!I7) -> 20
C8: 4 | D8: VAL | F8: 44565701G | G8: 1991 | H8: SAGARZAZU GIL | I8: Iokin | J8: 7.5 | K8: 7.5 | L8: 0 | M8: 0 | N8: 0 | P8: 0 | R8: 0 | T8: 0 | V8: 0 | X8: 0 | Z8: 0 | AB8: 0 | AD8: 0 | AF8: 0 | AH8: 0 | AJ8: 0 | AM8: 0 | AO8: 0 | AQ8: 0 | AS8: 0 | AU8: 0 | AW8: 0 | AY8: 0 | BA8: 0 | BC8: 0 | BE8: 0 | BG8: 0 | BI8: 0 | BK8: 0 | BM8: 0 | BO8: 0 | BQ8: 0 | BS8: 0 | BU8: 0 | BW8: 0 | BY8: 0 | CA8: 0 | CC8: 0 | CE8: 0 | CG8: 0 | CI8: 0 | CK8: 0 | CP8: =SUMIFS('2019'!H:H,'2019'!A:A,"-60 kg",'2019'!D:D,'-60 kg'!H8,'2019'!E:E,'-60 kg'!I8) -> 15
C9: 4 | D9: VAL | H9: BERNABEU RICO | I9: Jaume | J9: 7.5 | K9: 7.5 | L9: 0 | M9: 0 | N9: 0 | P9: 0 | R9: 0 | T9: 0 | V9: 0 | X9: 0 | Z9: 0 | AB9: 0 | AD9: 0 | AF9: 0 | AH9: 0 | AJ9: 0 | AM9: 0 | AO9: 0 | AQ9: 0 | AS9: 0 | AU9: 0 | AW9: 0 | AY9: 0 | BA9: 0 | BC9: 0 | BE9: 0 | BG9: 0 | BI9: 0 | BK9: 0 | BM9: 0 | BO9: 0 | BQ9: 0 | BS9: 0 | BU9: 0 | BW9: 0 | BY9: 0 | CA9: 0 | CC9: 0 | CE9: 0 | CG9: 0 | CI9: 0 | CK9: 0 | CP9: =SUMIFS('2019'!H:H,'2019'!A:A,"-60 kg",'2019'!D:D,'-60 kg'!H9,'2019'!E:E,'-60 kg'!I9) -> 15
C10: 6 | D10: CAT | F10: 39400094J | G10: 1991 | H10: SUBIRANA PUJALS | I10: ORIOL | J10: 0 | K10: 0 | L10: 0 | M10: 0 | N10: 0 | P10: 0 | R10: 0 | T10: 0 | V10: 0 | X10: 0 | Z10: 0 | AB10: 0 | AD10: 0 | AF10: 0 | AH10: 0 | AJ10: 0 | AM10: 0 | AO10: 0 | AQ10: 0 | AS10: 0 | AU10: 0 | AW10: 0 | AY10: 0 | BA10: 0 | BC10: 0 | BE10: 0 | BG10: 0 | BI10: 0 | BK10: 0 | BM10: 0 | BO10: 0 | BQ10: 0 | BS10: 0 | BU10: 0 | BW10: 0 | BY10: 0 | CA10: 0 | CC10: 0 | CE10: 0 | CF10: QUINTO | CG10: 0 | CI10: 0 | CK10: 0 | CP10: =SUMIFS('2019'!H:H,'2019'!A:A,"-60 kg",'2019'!D:D,'-60 kg'!H10,'2019'!E:E,'-60 kg'!I10) -> 0
C11: 6 | D11: NAV | F11: 73122538H | G11: 1995 | H11: LASSA IGLESIAS | I11: Francisco Javier | J11: 0 | K11: 0 | L11: 0 | M11: 0 | N11: 0 | P11: 0 | R11: 0 | T11: 0 | U11: 0 | V11: 0 | X11: 0 | Z11: 0 | AB11: 0 | AD11: 0 | AF11: 0 | AH11: 0 | AJ11: 0 | AM11: 0 | AO11: 0 | AQ11: 0 | AS11: 0 | AU11: 0 | AW11: 0 | AY11: 0 | BA11: 0 | BC11: 0 | BE11: 0 | BG11: 0 | BI11: 0 | BK11: 0 | BM11: 0 | BO11: 0 | BQ11: 0 | BS11: 0 | BU11: 0 | BW11: 0 | BY11: 0 | CA11: 0 | CC11: 0 | CE11: 0 | CF11: SEPTIMO | CG11: 0 | CI11: 0 | CK11: 0 | CP11: =SUMIFS('2019'!H:H,'2019'!A:A,"-60 kg",'2019'!D:D,'-60 kg'!H11,'2019'!E:E,'-60 kg'!I11) -> 0
C12: 6 | J12: 0 | K12: 0 | L12: 0 | M12: 0 | N12: 0 | P12: 0 | R12: 0 | T12: 0 | V12: 0 | X12: 0 | Z12: 0 | AB12: 0 | AD12: 0 | AF12: 0 | AH12: 0 | AJ12: 0 | AM12: 0 | AO12: 0 | AQ12: 0 | AS12: 0 | AU12: 0 | AW12: 0 | AY12: 0 | BA12: 0 | BC12: 0 | BE12: 0 | BG12: 0 | BI12: 0 | BK12: 0 | BM12: 0 | BO12: 0 | BQ12: 0 | BS12: 0 | BU12: 0 | BW12: 0 | BY12: 0 | CA12: 0 | CC12: 0 | CE12: 0 | CG12: 0 | CI12: 0 | CK12: 0 | CP12: =SUMIFS('2019'!H:H,'2019'!A:A,"-60 kg",'2019'!D:D,'-60 kg'!H12,'2019'!E:E,'-60 kg'!I12) -> 0
C13: 6 | J13: 0 | K13: 0 | L13: 0 | M13: 0 | N13: 0 | P13: 0 | R13: 0 | T13: 0 | V13: 0 | X13: 0 | Z13: 0 | AB13: 0 | AD13: 0 | AF13: 0 | AH13: 0 | AJ13: 0 | AM13: 0 | AO13: 0 | AQ13: 0 | AS13: 0 | AU13: 0 | AW13: 0 | AY13: 0 | BA13: 0 | BC13: 0 | BE13: 0 | BG13: 0 | BI13: 0 | BK13: 0 | BM13: 0 | BO13: 0 | BQ13: 0 | BS13: 0 | BU13: 0 | BW13: 0 | BY13: 0 | CA13: 0 | CC13: 0 | CE13: 0 | CG13: 0 | CI13: 0 | CK13: 0 | CP13: =SUMIFS('2019'!H:H,'2019'!A:A,"-60 kg",'2019'!D:D,'-60 kg'!H13,'2019'!E:E,'-60 kg'!I13) -> 0
C14: 6 | J14: 0 | K14: 0 | L14: 0 | M14: 0 | N14: 0 | P14: 0 | R14: 0 | T14: 0 | V14: 0 | X14: 0 | Z14: 0 | AB14: 0 | AD14: 0 | AF14: 0 | AH14: 0 | AJ14: 0 | AM14: 0 | AO14: 0 | AQ14: 0 | AS14: 0 | AU14: 0 | AW14: 0 | AY14: 0 | BA14: 0 | BC14: 0 | BE14: 0 | BG14: 0 | BI14: 0 | BK14: 0 | BM14: 0 | BO14: 0 | BQ14: 0 | BS14: 0 | BU14: 0 | BW14: 0 | BY14: 0 | CA14: 0 | CC14: 0 | CE14: 0 | CG14: 0 | CI14: 0 | CK14: 0 | CP14: =SUMIFS('2019'!H:H,'2019'!A:A,"-60 kg",'2019'!D:D,'-60 kg'!H14,'2019'!E:E,'-60 kg'!I14) -> 0
C15: 6 | J15: 0 | K15: 0 | L15: 0 | M15: 0 | N15: 0 | P15: 0 | R15: 0 | T15: 0 | V15: 0 | X15: 0 | Z15: 0 | AB15: 0 | AD15: 0 | AF15: 0 | AH15: 0 | AJ15: 0 | AM15: 0 | AO15: 0 | AQ15: 0 | AS15: 0 | AU15: 0 | AW15: 0 | AY15: 0 | BA15: 0 | BC15: 0 | BE15: 0 | BG15: 0 | BI15: 0 | BK15: 0 | BM15: 0 | BO15: 0 | BQ15: 0 | BS15: 0 | BU15: 0 | BW15: 0 | BY15: 0 | CA15: 0 | CC15: 0 | CE15: 0 | CG15: 0 | CI15: 0 | CK15: 0 | CP15: =SUMIFS('2019'!H:H,'2019'!A:A,"-60 kg",'2019'!D:D,'-60 kg'!H15,'2019'!E:E,'-60 kg'!I15) -> 0
C16: 6 | J16: 0 | K16: 0 | L16: 0 | M16: 0 | N16: 0 | P16: 0 | R16: 0 | T16: 0 | V16: 0 | X16: 0 | Z16: 0 | AB16: 0 | AD16: 0 | AF16: 0 | AH16: 0 | AJ16: 0 | AM16: 0 | AO16: 0 | AQ16: 0 | AS16: 0 | AU16: 0 | AW16: 0 | AY16: 0 | BA16: 0 | BC16: 0 | BE16: 0 | BG16: 0 | BI16: 0 | BK16: 0 | BM16: 0 | BO16: 0 | BQ16: 0 | BS16: 0 | BU16: 0 | BW16: 0 | BY16: 0 | CA16: 0 | CC16: 0 | CE16: 0 | CG16: 0 | CI16: 0 | CK16: 0 | CP16: =SUMIFS('2019'!H:H,'2019'!A:A,"-60 kg",'2019'!D:D,'-60 kg'!H16,'2019'!E:E,'-60 kg'!I16) -> 0
C17: 6 | J17: 0 | K17: 0 | L17: 0 | M17: 0 | N17: 0 | P17: 0 | R17: 0 | T17: 0 | V17: 0 | X17: 0 | Z17: 0 | AB17: 0 | AD17: 0 | AF17: 0 | AH17: 0 | AJ17: 0 | AM17: 0 | AO17: 0 | AQ17: 0 | AS17: 0 | AU17: 0 | AW17: 0 | AY17: 0 | BA17: 0 | BC17: 0 | BE17: 0 | BG17: 0 | BI17: 0 | BK17: 0 | BM17: 0 | BO17: 0 | BQ17: 0 | BS17: 0 | BU17: 0 | BW17: 0 | BY17: 0 | CA17: 0 | CC17: 0 | CE17: 0 | CG17: 0 | CI17: 0 | CK17: 0 | CP17: =SUMIFS('2019'!H:H,'2019'!A:A,"-60 kg",'2019'!D:D,'-60 kg'!H17,'2019'!E:E,'-60 kg'!I17) -> 0
C18: 6 | J18: 0 | K18: 0 | L18: 0 | M18: 0 | N18: 0 | P18: 0 | R18: 0 | T18: 0 | V18: 0 | X18: 0 | Z18: 0 | AB18: 0 | AD18: 0 | AF18: 0 | AH18: 0 | AJ18: 0 | AM18: 0 | AO18: 0 | AQ18: 0 | AS18: 0 | AU18: 0 | AW18: 0 | AY18: 0 | BA18: 0 | BC18: 0 | BE18: 0 | BG18: 0 | BI18: 0 | BK18: 0 | BM18: 0 | BO18: 0 | BQ18: 0 | BS18: 0 | BU18: 0 | BW18: 0 | BY18: 0 | CA18: 0 | CC18: 0 | CE18: 0 | CG18: 0 | CI18: 0 | CK18: 0 | CP18: =SUMIFS('2019'!H:H,'2019'!A:A,"-60 kg",'2019'!D:D,'-60 kg'!H18,'2019'!E:E,'-60 kg'!I18) -> 0
C19: 6 | J19: 0 | K19: 0 | L19: 0 | M19: 0 | N19: 0 | P19: 0 | R19: 0 | T19: 0 | V19: 0 | X19: 0 | Z19: 0 | AB19: 0 | AD19: 0 | AF19: 0 | AH19: 0 | AJ19: 0 | AM19: 0 | AO19: 0 | AQ19: 0 | AS19: 0 | AU19: 0 | AW19: 0 | AY19: 0 | BA19: 0 | BC19: 0 | BE19: 0 | BG19: 0 | BI19: 0 | BK19: 0 | BM19: 0 | BO19: 0 | BQ19: 0 | BS19: 0 | BU19: 0 | BW19: 0 | BY19: 0 | CA19: 0 | CC19: 0 | CE19: 0 | CG19: 0 | CI19: 0 | CK19: 0 | CP19: =SUMIFS('2019'!H:H,'2019'!A:A,"-60 kg",'2019'!D:D,'-60 kg'!H19,'2019'!E:E,'-60 kg'!I19) -> 0
C20: 6 | J20: 0 | K20: 0 | L20: 0 | M20: 0 | N20: 0 | P20: 0 | R20: 0 | T20: 0 | V20: 0 | X20: 0 | Z20: 0 | AB20: 0 | AD20: 0 | AF20: 0 | AH20: 0 | AJ20: 0 | AM20: 0 | AO20: 0 | AQ20: 0 | AS20: 0 | AU20: 0 | AW20: 0 | AY20: 0 | BA20: 0 | BC20: 0 | BE20: 0 | BG20: 0 | BI20: 0 | BK20: 0 | BM20: 0 | BO20: 0 | BQ20: 0 | BS20: 0 | BU20: 0 | BW20: 0 | BY20: 0 | CA20: 0 | CC20: 0 | CE20: 0 | CG20: 0 | CI20: 0 | CK20: 0 | CP20: =SUMIFS('2019'!H:H,'2019'!A:A,"-60 kg",'2019'!D:D,'-60 kg'!H20,'2019'!E:E,'-60 kg'!I20) -> 0
C21: 6 | J21: 0 | K21: 0 | L21: 0 | M21: 0 | N21: 0 | P21: 0 | R21: 0 | T21: 0 | V21: 0 | X21: 0 | Z21: 0 | AB21: 0 | AD21: 0 | AF21: 0 | AH21: 0 | AJ21: 0 | AM21: 0 | AO21: 0 | AQ21: 0 | AS21: 0 | AU21: 0 | AW21: 0 | AY21: 0 | BA21: 0 | BC21: 0 | BE21: 0 | BG21: 0 | BI21: 0 | BK21: 0 | BM21: 0 | BO21: 0 | BQ21: 0 | BS21: 0 | BU21: 0 | BW21: 0 | BY21: 0 | CA21: 0 | CC21: 0 | CE21: 0 | CG21: 0 | CI21: 0 | CK21: 0 | CP21: =SUMIFS('2019'!H:H,'2019'!A:A,"-60 kg",'2019'!D:D,'-60 kg'!H21,'2019'!E:E,'-60 kg'!I21) -> 0
C22: 6 | J22: 0 | K22: 0 | L22: 0 | M22: 0 | N22: 0 | P22: 0 | R22: 0 | T22: 0 | V22: 0 | X22: 0 | Z22: 0 | AB22: 0 | AD22: 0 | AF22: 0 | AH22: 0 | AJ22: 0 | AM22: 0 | AO22: 0 | AQ22: 0 | AS22: 0 | AU22: 0 | AW22: 0 | AY22: 0 | BA22: 0 | BC22: 0 | BE22: 0 | BG22: 0 | BI22: 0 | BK22: 0 | BM22: 0 | BO22: 0 | BQ22: 0 | BS22: 0 | BU22: 0 | BW22: 0 | BY22: 0 | CA22: 0 | CC22: 0 | CE22: 0 | CG22: 0 | CI22: 0 | CK22: 0 | CP22: =SUMIFS('2019'!H:H,'2019'!A:A,"-60 kg",'2019'!D:D,'-60 kg'!H22,'2019'!E:E,'-60 kg'!I22) -> 0
C23: 6 | J23: 0 | K23: 0 | L23: 0 | M23: 0 | N23: 0 | P23: 0 | R23: 0 | T23: 0 | V23: 0 | X23: 0 | Z23: 0 | AB23: 0 | AD23: 0 | AF23: 0 | AH23: 0 | AJ23: 0 | AM23: 0 | AO23: 0 | AQ23: 0 | AS23: 0 | AU23: 0 | AW23: 0 | AY23: 0 | BA23: 0 | BC23: 0 | BE23: 0 | BG23: 0 | BI23: 0 | BK23: 0 | BM23: 0 | BO23: 0 | BQ23: 0 | BS23: 0 | BU23: 0 | BW23: 0 | BY23: 0 | CA23: 0 | CC23: 0 | CE23: 0 | CG23: 0 | CI23: 0 | CK23: 0 | CP23: =SUMIFS('2019'!H:H,'2019'!A:A,"-60 kg",'2019'!D:D,'-60 kg'!H23,'2019'!E:E,'-60 kg'!I23) -> 0
C24: 6 | J24: 0 | K24: 0 | L24: 0 | M24: 0 | N24: 0 | P24: 0 | R24: 0 | T24: 0 | V24: 0 | X24: 0 | Z24: 0 | AB24: 0 | AD24: 0 | AF24: 0 | AH24: 0 | AJ24: 0 | AM24: 0 | AO24: 0 | AQ24: 0 | AS24: 0 | AU24: 0 | AW24: 0 | AY24: 0 | BA24: 0 | BC24: 0 | BE24: 0 | BG24: 0 | BI24: 0 | BK24: 0 | BM24: 0 | BO24: 0 | BQ24: 0 | BS24: 0 | BU24: 0 | BW24: 0 | BY24: 0 | CA24: 0 | CC24: 0 | CE24: 0 | CG24: 0 | CI24: 0 | CK24: 0 | CP24: =SUMIFS('2019'!H:H,'2019'!A:A,"-60 kg",'2019'!D:D,'-60 kg'!H24,'2019'!E:E,'-60 kg'!I24) -> 0
C25: 6 | J25: 0 | K25: 0 | L25: 0 | M25: 0 | N25: 0 | P25: 0 | R25: 0 | T25: 0 | V25: 0 | X25: 0 | Z25: 0 | AB25: 0 | AD25: 0 | AF25: 0 | AH25: 0 | AJ25: 0 | AM25: 0 | AO25: 0 | AQ25: 0 | AS25: 0 | AU25: 0 | AW25: 0 | AY25: 0 | BA25: 0 | BC25: 0 | BE25: 0 | BG25: 0 | BI25: 0 | BK25: 0 | BM25: 0 | BO25: 0 | BQ25: 0 | BS25: 0 | BU25: 0 | BW25: 0 | BY25: 0 | CA25: 0 | CC25: 0 | CE25: 0 | CG25: 0 | CI25: 0 | CK25: 0 | CP25: =SUMIFS('2019'!H:H,'2019'!A:A,"-60 kg",'2019'!D:D,'-60 kg'!H25,'2019'!E:E,'-60 kg'!I25) -> 0
C26: 6 | J26: 0 | K26: 0 | L26: 0 | M26: 0 | N26: 0 | P26: 0 | R26: 0 | T26: 0 | V26: 0 | X26: 0 | Z26: 0 | AB26: 0 | AD26: 0 | AF26: 0 | AH26: 0 | AJ26: 0 | AM26: 0 | AO26: 0 | AQ26: 0 | AS26: 0 | AU26: 0 | AW26: 0 | AY26: 0 | BA26: 0 | BC26: 0 | BE26: 0 | BG26: 0 | BI26: 0 | BK26: 0 | BM26: 0 | BO26: 0 | BQ26: 0 | BS26: 0 | BU26: 0 | BW26: 0 | BY26: 0 | CA26: 0 | CC26: 0 | CE26: 0 | CG26: 0 | CI26: 0 | CK26: 0 | CP26: =SUMIFS('2019'!H:H,'2019'!A:A,"-60 kg",'2019'!D:D,'-60 kg'!H26,'2019'!E:E,'-60 kg'!I26) -> 0
C27: 6 | J27: 0 | K27: 0 | L27: 0 | M27: 0 | N27: 0 | P27: 0 | R27: 0 | T27: 0 | V27: 0 | X27: 0 | Z27: 0 | AB27: 0 | AD27: 0 | AF27: 0 | AH27: 0 | AJ27: 0 | AM27: 0 | AO27: 0 | AQ27: 0 | AS27: 0 | AU27: 0 | AW27: 0 | AY27: 0 | BA27: 0 | BC27: 0 | BE27: 0 | BG27: 0 | BI27: 0 | BK27: 0 | BM27: 0 | BO27: 0 | BQ27: 0 | BS27: 0 | BU27: 0 | BW27: 0 | BY27: 0 | CA27: 0 | CC27: 0 | CE27: 0 | CG27: 0 | CI27: 0 | CK27: 0 | CP27: =SUMIFS('2019'!H:H,'2019'!A:A,"-60 kg",'2019'!D:D,'-60 kg'!H27,'2019'!E:E,'-60 kg'!I27) -> 0
C28: 6 | J28: 0 | K28: 0 | L28: 0 | M28: 0 | N28: 0 | P28: 0 | R28: 0 | T28: 0 | V28: 0 | X28: 0 | Z28: 0 | AB28: 0 | AD28: 0 | AF28: 0 | AH28: 0 | AJ28: 0 | AM28: 0 | AO28: 0 | AQ28: 0 | AS28: 0 | AU28: 0 | AW28: 0 | AY28: 0 | BA28: 0 | BC28: 0 | BE28: 0 | BG28: 0 | BI28: 0 | BK28: 0 | BM28: 0 | BO28: 0 | BQ28: 0 | BS28: 0 | BU28: 0 | BW28: 0 | BY28: 0 | CA28: 0 | CC28: 0 | CE28: 0 | CG28: 0 | CI28: 0 | CK28: 0 | CP28: =SUMIFS('2019'!H:H,'2019'!A:A,"-60 kg",'2019'!D:D,'-60 kg'!H28,'2019'!E:E,'-60 kg'!I28) -> 0
C29: 6 | J29: 0 | K29: 0 | L29: 0 | M29: 0 | N29: 0 | P29: 0 | R29: 0 | T29: 0 | V29: 0 | X29: 0 | Z29: 0 | AB29: 0 | AD29: 0 | AF29: 0 | AH29: 0 | AJ29: 0 | AM29: 0 | AO29: 0 | AQ29: 0 | AS29: 0 | AU29: 0 | AW29: 0 | AY29: 0 | BA29: 0 | BC29: 0 | BE29: 0 | BG29: 0 | BI29: 0 | BK29: 0 | BM29: 0 | BO29: 0 | BQ29: 0 | BS29: 0 | BU29: 0 | BW29: 0 | BY29: 0 | CA29: 0 | CC29: 0 | CE29: 0 | CG29: 0 | CI29: 0 | CK29: 0 | CP29: =SUMIFS('2019'!H:H,'2019'!A:A,"-60 kg",'2019'!D:D,'-60 kg'!H29,'2019'!E:E,'-60 kg'!I29) -> 0
C30: 6 | J30: 0 | K30: 0 | L30: 0 | M30: 0 | N30: 0 | P30: 0 | R30: 0 | T30: 0 | V30: 0 | X30: 0 | Z30: 0 | AB30: 0 | AD30: 0 | AF30: 0 | AH30: 0 | AJ30: 0 | AM30: 0 | AO30: 0 | AQ30: 0 | AS30: 0 | AU30: 0 | AW30: 0 | AY30: 0 | BA30: 0 | BC30: 0 | BE30: 0 | BG30: 0 | BI30: 0 | BK30: 0 | BM30: 0 | BO30: 0 | BQ30: 0 | BS30: 0 | BU30: 0 | BW30: 0 | BY30: 0 | CA30: 0 | CC30: 0 | CE30: 0 | CG30: 0 | CI30: 0 | CK30: 0 | CP30: =SUMIFS('2019'!H:H,'2019'!A:A,"-60 kg",'2019'!D:D,'-60 kg'!H30,'2019'!E:E,'-60 kg'!I30) -> 0
C31: 6 | J31: 0 | K31: 0 | L31: 0 | M31: 0 | N31: 0 | P31: 0 | R31: 0 | T31: 0 | V31: 0 | X31: 0 | Z31: 0 | AB31: 0 | AD31: 0 | AF31: 0 | AH31: 0 | AJ31: 0 | AM31: 0 | AO31: 0 | AQ31: 0 | AS31: 0 | AU31: 0 | AW31: 0 | AY31: 0 | BA31: 0 | BC31: 0 | BE31: 0 | BG31: 0 | BI31: 0 | BK31: 0 | BM31: 0 | BO31: 0 | BQ31: 0 | BS31: 0 | BU31: 0 | BW31: 0 | BY31: 0 | CA31: 0 | CC31: 0 | CE31: 0 | CG31: 0 | CI31: 0 | CK31: 0 | CP31: =SUMIFS('2019'!H:H,'2019'!A:A,"-60 kg",'2019'!D:D,'-60 kg'!H31,'2019'!E:E,'-60 kg'!I31) -> 0
C32: 6 | J32: 0 | K32: 0 | L32: 0 | M32: 0 | N32: 0 | P32: 0 | R32: 0 | T32: 0 | V32: 0 | X32: 0 | Z32: 0 | AB32: 0 | AD32: 0 | AF32: 0 | AH32: 0 | AJ32: 0 | AM32: 0 | AO32: 0 | AQ32: 0 | AS32: 0 | AU32: 0 | AW32: 0 | AY32: 0 | BA32: 0 | BC32: 0 | BE32: 0 | BG32: 0 | BI32: 0 | BK32: 0 | BM32: 0 | BO32: 0 | BQ32: 0 | BS32: 0 | BU32: 0 | BW32: 0 | BY32: 0 | CA32: 0 | CC32: 0 | CE32: 0 | CG32: 0 | CI32: 0 | CK32: 0 | CP32: =SUMIFS('2019'!H:H,'2019'!A:A,"-60 kg",'2019'!D:D,'-60 kg'!H32,'2019'!E:E,'-60 kg'!I32) -> 0
C33: 6 | J33: 0 | K33: 0 | L33: 0 | M33: 0 | N33: 0 | P33: 0 | R33: 0 | T33: 0 | V33: 0 | X33: 0 | Z33: 0 | AB33: 0 | AD33: 0 | AF33: 0 | AH33: 0 | AJ33: 0 | AM33: 0 | AO33: 0 | AQ33: 0 | AS33: 0 | AU33: 0 | AW33: 0 | AY33: 0 | BA33: 0 | BC33: 0 | BE33: 0 | BG33: 0 | BI33: 0 | BK33: 0 | BM33: 0 | BO33: 0 | BQ33: 0 | BS33: 0 | BU33: 0 | BW33: 0 | BY33: 0 | CA33: 0 | CC33: 0 | CE33: 0 | CF33: SEPTIMO | CG33: 0 | CI33: 0 | CK33: 0 | CP33: =SUMIFS('2019'!H:H,'2019'!A:A,"-60 kg",'2019'!D:D,'-60 kg'!H33,'2019'!E:E,'-60 kg'!I33) -> 0
C34: 6 | J34: 0 | K34: 0 | L34: 0 | M34: 0 | N34: 0 | P34: 0 | R34: 0 | T34: 0 | V34: 0 | X34: 0 | Z34: 0 | AB34: 0 | AD34: 0 | AF34: 0 | AH34: 0 | AJ34: 0 | AM34: 0 | AO34: 0 | AQ34: 0 | AS34: 0 | AU34: 0 | AW34: 0 | AY34: 0 | BA34: 0 | BC34: 0 | BE34: 0 | BG34: 0 | BI34: 0 | BK34: 0 | BM34: 0 | BO34: 0 | BQ34: 0 | BS34: 0 | BU34: 0 | BW34: 0 | BY34: 0 | CA34: 0 | CC34: 0 | CE34: 0 | CG34: 0 | CI34: 0 | CK34: 0 | CP34: =SUMIFS('2019'!H:H,'2019'!A:A,"-60 kg",'2019'!D:D,'-60 kg'!H34,'2019'!E:E,'-60 kg'!I34) -> 0
C35: 6 | J35: 0 | K35: 0 | L35: 0 | M35: 0 | N35: 0 | P35: 0 | R35: 0 | T35: 0 | V35: 0 | X35: 0 | Z35: 0 | AB35: 0 | AD35: 0 | AF35: 0 | AH35: 0 | AJ35: 0 | AM35: 0 | AO35: 0 | AQ35: 0 | AS35: 0 | AU35: 0 | AW35: 0 | AY35: 0 | BA35: 0 | BC35: 0 | BE35: 0 | BG35: 0 | BI35: 0 | BK35: 0 | BM35: 0 | BO35: 0 | BQ35: 0 | BS35: 0 | BU35: 0 | BW35: 0 | BY35: 0 | CA35: 0 | CC35: 0 | CE35: 0 | CG35: 0 | CI35: 0 | CK35: 0 | CP35: =SUMIFS('2019'!H:H,'2019'!A:A,"-60 kg",'2019'!D:D,'-60 kg'!H35,'2019'!E:E,'-60 kg'!I35) -> 0
C36: 6 | J36: 0 | K36: 0 | L36: 0 | M36: 0 | N36: 0 | P36: 0 | R36: 0 | T36: 0 | V36: 0 | X36: 0 | Z36: 0 | AB36: 0 | AD36: 0 | AF36: 0 | AH36: 0 | AJ36: 0 | AM36: 0 | AO36: 0 | AQ36: 0 | AS36: 0 | AU36: 0 | AW36: 0 | AY36: 0 | BA36: 0 | BC36: 0 | BE36: 0 | BG36: 0 | BI36: 0 | BK36: 0 | BM36: 0 | BO36: 0 | BQ36: 0 | BS36: 0 | BU36: 0 | BW36: 0 | BY36: 0 | CA36: 0 | CC36: 0 | CE36: 0 | CG36: 0 | CI36: 0 | CK36: 0 | CP36: =SUMIFS('2019'!H:H,'2019'!A:A,"-60 kg",'2019'!D:D,'-60 kg'!H36,'2019'!E:E,'-60 kg'!I36) -> 0
C37: 6 | J37: 0 | K37: 0 | L37: 0 | M37: 0 | N37: 0 | P37: 0 | R37: 0 | T37: 0 | V37: 0 | X37: 0 | Z37: 0 | AB37: 0 | AD37: 0 | AF37: 0 | AH37: 0 | AJ37: 0 | AM37: 0 | AO37: 0 | AQ37: 0 | AS37: 0 | AU37: 0 | AW37: 0 | AY37: 0 | BA37: 0 | BC37: 0 | BE37: 0 | BG37: 0 | BI37: 0 | BK37: 0 | BM37: 0 | BO37: 0 | BQ37: 0 | BS37: 0 | BU37: 0 | BW37: 0 | BY37: 0 | CA37: 0 | CC37: 0 | CE37: 0 | CG37: 0 | CI37: 0 | CK37: 0 | CP37: =SUMIFS('2019'!H:H,'2019'!A:A,"-60 kg",'2019'!D:D,'-60 kg'!H37,'2019'!E:E,'-60 kg'!I37) -> 0
C38: 6 | J38: 0 | K38: 0 | L38: 0 | M38: 0 | N38: 0 | P38: 0 | R38: 0 | T38: 0 | V38: 0 | X38: 0 | Z38: 0 | AB38: 0 | AD38: 0 | AF38: 0 | AH38: 0 | AJ38: 0 | AM38: 0 | AO38: 0 | AQ38: 0 | AS38: 0 | AU38: 0 | AW38: 0 | AY38: 0 | BA38: 0 | BC38: 0 | BE38: 0 | BG38: 0 | BI38: 0 | BK38: 0 | BM38: 0 | BO38: 0 | BQ38: 0 | BS38: 0 | BU38: 0 | BW38: 0 | BY38: 0 | CA38: 0 | CC38: 0 | CE38: 0 | CG38: 0 | CI38: 0 | CK38: 0 | CP38: =SUMIFS('2019'!H:H,'2019'!A:A,"-60 kg",'2019'!D:D,'-60 kg'!H38,'2019'!E:E,'-60 kg'!I38) -> 0
C39: 6 | J39: 0 | K39: 0 | L39: 0 | M39: 0 | N39: 0 | P39: 0 | R39: 0 | T39: 0 | V39: 0 | X39: 0 | Z39: 0 | AB39: 0 | AD39: 0 | AF39: 0 | AH39: 0 | AJ39: 0 | AM39: 0 | AO39: 0 | AQ39: 0 | AS39: 0 | AU39: 0 | AW39: 0 | AY39: 0 | BA39: 0 | BC39: 0 | BE39: 0 | BG39: 0 | BI39: 0 | BK39: 0 | BM39: 0 | BO39: 0 | BQ39: 0 | BS39: 0 | BU39: 0 | BW39: 0 | BY39: 0 | CA39: 0 | CC39: 0 | CE39: 0 | CG39: 0 | CI39: 0 | CK39: 0 | CP39: =SUMIFS('2019'!H:H,'2019'!A:A,"-60 kg",'2019'!D:D,'-60 kg'!H39,'2019'!E:E,'-60 kg'!I39) -> 0
C40: 6 | J40: 0 | K40: 0 | L40: 0 | M40: 0 | N40: 0 | P40: 0 | R40: 0 | T40: 0 | V40: 0 | X40: 0 | Z40: 0 | AB40: 0 | AD40: 0 | AF40: 0 | AH40: 0 | AJ40: 0 | AM40: 0 | AO40: 0 | AQ40: 0 | AS40: 0 | AU40: 0 | AW40: 0 | AY40: 0 | BA40: 0 | BC40: 0 | BE40: 0 | BG40: 0 | BI40: 0 | BK40: 0 | BM40: 0 | BO40: 0 | BQ40: 0 | BS40: 0 | BU40: 0 | BW40: 0 | BY40: 0 | CA40: 0 | CC40: 0 | CE40: 0 | CG40: 0 | CI40: 0 | CK40: 0 | CP40: =SUMIFS('2019'!H:H,'2019'!A:A,"-60 kg",'2019'!D:D,'-60 kg'!H40,'2019'!E:E,'-60 kg'!I40) -> 0
C41: 6 | J41: 0 | K41: 0 | L41: 0 | M41: 0 | N41: 0 | P41: 0 | R41: 0 | T41: 0 | V41: 0 | X41: 0 | Z41: 0 | AB41: 0 | AD41: 0 | AF41: 0 | AH41: 0 | AJ41: 0 | AM41: 0 | AO41: 0 | AQ41: 0 | AS41: 0 | AU41: 0 | AW41: 0 | AY41: 0 | BA41: 0 | BC41: 0 | BE41: 0 | BG41: 0 | BI41: 0 | BK41: 0 | BM41: 0 | BO41: 0 | BQ41: 0 | BS41: 0 | BU41: 0 | BW41: 0 | BY41: 0 | CA41: 0 | CC41: 0 | CE41: 0 | CG41: 0 | CI41: 0 | CK41: 0 | CP41: =SUMIFS('2019'!H:H,'2019'!A:A,"-60 kg",'2019'!D:D,'-60 kg'!H41,'2019'!E:E,'-60 kg'!I41) -> 0
C42: 6 | J42: 0 | K42: 0 | L42: 0 | M42: 0 | N42: 0 | P42: 0 | R42: 0 | T42: 0 | V42: 0 | X42: 0 | Z42: 0 | AB42: 0 | AD42: 0 | AF42: 0 | AH42: 0 | AJ42: 0 | AM42: 0 | AO42: 0 | AQ42: 0 | AS42: 0 | AU42: 0 | AW42: 0 | AY42: 0 | BA42: 0 | BC42: 0 | BE42: 0 | BG42: 0 | BI42: 0 | BK42: 0 | BM42: 0 | BO42: 0 | BQ42: 0 | BS42: 0 | BU42: 0 | BW42: 0 | BY42: 0 | CA42: 0 | CC42: 0 | CE42: 0 | CG42: 0 | CI42: 0 | CK42: 0 | CP42: =SUMIFS('2019'!H:H,'2019'!A:A,"-60 kg",'2019'!D:D,'-60 kg'!H42,'2019'!E:E,'-60 kg'!I42) -> 0
C43: 6 | J43: 0 | K43: 0 | L43: 0 | M43: 0 | N43: 0 | P43: 0 | R43: 0 | T43: 0 | V43: 0 | X43: 0 | Z43: 0 | AB43: 0 | AD43: 0 | AF43: 0 | AH43: 0 | AJ43: 0 | AM43: 0 | AO43: 0 | AQ43: 0 | AS43: 0 | AU43: 0 | AW43: 0 | AY43: 0 | BA43: 0 | BC43: 0 | BE43: 0 | BG43: 0 | BI43: 0 | BK43: 0 | BM43: 0 | BO43: 0 | BQ43: 0 | BS43: 0 | BU43: 0 | BW43: 0 | BY43: 0 | CA43: 0 | CC43: 0 | CE43: 0 | CG43: 0 | CI43: 0 | CK43: 0 | CP43: =SUMIFS('2019'!H:H,'2019'!A:A,"-60 kg",'2019'!D:D,'-60 kg'!H43,'2019'!E:E,'-60 kg'!I43) -> 0
C44: =RANK(J44,$J$5:$J$43,0) -> 6 | J44: 0 | K44: =CP44*50/100 -> 0 | L44: 0 | M44: 0 | N44: 0 | P44: =IF(O44="Oro",150,IF(O44="Plata",120,IF(O44="Bronce",100,IF(O44="Quinto",50,IF(O44="Septimo",30,0))))) -> 0 | R44: =IF(Q44="Oro",150,IF(Q44="Plata",120,IF(Q44="Bronce",100,IF(Q44="Quinto",50,IF(Q44="Septimo",30,0))))) -> 0 | T44: =IF(S44="Oro",100,IF(S44="Plata",85,IF(S44="Bronce",70,IF(S44="Quinto",30,IF(S44="Septimo",15,0))))) -> 0 | V44: =IF(U44="Oro",100,IF(U44="Plata",85,IF(U44="Bronce",70,IF(U44="Quinto",30,IF(U44="Septimo",15,0))))) -> 0 | X44: =IF(W44="Oro",75,IF(W44="Plata",60,IF(W44="Bronce",50,IF(W44="Quinto",20,IF(W44="Septimo",7,0))))) -> 0 | Z44: 0 | AB44: 0 | AD44: 0 | AF44: 0 | AH44: 0 | AJ44: 0 | AM44: =IF(AL44="Oro",75,IF(AL44="Plata",60,IF(AL44="Bronce",50,IF(AL44="Quinto",20,IF(AL44="Septimo",7,0))))) -> 0 | AO44: =IF(AN44="Oro",75,IF(AN44="Plata",60,IF(AN44="Bronce",50,IF(AN44="Quinto",20,IF(AN44="Septimo",7,0))))) -> 0 | AQ44: =IF(AP44="Oro",60,IF(AP44="Plata",50,IF(AP44="Bronce",35,IF(AP44="Quinto",15,IF(AP44="Septimo",5,0))))) -> 0 | AS44: =IF(AR44="Oro",60,IF(AR44="Plata",50,IF(AR44="Bronce",35,IF(AR44="Quinto",15,IF(AR44="Septimo",5,0))))) -> 0 | AU44: =IF(AT44="Oro",60,IF(AT44="Plata",50,IF(AT44="Bronce",35,IF(AT44="Quinto",15,IF(AT44="Septimo",5,0))))) -> 0 | AW44: =IF(AV44="Oro",60,IF(AV44="Plata",50,IF(AV44="Bronce",35,IF(AV44="Quinto",15,IF(AV44="Septimo",5,0))))) -> 0 | AY44: =IF(AX44="Oro",60,IF(AX44="Plata",50,IF(AX44="Bronce",35,IF(AX44="Quinto",15,IF(AX44="Septimo",5,0))))) -> 0 | BA44: =IF(AZ44="Oro",60,IF(AZ44="Plata",50,IF(AZ44="Bronce",35,IF(AZ44="Quinto",15,IF(AZ44="Septimo",5,0))))) -> 0 | BC44: =IF(BB44="Oro",60,IF(BB44="Plata",50,IF(BB44="Bronce",35,IF(BB44="Quinto",15,IF(BB44="Septimo",5,0))))) -> 0 | BE44: =IF(BD44="Oro",60,IF(BD44="Plata",50,IF(BD44="Bronce",35,IF(BD44="Quinto",15,IF(BD44="Septimo",5,0))))) -> 0 | BG44: =IF(BF44="Oro",60,IF(BF44="Plata",50,IF(BF44="Bronce",35,IF(BF44="Quinto",15,IF(BF44="Septimo",5,0))))) -> 0 | BI44: =IF(BH44="Oro",60,IF(BH44="Plata",50,IF(BH44="Bronce",35,IF(BH44="Quinto",15,IF(BH44="Septimo",5,0))))) -> 0 | BK44: =IF(BJ44="Oro",60,IF(BJ44="Plata",50,IF(BJ44="Bronce",35,IF(BJ44="Quinto",15,IF(BJ44="Septimo",5,0))))) -> 0 | BM44: =IF(BL44="Oro",30,IF(BL44="Plata",20,IF(BL44="Bronce",15,0))) -> 0 | BO44: =IF(BN44="Oro",30,IF(BN44="Plata",20,IF(BN44="Bronce",15,0))) -> 0 | BQ44: =IF(BP44="Oro",30,IF(BP44="Plata",20,IF(BP44="Bronce",15,0))) -> 0 | BS44: =IF(BR44="Oro",30,IF(BR44="Plata",20,IF(BR44="Bronce",15,0))) -> 0 | BU44: =IF(BT44="Oro",30,IF(BT44="Plata",20,IF(BT44="Bronce",15,0))) -> 0 | BW44: =IF(BV44="Oro",30,IF(BV44="Plata",20,IF(BV44="Bronce",15,0))) -> 0 | BY44: =IF(BX44="Oro",30,IF(BX44="Plata",20,IF(BX44="Bronce",15,0))) -> 0 | CA44: =IF(BZ44="Oro",30,IF(BZ44="Plata",20,IF(BZ44="Bronce",15,0))) -> 0 | CC44: =IF(CB44="Oro",30,IF(CB44="Plata",20,IF(CB44="Bronce",15,0))) -> 0 | CE44: =IF(CD44="Oro",30,IF(CD44="Plata",20,IF(CD44="Bronce",15,0))) -> 0 | CG44: =IF(CF44="Oro",30,IF(CF44="Plata",20,IF(CF44="Bronce",15,0))) -> 0 | CI44: =IF(CH44="Oro",30,IF(CH44="Plata",20,IF(CH44="Bronce",15,0))) -> 0 | CK44: =IF(CJ44="Oro",30,IF(CJ44="Plata",20,IF(CJ44="Bronce",15,0))) -> 0 | CP44: =SUMIFS('2019'!H:H,'2019'!A:A,"-60 kg",'2019'!D:D,'-60 kg'!H44,'2019'!E:E,'-60 kg'!I44) -> 0

Sheet -66 kg (hidden)
C2: Ranking | D2: Nation | E2: Continent | F2: IJF ID | G2: Y.o B. | H2: FAMILY NAME | I2: Given name | J2: Total score
C3: Puesto | D3: Comunidad | E3: Continent | F3: España ID | G3: A. de N. | H3: APELLIDOS | I3: Nombre | J3: ='-60 kg'!J3:J4 -> Ranking Nacional Absoluto | K3: Puntuación Año Anterior | L3: ='-60 kg'!L3:N3 -> Clasificación Equipo Absoluto | O3: Master ABS | Q3: Campeonato Mundo | S3: Campeonato Europa | U3: Campeonato Europa S23 | W3: Gran Slam (Francia) | Y3: Grand Slam (Abu Dhabi) | AA3: GRAND SLAM BRASILIA | AC3: GRAND SLAM OSAKA | AK3: Gran Prix Croacia - ZAGREB | AM3: Gran Prix (Marruecos) | AO3: Gran Prix (La Haya) | AQ3: Gran Prix (Tunez) | AS3: Gran Prix (Duseldorf) | AU3: Gran Prix (China) | AW3: Gran Prix (Uzbekistan) | AY3: Gran Prix Budapest | BE3: Open de Oceania | BG3: Campeonato España | BI3: European Open (Odivelas) | BK3: European Open (Sofia) | BM3: European Open (Roma) | BO3: European Open (POLONIA) | BQ3: European Open (RUMANIA) | BS3: European Open (Glasgow) | BU3: Open Panamericano | BW3: Open Luxemburgo | CA3: European Cup Málaga | CM3: Puntuación Año Anterior
K4: 0.5 | L4: Oro | M4: Plata | N4: Bronce | O4: Medalla | P4: Puntos | Q4: Medalla | R4: Puntos | S4: Medalla | T4: Puntos | U4: Medalla | V4: Puntos | W4: Medalla | X4: Puntos | Y4: Medalla | Z4: Puntos | AA4: Medalla | AB4: Puntos | AC4: Medalla | AD4: Puntos | AE4: Medalla | AF4: Puntos | AG4: Medalla | AH4: Puntos | AI4: Medalla | AJ4: Puntos | AK4: Medalla | AL4: Puntos | AM4: Medalla | AN4: Puntos | AO4: Medalla | AP4: Puntos | AQ4: Medalla | AR4: Puntos | AS4: Medalla | AT4: Puntos | AU4: Medalla | AV4: Puntos | AW4: Medalla | AX4: Puntos | AY4: Medalla | AZ4: Puntos | BA4: Medalla | BB4: Puntos | BC4: Medalla | BD4: Puntos | BE4: Medalla | BF4: Puntos | BG4: Medalla | BH4: Puntos | BI4: Medalla | BJ4: Puntos | BK4: Medalla | BL4: Puntos | BM4: Medalla | BN4: Puntos | BO4: Medalla | BP4: Puntos | BQ4: Medalla | BR4: Puntos | BS4: Medalla | BT4: Puntos | BU4: Medalla | BV4: Puntos | BW4: Medalla | BX4: Puntos | BY4: Medalla | BZ4: Puntos | CA4: Medalla | CB4: Puntos | CC4: Medalla | CD4: Puntos | CE4: Medalla | CF4: Puntos | CM4: 1
C5: =RANK(J5,$J$5:$J$44,0) -> 1 | D5: GAL | H5: GAITERO MARTIN | I5: ALBERTO | J5: =SUM(O5:CF5)+K5 -> 185 | K5: =CM5*50/100 -> 105 | L5: =COUNTIF(O5:CF5,$L$4) -> 1 | M5: =COUNTIF(O5:CF5,$M$4) -> 0 | N5: =COUNTIF(O5:CF5,$N$4) -> 0 | P5: =IF(O5="Oro",150,IF(O5="Plata",120,IF(O5="Bronce",100,IF(O5="Quinto",50,IF(O5="Septimo",30,0))))) -> 0 | R5: =IF(Q5="Oro",150,IF(Q5="Plata",120,IF(Q5="Bronce",100,IF(Q5="Quinto",50,IF(Q5="Septimo",30,0))))) -> 0 | T5: =IF(S5="Oro",100,IF(S5="Plata",85,IF(S5="Bronce",70,IF(S5="Quinto",30,IF(S5="Septimo",15,0))))) -> 0 | V5: =IF(U5="Oro",100,IF(U5="Plata",85,IF(U5="Bronce",70,IF(U5="Quinto",30,IF(U5="Septimo",15,0))))) -> 0 | X5: =IF(W5="Oro",75,IF(W5="Plata",60,IF(W5="Bronce",50,IF(W5="Quinto",20,IF(W5="Septimo",7,0))))) -> 0 | Y5: QUINTO | Z5: =IF(Y5="Oro",75,IF(Y5="Plata",60,IF(Y5="Bronce",50,IF(Y5="Quinto",20,IF(Y5="Septimo",7,0))))) -> 20 | AB5: =IF(AA5="Oro",75,IF(AA5="Plata",60,IF(AA5="Bronce",50,IF(AA5="Quinto",20,IF(AA5="Septimo",7,0))))) -> 0 | AD5: =IF(AC5="Oro",75,IF(AC5="Plata",60,IF(AC5="Bronce",50,IF(AC5="Quinto",20,IF(AC5="Septimo",7,0))))) -> 0 | AF5: =IF(AE5="Oro",75,IF(AE5="Plata",60,IF(AE5="Bronce",50,IF(AE5="Quinto",20,IF(AE5="Septimo",7,0))))) -> 0 | AH5: =IF(AG5="Oro",75,IF(AG5="Plata",60,IF(AG5="Bronce",50,IF(AG5="Quinto",20,IF(AG5="Septimo",7,0))))) -> 0 | AJ5: =IF(AI5="Oro",75,IF(AI5="Plata",60,IF(AI5="Bronce",50,IF(AI5="Quinto",20,IF(AI5="Septimo",7,0))))) -> 0 | AL5: =IF(AK5="Oro",60,IF(AK5="Plata",50,IF(AK5="Bronce",35,IF(AK5="Quinto",15,IF(AK5="Septimo",5,0))))) -> 0 | AN5: =IF(AM5="Oro",60,IF(AM5="Plata",50,IF(AM5="Bronce",35,IF(AM5="Quinto",15,IF(AM5="Septimo",5,0))))) -> 0 | AP5: =IF(AO5="Oro",60,IF(AO5="Plata",50,IF(AO5="Bronce",35,IF(AO5="Quinto",15,IF(AO5="Septimo",5,0))))) -> 0 | AR5: =IF(AQ5="Oro",60,IF(AQ5="Plata",50,IF(AQ5="Bronce",35,IF(AQ5="Quinto",15,IF(AQ5="Septimo",5,0))))) -> 0 | AT5: =IF(AS5="Oro",60,IF(AS5="Plata",50,IF(AS5="Bronce",35,IF(AS5="Quinto",15,IF(AS5="Septimo",5,0))))) -> 0 | AV5: =IF(AU5="Oro",60,IF(AU5="Plata",50,IF(AU5="Bronce",35,IF(AU5="Quinto",15,IF(AU5="Septimo",5,0))))) -> 0 | AX5: =IF(AW5="Oro",60,IF(AW5="Plata",50,IF(AW5="Bronce",35,IF(AW5="Quinto",15,IF(AW5="Septimo",5,0))))) -> 0 | AZ5: =IF(AY5="Oro",60,IF(AY5="Plata",50,IF(AY5="Bronce",35,IF(AY5="Quinto",15,IF(AY5="Septimo",5,0))))) -> 0 | BB5: =IF(BA5="Oro",60,IF(BA5="Plata",50,IF(BA5="Bronce",35,IF(BA5="Quinto",15,IF(BA5="Septimo",5,0))))) -> 0 | BD5: =IF(BC5="Oro",60,IF(BC5="Plata",50,IF(BC5="Bronce",35,IF(BC5="Quinto",15,IF(BC5="Septimo",5,0))))) -> 0 | BE5: ORO | BF5: =IF(BE5="Oro",60,IF(BE5="Plata",50,IF(BE5="Bronce",35,IF(BE5="Quinto",15,IF(BE5="Septimo",5,0))))) -> 60 | BH5: =IF(BG5="Oro",30,IF(BG5="Plata",20,IF(BG5="Bronce",15,0))) -> 0 | BJ5: =IF(BI5="Oro",30,IF(BI5="Plata",20,IF(BI5="Bronce",15,0))) -> 0 | BL5: =IF(BK5="Oro",30,IF(BK5="Plata",20,IF(BK5="Bronce",15,0))) -> 0 | BN5: =IF(BM5="Oro",30,IF(BM5="Plata",20,IF(BM5="Bronce",15,0))) -> 0 | BP5: =IF(BO5="Oro",30,IF(BO5="Plata",20,IF(BO5="Bronce",15,0))) -> 0 | BR5: =IF(BQ5="Oro",30,IF(BQ5="Plata",20,IF(BQ5="Bronce",15,0))) -> 0 | BT5: =IF(BS5="Oro",30,IF(BS5="Plata",20,IF(BS5="Bronce",15,0))) -> 0 | BV5: =IF(BU5="Oro",30,IF(BU5="Plata",20,IF(BU5="Bronce",15,0))) -> 0 | BX5: =IF(BW5="Oro",30,IF(BW5="Plata",20,IF(BW5="Bronce",15,0))) -> 0 | BZ5: =IF(BY5="Oro",30,IF(BY5="Plata",20,IF(BY5="Bronce",15,0))) -> 0 | CB5: =IF(CA5="Oro",30,IF(CA5="Plata",20,IF(CA5="Bronce",15,0))) -> 0 | CD5: =IF(CC5="Oro",30,IF(CC5="Plata",20,IF(CC5="Bronce",15,0))) -> 0 | CF5: =IF(CE5="Oro",30,IF(CE5="Plata",20,IF(CE5="Bronce",15,0))) -> 0 | CM5: =SUMIFS('2019'!H:H,'2019'!A:A,"-66 kg",'2019'!D:D,'-66 kg'!H5,'2019'!E:E,'-66 kg'!I5) -> 210
C6: 2 | D6: GAL | H6: GARCIA TORNE | I6: David | J6: 107.5 | K6: 17.5 | L6: 0 | M6: 0 | N6: 1 | P6: 0 | R6: 0 | T6: 0 | U6: BRONCE | V6: 70 | X6: 0 | Z6: 0 | AB6: 0 | AC6: Quinto | AD6: 20 | AF6: 0 | AH6: 0 | AJ6: 0 | AL6: 0 | AN6: 0 | AP6: 0 | AR6: 0 | AT6: 0 | AV6: 0 | AX6: 0 | AZ6: 0 | BB6: 0 | BD6: 0 | BF6: 0 | BH6: 0 | BJ6: 0 | BL6: 0 | BN6: 0 | BP6: 0 | BR6: 0 | BT6: 0 | BV6: 0 | BW6: Quinto | BX6: 0 | BZ6: 0 | CB6: 0 | CD6: 0 | CF6: 0 | CM6: =SUMIFS('2019'!H:H,'2019'!A:A,"-66 kg",'2019'!D:D,'-66 kg'!H6,'2019'!E:E,'-66 kg'!I6) -> 35
C7: 3 | D7: VAL | H7: PEREZ ROMAN | I7: Daniel | J7: 90 | K7: 55 | L7: 0 | M7: 0 | N7: 1 | P7: 0 | R7: 0 | T7: 0 | V7: 0 | X7: 0 | Z7: 0 | AB7: 0 | AC7: Quinto | AD7: 20 | AF7: 0 | AH7: 0 | AJ7: 0 | AL7: 0 | AN7: 0 | AP7: 0 | AR7: 0 | AT7: 0 | AV7: 0 | AX7: 0 | AZ7: 0 | BB7: 0 | BD7: 0 | BE7: 0 | BF7: 0 | BH7: 0 | BJ7: 0 | BL7: 0 | BN7: 0 | BP7: 0 | BR7: 0 | BT7: 0 | BV7: 0 | BX7: 0 | BZ7: 0 | CA7: BRONCE | CB7: 15 | CD7: 0 | CF7: 0 | CM7: =SUMIFS('2019'!H:H,'2019'!A:A,"-66 kg",'2019'!D:D,'-66 kg'!H7,'2019'!E:E,'-66 kg'!I7) -> 110
C8: 4 | D8: MAD | H8: NIETO CHINARRO | I8: Adrián | J8: 35 | K8: 35 | L8: 0 | M8: 0 | N8: 0 | P8: 0 | R8: 0 | T8: 0 | U8: 0 | V8: 0 | X8: 0 | Z8: 0 | AB8: 0 | AD8: 0 | AF8: 0 | AH8: 0 | AJ8: 0 | AL8: 0 | AN8: 0 | AP8: 0 | AR8: 0 | AT8: 0 | AV8: 0 | AX8: 0 | AZ8: 0 | BB8: 0 | BD8: 0 | BF8: 0 | BH8: 0 | BJ8: 0 | BL8: 0 | BN8: 0 | BP8: 0 | BR8: 0 | BT8: 0 | BV8: 0 | BX8: 0 | BZ8: 0 | CB8: 0 | CD8: 0 | CF8: 0 | CM8: =SUMIFS('2019'!H:H,'2019'!A:A,"-66 kg",'2019'!D:D,'-66 kg'!H8,'2019'!E:E,'-66 kg'!I8) -> 70
C9: 5 | D9: GAL | H9: ARANDA OLALLA | I9: Jose Antonio | J9: 25 | K9: 25 | L9: 0 | M9: 0 | N9: 0 | P9: 0 | R9: 0 | T9: 0 | V9: 0 | X9: 0 | Z9: 0 | AB9: 0 | AD9: 0 | AF9: 0 | AH9: 0 | AJ9: 0 | AL9: 0 | AN9: 0 | AP9: 0 | AR9: 0 | AT9: 0 | AV9: 0 | AX9: 0 | AZ9: 0 | BB9: 0 | BD9: 0 | BF9: 0 | BH9: 0 | BJ9: 0 | BL9: 0 | BN9: 0 | BP9: 0 | BR9: 0 | BT9: 0 | BV9: 0 | BX9: 0 | BZ9: 0 | CB9: 0 | CD9: 0 | CF9: 0 | CM9: =SUMIFS('2019'!H:H,'2019'!A:A,"-66 kg",'2019'!D:D,'-66 kg'!H9,'2019'!E:E,'-66 kg'!I9) -> 50
C10: 6 | D10: MAD | H10: RAMIREZ RAMOS | I10: DAVID | J10: 17.5 | K10: 17.5 | L10: 0 | M10: 0 | N10: 0 | P10: 0 | R10: 0 | T10: 0 | V10: 0 | X10: 0 | Z10: 0 | AB10: 0 | AD10: 0 | AF10: 0 | AH10: 0 | AJ10: 0 | AL10: 0 | AN10: 0 | AP10: 0 | AR10: 0 | AT10: 0 | AV10: 0 | AX10: 0 | AZ10: 0 | BB10: 0 | BD10: 0 | BF10: 0 | BH10: 0 | BJ10: 0 | BL10: 0 | BN10: 0 | BP10: 0 | BR10: 0 | BT10: 0 | BV10: 0 | BX10: 0 | BZ10: 0 | CB10: 0 | CD10: 0 | CF10: 0 | CM10: =SUMIFS('2019'!H:H,'2019'!A:A,"-66 kg",'2019'!D:D,'-66 kg'!H10,'2019'!E:E,'-66 kg'!I10) -> 35
C11: 7 | D11: VAL | H11: URIARTE MARCOS | I11: GAR | J11: 7.5 | K11: 7.5 | L11: 0 | M11: 0 | N11: 0 | P11: 0 | R11: 0 | T11: 0 | V11: 0 | X11: 0 | Z11: 0 | AB11: 0 | AD11: 0 | AF11: 0 | AH11: 0 | AJ11: 0 | AL11: 0 | AN11: 0 | AP11: 0 | AR11: 0 | AT11: 0 | AV11: 0 | AX11: 0 | AZ11: 0 | BB11: 0 | BD11: 0 | BF11: 0 | BH11: 0 | BJ11: 0 | BL11: 0 | BN11: 0 | BP11: 0 | BR11: 0 | BT11: 0 | BV11: 0 | BX11: 0 | BZ11: 0 | CB11: 0 | CD11: 0 | CF11: 0 | CM11: =SUMIFS('2019'!H:H,'2019'!A:A,"-66 kg",'2019'!D:D,'-66 kg'!H11,'2019'!E:E,'-66 kg'!I11) -> 15
C12: 7 | D12: VAL | F12: 48791586F | G12: 1998 | H12: CASES ROCA | I12: Salvador | J12: 7.5 | K12: 7.5 | L12: 0 | M12: 0 | N12: 0 | P12: 0 | R12: 0 | T12: 0 | V12: 0 | X12: 0 | Z12: 0 | AB12: 0 | AD12: 0 | AF12: 0 | AH12: 0 | AJ12: 0 | AL12: 0 | AN12: 0 | AP12: 0 | AR12: 0 | AT12: 0 | AV12: 0 | AX12: 0 | AZ12: 0 | BB12: 0 | BD12: 0 | BF12: 0 | BH12: 0 | BJ12: 0 | BL12: 0 | BN12: 0 | BP12: 0 | BR12: 0 | BT12: 0 | BV12: 0 | BX12: 0 | BZ12: 0 | CB12: 0 | CD12: 0 | CF12: 0 | CM12: =SUMIFS('2019'!H:H,'2019'!A:A,"-66 kg",'2019'!D:D,'-66 kg'!H12,'2019'!E:E,'-66 kg'!I12) -> 15
C13: 7 | D13: MAD | F13: 47465634M | G13: 1994 | H13: LABRADO FERNANDEZ | I13: Adrian | J13: 7.5 | K13: 7.5 | L13: 0 | M13: 0 | N13: 0 | P13: 0 | R13: 0 | T13: 0 | V13: 0 | X13: 0 | Z13: 0 | AB13: 0 | AD13: 0 | AF13: 0 | AH13: 0 | AJ13: 0 | AL13: 0 | AN13: 0 | AP13: 0 | AR13: 0 | AT13: 0 | AV13: 0 | AX13: 0 | AZ13: 0 | BB13: 0 | BD13: 0 | BF13: 0 | BH13: 0 | BJ13: 0 | BL13: 0 | BN13: 0 | BP13: 0 | BR13: 0 | BT13: 0 | BV13: 0 | BX13: 0 | BZ13: 0 | CB13: 0 | CD13: 0 | CF13: 0 | CM13: =SUMIFS('2019'!H:H,'2019'!A:A,"-66 kg",'2019'!D:D,'-66 kg'!H13,'2019'!E:E,'-66 kg'!I13) -> 15
C14: 7 | D14: AND | F14: 48951861H | G14: 1999 | H14: LAINO RAMIREZ | I14: Rosendo | J14: 7.5 | K14: 7.5 | L14: 0 | M14: 0 | N14: 0 | P14: 0 | R14: 0 | T14: 0 | V14: 0 | X14: 0 | Z14: 0 | AB14: 0 | AD14: 0 | AF14: 0 | AH14: 0 | AJ14: 0 | AL14: 0 | AN14: 0 | AP14: 0 | AR14: 0 | AT14: 0 | AV14: 0 | AX14: 0 | AZ14: 0 | BB14: 0 | BD14: 0 | BF14: 0 | BH14: 0 | BJ14: 0 | BL14: 0 | BN14: 0 | BP14: 0 | BR14: 0 | BT14: 0 | BV14: 0 | BX14: 0 | BZ14: 0 | CB14: 0 | CD14: 0 | CF14: 0 | CM14: =SUMIFS('2019'!H:H,'2019'!A:A,"-66 kg",'2019'!D:D,'-66 kg'!H14,'2019'!E:E,'-66 kg'!I14) -> 15
C15: 11 | J15: 0 | K15: 0 | L15: 0 | M15: 0 | N15: 0 | P15: 0 | R15: 0 | T15: 0 | V15: 0 | X15: 0 | Z15: 0 | AB15: 0 | AD15: 0 | AF15: 0 | AH15: 0 | AJ15: 0 | AL15: 0 | AN15: 0 | AP15: 0 | AR15: 0 | AT15: 0 | AV15: 0 | AX15: 0 | AZ15: 0 | BB15: 0 | BD15: 0 | BF15: 0 | BH15: 0 | BJ15: 0 | BL15: 0 | BN15: 0 | BP15: 0 | BR15: 0 | BT15: 0 | BV15: 0 | BX15: 0 | BZ15: 0 | CB15: 0 | CD15: 0 | CF15: 0 | CM15: =SUMIFS('2019'!H:H,'2019'!A:A,"-66 kg",'2019'!D:D,'-66 kg'!H15,'2019'!E:E,'-66 kg'!I15) -> 0
C16: 11 | J16: 0 | K16: 0 | L16: 0 | M16: 0 | N16: 0 | P16: 0 | R16: 0 | T16: 0 | V16: 0 | X16: 0 | Z16: 0 | AB16: 0 | AD16: 0 | AF16: 0 | AH16: 0 | AJ16: 0 | AL16: 0 | AN16: 0 | AP16: 0 | AR16: 0 | AT16: 0 | AV16: 0 | AX16: 0 | AZ16: 0 | BB16: 0 | BD16: 0 | BF16: 0 | BH16: 0 | BJ16: 0 | BL16: 0 | BN16: 0 | BP16: 0 | BR16: 0 | BT16: 0 | BV16: 0 | BX16: 0 | BZ16: 0 | CB16: 0 | CD16: 0 | CF16: 0 | CM16: =SUMIFS('2019'!H:H,'2019'!A:A,"-66 kg",'2019'!D:D,'-66 kg'!H16,'2019'!E:E,'-66 kg'!I16) -> 0
C17: 11 | J17: 0 | K17: 0 | L17: 0 | M17: 0 | N17: 0 | P17: 0 | R17: 0 | T17: 0 | V17: 0 | X17: 0 | Z17: 0 | AB17: 0 | AD17: 0 | AF17: 0 | AH17: 0 | AJ17: 0 | AL17: 0 | AN17: 0 | AP17: 0 | AR17: 0 | AT17: 0 | AV17: 0 | AX17: 0 | AZ17: 0 | BB17: 0 | BD17: 0 | BF17: 0 | BH17: 0 | BJ17: 0 | BL17: 0 | BN17: 0 | BP17: 0 | BR17: 0 | BT17: 0 | BV17: 0 | BX17: 0 | BZ17: 0 | CB17: 0 | CD17: 0 | CF17: 0 | CM17: =SUMIFS('2019'!H:H,'2019'!A:A,"-66 kg",'2019'!D:D,'-66 kg'!H17,'2019'!E:E,'-66 kg'!I17) -> 0
C18: 11 | J18: 0 | K18: 0 | L18: 0 | M18: 0 | N18: 0 | P18: 0 | R18: 0 | T18: 0 | V18: 0 | X18: 0 | Z18: 0 | AB18: 0 | AD18: 0 | AF18: 0 | AH18: 0 | AJ18: 0 | AL18: 0 | AN18: 0 | AP18: 0 | AR18: 0 | AT18: 0 | AV18: 0 | AX18: 0 | AZ18: 0 | BB18: 0 | BD18: 0 | BF18: 0 | BH18: 0 | BJ18: 0 | BL18: 0 | BN18: 0 | BP18: 0 | BR18: 0 | BT18: 0 | BV18: 0 | BX18: 0 | BZ18: 0 | CB18: 0 | CD18: 0 | CF18: 0 | CM18: =SUMIFS('2019'!H:H,'2019'!A:A,"-66 kg",'2019'!D:D,'-66 kg'!H18,'2019'!E:E,'-66 kg'!I18) -> 0
C19: 11 | J19: 0 | K19: 0 | L19: 0 | M19: 0 | N19: 0 | P19: 0 | R19: 0 | T19: 0 | V19: 0 | X19: 0 | Z19: 0 | AB19: 0 | AD19: 0 | AF19: 0 | AH19: 0 | AJ19: 0 | AL19: 0 | AN19: 0 | AP19: 0 | AR19: 0 | AT19: 0 | AV19: 0 | AX19: 0 | AZ19: 0 | BB19: 0 | BD19: 0 | BF19: 0 | BH19: 0 | BJ19: 0 | BL19: 0 | BN19: 0 | BP19: 0 | BR19: 0 | BT19: 0 | BV19: 0 | BX19: 0 | BZ19: 0 | CB19: 0 | CD19: 0 | CF19: 0 | CM19: =SUMIFS('2019'!H:H,'2019'!A:A,"-66 kg",'2019'!D:D,'-66 kg'!H19,'2019'!E:E,'-66 kg'!I19) -> 0
C20: 11 | J20: 0 | K20: 0 | L20: 0 | M20: 0 | N20: 0 | P20: 0 | R20: 0 | T20: 0 | V20: 0 | X20: 0 | Z20: 0 | AB20: 0 | AD20: 0 | AF20: 0 | AH20: 0 | AJ20: 0 | AL20: 0 | AN20: 0 | AP20: 0 | AR20: 0 | AT20: 0 | AV20: 0 | AX20: 0 | AZ20: 0 | BB20: 0 | BD20: 0 | BF20: 0 | BH20: 0 | BJ20: 0 | BL20: 0 | BN20: 0 | BP20: 0 | BR20: 0 | BT20: 0 | BV20: 0 | BX20: 0 | BZ20: 0 | CB20: 0 | CD20: 0 | CF20: 0 | CM20: =SUMIFS('2019'!H:H,'2019'!A:A,"-66 kg",'2019'!D:D,'-66 kg'!H20,'2019'!E:E,'-66 kg'!I20) -> 0
C21: 11 | J21: 0 | K21: 0 | L21: 0 | M21: 0 | N21: 0 | P21: 0 | R21: 0 | T21: 0 | V21: 0 | X21: 0 | Z21: 0 | AB21: 0 | AD21: 0 | AF21: 0 | AH21: 0 | AJ21: 0 | AL21: 0 | AN21: 0 | AP21: 0 | AR21: 0 | AT21: 0 | AV21: 0 | AX21: 0 | AZ21: 0 | BB21: 0 | BD21: 0 | BF21: 0 | BH21: 0 | BJ21: 0 | BL21: 0 | BN21: 0 | BP21: 0 | BR21: 0 | BT21: 0 | BV21: 0 | BX21: 0 | BZ21: 0 | CB21: 0 | CD21: 0 | CF21: 0 | CM21: =SUMIFS('2019'!H:H,'2019'!A:A,"-66 kg",'2019'!D:D,'-66 kg'!H21,'2019'!E:E,'-66 kg'!I21) -> 0
C22: 11 | J22: 0 | K22: 0 | L22: 0 | M22: 0 | N22: 0 | P22: 0 | R22: 0 | T22: 0 | V22: 0 | X22: 0 | Z22: 0 | AB22: 0 | AD22: 0 | AF22: 0 | AH22: 0 | AJ22: 0 | AL22: 0 | AN22: 0 | AP22: 0 | AR22: 0 | AT22: 0 | AV22: 0 | AX22: 0 | AZ22: 0 | BB22: 0 | BD22: 0 | BF22: 0 | BH22: 0 | BJ22: 0 | BL22: 0 | BN22: 0 | BP22: 0 | BR22: 0 | BT22: 0 | BV22: 0 | BX22: 0 | BZ22: 0 | CB22: 0 | CD22: 0 | CF22: 0 | CM22: =SUMIFS('2019'!H:H,'2019'!A:A,"-66 kg",'2019'!D:D,'-66 kg'!H22,'2019'!E:E,'-66 kg'!I22) -> 0
C23: 11 | J23: 0 | K23: 0 | L23: 0 | M23: 0 | N23: 0 | P23: 0 | R23: 0 | T23: 0 | V23: 0 | X23: 0 | Z23: 0 | AB23: 0 | AD23: 0 | AF23: 0 | AH23: 0 | AJ23: 0 | AL23: 0 | AN23: 0 | AP23: 0 | AR23: 0 | AT23: 0 | AV23: 0 | AX23: 0 | AZ23: 0 | BB23: 0 | BD23: 0 | BF23: 0 | BH23: 0 | BJ23: 0 | BL23: 0 | BN23: 0 | BP23: 0 | BR23: 0 | BT23: 0 | BV23: 0 | BX23: 0 | BZ23: 0 | CB23: 0 | CD23: 0 | CF23: 0 | CM23: =SUMIFS('2019'!H:H,'2019'!A:A,"-66 kg",'2019'!D:D,'-66 kg'!H23,'2019'!E:E,'-66 kg'!I23) -> 0
C24: 11 | J24: 0 | K24: 0 | L24: 0 | M24: 0 | N24: 0 | P24: 0 | R24: 0 | T24: 0 | V24: 0 | X24: 0 | Z24: 0 | AB24: 0 | AD24: 0 | AF24: 0 | AH24: 0 | AJ24: 0 | AL24: 0 | AN24: 0 | AP24: 0 | AR24: 0 | AT24: 0 | AV24: 0 | AX24: 0 | AZ24: 0 | BB24: 0 | BD24: 0 | BF24: 0 | BH24: 0 | BJ24: 0 | BL24: 0 | BN24: 0 | BP24: 0 | BR24: 0 | BT24: 0 | BV24: 0 | BX24: 0 | BZ24: 0 | CB24: 0 | CD24: 0 | CF24: 0 | CM24: =SUMIFS('2019'!H:H,'2019'!A:A,"-66 kg",'2019'!D:D,'-66 kg'!H24,'2019'!E:E,'-66 kg'!I24) -> 0
C25: 11 | J25: 0 | K25: 0 | L25: 0 | M25: 0 | N25: 0 | P25: 0 | R25: 0 | T25: 0 | V25: 0 | X25: 0 | Z25: 0 | AB25: 0 | AD25: 0 | AF25: 0 | AH25: 0 | AJ25: 0 | AL25: 0 | AN25: 0 | AP25: 0 | AR25: 0 | AT25: 0 | AV25: 0 | AX25: 0 | AZ25: 0 | BB25: 0 | BD25: 0 | BF25: 0 | BH25: 0 | BJ25: 0 | BL25: 0 | BN25: 0 | BP25: 0 | BR25: 0 | BT25: 0 | BV25: 0 | BX25: 0 | BZ25: 0 | CB25: 0 | CD25: 0 | CF25: 0 | CM25: =SUMIFS('2019'!H:H,'2019'!A:A,"-66 kg",'2019'!D:D,'-66 kg'!H25,'2019'!E:E,'-66 kg'!I25) -> 0
C26: 11 | J26: 0 | K26: 0 | L26: 0 | M26: 0 | N26: 0 | P26: 0 | R26: 0 | T26: 0 | V26: 0 | X26: 0 | Z26: 0 | AB26: 0 | AD26: 0 | AF26: 0 | AH26: 0 | AJ26: 0 | AL26: 0 | AN26: 0 | AP26: 0 | AR26: 0 | AT26: 0 | AV26: 0 | AX26: 0 | AZ26: 0 | BB26: 0 | BD26: 0 | BF26: 0 | BH26: 0 | BJ26: 0 | BL26: 0 | BN26: 0 | BP26: 0 | BR26: 0 | BT26: 0 | BV26: 0 | BX26: 0 | BZ26: 0 | CB26: 0 | CD26: 0 | CF26: 0 | CM26: =SUMIFS('2019'!H:H,'2019'!A:A,"-66 kg",'2019'!D:D,'-66 kg'!H26,'2019'!E:E,'-66 kg'!I26) -> 0
C27: 11 | J27: 0 | K27: 0 | L27: 0 | M27: 0 | N27: 0 | P27: 0 | R27: 0 | T27: 0 | V27: 0 | X27: 0 | Z27: 0 | AB27: 0 | AD27: 0 | AF27: 0 | AH27: 0 | AJ27: 0 | AL27: 0 | AN27: 0 | AP27: 0 | AR27: 0 | AT27: 0 | AV27: 0 | AX27: 0 | AZ27: 0 | BB27: 0 | BD27: 0 | BF27: 0 | BH27: 0 | BJ27: 0 | BL27: 0 | BN27: 0 | BP27: 0 | BR27: 0 | BT27: 0 | BV27: 0 | BX27: 0 | BZ27: 0 | CB27: 0 | CD27: 0 | CF27: 0 | CM27: =SUMIFS('2019'!H:H,'2019'!A:A,"-66 kg",'2019'!D:D,'-66 kg'!H27,'2019'!E:E,'-66 kg'!I27) -> 0
C28: 11 | J28: 0 | K28: 0 | L28: 0 | M28: 0 | N28: 0 | P28: 0 | R28: 0 | T28: 0 | V28: 0 | X28: 0 | Z28: 0 | AB28: 0 | AD28: 0 | AF28: 0 | AH28: 0 | AJ28: 0 | AL28: 0 | AN28: 0 | AP28: 0 | AR28: 0 | AT28: 0 | AV28: 0 | AX28: 0 | AZ28: 0 | BB28: 0 | BD28: 0 | BF28: 0 | BH28: 0 | BJ28: 0 | BL28: 0 | BN28: 0 | BP28: 0 | BR28: 0 | BT28: 0 | BV28: 0 | BX28: 0 | BZ28: 0 | CB28: 0 | CD28: 0 | CF28: 0 | CM28: =SUMIFS('2019'!H:H,'2019'!A:A,"-66 kg",'2019'!D:D,'-66 kg'!H28,'2019'!E:E,'-66 kg'!I28) -> 0
C29: 11 | J29: 0 | K29: 0 | L29: 0 | M29: 0 | N29: 0 | P29: 0 | R29: 0 | T29: 0 | V29: 0 | X29: 0 | Z29: 0 | AB29: 0 | AD29: 0 | AF29: 0 | AH29: 0 | AJ29: 0 | AL29: 0 | AN29: 0 | AP29: 0 | AR29: 0 | AT29: 0 | AV29: 0 | AX29: 0 | AZ29: 0 | BB29: 0 | BD29: 0 | BF29: 0 | BH29: 0 | BJ29: 0 | BL29: 0 | BN29: 0 | BP29: 0 | BR29: 0 | BT29: 0 | BV29: 0 | BX29: 0 | BZ29: 0 | CB29: 0 | CD29: 0 | CF29: 0 | CM29: =SUMIFS('2019'!H:H,'2019'!A:A,"-66 kg",'2019'!D:D,'-66 kg'!H29,'2019'!E:E,'-66 kg'!I29) -> 0
C30: 11 | J30: 0 | K30: 0 | L30: 0 | M30: 0 | N30: 0 | P30: 0 | R30: 0 | T30: 0 | V30: 0 | X30: 0 | Z30: 0 | AB30: 0 | AD30: 0 | AF30: 0 | AH30: 0 | AJ30: 0 | AL30: 0 | AN30: 0 | AP30: 0 | AR30: 0 | AT30: 0 | AV30: 0 | AX30: 0 | AZ30: 0 | BB30: 0 | BD30: 0 | BF30: 0 | BH30: 0 | BJ30: 0 | BL30: 0 | BN30: 0 | BP30: 0 | BR30: 0 | BT30: 0 | BV30: 0 | BX30: 0 | BZ30: 0 | CB30: 0 | CD30: 0 | CF30: 0 | CM30: =SUMIFS('2019'!H:H,'2019'!A:A,"-66 kg",'2019'!D:D,'-66 kg'!H30,'2019'!E:E,'-66 kg'!I30) -> 0
C31: 11 | J31: 0 | K31: 0 | L31: 0 | M31: 0 | N31: 0 | P31: 0 | R31: 0 | T31: 0 | V31: 0 | X31: 0 | Z31: 0 | AB31: 0 | AD31: 0 | AF31: 0 | AH31: 0 | AJ31: 0 | AL31: 0 | AN31: 0 | AP31: 0 | AR31: 0 | AT31: 0 | AV31: 0 | AX31: 0 | AZ31: 0 | BB31: 0 | BD31: 0 | BF31: 0 | BH31: 0 | BJ31: 0 | BL31: 0 | BN31: 0 | BP31: 0 | BR31: 0 | BT31: 0 | BV31: 0 | BX31: 0 | BZ31: 0 | CB31: 0 | CD31: 0 | CF31: 0 | CM31: =SUMIFS('2019'!H:H,'2019'!A:A,"-66 kg",'2019'!D:D,'-66 kg'!H31,'2019'!E:E,'-66 kg'!I31) -> 0
C32: 11 | J32: 0 | K32: 0 | L32: 0 | M32: 0 | N32: 0 | P32: 0 | R32: 0 | T32: 0 | V32: 0 | X32: 0 | Z32: 0 | AB32: 0 | AD32: 0 | AF32: 0 | AH32: 0 | AJ32: 0 | AL32: 0 | AN32: 0 | AP32: 0 | AR32: 0 | AT32: 0 | AV32: 0 | AX32: 0 | AZ32: 0 | BB32: 0 | BD32: 0 | BF32: 0 | BH32: 0 | BJ32: 0 | BL32: 0 | BN32: 0 | BP32: 0 | BR32: 0 | BT32: 0 | BV32: 0 | BX32: 0 | BZ32: 0 | CB32: 0 | CD32: 0 | CF32: 0 | CM32: =SUMIFS('2019'!H:H,'2019'!A:A,"-66 kg",'2019'!D:D,'-66 kg'!H32,'2019'!E:E,'-66 kg'!I32) -> 0
C33: 11 | J33: 0 | K33: 0 | L33: 0 | M33: 0 | N33: 0 | P33: 0 | R33: 0 | T33: 0 | V33: 0 | X33: 0 | Z33: 0 | AB33: 0 | AD33: 0 | AF33: 0 | AH33: 0 | AJ33: 0 | AL33: 0 | AN33: 0 | AP33: 0 | AR33: 0 | AT33: 0 | AV33: 0 | AX33: 0 | AZ33: 0 | BB33: 0 | BD33: 0 | BF33: 0 | BH33: 0 | BJ33: 0 | BL33: 0 | BN33: 0 | BP33: 0 | BR33: 0 | BT33: 0 | BV33: 0 | BX33: 0 | BZ33: 0 | CB33: 0 | CD33: 0 | CF33: 0 | CM33: =SUMIFS('2019'!H:H,'2019'!A:A,"-66 kg",'2019'!D:D,'-66 kg'!H33,'2019'!E:E,'-66 kg'!I33) -> 0
C34: 11 | J34: 0 | K34: 0 | L34: 0 | M34: 0 | N34: 0 | P34: 0 | R34: 0 | T34: 0 | V34: 0 | X34: 0 | Z34: 0 | AB34: 0 | AD34: 0 | AF34: 0 | AH34: 0 | AJ34: 0 | AL34: 0 | AN34: 0 | AP34: 0 | AR34: 0 | AT34: 0 | AV34: 0 | AX34: 0 | AZ34: 0 | BB34: 0 | BD34: 0 | BF34: 0 | BH34: 0 | BJ34: 0 | BL34: 0 | BN34: 0 | BP34: 0 | BR34: 0 | BT34: 0 | BV34: 0 | BX34: 0 | BZ34: 0 | CB34: 0 | CD34: 0 | CF34: 0 | CM34: =SUMIFS('2019'!H:H,'2019'!A:A,"-66 kg",'2019'!D:D,'-66 kg'!H34,'2019'!E:E,'-66 kg'!I34) -> 0
C35: 11 | J35: 0 | K35: 0 | L35: 0 | M35: 0 | N35: 0 | P35: 0 | R35: 0 | T35: 0 | V35: 0 | X35: 0 | Z35: 0 | AB35: 0 | AD35: 0 | AF35: 0 | AH35: 0 | AJ35: 0 | AL35: 0 | AN35: 0 | AP35: 0 | AR35: 0 | AT35: 0 | AV35: 0 | AX35: 0 | AZ35: 0 | BB35: 0 | BD35: 0 | BF35: 0 | BH35: 0 | BJ35: 0 | BL35: 0 | BN35: 0 | BP35: 0 | BR35: 0 | BT35: 0 | BV35: 0 | BX35: 0 | BZ35: 0 | CB35: 0 | CD35: 0 | CF35: 0 | CM35: =SUMIFS('2019'!H:H,'2019'!A:A,"-66 kg",'2019'!D:D,'-66 kg'!H35,'2019'!E:E,'-66 kg'!I35) -> 0
C36: 11 | J36: 0 | K36: 0 | L36: 0 | M36: 0 | N36: 0 | P36: 0 | R36: 0 | T36: 0 | V36: 0 | X36: 0 | Z36: 0 | AB36: 0 | AD36: 0 | AF36: 0 | AH36: 0 | AJ36: 0 | AL36: 0 | AN36: 0 | AP36: 0 | AR36: 0 | AT36: 0 | AV36: 0 | AX36: 0 | AZ36: 0 | BB36: 0 | BD36: 0 | BF36: 0 | BH36: 0 | BJ36: 0 | BL36: 0 | BN36: 0 | BP36: 0 | BR36: 0 | BT36: 0 | BV36: 0 | BX36: 0 | BZ36: 0 | CB36: 0 | CD36: 0 | CF36: 0 | CM36: =SUMIFS('2019'!H:H,'2019'!A:A,"-66 kg",'2019'!D:D,'-66 kg'!H36,'2019'!E:E,'-66 kg'!I36) -> 0
C37: 11 | J37: 0 | K37: 0 | L37: 0 | M37: 0 | N37: 0 | P37: 0 | R37: 0 | T37: 0 | V37: 0 | X37: 0 | Z37: 0 | AB37: 0 | AD37: 0 | AF37: 0 | AH37: 0 | AJ37: 0 | AL37: 0 | AN37: 0 | AP37: 0 | AR37: 0 | AT37: 0 | AV37: 0 | AX37: 0 | AZ37: 0 | BB37: 0 | BD37: 0 | BF37: 0 | BH37: 0 | BJ37: 0 | BL37: 0 | BN37: 0 | BP37: 0 | BR37: 0 | BT37: 0 | BV37: 0 | BX37: 0 | BZ37: 0 | CB37: 0 | CD37: 0 | CF37: 0 | CM37: =SUMIFS('2019'!H:H,'2019'!A:A,"-66 kg",'2019'!D:D,'-66 kg'!H37,'2019'!E:E,'-66 kg'!I37) -> 0
C38: 11 | J38: 0 | K38: 0 | L38: 0 | M38: 0 | N38: 0 | P38: 0 | R38: 0 | T38: 0 | V38: 0 | X38: 0 | Z38: 0 | AB38: 0 | AD38: 0 | AF38: 0 | AH38: 0 | AJ38: 0 | AL38: 0 | AN38: 0 | AP38: 0 | AR38: 0 | AT38: 0 | AV38: 0 | AX38: 0 | AZ38: 0 | BB38: 0 | BD38: 0 | BF38: 0 | BH38: 0 | BJ38: 0 | BL38: 0 | BN38: 0 | BP38: 0 | BR38: 0 | BT38: 0 | BV38: 0 | BX38: 0 | BZ38: 0 | CB38: 0 | CD38: 0 | CF38: 0 | CM38: =SUMIFS('2019'!H:H,'2019'!A:A,"-66 kg",'2019'!D:D,'-66 kg'!H38,'2019'!E:E,'-66 kg'!I38) -> 0
C39: 11 | J39: 0 | K39: 0 | L39: 0 | M39: 0 | N39: 0 | P39: 0 | R39: 0 | T39: 0 | V39: 0 | X39: 0 | Z39: 0 | AB39: 0 | AD39: 0 | AF39: 0 | AH39: 0 | AJ39: 0 | AL39: 0 | AN39: 0 | AP39: 0 | AR39: 0 | AT39: 0 | AV39: 0 | AX39: 0 | AZ39: 0 | BB39: 0 | BD39: 0 | BF39: 0 | BH39: 0 | BJ39: 0 | BL39: 0 | BN39: 0 | BP39: 0 | BR39: 0 | BT39: 0 | BV39: 0 | BX39: 0 | BZ39: 0 | CB39: 0 | CD39: 0 | CF39: 0 | CM39: =SUMIFS('2019'!H:H,'2019'!A:A,"-66 kg",'2019'!D:D,'-66 kg'!H39,'2019'!E:E,'-66 kg'!I39) -> 0
C40: 11 | J40: 0 | K40: 0 | L40: 0 | M40: 0 | N40: 0 | P40: 0 | R40: 0 | T40: 0 | V40: 0 | X40: 0 | Z40: 0 | AB40: 0 | AD40: 0 | AF40: 0 | AH40: 0 | AJ40: 0 | AL40: 0 | AN40: 0 | AP40: 0 | AR40: 0 | AT40: 0 | AV40: 0 | AX40: 0 | AZ40: 0 | BB40: 0 | BD40: 0 | BF40: 0 | BH40: 0 | BJ40: 0 | BL40: 0 | BN40: 0 | BP40: 0 | BR40: 0 | BT40: 0 | BV40: 0 | BX40: 0 | BZ40: 0 | CB40: 0 | CD40: 0 | CF40: 0 | CM40: =SUMIFS('2019'!H:H,'2019'!A:A,"-66 kg",'2019'!D:D,'-66 kg'!H40,'2019'!E:E,'-66 kg'!I40) -> 0
C41: 11 | J41: 0 | K41: 0 | L41: 0 | M41: 0 | N41: 0 | P41: 0 | R41: 0 | T41: 0 | V41: 0 | X41: 0 | Z41: 0 | AB41: 0 | AD41: 0 | AF41: 0 | AH41: 0 | AJ41: 0 | AL41: 0 | AN41: 0 | AP41: 0 | AR41: 0 | AT41: 0 | AV41: 0 | AX41: 0 | AZ41: 0 | BB41: 0 | BD41: 0 | BF41: 0 | BH41: 0 | BJ41: 0 | BL41: 0 | BN41: 0 | BP41: 0 | BR41: 0 | BT41: 0 | BV41: 0 | BX41: 0 | BZ41: 0 | CB41: 0 | CD41: 0 | CF41: 0 | CM41: =SUMIFS('2019'!H:H,'2019'!A:A,"-66 kg",'2019'!D:D,'-66 kg'!H41,'2019'!E:E,'-66 kg'!I41) -> 0
C42: 11 | J42: 0 | K42: 0 | L42: 0 | M42: 0 | N42: 0 | P42: 0 | R42: 0 | T42: 0 | V42: 0 | X42: 0 | Z42: 0 | AB42: 0 | AD42: 0 | AF42: 0 | AH42: 0 | AJ42: 0 | AL42: 0 | AN42: 0 | AP42: 0 | AR42: 0 | AT42: 0 | AV42: 0 | AX42: 0 | AZ42: 0 | BB42: 0 | BD42: 0 | BF42: 0 | BH42: 0 | BJ42: 0 | BL42: 0 | BN42: 0 | BP42: 0 | BR42: 0 | BT42: 0 | BV42: 0 | BX42: 0 | BZ42: 0 | CB42: 0 | CD42: 0 | CF42: 0 | CM42: =SUMIFS('2019'!H:H,'2019'!A:A,"-66 kg",'2019'!D:D,'-66 kg'!H42,'2019'!E:E,'-66 kg'!I42) -> 0
C43: 11 | J43: 0 | K43: 0 | L43: 0 | M43: 0 | N43: 0 | P43: 0 | R43: 0 | T43: 0 | V43: 0 | X43: 0 | Z43: 0 | AB43: 0 | AD43: 0 | AF43: 0 | AH43: 0 | AJ43: 0 | AL43: 0 | AN43: 0 | AP43: 0 | AR43: 0 | AT43: 0 | AV43: 0 | AX43: 0 | AZ43: 0 | BB43: 0 | BD43: 0 | BF43: 0 | BH43: 0 | BJ43: 0 | BL43: 0 | BN43: 0 | BP43: 0 | BR43: 0 | BT43: 0 | BV43: 0 | BX43: 0 | BZ43: 0 | CB43: 0 | CD43: 0 | CF43: 0 | CM43: =SUMIFS('2019'!H:H,'2019'!A:A,"-66 kg",'2019'!D:D,'-66 kg'!H43,'2019'!E:E,'-66 kg'!I43) -> 0
C44: 11 | J44: 0 | K44: 0 | L44: 0 | M44: 0 | N44: 0 | P44: 0 | R44: 0 | T44: 0 | V44: 0 | X44: 0 | Z44: 0 | AB44: 0 | AD44: 0 | AF44: 0 | AH44: 0 | AJ44: 0 | AL44: 0 | AN44: 0 | AP44: 0 | AR44: 0 | AT44: 0 | AV44: 0 | AX44: 0 | AZ44: 0 | BB44: 0 | BD44: 0 | BF44: 0 | BH44: 0 | BJ44: 0 | BL44: 0 | BN44: 0 | BP44: 0 | BR44: 0 | BT44: 0 | BV44: 0 | BX44: 0 | BZ44: 0 | CB44: 0 | CD44: 0 | CF44: 0 | CM44: =SUMIFS('2019'!H:H,'2019'!A:A,"-66 kg",'2019'!D:D,'-66 kg'!H44,'2019'!E:E,'-66 kg'!I44) -> 0

Sheet -73 kg (hidden)
C2: Ranking | D2: Nation | E2: Continent | F2: IJF ID | G2: Y.o B. | H2: FAMILY NAME | I2: Given name | J2: Total score
C3: Puesto | D3: Comunidad | E3: Continent | F3: España ID | G3: A. de N. | H3: APELLIDOS | I3: Nombre | J3: Ranking Nacional Absoluto | K3: Puntuación Año Anterior | L3: Clasificación Equipo Absoluto | O3: Master ABS | Q3: Campeonato Mundo | S3: Campeonato Europa | U3: Campeonato Europa S23 | W3: Gran Slam (Francia) | Y3: Grand Slam (Abu Dhabi) | AA3: GRAND SLAM BRASILIA | AC3: GRAND SLAM OSAKA | AK3: Gran Prix Croacia - ZAGREB | AM3: Gran Prix (Marruecos) | AO3: Gran Prix (La Haya) | AQ3: Gran Prix (Tunez) | AS3: Gran Prix (Duseldorf) | AU3: Gran Prix (China) | AW3: Gran Prix (Uzbekistan) | AY3: Gran Prix Budapest | BE3: Juegos Mediterraneo | BG3: Campeonato España | BI3: European Open (Odivelas) | BK3: European Open (Sofia) | BM3: European Open (Roma) | BO3: European Open (POLONIA) | BQ3: European Open (RUMANIA) | BS3: European Open (Glasgow) | BU3: Open Panamericano | BW3: Open Tallinn | BY3: Open Luxemburgo | CA3: European Cup Málaga | CN3: Puntuación Año Anterior
K4: 0.5 | L4: Oro | M4: Plata | N4: Bronce | O4: Medalla | P4: Puntos | Q4: Medalla | R4: Puntos | S4: Medalla | T4: Puntos | U4: Medalla | V4: Puntos | W4: Medalla | X4: Puntos | Y4: Medalla | Z4: Puntos | AA4: Medalla | AB4: Puntos | AC4: Medalla | AD4: Puntos | AE4: Medalla | AF4: Puntos | AG4: Medalla | AH4: Puntos | AI4: Medalla | AJ4: Puntos | AK4: Medalla | AL4: Puntos | AM4: Medalla | AN4: Puntos | AO4: Medalla | AP4: Puntos | AQ4: Medalla | AR4: Puntos | AS4: Medalla | AT4: Puntos | AU4: Medalla | AV4: Puntos | AW4: Medalla | AX4: Puntos | AY4: Medalla | AZ4: Puntos | BA4: Medalla | BB4: Puntos | BC4: Medalla | BD4: Puntos | BE4: Medalla | BF4: Puntos | BG4: Medalla | BH4: Puntos | BI4: Medalla | BJ4: Puntos | BK4: Medalla | BL4: Puntos | BM4: Medalla | BN4: Puntos | BO4: Medalla | BP4: Puntos | BQ4: Medalla | BR4: Puntos | BS4: Medalla | BT4: Puntos | BU4: Medalla | BV4: Puntos | BW4: Medalla | BX4: Puntos | BY4: Medalla | BZ4: Puntos | CA4: Medalla | CB4: Puntos | CC4: Medalla | CD4: Puntos | CE4: Medalla | CF4: Puntos | CN4: 1
C5: =RANK(J5,$J$5:$J$44,0) -> 1 | D5: VAL | H5: VARELA FERRER | I5: Alberto | J5: =SUM(O5:CF5)+K5 -> 25 | K5: =CN5*50/100 -> 10 | L5: =COUNTIF(O5:CF5,$L$4) -> 0 | M5: =COUNTIF(O5:CF5,$M$4) -> 0 | N5: =COUNTIF(O5:CF5,$N$4) -> 0 | P5: =IF(O5="Oro",150,IF(O5="Plata",120,IF(O5="Bronce",100,IF(O5="Quinto",50,IF(O5="Septimo",30,0))))) -> 0 | R5: =IF(Q5="Oro",150,IF(Q5="Plata",120,IF(Q5="Bronce",100,IF(Q5="Quinto",50,IF(Q5="Septimo",30,0))))) -> 0 | T5: =IF(S5="Oro",100,IF(S5="Plata",85,IF(S5="Bronce",70,IF(S5="Quinto",30,IF(S5="Septimo",15,0))))) -> 0 | U5: SEPTIMO | V5: =IF(U5="Oro",100,IF(U5="Plata",85,IF(U5="Bronce",70,IF(U5="Quinto",30,IF(U5="Septimo",15,0))))) -> 15 | X5: =IF(W5="Oro",75,IF(W5="Plata",60,IF(W5="Bronce",50,IF(W5="Quinto",20,IF(W5="Septimo",7,0))))) -> 0 | Z5: =IF(Y5="Oro",75,IF(Y5="Plata",60,IF(Y5="Bronce",50,IF(Y5="Quinto",20,IF(Y5="Septimo",7,0))))) -> 0 | AB5: =IF(AA5="Oro",75,IF(AA5="Plata",60,IF(AA5="Bronce",50,IF(AA5="Quinto",20,IF(AA5="Septimo",7,0))))) -> 0 | AD5: =IF(AC5="Oro",75,IF(AC5="Plata",60,IF(AC5="Bronce",50,IF(AC5="Quinto",20,IF(AC5="Septimo",7,0))))) -> 0 | AF5: =IF(AE5="Oro",75,IF(AE5="Plata",60,IF(AE5="Bronce",50,IF(AE5="Quinto",20,IF(AE5="Septimo",7,0))))) -> 0 | AH5: =IF(AG5="Oro",75,IF(AG5="Plata",60,IF(AG5="Bronce",50,IF(AG5="Quinto",20,IF(AG5="Septimo",7,0))))) -> 0 | AJ5: =IF(AI5="Oro",75,IF(AI5="Plata",60,IF(AI5="Bronce",50,IF(AI5="Quinto",20,IF(AI5="Septimo",7,0))))) -> 0 | AL5: =IF(AK5="Oro",60,IF(AK5="Plata",50,IF(AK5="Bronce",35,IF(AK5="Quinto",15,IF(AK5="Septimo",5,0))))) -> 0 | AN5: =IF(AM5="Oro",60,IF(AM5="Plata",50,IF(AM5="Bronce",35,IF(AM5="Quinto",15,IF(AM5="Septimo",5,0))))) -> 0 | AP5: =IF(AO5="Oro",60,IF(AO5="Plata",50,IF(AO5="Bronce",35,IF(AO5="Quinto",15,IF(AO5="Septimo",5,0))))) -> 0 | AR5: =IF(AQ5="Oro",60,IF(AQ5="Plata",50,IF(AQ5="Bronce",35,IF(AQ5="Quinto",15,IF(AQ5="Septimo",5,0))))) -> 0 | AT5: =IF(AS5="Oro",60,IF(AS5="Plata",50,IF(AS5="Bronce",35,IF(AS5="Quinto",15,IF(AS5="Septimo",5,0))))) -> 0 | AV5: =IF(AU5="Oro",60,IF(AU5="Plata",50,IF(AU5="Bronce",35,IF(AU5="Quinto",15,IF(AU5="Septimo",5,0))))) -> 0 | AX5: =IF(AW5="Oro",60,IF(AW5="Plata",50,IF(AW5="Bronce",35,IF(AW5="Quinto",15,IF(AW5="Septimo",5,0))))) -> 0 | AZ5: =IF(AY5="Oro",60,IF(AY5="Plata",50,IF(AY5="Bronce",35,IF(AY5="Quinto",15,IF(AY5="Septimo",5,0))))) -> 0 | BB5: =IF(BA5="Oro",60,IF(BA5="Plata",50,IF(BA5="Bronce",35,IF(BA5="Quinto",15,IF(BA5="Septimo",5,0))))) -> 0 | BD5: =IF(BC5="Oro",60,IF(BC5="Plata",50,IF(BC5="Bronce",35,IF(BC5="Quinto",15,IF(BC5="Septimo",5,0))))) -> 0 | BF5: =IF(BE5="Oro",60,IF(BE5="Plata",50,IF(BE5="Bronce",35,IF(BE5="Quinto",15,IF(BE5="Septimo",5,0))))) -> 0 | BH5: =IF(BG5="Oro",30,IF(BG5="Plata",20,IF(BG5="Bronce",15,0))) -> 0 | BJ5: =IF(BI5="Oro",30,IF(BI5="Plata",20,IF(BI5="Bronce",15,0))) -> 0 | BL5: =IF(BK5="Oro",30,IF(BK5="Plata",20,IF(BK5="Bronce",15,0))) -> 0 | BN5: =IF(BM5="Oro",30,IF(BM5="Plata",20,IF(BM5="Bronce",15,0))) -> 0 | BP5: =IF(BO5="Oro",30,IF(BO5="Plata",20,IF(BO5="Bronce",15,0))) -> 0 | BR5: =IF(BQ5="Oro",30,IF(BQ5="Plata",20,IF(BQ5="Bronce",15,0))) -> 0 | BT5: =IF(BS5="Oro",30,IF(BS5="Plata",20,IF(BS5="Bronce",15,0))) -> 0 | BV5: =IF(BU5="Oro",30,IF(BU5="Plata",20,IF(BU5="Bronce",15,0))) -> 0 | BX5: =IF(BW5="Oro",30,IF(BW5="Plata",20,IF(BW5="Bronce",15,0))) -> 0 | BZ5: =IF(BY5="Oro",30,IF(BY5="Plata",20,IF(BY5="Bronce",15,0))) -> 0 | CB5: =IF(CA5="Oro",30,IF(CA5="Plata",20,IF(CA5="Bronce",15,0))) -> 0 | CD5: =IF(CC5="Oro",30,IF(CC5="Plata",20,IF(CC5="Bronce",15,0))) -> 0 | CF5: =IF(CE5="Oro",30,IF(CE5="Plata",20,IF(CE5="Bronce",15,0))) -> 0 | CN5: =SUMIFS('2019'!H:H,'2019'!A:A,"-73 kg",'2019'!D:D,'-73 kg'!H5,'2019'!E:E,'-73 kg'!I5) -> 20
C6: 2 | D6: MAD | H6: RAMIREZ RAMOS | I6: JAVIER | J6: 15 | K6: 15 | L6: 0 | M6: 0 | N6: 0 | P6: 0 | R6: 0 | T6: 0 | V6: 0 | X6: 0 | Z6: 0 | AB6: 0 | AD6: 0 | AF6: 0 | AH6: 0 | AJ6: 0 | AL6: 0 | AN6: 0 | AP6: 0 | AR6: 0 | AT6: 0 | AV6: 0 | AX6: 0 | AZ6: 0 | BB6: 0 | BD6: 0 | BF6: 0 | BH6: 0 | BJ6: 0 | BL6: 0 | BN6: 0 | BP6: 0 | BR6: 0 | BT6: 0 | BV6: 0 | BX6: 0 | BZ6: 0 | CB6: 0 | CD6: 0 | CF6: 0 | CN6: =SUMIFS('2019'!H:H,'2019'!A:A,"-73 kg",'2019'!D:D,'-73 kg'!H6,'2019'!E:E,'-73 kg'!I6) -> 30
C7: 2 | D7: VAL | F7: 48791586F | G7: 1998 | H7: CASES ROCA | I7: Salvador | J7: 15 | K7: 0 | L7: 0 | M7: 0 | N7: 1 | P7: 0 | R7: 0 | T7: 0 | U7: 0 | V7: 0 | X7: 0 | Z7: 0 | AB7: 0 | AD7: 0 | AF7: 0 | AH7: 0 | AJ7: 0 | AL7: 0 | AN7: 0 | AP7: 0 | AR7: 0 | AT7: 0 | AV7: 0 | AX7: 0 | AZ7: 0 | BB7: 0 | BD7: 0 | BF7: 0 | BH7: 0 | BJ7: 0 | BL7: 0 | BN7: 0 | BP7: 0 | BR7: 0 | BT7: 0 | BV7: 0 | BX7: 0 | BY7: Bronce | BZ7: 15 | CB7: 0 | CD7: 0 | CF7: 0 | CN7: =SUMIFS('2019'!H:H,'2019'!A:A,"-73 kg",'2019'!D:D,'-73 kg'!H7,'2019'!E:E,'-73 kg'!I7) -> 0
C8: 4 | D8: MAD | H8: AGUILAR VEGA | I8: CARLOS | J8: 10 | K8: 10 | L8: 0 | M8: 0 | N8: 0 | P8: 0 | R8: 0 | T8: 0 | V8: 0 | X8: 0 | Z8: 0 | AB8: 0 | AD8: 0 | AF8: 0 | AH8: 0 | AJ8: 0 | AL8: 0 | AN8: 0 | AP8: 0 | AR8: 0 | AT8: 0 | AV8: 0 | AX8: 0 | AZ8: 0 | BB8: 0 | BD8: 0 | BF8: 0 | BH8: 0 | BJ8: 0 | BL8: 0 | BN8: 0 | BP8: 0 | BR8: 0 | BT8: 0 | BV8: 0 | BX8: 0 | BZ8: 0 | CB8: 0 | CD8: 0 | CF8: 0 | CN8: =SUMIFS('2019'!H:H,'2019'!A:A,"-73 kg",'2019'!D:D,'-73 kg'!H8,'2019'!E:E,'-73 kg'!I8) -> 20
C9: 5 | D9: CAT | H9: BENDELIANI | I9: Giorgi | J9: 7.5 | K9: 7.5 | L9: 0 | M9: 0 | N9: 0 | P9: 0 | R9: 0 | T9: 0 | V9: 0 | X9: 0 | Z9: 0 | AB9: 0 | AD9: 0 | AF9: 0 | AH9: 0 | AJ9: 0 | AL9: 0 | AN9: 0 | AP9: 0 | AR9: 0 | AT9: 0 | AV9: 0 | AX9: 0 | AZ9: 0 | BB9: 0 | BD9: 0 | BF9: 0 | BH9: 0 | BJ9: 0 | BL9: 0 | BN9: 0 | BP9: 0 | BR9: 0 | BT9: 0 | BV9: 0 | BX9: 0 | BZ9: 0 | CB9: 0 | CD9: 0 | CF9: 0 | CN9: =SUMIFS('2019'!H:H,'2019'!A:A,"-73 kg",'2019'!D:D,'-73 kg'!H9,'2019'!E:E,'-73 kg'!I9) -> 15
C10: 5 | D10: NAV | H10: GRACIA GARIJO | I10: Ibai | J10: 7.5 | K10: 7.5 | L10: 0 | M10: 0 | N10: 0 | P10: 0 | R10: 0 | T10: 0 | V10: 0 | X10: 0 | Z10: 0 | AB10: 0 | AD10: 0 | AF10: 0 | AH10: 0 | AJ10: 0 | AL10: 0 | AN10: 0 | AP10: 0 | AR10: 0 | AT10: 0 | AV10: 0 | AX10: 0 | AZ10: 0 | BB10: 0 | BD10: 0 | BF10: 0 | BH10: 0 | BJ10: 0 | BL10: 0 | BN10: 0 | BP10: 0 | BR10: 0 | BT10: 0 | BV10: 0 | BX10: 0 | BZ10: 0 | CB10: 0 | CD10: 0 | CF10: 0 | CN10: =SUMIFS('2019'!H:H,'2019'!A:A,"-73 kg",'2019'!D:D,'-73 kg'!H10,'2019'!E:E,'-73 kg'!I10) -> 15
C11: 7 | D11: MAD | H11: CANO GARCÍA | I11: Jorge | J11: 2.5 | K11: 2.5 | L11: 0 | M11: 0 | N11: 0 | P11: 0 | R11: 0 | T11: 0 | V11: 0 | X11: 0 | Z11: 0 | AB11: 0 | AD11: 0 | AF11: 0 | AH11: 0 | AJ11: 0 | AL11: 0 | AN11: 0 | AP11: 0 | AR11: 0 | AT11: 0 | AV11: 0 | AX11: 0 | AZ11: 0 | BB11: 0 | BD11: 0 | BF11: 0 | BH11: 0 | BJ11: 0 | BL11: 0 | BN11: 0 | BP11: 0 | BR11: 0 | BT11: 0 | BV11: 0 | BW11: Septimo | BX11: 0 | BZ11: 0 | CB11: 0 | CD11: 0 | CF11: 0 | CN11: =SUMIFS('2019'!H:H,'2019'!A:A,"-73 kg",'2019'!D:D,'-73 kg'!H11,'2019'!E:E,'-73 kg'!I11) -> 5
C12: 8 | J12: 0 | K12: 0 | L12: 0 | M12: 0 | N12: 0 | P12: 0 | R12: 0 | T12: 0 | V12: 0 | X12: 0 | Z12: 0 | AB12: 0 | AD12: 0 | AF12: 0 | AH12: 0 | AJ12: 0 | AL12: 0 | AN12: 0 | AP12: 0 | AR12: 0 | AT12: 0 | AV12: 0 | AX12: 0 | AZ12: 0 | BB12: 0 | BD12: 0 | BF12: 0 | BH12: 0 | BJ12: 0 | BL12: 0 | BN12: 0 | BP12: 0 | BR12: 0 | BT12: 0 | BV12: 0 | BX12: 0 | BZ12: 0 | CB12: 0 | CD12: 0 | CF12: 0 | CN12: =SUMIFS('2019'!H:H,'2019'!A:A,"-73 kg",'2019'!D:D,'-73 kg'!H12,'2019'!E:E,'-73 kg'!I12) -> 0
C13: 8 | J13: 0 | K13: 0 | L13: 0 | M13: 0 | N13: 0 | P13: 0 | R13: 0 | T13: 0 | V13: 0 | X13: 0 | Z13: 0 | AB13: 0 | AD13: 0 | AF13: 0 | AH13: 0 | AJ13: 0 | AL13: 0 | AN13: 0 | AP13: 0 | AR13: 0 | AT13: 0 | AV13: 0 | AX13: 0 | AZ13: 0 | BB13: 0 | BD13: 0 | BF13: 0 | BH13: 0 | BJ13: 0 | BL13: 0 | BN13: 0 | BP13: 0 | BR13: 0 | BT13: 0 | BV13: 0 | BX13: 0 | BZ13: 0 | CB13: 0 | CD13: 0 | CF13: 0 | CN13: =SUMIFS('2019'!H:H,'2019'!A:A,"-73 kg",'2019'!D:D,'-73 kg'!H13,'2019'!E:E,'-73 kg'!I13) -> 0
C14: 8 | J14: 0 | K14: 0 | L14: 0 | M14: 0 | N14: 0 | P14: 0 | R14: 0 | T14: 0 | V14: 0 | X14: 0 | Z14: 0 | AB14: 0 | AD14: 0 | AF14: 0 | AH14: 0 | AJ14: 0 | AL14: 0 | AN14: 0 | AP14: 0 | AR14: 0 | AT14: 0 | AV14: 0 | AX14: 0 | AZ14: 0 | BB14: 0 | BD14: 0 | BF14: 0 | BH14: 0 | BJ14: 0 | BL14: 0 | BN14: 0 | BP14: 0 | BR14: 0 | BT14: 0 | BV14: 0 | BX14: 0 | BZ14: 0 | CB14: 0 | CD14: 0 | CF14: 0 | CN14: =SUMIFS('2019'!H:H,'2019'!A:A,"-73 kg",'2019'!D:D,'-73 kg'!H14,'2019'!E:E,'-73 kg'!I14) -> 0
C15: 8 | J15: 0 | K15: 0 | L15: 0 | M15: 0 | N15: 0 | P15: 0 | R15: 0 | T15: 0 | V15: 0 | X15: 0 | Z15: 0 | AB15: 0 | AD15: 0 | AF15: 0 | AH15: 0 | AJ15: 0 | AL15: 0 | AN15: 0 | AP15: 0 | AR15: 0 | AT15: 0 | AV15: 0 | AX15: 0 | AZ15: 0 | BB15: 0 | BD15: 0 | BF15: 0 | BH15: 0 | BJ15: 0 | BL15: 0 | BN15: 0 | BP15: 0 | BR15: 0 | BT15: 0 | BV15: 0 | BX15: 0 | BZ15: 0 | CB15: 0 | CD15: 0 | CF15: 0 | CN15: =SUMIFS('2019'!H:H,'2019'!A:A,"-73 kg",'2019'!D:D,'-73 kg'!H15,'2019'!E:E,'-73 kg'!I15) -> 0
C16: 8 | J16: 0 | K16: 0 | L16: 0 | M16: 0 | N16: 0 | P16: 0 | R16: 0 | T16: 0 | V16: 0 | X16: 0 | Z16: 0 | AB16: 0 | AD16: 0 | AF16: 0 | AH16: 0 | AJ16: 0 | AL16: 0 | AN16: 0 | AP16: 0 | AR16: 0 | AT16: 0 | AV16: 0 | AX16: 0 | AZ16: 0 | BB16: 0 | BD16: 0 | BF16: 0 | BH16: 0 | BJ16: 0 | BL16: 0 | BN16: 0 | BP16: 0 | BR16: 0 | BT16: 0 | BV16: 0 | BX16: 0 | BZ16: 0 | CB16: 0 | CD16: 0 | CF16: 0 | CN16: =SUMIFS('2019'!H:H,'2019'!A:A,"-73 kg",'2019'!D:D,'-73 kg'!H16,'2019'!E:E,'-73 kg'!I16) -> 0
C17: 8 | J17: 0 | K17: 0 | L17: 0 | M17: 0 | N17: 0 | P17: 0 | R17: 0 | T17: 0 | V17: 0 | X17: 0 | Z17: 0 | AB17: 0 | AD17: 0 | AF17: 0 | AH17: 0 | AJ17: 0 | AL17: 0 | AN17: 0 | AP17: 0 | AR17: 0 | AT17: 0 | AV17: 0 | AX17: 0 | AZ17: 0 | BB17: 0 | BD17: 0 | BF17: 0 | BH17: 0 | BJ17: 0 | BL17: 0 | BN17: 0 | BP17: 0 | BR17: 0 | BT17: 0 | BV17: 0 | BX17: 0 | BZ17: 0 | CB17: 0 | CD17: 0 | CF17: 0 | CN17: =SUMIFS('2019'!H:H,'2019'!A:A,"-73 kg",'2019'!D:D,'-73 kg'!H17,'2019'!E:E,'-73 kg'!I17) -> 0
C18: 8 | J18: 0 | K18: 0 | L18: 0 | M18: 0 | N18: 0 | P18: 0 | R18: 0 | T18: 0 | V18: 0 | X18: 0 | Z18: 0 | AB18: 0 | AD18: 0 | AF18: 0 | AH18: 0 | AJ18: 0 | AL18: 0 | AN18: 0 | AP18: 0 | AR18: 0 | AT18: 0 | AV18: 0 | AX18: 0 | AZ18: 0 | BB18: 0 | BD18: 0 | BF18: 0 | BH18: 0 | BJ18: 0 | BL18: 0 | BN18: 0 | BP18: 0 | BR18: 0 | BT18: 0 | BV18: 0 | BX18: 0 | BZ18: 0 | CB18: 0 | CD18: 0 | CF18: 0 | CN18: =SUMIFS('2019'!H:H,'2019'!A:A,"-73 kg",'2019'!D:D,'-73 kg'!H18,'2019'!E:E,'-73 kg'!I18) -> 0
C19: 8 | J19: 0 | K19: 0 | L19: 0 | M19: 0 | N19: 0 | P19: 0 | R19: 0 | T19: 0 | V19: 0 | X19: 0 | Z19: 0 | AB19: 0 | AD19: 0 | AF19: 0 | AH19: 0 | AJ19: 0 | AL19: 0 | AN19: 0 | AP19: 0 | AR19: 0 | AT19: 0 | AV19: 0 | AX19: 0 | AZ19: 0 | BB19: 0 | BD19: 0 | BF19: 0 | BH19: 0 | BJ19: 0 | BL19: 0 | BN19: 0 | BP19: 0 | BR19: 0 | BT19: 0 | BV19: 0 | BX19: 0 | BZ19: 0 | CB19: 0 | CD19: 0 | CF19: 0 | CN19: =SUMIFS('2019'!H:H,'2019'!A:A,"-73 kg",'2019'!D:D,'-73 kg'!H19,'2019'!E:E,'-73 kg'!I19) -> 0
C20: 8 | J20: 0 | K20: 0 | L20: 0 | M20: 0 | N20: 0 | P20: 0 | R20: 0 | T20: 0 | V20: 0 | X20: 0 | Z20: 0 | AB20: 0 | AD20: 0 | AF20: 0 | AH20: 0 | AJ20: 0 | AL20: 0 | AN20: 0 | AP20: 0 | AR20: 0 | AT20: 0 | AV20: 0 | AX20: 0 | AZ20: 0 | BB20: 0 | BD20: 0 | BF20: 0 | BH20: 0 | BJ20: 0 | BL20: 0 | BN20: 0 | BP20: 0 | BR20: 0 | BT20: 0 | BV20: 0 | BX20: 0 | BZ20: 0 | CB20: 0 | CD20: 0 | CF20: 0 | CN20: =SUMIFS('2019'!H:H,'2019'!A:A,"-73 kg",'2019'!D:D,'-73 kg'!H20,'2019'!E:E,'-73 kg'!I20) -> 0
C21: 8 | J21: 0 | K21: 0 | L21: 0 | M21: 0 | N21: 0 | P21: 0 | R21: 0 | T21: 0 | V21: 0 | X21: 0 | Z21: 0 | AB21: 0 | AD21: 0 | AF21: 0 | AH21: 0 | AJ21: 0 | AL21: 0 | AN21: 0 | AP21: 0 | AR21: 0 | AT21: 0 | AV21: 0 | AX21: 0 | AZ21: 0 | BB21: 0 | BD21: 0 | BF21: 0 | BH21: 0 | BJ21: 0 | BL21: 0 | BN21: 0 | BP21: 0 | BR21: 0 | BT21: 0 | BV21: 0 | BX21: 0 | BZ21: 0 | CB21: 0 | CD21: 0 | CF21: 0 | CN21: =SUMIFS('2019'!H:H,'2019'!A:A,"-73 kg",'2019'!D:D,'-73 kg'!H21,'2019'!E:E,'-73 kg'!I21) -> 0
C22: 8 | J22: 0 | K22: 0 | L22: 0 | M22: 0 | N22: 0 | P22: 0 | R22: 0 | T22: 0 | V22: 0 | X22: 0 | Z22: 0 | AB22: 0 | AD22: 0 | AF22: 0 | AH22: 0 | AJ22: 0 | AL22: 0 | AN22: 0 | AP22: 0 | AR22: 0 | AT22: 0 | AV22: 0 | AX22: 0 | AZ22: 0 | BB22: 0 | BD22: 0 | BF22: 0 | BH22: 0 | BJ22: 0 | BL22: 0 | BN22: 0 | BP22: 0 | BR22: 0 | BT22: 0 | BV22: 0 | BX22: 0 | BZ22: 0 | CB22: 0 | CD22: 0 | CF22: 0 | CN22: =SUMIFS('2019'!H:H,'2019'!A:A,"-73 kg",'2019'!D:D,'-73 kg'!H22,'2019'!E:E,'-73 kg'!I22) -> 0
C23: 8 | J23: 0 | K23: 0 | L23: 0 | M23: 0 | N23: 0 | P23: 0 | R23: 0 | T23: 0 | V23: 0 | X23: 0 | Z23: 0 | AB23: 0 | AD23: 0 | AF23: 0 | AH23: 0 | AJ23: 0 | AL23: 0 | AN23: 0 | AP23: 0 | AR23: 0 | AT23: 0 | AV23: 0 | AX23: 0 | AZ23: 0 | BB23: 0 | BD23: 0 | BF23: 0 | BH23: 0 | BJ23: 0 | BL23: 0 | BN23: 0 | BP23: 0 | BR23: 0 | BT23: 0 | BV23: 0 | BX23: 0 | BZ23: 0 | CB23: 0 | CD23: 0 | CF23: 0 | CN23: =SUMIFS('2019'!H:H,'2019'!A:A,"-73 kg",'2019'!D:D,'-73 kg'!H23,'2019'!E:E,'-73 kg'!I23) -> 0
C24: 8 | J24: 0 | K24: 0 | L24: 0 | M24: 0 | N24: 0 | P24: 0 | R24: 0 | T24: 0 | V24: 0 | X24: 0 | Z24: 0 | AB24: 0 | AD24: 0 | AF24: 0 | AH24: 0 | AJ24: 0 | AL24: 0 | AN24: 0 | AP24: 0 | AR24: 0 | AT24: 0 | AV24: 0 | AX24: 0 | AZ24: 0 | BB24: 0 | BD24: 0 | BF24: 0 | BH24: 0 | BJ24: 0 | BL24: 0 | BN24: 0 | BP24: 0 | BR24: 0 | BT24: 0 | BV24: 0 | BX24: 0 | BZ24: 0 | CB24: 0 | CD24: 0 | CF24: 0 | CN24: =SUMIFS('2019'!H:H,'2019'!A:A,"-73 kg",'2019'!D:D,'-73 kg'!H24,'2019'!E:E,'-73 kg'!I24) -> 0
C25: 8 | J25: 0 | K25: 0 | L25: 0 | M25: 0 | N25: 0 | P25: 0 | R25: 0 | T25: 0 | V25: 0 | X25: 0 | Z25: 0 | AB25: 0 | AD25: 0 | AF25: 0 | AH25: 0 | AJ25: 0 | AL25: 0 | AN25: 0 | AP25: 0 | AR25: 0 | AT25: 0 | AV25: 0 | AX25: 0 | AZ25: 0 | BB25: 0 | BD25: 0 | BF25: 0 | BH25: 0 | BJ25: 0 | BL25: 0 | BN25: 0 | BP25: 0 | BR25: 0 | BT25: 0 | BV25: 0 | BX25: 0 | BZ25: 0 | CB25: 0 | CD25: 0 | CF25: 0 | CN25: =SUMIFS('2019'!H:H,'2019'!A:A,"-73 kg",'2019'!D:D,'-73 kg'!H25,'2019'!E:E,'-73 kg'!I25) -> 0
C26: 8 | J26: 0 | K26: 0 | L26: 0 | M26: 0 | N26: 0 | P26: 0 | R26: 0 | T26: 0 | V26: 0 | X26: 0 | Z26: 0 | AB26: 0 | AD26: 0 | AF26: 0 | AH26: 0 | AJ26: 0 | AL26: 0 | AN26: 0 | AP26: 0 | AR26: 0 | AT26: 0 | AV26: 0 | AX26: 0 | AZ26: 0 | BB26: 0 | BD26: 0 | BF26: 0 | BH26: 0 | BJ26: 0 | BL26: 0 | BN26: 0 | BP26: 0 | BR26: 0 | BT26: 0 | BV26: 0 | BX26: 0 | BZ26: 0 | CB26: 0 | CD26: 0 | CF26: 0 | CN26: =SUMIFS('2019'!H:H,'2019'!A:A,"-73 kg",'2019'!D:D,'-73 kg'!H26,'2019'!E:E,'-73 kg'!I26) -> 0
C27: 8 | J27: 0 | K27: 0 | L27: 0 | M27: 0 | N27: 0 | P27: 0 | R27: 0 | T27: 0 | V27: 0 | X27: 0 | Z27: 0 | AB27: 0 | AD27: 0 | AF27: 0 | AH27: 0 | AJ27: 0 | AL27: 0 | AN27: 0 | AP27: 0 | AR27: 0 | AT27: 0 | AV27: 0 | AX27: 0 | AZ27: 0 | BB27: 0 | BD27: 0 | BF27: 0 | BH27: 0 | BJ27: 0 | BL27: 0 | BN27: 0 | BP27: 0 | BR27: 0 | BT27: 0 | BV27: 0 | BX27: 0 | BZ27: 0 | CB27: 0 | CD27: 0 | CF27: 0 | CN27: =SUMIFS('2019'!H:H,'2019'!A:A,"-73 kg",'2019'!D:D,'-73 kg'!H27,'2019'!E:E,'-73 kg'!I27) -> 0
C28: 8 | J28: 0 | K28: 0 | L28: 0 | M28: 0 | N28: 0 | P28: 0 | R28: 0 | T28: 0 | V28: 0 | X28: 0 | Z28: 0 | AB28: 0 | AD28: 0 | AF28: 0 | AH28: 0 | AJ28: 0 | AL28: 0 | AN28: 0 | AP28: 0 | AR28: 0 | AT28: 0 | AV28: 0 | AX28: 0 | AZ28: 0 | BB28: 0 | BD28: 0 | BF28: 0 | BH28: 0 | BJ28: 0 | BL28: 0 | BN28: 0 | BP28: 0 | BR28: 0 | BT28: 0 | BV28: 0 | BX28: 0 | BZ28: 0 | CB28: 0 | CD28: 0 | CF28: 0 | CN28: =SUMIFS('2019'!H:H,'2019'!A:A,"-73 kg",'2019'!D:D,'-73 kg'!H28,'2019'!E:E,'-73 kg'!I28) -> 0
C29: 8 | J29: 0 | K29: 0 | L29: 0 | M29: 0 | N29: 0 | P29: 0 | R29: 0 | T29: 0 | V29: 0 | X29: 0 | Z29: 0 | AB29: 0 | AD29: 0 | AF29: 0 | AH29: 0 | AJ29: 0 | AL29: 0 | AN29: 0 | AP29: 0 | AR29: 0 | AT29: 0 | AV29: 0 | AX29: 0 | AZ29: 0 | BB29: 0 | BD29: 0 | BF29: 0 | BH29: 0 | BJ29: 0 | BL29: 0 | BN29: 0 | BP29: 0 | BR29: 0 | BT29: 0 | BV29: 0 | BX29: 0 | BZ29: 0 | CB29: 0 | CD29: 0 | CF29: 0 | CN29: =SUMIFS('2019'!H:H,'2019'!A:A,"-73 kg",'2019'!D:D,'-73 kg'!H29,'2019'!E:E,'-73 kg'!I29) -> 0
C30: 8 | J30: 0 | K30: 0 | L30: 0 | M30: 0 | N30: 0 | P30: 0 | R30: 0 | T30: 0 | V30: 0 | X30: 0 | Z30: 0 | AB30: 0 | AD30: 0 | AF30: 0 | AH30: 0 | AJ30: 0 | AL30: 0 | AN30: 0 | AP30: 0 | AR30: 0 | AT30: 0 | AV30: 0 | AX30: 0 | AZ30: 0 | BB30: 0 | BD30: 0 | BF30: 0 | BH30: 0 | BJ30: 0 | BL30: 0 | BN30: 0 | BP30: 0 | BR30: 0 | BT30: 0 | BV30: 0 | BX30: 0 | BZ30: 0 | CB30: 0 | CD30: 0 | CF30: 0 | CN30: =SUMIFS('2019'!H:H,'2019'!A:A,"-73 kg",'2019'!D:D,'-73 kg'!H30,'2019'!E:E,'-73 kg'!I30) -> 0
C31: 8 | J31: 0 | K31: 0 | L31: 0 | M31: 0 | N31: 0 | P31: 0 | R31: 0 | T31: 0 | V31: 0 | X31: 0 | Z31: 0 | AB31: 0 | AD31: 0 | AF31: 0 | AH31: 0 | AJ31: 0 | AL31: 0 | AN31: 0 | AP31: 0 | AR31: 0 | AT31: 0 | AV31: 0 | AX31: 0 | AZ31: 0 | BB31: 0 | BD31: 0 | BF31: 0 | BH31: 0 | BJ31: 0 | BL31: 0 | BN31: 0 | BP31: 0 | BR31: 0 | BT31: 0 | BV31: 0 | BX31: 0 | BZ31: 0 | CB31: 0 | CD31: 0 | CF31: 0 | CN31: =SUMIFS('2019'!H:H,'2019'!A:A,"-73 kg",'2019'!D:D,'-73 kg'!H31,'2019'!E:E,'-73 kg'!I31) -> 0
C32: 8 | J32: 0 | K32: 0 | L32: 0 | M32: 0 | N32: 0 | P32: 0 | R32: 0 | T32: 0 | V32: 0 | X32: 0 | Z32: 0 | AB32: 0 | AD32: 0 | AF32: 0 | AH32: 0 | AJ32: 0 | AL32: 0 | AN32: 0 | AP32: 0 | AR32: 0 | AT32: 0 | AV32: 0 | AX32: 0 | AZ32: 0 | BB32: 0 | BD32: 0 | BF32: 0 | BH32: 0 | BJ32: 0 | BL32: 0 | BN32: 0 | BP32: 0 | BR32: 0 | BT32: 0 | BV32: 0 | BX32: 0 | BZ32: 0 | CB32: 0 | CD32: 0 | CF32: 0 | CN32: =SUMIFS('2019'!H:H,'2019'!A:A,"-73 kg",'2019'!D:D,'-73 kg'!H32,'2019'!E:E,'-73 kg'!I32) -> 0
C33: 8 | J33: 0 | K33: 0 | L33: 0 | M33: 0 | N33: 0 | P33: 0 | R33: 0 | T33: 0 | V33: 0 | X33: 0 | Z33: 0 | AB33: 0 | AD33: 0 | AF33: 0 | AH33: 0 | AJ33: 0 | AL33: 0 | AN33: 0 | AP33: 0 | AR33: 0 | AT33: 0 | AV33: 0 | AX33: 0 | AZ33: 0 | BB33: 0 | BD33: 0 | BF33: 0 | BH33: 0 | BJ33: 0 | BL33: 0 | BN33: 0 | BP33: 0 | BR33: 0 | BT33: 0 | BV33: 0 | BX33: 0 | BZ33: 0 | CB33: 0 | CD33: 0 | CF33: 0 | CN33: =SUMIFS('2019'!H:H,'2019'!A:A,"-73 kg",'2019'!D:D,'-73 kg'!H33,'2019'!E:E,'-73 kg'!I33) -> 0
C34: 8 | J34: 0 | K34: 0 | L34: 0 | M34: 0 | N34: 0 | P34: 0 | R34: 0 | T34: 0 | V34: 0 | X34: 0 | Z34: 0 | AB34: 0 | AD34: 0 | AF34: 0 | AH34: 0 | AJ34: 0 | AL34: 0 | AN34: 0 | AP34: 0 | AR34: 0 | AT34: 0 | AV34: 0 | AX34: 0 | AZ34: 0 | BB34: 0 | BD34: 0 | BF34: 0 | BH34: 0 | BJ34: 0 | BL34: 0 | BN34: 0 | BP34: 0 | BR34: 0 | BT34: 0 | BV34: 0 | BX34: 0 | BZ34: 0 | CB34: 0 | CD34: 0 | CF34: 0 | CN34: =SUMIFS('2019'!H:H,'2019'!A:A,"-73 kg",'2019'!D:D,'-73 kg'!H34,'2019'!E:E,'-73 kg'!I34) -> 0
C35: 8 | J35: 0 | K35: 0 | L35: 0 | M35: 0 | N35: 0 | P35: 0 | R35: 0 | T35: 0 | V35: 0 | X35: 0 | Z35: 0 | AB35: 0 | AD35: 0 | AF35: 0 | AH35: 0 | AJ35: 0 | AL35: 0 | AN35: 0 | AP35: 0 | AR35: 0 | AT35: 0 | AV35: 0 | AX35: 0 | AZ35: 0 | BB35: 0 | BD35: 0 | BF35: 0 | BH35: 0 | BJ35: 0 | BL35: 0 | BN35: 0 | BP35: 0 | BR35: 0 | BT35: 0 | BV35: 0 | BX35: 0 | BZ35: 0 | CB35: 0 | CD35: 0 | CF35: 0 | CN35: =SUMIFS('2019'!H:H,'2019'!A:A,"-73 kg",'2019'!D:D,'-73 kg'!H35,'2019'!E:E,'-73 kg'!I35) -> 0
C36: 8 | J36: 0 | K36: 0 | L36: 0 | M36: 0 | N36: 0 | P36: 0 | R36: 0 | T36: 0 | V36: 0 | X36: 0 | Z36: 0 | AB36: 0 | AD36: 0 | AF36: 0 | AH36: 0 | AJ36: 0 | AL36: 0 | AN36: 0 | AP36: 0 | AR36: 0 | AT36: 0 | AV36: 0 | AX36: 0 | AZ36: 0 | BB36: 0 | BD36: 0 | BF36: 0 | BH36: 0 | BJ36: 0 | BL36: 0 | BN36: 0 | BP36: 0 | BR36: 0 | BT36: 0 | BV36: 0 | BX36: 0 | BZ36: 0 | CB36: 0 | CD36: 0 | CF36: 0 | CN36: =SUMIFS('2019'!H:H,'2019'!A:A,"-73 kg",'2019'!D:D,'-73 kg'!H36,'2019'!E:E,'-73 kg'!I36) -> 0
C37: 8 | J37: 0 | K37: 0 | L37: 0 | M37: 0 | N37: 0 | P37: 0 | R37: 0 | T37: 0 | V37: 0 | X37: 0 | Z37: 0 | AB37: 0 | AD37: 0 | AF37: 0 | AH37: 0 | AJ37: 0 | AL37: 0 | AN37: 0 | AP37: 0 | AR37: 0 | AT37: 0 | AV37: 0 | AX37: 0 | AZ37: 0 | BB37: 0 | BD37: 0 | BF37: 0 | BH37: 0 | BJ37: 0 | BL37: 0 | BN37: 0 | BP37: 0 | BR37: 0 | BT37: 0 | BV37: 0 | BX37: 0 | BZ37: 0 | CB37: 0 | CD37: 0 | CF37: 0 | CN37: =SUMIFS('2019'!H:H,'2019'!A:A,"-73 kg",'2019'!D:D,'-73 kg'!H37,'2019'!E:E,'-73 kg'!I37) -> 0
C38: 8 | J38: 0 | K38: 0 | L38: 0 | M38: 0 | N38: 0 | P38: 0 | R38: 0 | T38: 0 | V38: 0 | X38: 0 | Z38: 0 | AB38: 0 | AD38: 0 | AF38: 0 | AH38: 0 | AJ38: 0 | AL38: 0 | AN38: 0 | AP38: 0 | AR38: 0 | AT38: 0 | AV38: 0 | AX38: 0 | AZ38: 0 | BB38: 0 | BD38: 0 | BF38: 0 | BH38: 0 | BJ38: 0 | BL38: 0 | BN38: 0 | BP38: 0 | BR38: 0 | BT38: 0 | BV38: 0 | BX38: 0 | BZ38: 0 | CB38: 0 | CD38: 0 | CF38: 0 | CN38: =SUMIFS('2019'!H:H,'2019'!A:A,"-73 kg",'2019'!D:D,'-73 kg'!H38,'2019'!E:E,'-73 kg'!I38) -> 0
C39: 8 | J39: 0 | K39: 0 | L39: 0 | M39: 0 | N39: 0 | P39: 0 | R39: 0 | T39: 0 | V39: 0 | X39: 0 | Z39: 0 | AB39: 0 | AD39: 0 | AF39: 0 | AH39: 0 | AJ39: 0 | AL39: 0 | AN39: 0 | AP39: 0 | AR39: 0 | AT39: 0 | AV39: 0 | AX39: 0 | AZ39: 0 | BB39: 0 | BD39: 0 | BF39: 0 | BH39: 0 | BJ39: 0 | BL39: 0 | BN39: 0 | BP39: 0 | BR39: 0 | BT39: 0 | BV39: 0 | BX39: 0 | BZ39: 0 | CB39: 0 | CD39: 0 | CF39: 0 | CN39: =SUMIFS('2019'!H:H,'2019'!A:A,"-73 kg",'2019'!D:D,'-73 kg'!H39,'2019'!E:E,'-73 kg'!I39) -> 0
C40: 8 | J40: 0 | K40: 0 | L40: 0 | M40: 0 | N40: 0 | P40: 0 | R40: 0 | T40: 0 | V40: 0 | X40: 0 | Z40: 0 | AB40: 0 | AD40: 0 | AF40: 0 | AH40: 0 | AJ40: 0 | AL40: 0 | AN40: 0 | AP40: 0 | AR40: 0 | AT40: 0 | AV40: 0 | AX40: 0 | AZ40: 0 | BB40: 0 | BD40: 0 | BF40: 0 | BH40: 0 | BJ40: 0 | BL40: 0 | BN40: 0 | BP40: 0 | BR40: 0 | BT40: 0 | BV40: 0 | BX40: 0 | BZ40: 0 | CB40: 0 | CD40: 0 | CF40: 0 | CN40: =SUMIFS('2019'!H:H,'2019'!A:A,"-73 kg",'2019'!D:D,'-73 kg'!H40,'2019'!E:E,'-73 kg'!I40) -> 0
C41: 8 | J41: 0 | K41: 0 | L41: 0 | M41: 0 | N41: 0 | P41: 0 | R41: 0 | T41: 0 | V41: 0 | X41: 0 | Z41: 0 | AB41: 0 | AD41: 0 | AF41: 0 | AH41: 0 | AJ41: 0 | AL41: 0 | AN41: 0 | AP41: 0 | AR41: 0 | AT41: 0 | AV41: 0 | AX41: 0 | AZ41: 0 | BB41: 0 | BD41: 0 | BF41: 0 | BH41: 0 | BJ41: 0 | BL41: 0 | BN41: 0 | BP41: 0 | BR41: 0 | BT41: 0 | BV41: 0 | BX41: 0 | BZ41: 0 | CB41: 0 | CD41: 0 | CF41: 0 | CN41: =SUMIFS('2019'!H:H,'2019'!A:A,"-73 kg",'2019'!D:D,'-73 kg'!H41,'2019'!E:E,'-73 kg'!I41) -> 0
C42: 8 | J42: 0 | K42: 0 | L42: 0 | M42: 0 | N42: 0 | P42: 0 | R42: 0 | T42: 0 | V42: 0 | X42: 0 | Z42: 0 | AB42: 0 | AD42: 0 | AF42: 0 | AH42: 0 | AJ42: 0 | AL42: 0 | AN42: 0 | AP42: 0 | AR42: 0 | AT42: 0 | AV42: 0 | AX42: 0 | AZ42: 0 | BB42: 0 | BD42: 0 | BF42: 0 | BH42: 0 | BJ42: 0 | BL42: 0 | BN42: 0 | BP42: 0 | BR42: 0 | BT42: 0 | BV42: 0 | BX42: 0 | BZ42: 0 | CB42: 0 | CD42: 0 | CF42: 0 | CN42: =SUMIFS('2019'!H:H,'2019'!A:A,"-73 kg",'2019'!D:D,'-73 kg'!H42,'2019'!E:E,'-73 kg'!I42) -> 0
C43: 8 | J43: 0 | K43: 0 | L43: 0 | M43: 0 | N43: 0 | P43: 0 | R43: 0 | T43: 0 | V43: 0 | X43: 0 | Y43: 0 | Z43: 0 | AB43: 0 | AD43: 0 | AF43: 0 | AH43: 0 | AJ43: 0 | AL43: 0 | AN43: 0 | AP43: 0 | AR43: 0 | AT43: 0 | AV43: 0 | AX43: 0 | AZ43: 0 | BB43: 0 | BD43: 0 | BF43: 0 | BH43: 0 | BJ43: 0 | BL43: 0 | BN43: 0 | BP43: 0 | BR43: 0 | BT43: 0 | BV43: 0 | BX43: 0 | BZ43: 0 | CB43: 0 | CD43: 0 | CF43: 0 | CN43: =SUMIFS('2019'!H:H,'2019'!A:A,"-73 kg",'2019'!D:D,'-73 kg'!H43,'2019'!E:E,'-73 kg'!I43) -> 0
C44: 8 | J44: 0 | K44: 0 | L44: 0 | M44: 0 | N44: 0 | P44: 0 | R44: 0 | T44: 0 | V44: 0 | X44: 0 | Z44: 0 | AB44: 0 | AD44: 0 | AF44: 0 | AH44: 0 | AJ44: 0 | AL44: 0 | AN44: 0 | AP44: 0 | AR44: 0 | AT44: 0 | AV44: 0 | AX44: 0 | AZ44: 0 | BB44: 0 | BD44: 0 | BF44: 0 | BH44: 0 | BJ44: 0 | BL44: 0 | BN44: 0 | BP44: 0 | BR44: 0 | BT44: 0 | BV44: 0 | BX44: 0 | BZ44: 0 | CB44: 0 | CD44: 0 | CF44: 0 | CN44: =SUMIFS('2019'!H:H,'2019'!A:A,"-73 kg",'2019'!D:D,'-73 kg'!H44,'2019'!E:E,'-73 kg'!I44) -> 0

Sheet -81 kg (hidden)
C2: Ranking | D2: Nation | E2: Continent | F2: IJF ID | G2: Y.o B. | H2: FAMILY NAME | I2: Given name | J2: Total score
C3: Puesto | D3: Comunidad | E3: Continent | F3: España ID | G3: A. de N. | H3: APELLIDOS | I3: Nombre | J3: Ranking Nacional Absoluto | K3: Puntuación Año Anterior | L3: Clasificación Equipo Absoluto | O3: Master ABS | Q3: Campeonato Mundo | S3: Campeonato Europa | U3: Campeonato Europa S23 | W3: Gran Slam (Francia) | Y3: Grand Slam (Abu Dhabi) | AA3: GRAND SLAM BRASILIA | AC3: GRAND SLAM OSAKA | AK3: Gran Prix Croacia - ZAGREB | AM3: Gran Prix (Marruecos) | AO3: Gran Prix (La Haya) | AQ3: Gran Prix (Tunez) | AS3: Gran Prix (Duseldorf) | AU3: Gran Prix (China) | AW3: Gran Prix (Uzbekistan) | AY3: Gran Prix Budapest | BE3: Juegos Mediterraneo | BG3: Campeonato España | BI3: European Open (Odivelas) | BK3: European Open (Sofia) | BM3: European Open (Roma) | BO3: European Open (POLONIA) | BQ3: European Open (RUMANIA) | BS3: European Open (Glasgow) | BU3: Open Panamericano | BW3: Open Luxemburgo | CA3: European Cup Málaga | CM3: Puntuación Año Anterior
K4: 0.5 | L4: Oro | M4: Plata | N4: Bronce | O4: Medalla | P4: Puntos | Q4: Medalla | R4: Puntos | S4: Medalla | T4: Puntos | U4: Medalla | V4: Puntos | W4: Medalla | X4: Puntos | Y4: Medalla | Z4: Puntos | AA4: Medalla | AB4: Puntos | AC4: Medalla | AD4: Puntos | AE4: Medalla | AF4: Puntos | AG4: Medalla | AH4: Puntos | AI4: Medalla | AJ4: Puntos | AK4: Medalla | AL4: Puntos | AM4: Medalla | AN4: Puntos | AO4: Medalla | AP4: Puntos | AQ4: Medalla | AR4: Puntos | AS4: Medalla | AT4: Puntos | AU4: Medalla | AV4: Puntos | AW4: Medalla | AX4: Puntos | AY4: Medalla | AZ4: Puntos | BA4: Medalla | BB4: Puntos | BC4: Medalla | BD4: Puntos | BE4: Medalla | BF4: Puntos | BG4: Medalla | BH4: Puntos | BI4: Medalla | BJ4: Puntos | BK4: Medalla | BL4: Puntos | BM4: Medalla | BN4: Puntos | BO4: Medalla | BP4: Puntos | BQ4: Medalla | BR4: Puntos | BS4: Medalla | BT4: Puntos | BU4: Medalla | BV4: Puntos | BW4: Medalla | BX4: Puntos | BY4: Medalla | BZ4: Puntos | CA4: Medalla | CB4: Puntos | CC4: Medalla | CD4: Puntos | CE4: Medalla | CF4: Puntos | CM4: 1
C5: =RANK(J5,$J$5:$J$44,0) -> 1 | D5: GAL | H5: ROSA MOYA | I5: Alexis | J5: =SUM(O5:CF5)+K5 -> 30 | K5: =CM5*50/100 -> 30 | L5: =COUNTIF(O5:CF5,$L$4) -> 0 | M5: =COUNTIF(O5:CF5,$M$4) -> 0 | N5: =COUNTIF(O5:CF5,$N$4) -> 0 | P5: =IF(O5="Oro",150,IF(O5="Plata",120,IF(O5="Bronce",100,IF(O5="Quinto",50,IF(O5="Septimo",30,0))))) -> 0 | R5: =IF(Q5="Oro",150,IF(Q5="Plata",120,IF(Q5="Bronce",100,IF(Q5="Quinto",50,IF(Q5="Septimo",30,0))))) -> 0 | T5: =IF(S5="Oro",100,IF(S5="Plata",85,IF(S5="Bronce",70,IF(S5="Quinto",30,IF(S5="Septimo",15,0))))) -> 0 | V5: =IF(U5="Oro",100,IF(U5="Plata",85,IF(U5="Bronce",70,IF(U5="Quinto",30,IF(U5="Septimo",15,0))))) -> 0 | X5: =IF(W5="Oro",75,IF(W5="Plata",60,IF(W5="Bronce",50,IF(W5="Quinto",20,IF(W5="Septimo",7,0))))) -> 0 | Z5: =IF(Y5="Oro",75,IF(Y5="Plata",60,IF(Y5="Bronce",50,IF(Y5="Quinto",20,IF(Y5="Septimo",7,0))))) -> 0 | AB5: =IF(AA5="Oro",75,IF(AA5="Plata",60,IF(AA5="Bronce",50,IF(AA5="Quinto",20,IF(AA5="Septimo",7,0))))) -> 0 | AD5: =IF(AC5="Oro",75,IF(AC5="Plata",60,IF(AC5="Bronce",50,IF(AC5="Quinto",20,IF(AC5="Septimo",7,0))))) -> 0 | AF5: =IF(AE5="Oro",75,IF(AE5="Plata",60,IF(AE5="Bronce",50,IF(AE5="Quinto",20,IF(AE5="Septimo",7,0))))) -> 0 | AH5: =IF(AG5="Oro",75,IF(AG5="Plata",60,IF(AG5="Bronce",50,IF(AG5="Quinto",20,IF(AG5="Septimo",7,0))))) -> 0 | AJ5: =IF(AI5="Oro",75,IF(AI5="Plata",60,IF(AI5="Bronce",50,IF(AI5="Quinto",20,IF(AI5="Septimo",7,0))))) -> 0 | AL5: =IF(AK5="Oro",60,IF(AK5="Plata",50,IF(AK5="Bronce",35,IF(AK5="Quinto",15,IF(AK5="Septimo",5,0))))) -> 0 | AN5: =IF(AM5="Oro",60,IF(AM5="Plata",50,IF(AM5="Bronce",35,IF(AM5="Quinto",15,IF(AM5="Septimo",5,0))))) -> 0 | AP5: =IF(AO5="Oro",60,IF(AO5="Plata",50,IF(AO5="Bronce",35,IF(AO5="Quinto",15,IF(AO5="Septimo",5,0))))) -> 0 | AR5: =IF(AQ5="Oro",60,IF(AQ5="Plata",50,IF(AQ5="Bronce",35,IF(AQ5="Quinto",15,IF(AQ5="Septimo",5,0))))) -> 0 | AT5: =IF(AS5="Oro",60,IF(AS5="Plata",50,IF(AS5="Bronce",35,IF(AS5="Quinto",15,IF(AS5="Septimo",5,0))))) -> 0 | AV5: =IF(AU5="Oro",60,IF(AU5="Plata",50,IF(AU5="Bronce",35,IF(AU5="Quinto",15,IF(AU5="Septimo",5,0))))) -> 0 | AX5: =IF(AW5="Oro",60,IF(AW5="Plata",50,IF(AW5="Bronce",35,IF(AW5="Quinto",15,IF(AW5="Septimo",5,0))))) -> 0 | AZ5: =IF(AY5="Oro",60,IF(AY5="Plata",50,IF(AY5="Bronce",35,IF(AY5="Quinto",15,IF(AY5="Septimo",5,0))))) -> 0 | BB5: =IF(BA5="Oro",60,IF(BA5="Plata",50,IF(BA5="Bronce",35,IF(BA5="Quinto",15,IF(BA5="Septimo",5,0))))) -> 0 | BD5: =IF(BC5="Oro",60,IF(BC5="Plata",50,IF(BC5="Bronce",35,IF(BC5="Quinto",15,IF(BC5="Septimo",5,0))))) -> 0 | BF5: =IF(BE5="Oro",60,IF(BE5="Plata",50,IF(BE5="Bronce",35,IF(BE5="Quinto",15,IF(BE5="Septimo",5,0))))) -> 0 | BH5: =IF(BG5="Oro",30,IF(BG5="Plata",20,IF(BG5="Bronce",15,0))) -> 0 | BJ5: =IF(BI5="Oro",30,IF(BI5="Plata",20,IF(BI5="Bronce",15,0))) -> 0 | BL5: =IF(BK5="Oro",30,IF(BK5="Plata",20,IF(BK5="Bronce",15,0))) -> 0 | BN5: =IF(BM5="Oro",30,IF(BM5="Plata",20,IF(BM5="Bronce",15,0))) -> 0 | BP5: =IF(BO5="Oro",30,IF(BO5="Plata",20,IF(BO5="Bronce",15,0))) -> 0 | BR5: =IF(BQ5="Oro",30,IF(BQ5="Plata",20,IF(BQ5="Bronce",15,0))) -> 0 | BT5: =IF(BS5="Oro",30,IF(BS5="Plata",20,IF(BS5="Bronce",15,0))) -> 0 | BV5: =IF(BU5="Oro",30,IF(BU5="Plata",20,IF(BU5="Bronce",15,0))) -> 0 | BX5: =IF(BW5="Oro",30,IF(BW5="Plata",20,IF(BW5="Bronce",15,0))) -> 0 | BZ5: =IF(BY5="Oro",30,IF(BY5="Plata",20,IF(BY5="Bronce",15,0))) -> 0 | CB5: =IF(CA5="Oro",30,IF(CA5="Plata",20,IF(CA5="Bronce",15,0))) -> 0 | CD5: =IF(CC5="Oro",30,IF(CC5="Plata",20,IF(CC5="Bronce",15,0))) -> 0 | CF5: =IF(CE5="Oro",30,IF(CE5="Plata",20,IF(CE5="Bronce",15,0))) -> 0 | CM5: =SUMIFS('2019'!H:H,'2019'!A:A,"-81 kg",'2019'!D:D,'-81 kg'!H5,'2019'!E:E,'-81 kg'!I5) -> 60
C6: 2 | D6: VAL | H6: HERRERO ZAPIRAIN | I6: IGOR | J6: 25 | K6: 25 | L6: 0 | M6: 0 | N6: 0 | P6: 0 | R6: 0 | T6: 0 | V6: 0 | X6: 0 | Z6: 0 | AB6: 0 | AD6: 0 | AF6: 0 | AH6: 0 | AJ6: 0 | AL6: 0 | AN6: 0 | AP6: 0 | AR6: 0 | AT6: 0 | AV6: 0 | AX6: 0 | AZ6: 0 | BB6: 0 | BD6: 0 | BF6: 0 | BH6: 0 | BJ6: 0 | BL6: 0 | BN6: 0 | BP6: 0 | BR6: 0 | BT6: 0 | BV6: 0 | BW6: Septimo | BX6: 0 | BZ6: 0 | CA6: SEPTIMO | CB6: 0 | CD6: 0 | CF6: 0 | CM6: =SUMIFS('2019'!H:H,'2019'!A:A,"-81 kg",'2019'!D:D,'-81 kg'!H6,'2019'!E:E,'-81 kg'!I6) -> 50
C7: 3 | D7: MAD | H7: CAMINERO SASTRE | I7: Alvaro | J7: 10 | K7: 10 | L7: 0 | M7: 0 | N7: 0 | P7: 0 | R7: 0 | T7: 0 | V7: 0 | X7: 0 | Z7: 0 | AB7: 0 | AD7: 0 | AF7: 0 | AH7: 0 | AJ7: 0 | AL7: 0 | AN7: 0 | AP7: 0 | AR7: 0 | AT7: 0 | AV7: 0 | AX7: 0 | AZ7: 0 | BB7: 0 | BD7: 0 | BF7: 0 | BH7: 0 | BJ7: 0 | BL7: 0 | BN7: 0 | BP7: 0 | BR7: 0 | BT7: 0 | BV7: 0 | BX7: 0 | BZ7: 0 | CA7: QUINTO | CB7: 0 | CD7: 0 | CF7: 0 | CM7: =SUMIFS('2019'!H:H,'2019'!A:A,"-81 kg",'2019'!D:D,'-81 kg'!H7,'2019'!E:E,'-81 kg'!I7) -> 20
C8: 4 | D8: PVA | H8: MENDIOLA IZQUIETA | I8: JOSE MARIA | J8: 7.5 | K8: 7.5 | L8: 0 | M8: 0 | N8: 0 | P8: 0 | R8: 0 | T8: 0 | V8: 0 | X8: 0 | Z8: 0 | AB8: 0 | AD8: 0 | AF8: 0 | AH8: 0 | AJ8: 0 | AL8: 0 | AN8: 0 | AP8: 0 | AR8: 0 | AT8: 0 | AV8: 0 | AX8: 0 | AZ8: 0 | BB8: 0 | BD8: 0 | BF8: 0 | BH8: 0 | BJ8: 0 | BL8: 0 | BN8: 0 | BP8: 0 | BR8: 0 | BT8: 0 | BV8: 0 | BX8: 0 | BZ8: 0 | CB8: 0 | CD8: 0 | CF8: 0 | CM8: =SUMIFS('2019'!H:H,'2019'!A:A,"-81 kg",'2019'!D:D,'-81 kg'!H8,'2019'!E:E,'-81 kg'!I8) -> 15
C9: 5 | D9: VAL | H9: KALAVEGASHISVILI | I9: SHALVA | J9: 0 | K9: 0 | L9: 0 | M9: 0 | N9: 0 | P9: 0 | R9: 0 | T9: 0 | V9: 0 | X9: 0 | Z9: 0 | AB9: 0 | AD9: 0 | AF9: 0 | AH9: 0 | AJ9: 0 | AL9: 0 | AN9: 0 | AP9: 0 | AR9: 0 | AT9: 0 | AV9: 0 | AX9: 0 | AZ9: 0 | BB9: 0 | BD9: 0 | BF9: 0 | BH9: 0 | BJ9: 0 | BL9: 0 | BN9: 0 | BP9: 0 | BR9: 0 | BT9: 0 | BV9: 0 | BX9: 0 | BZ9: 0 | CA9: QUINTO | CB9: 0 | CD9: 0 | CF9: 0 | CM9: =SUMIFS('2019'!H:H,'2019'!A:A,"-81 kg",'2019'!D:D,'-81 kg'!H9,'2019'!E:E,'-81 kg'!I9) -> 0
C10: 5 | J10: 0 | K10: 0 | L10: 0 | M10: 0 | N10: 0 | P10: 0 | R10: 0 | T10: 0 | V10: 0 | X10: 0 | Z10: 0 | AB10: 0 | AD10: 0 | AF10: 0 | AH10: 0 | AJ10: 0 | AL10: 0 | AN10: 0 | AP10: 0 | AR10: 0 | AT10: 0 | AV10: 0 | AX10: 0 | AZ10: 0 | BB10: 0 | BD10: 0 | BF10: 0 | BH10: 0 | BJ10: 0 | BL10: 0 | BN10: 0 | BP10: 0 | BR10: 0 | BT10: 0 | BV10: 0 | BX10: 0 | BZ10: 0 | CB10: 0 | CD10: 0 | CF10: 0 | CM10: =SUMIFS('2019'!H:H,'2019'!A:A,"-81 kg",'2019'!D:D,'-81 kg'!H10,'2019'!E:E,'-81 kg'!I10) -> 0
C11: 5 | J11: 0 | K11: 0 | L11: 0 | M11: 0 | N11: 0 | P11: 0 | R11: 0 | T11: 0 | V11: 0 | X11: 0 | Z11: 0 | AB11: 0 | AD11: 0 | AF11: 0 | AH11: 0 | AJ11: 0 | AL11: 0 | AN11: 0 | AP11: 0 | AR11: 0 | AT11: 0 | AV11: 0 | AX11: 0 | AZ11: 0 | BB11: 0 | BD11: 0 | BF11: 0 | BH11: 0 | BJ11: 0 | BL11: 0 | BN11: 0 | BP11: 0 | BR11: 0 | BT11: 0 | BV11: 0 | BX11: 0 | BZ11: 0 | CB11: 0 | CD11: 0 | CF11: 0 | CM11: =SUMIFS('2019'!H:H,'2019'!A:A,"-81 kg",'2019'!D:D,'-81 kg'!H11,'2019'!E:E,'-81 kg'!I11) -> 0
C12: 5 | J12: 0 | K12: 0 | L12: 0 | M12: 0 | N12: 0 | P12: 0 | R12: 0 | T12: 0 | V12: 0 | X12: 0 | Z12: 0 | AB12: 0 | AD12: 0 | AF12: 0 | AH12: 0 | AJ12: 0 | AL12: 0 | AN12: 0 | AP12: 0 | AR12: 0 | AT12: 0 | AV12: 0 | AX12: 0 | AZ12: 0 | BB12: 0 | BD12: 0 | BF12: 0 | BH12: 0 | BJ12: 0 | BL12: 0 | BN12: 0 | BP12: 0 | BR12: 0 | BT12: 0 | BV12: 0 | BX12: 0 | BZ12: 0 | CB12: 0 | CD12: 0 | CF12: 0 | CM12: =SUMIFS('2019'!H:H,'2019'!A:A,"-81 kg",'2019'!D:D,'-81 kg'!H12,'2019'!E:E,'-81 kg'!I12) -> 0
C13: 5 | J13: 0 | K13: 0 | L13: 0 | M13: 0 | N13: 0 | P13: 0 | R13: 0 | T13: 0 | V13: 0 | X13: 0 | Z13: 0 | AB13: 0 | AD13: 0 | AF13: 0 | AH13: 0 | AJ13: 0 | AL13: 0 | AN13: 0 | AP13: 0 | AR13: 0 | AT13: 0 | AV13: 0 | AX13: 0 | AZ13: 0 | BB13: 0 | BD13: 0 | BF13: 0 | BH13: 0 | BJ13: 0 | BL13: 0 | BN13: 0 | BP13: 0 | BR13: 0 | BT13: 0 | BV13: 0 | BX13: 0 | BZ13: 0 | CB13: 0 | CD13: 0 | CF13: 0 | CM13: =SUMIFS('2019'!H:H,'2019'!A:A,"-81 kg",'2019'!D:D,'-81 kg'!H13,'2019'!E:E,'-81 kg'!I13) -> 0
C14: 5 | J14: 0 | K14: 0 | L14: 0 | M14: 0 | N14: 0 | P14: 0 | R14: 0 | T14: 0 | V14: 0 | X14: 0 | Z14: 0 | AB14: 0 | AD14: 0 | AF14: 0 | AH14: 0 | AJ14: 0 | AL14: 0 | AN14: 0 | AP14: 0 | AR14: 0 | AT14: 0 | AV14: 0 | AX14: 0 | AZ14: 0 | BB14: 0 | BD14: 0 | BF14: 0 | BH14: 0 | BJ14: 0 | BL14: 0 | BN14: 0 | BP14: 0 | BR14: 0 | BT14: 0 | BV14: 0 | BX14: 0 | BZ14: 0 | CB14: 0 | CD14: 0 | CF14: 0 | CM14: =SUMIFS('2019'!H:H,'2019'!A:A,"-81 kg",'2019'!D:D,'-81 kg'!H14,'2019'!E:E,'-81 kg'!I14) -> 0
C15: 5 | J15: 0 | K15: 0 | L15: 0 | M15: 0 | N15: 0 | P15: 0 | R15: 0 | T15: 0 | V15: 0 | X15: 0 | Z15: 0 | AB15: 0 | AD15: 0 | AF15: 0 | AH15: 0 | AJ15: 0 | AL15: 0 | AN15: 0 | AP15: 0 | AR15: 0 | AT15: 0 | AV15: 0 | AX15: 0 | AZ15: 0 | BB15: 0 | BD15: 0 | BF15: 0 | BH15: 0 | BJ15: 0 | BL15: 0 | BN15: 0 | BP15: 0 | BR15: 0 | BT15: 0 | BV15: 0 | BX15: 0 | BZ15: 0 | CB15: 0 | CD15: 0 | CF15: 0 | CM15: =SUMIFS('2019'!H:H,'2019'!A:A,"-81 kg",'2019'!D:D,'-81 kg'!H15,'2019'!E:E,'-81 kg'!I15) -> 0
C16: 5 | J16: 0 | K16: 0 | L16: 0 | M16: 0 | N16: 0 | P16: 0 | R16: 0 | T16: 0 | V16: 0 | X16: 0 | Z16: 0 | AB16: 0 | AD16: 0 | AF16: 0 | AH16: 0 | AJ16: 0 | AL16: 0 | AN16: 0 | AP16: 0 | AR16: 0 | AT16: 0 | AV16: 0 | AX16: 0 | AZ16: 0 | BB16: 0 | BD16: 0 | BF16: 0 | BH16: 0 | BJ16: 0 | BL16: 0 | BN16: 0 | BP16: 0 | BR16: 0 | BT16: 0 | BV16: 0 | BX16: 0 | BZ16: 0 | CB16: 0 | CD16: 0 | CF16: 0 | CM16: =SUMIFS('2019'!H:H,'2019'!A:A,"-81 kg",'2019'!D:D,'-81 kg'!H16,'2019'!E:E,'-81 kg'!I16) -> 0
C17: 5 | J17: 0 | K17: 0 | L17: 0 | M17: 0 | N17: 0 | P17: 0 | R17: 0 | T17: 0 | V17: 0 | X17: 0 | Z17: 0 | AB17: 0 | AD17: 0 | AF17: 0 | AH17: 0 | AJ17: 0 | AL17: 0 | AN17: 0 | AP17: 0 | AR17: 0 | AT17: 0 | AV17: 0 | AX17: 0 | AZ17: 0 | BB17: 0 | BD17: 0 | BF17: 0 | BH17: 0 | BJ17: 0 | BL17: 0 | BN17: 0 | BP17: 0 | BR17: 0 | BT17: 0 | BV17: 0 | BX17: 0 | BZ17: 0 | CB17: 0 | CD17: 0 | CF17: 0 | CM17: =SUMIFS('2019'!H:H,'2019'!A:A,"-81 kg",'2019'!D:D,'-81 kg'!H17,'2019'!E:E,'-81 kg'!I17) -> 0
C18: 5 | J18: 0 | K18: 0 | L18: 0 | M18: 0 | N18: 0 | P18: 0 | R18: 0 | T18: 0 | V18: 0 | X18: 0 | Z18: 0 | AB18: 0 | AD18: 0 | AF18: 0 | AH18: 0 | AJ18: 0 | AL18: 0 | AN18: 0 | AP18: 0 | AR18: 0 | AT18: 0 | AV18: 0 | AX18: 0 | AZ18: 0 | BB18: 0 | BD18: 0 | BF18: 0 | BH18: 0 | BJ18: 0 | BL18: 0 | BN18: 0 | BP18: 0 | BR18: 0 | BT18: 0 | BV18: 0 | BX18: 0 | BZ18: 0 | CB18: 0 | CD18: 0 | CF18: 0 | CM18: =SUMIFS('2019'!H:H,'2019'!A:A,"-81 kg",'2019'!D:D,'-81 kg'!H18,'2019'!E:E,'-81 kg'!I18) -> 0
C19: 5 | J19: 0 | K19: 0 | L19: 0 | M19: 0 | N19: 0 | P19: 0 | R19: 0 | T19: 0 | V19: 0 | X19: 0 | Z19: 0 | AB19: 0 | AD19: 0 | AF19: 0 | AH19: 0 | AJ19: 0 | AL19: 0 | AN19: 0 | AP19: 0 | AR19: 0 | AT19: 0 | AV19: 0 | AX19: 0 | AZ19: 0 | BB19: 0 | BD19: 0 | BF19: 0 | BH19: 0 | BJ19: 0 | BL19: 0 | BN19: 0 | BP19: 0 | BR19: 0 | BT19: 0 | BV19: 0 | BX19: 0 | BZ19: 0 | CB19: 0 | CD19: 0 | CF19: 0 | CM19: =SUMIFS('2019'!H:H,'2019'!A:A,"-81 kg",'2019'!D:D,'-81 kg'!H19,'2019'!E:E,'-81 kg'!I19) -> 0
C20: 5 | J20: 0 | K20: 0 | L20: 0 | M20: 0 | N20: 0 | P20: 0 | R20: 0 | T20: 0 | V20: 0 | X20: 0 | Z20: 0 | AB20: 0 | AD20: 0 | AF20: 0 | AH20: 0 | AJ20: 0 | AL20: 0 | AN20: 0 | AP20: 0 | AR20: 0 | AT20: 0 | AV20: 0 | AX20: 0 | AZ20: 0 | BB20: 0 | BD20: 0 | BF20: 0 | BH20: 0 | BJ20: 0 | BL20: 0 | BN20: 0 | BP20: 0 | BR20: 0 | BT20: 0 | BV20: 0 | BX20: 0 | BZ20: 0 | CB20: 0 | CD20: 0 | CF20: 0 | CM20: =SUMIFS('2019'!H:H,'2019'!A:A,"-81 kg",'2019'!D:D,'-81 kg'!H20,'2019'!E:E,'-81 kg'!I20) -> 0
C21: 5 | J21: 0 | K21: 0 | L21: 0 | M21: 0 | N21: 0 | P21: 0 | R21: 0 | T21: 0 | V21: 0 | X21: 0 | Z21: 0 | AB21: 0 | AD21: 0 | AF21: 0 | AH21: 0 | AJ21: 0 | AL21: 0 | AN21: 0 | AP21: 0 | AR21: 0 | AT21: 0 | AV21: 0 | AX21: 0 | AZ21: 0 | BB21: 0 | BD21: 0 | BF21: 0 | BH21: 0 | BJ21: 0 | BL21: 0 | BN21: 0 | BP21: 0 | BR21: 0 | BT21: 0 | BV21: 0 | BX21: 0 | BZ21: 0 | CB21: 0 | CD21: 0 | CF21: 0 | CM21: =SUMIFS('2019'!H:H,'2019'!A:A,"-81 kg",'2019'!D:D,'-81 kg'!H21,'2019'!E:E,'-81 kg'!I21) -> 0
C22: 5 | J22: 0 | K22: 0 | L22: 0 | M22: 0 | N22: 0 | P22: 0 | R22: 0 | T22: 0 | V22: 0 | X22: 0 | Z22: 0 | AB22: 0 | AD22: 0 | AF22: 0 | AH22: 0 | AJ22: 0 | AL22: 0 | AN22: 0 | AP22: 0 | AR22: 0 | AT22: 0 | AV22: 0 | AX22: 0 | AZ22: 0 | BB22: 0 | BD22: 0 | BF22: 0 | BH22: 0 | BJ22: 0 | BL22: 0 | BN22: 0 | BP22: 0 | BR22: 0 | BT22: 0 | BV22: 0 | BX22: 0 | BZ22: 0 | CB22: 0 | CD22: 0 | CF22: 0 | CM22: =SUMIFS('2019'!H:H,'2019'!A:A,"-81 kg",'2019'!D:D,'-81 kg'!H22,'2019'!E:E,'-81 kg'!I22) -> 0
C23: 5 | J23: 0 | K23: 0 | L23: 0 | M23: 0 | N23: 0 | P23: 0 | R23: 0 | T23: 0 | V23: 0 | X23: 0 | Z23: 0 | AB23: 0 | AD23: 0 | AF23: 0 | AH23: 0 | AJ23: 0 | AL23: 0 | AN23: 0 | AP23: 0 | AR23: 0 | AT23: 0 | AV23: 0 | AX23: 0 | AZ23: 0 | BB23: 0 | BD23: 0 | BF23: 0 | BH23: 0 | BJ23: 0 | BL23: 0 | BN23: 0 | BP23: 0 | BR23: 0 | BT23: 0 | BV23: 0 | BX23: 0 | BZ23: 0 | CB23: 0 | CD23: 0 | CF23: 0 | CM23: =SUMIFS('2019'!H:H,'2019'!A:A,"-81 kg",'2019'!D:D,'-81 kg'!H23,'2019'!E:E,'-81 kg'!I23) -> 0
C24: 5 | J24: 0 | K24: 0 | L24: 0 | M24: 0 | N24: 0 | P24: 0 | R24: 0 | T24: 0 | V24: 0 | X24: 0 | Z24: 0 | AB24: 0 | AD24: 0 | AF24: 0 | AH24: 0 | AJ24: 0 | AL24: 0 | AN24: 0 | AP24: 0 | AR24: 0 | AT24: 0 | AV24: 0 | AX24: 0 | AZ24: 0 | BB24: 0 | BD24: 0 | BF24: 0 | BH24: 0 | BJ24: 0 | BL24: 0 | BN24: 0 | BP24: 0 | BR24: 0 | BT24: 0 | BV24: 0 | BX24: 0 | BZ24: 0 | CB24: 0 | CD24: 0 | CF24: 0 | CM24: =SUMIFS('2019'!H:H,'2019'!A:A,"-81 kg",'2019'!D:D,'-81 kg'!H24,'2019'!E:E,'-81 kg'!I24) -> 0
C25: 5 | J25: 0 | K25: 0 | L25: 0 | M25: 0 | N25: 0 | P25: 0 | R25: 0 | T25: 0 | V25: 0 | X25: 0 | Z25: 0 | AB25: 0 | AD25: 0 | AF25: 0 | AH25: 0 | AJ25: 0 | AL25: 0 | AN25: 0 | AP25: 0 | AR25: 0 | AT25: 0 | AV25: 0 | AX25: 0 | AZ25: 0 | BB25: 0 | BD25: 0 | BF25: 0 | BH25: 0 | BJ25: 0 | BL25: 0 | BN25: 0 | BP25: 0 | BR25: 0 | BT25: 0 | BV25: 0 | BX25: 0 | BZ25: 0 | CB25: 0 | CD25: 0 | CF25: 0 | CM25: =SUMIFS('2019'!H:H,'2019'!A:A,"-81 kg",'2019'!D:D,'-81 kg'!H25,'2019'!E:E,'-81 kg'!I25) -> 0
C26: 5 | J26: 0 | K26: 0 | L26: 0 | M26: 0 | N26: 0 | P26: 0 | R26: 0 | T26: 0 | V26: 0 | X26: 0 | Z26: 0 | AB26: 0 | AD26: 0 | AF26: 0 | AH26: 0 | AJ26: 0 | AL26: 0 | AN26: 0 | AP26: 0 | AR26: 0 | AT26: 0 | AV26: 0 | AX26: 0 | AZ26: 0 | BB26: 0 | BD26: 0 | BF26: 0 | BH26: 0 | BJ26: 0 | BL26: 0 | BN26: 0 | BP26: 0 | BR26: 0 | BT26: 0 | BV26: 0 | BX26: 0 | BZ26: 0 | CB26: 0 | CD26: 0 | CF26: 0 | CM26: =SUMIFS('2019'!H:H,'2019'!A:A,"-81 kg",'2019'!D:D,'-81 kg'!H26,'2019'!E:E,'-81 kg'!I26) -> 0
C27: 5 | J27: 0 | K27: 0 | L27: 0 | M27: 0 | N27: 0 | P27: 0 | R27: 0 | T27: 0 | V27: 0 | X27: 0 | Z27: 0 | AB27: 0 | AD27: 0 | AF27: 0 | AH27: 0 | AJ27: 0 | AL27: 0 | AN27: 0 | AP27: 0 | AR27: 0 | AT27: 0 | AV27: 0 | AX27: 0 | AZ27: 0 | BB27: 0 | BD27: 0 | BF27: 0 | BH27: 0 | BJ27: 0 | BL27: 0 | BN27: 0 | BP27: 0 | BR27: 0 | BT27: 0 | BV27: 0 | BX27: 0 | BZ27: 0 | CB27: 0 | CD27: 0 | CF27: 0 | CM27: =SUMIFS('2019'!H:H,'2019'!A:A,"-81 kg",'2019'!D:D,'-81 kg'!H27,'2019'!E:E,'-81 kg'!I27) -> 0
C28: 5 | J28: 0 | K28: 0 | L28: 0 | M28: 0 | N28: 0 | P28: 0 | R28: 0 | T28: 0 | V28: 0 | X28: 0 | Z28: 0 | AB28: 0 | AD28: 0 | AF28: 0 | AH28: 0 | AJ28: 0 | AL28: 0 | AN28: 0 | AP28: 0 | AR28: 0 | AT28: 0 | AV28: 0 | AX28: 0 | AZ28: 0 | BB28: 0 | BD28: 0 | BF28: 0 | BH28: 0 | BJ28: 0 | BL28: 0 | BN28: 0 | BP28: 0 | BR28: 0 | BT28: 0 | BV28: 0 | BX28: 0 | BZ28: 0 | CB28: 0 | CD28: 0 | CF28: 0 | CM28: =SUMIFS('2019'!H:H,'2019'!A:A,"-81 kg",'2019'!D:D,'-81 kg'!H28,'2019'!E:E,'-81 kg'!I28) -> 0
C29: 5 | J29: 0 | K29: 0 | L29: 0 | M29: 0 | N29: 0 | P29: 0 | R29: 0 | T29: 0 | V29: 0 | X29: 0 | Z29: 0 | AB29: 0 | AD29: 0 | AF29: 0 | AH29: 0 | AJ29: 0 | AL29: 0 | AN29: 0 | AP29: 0 | AR29: 0 | AT29: 0 | AV29: 0 | AX29: 0 | AZ29: 0 | BB29: 0 | BD29: 0 | BF29: 0 | BH29: 0 | BJ29: 0 | BL29: 0 | BN29: 0 | BP29: 0 | BR29: 0 | BT29: 0 | BV29: 0 | BX29: 0 | BZ29: 0 | CB29: 0 | CD29: 0 | CF29: 0 | CM29: =SUMIFS('2019'!H:H,'2019'!A:A,"-81 kg",'2019'!D:D,'-81 kg'!H29,'2019'!E:E,'-81 kg'!I29) -> 0
C30: 5 | J30: 0 | K30: 0 | L30: 0 | M30: 0 | N30: 0 | P30: 0 | R30: 0 | T30: 0 | V30: 0 | X30: 0 | Z30: 0 | AB30: 0 | AD30: 0 | AF30: 0 | AH30: 0 | AJ30: 0 | AL30: 0 | AN30: 0 | AP30: 0 | AR30: 0 | AT30: 0 | AV30: 0 | AX30: 0 | AZ30: 0 | BB30: 0 | BD30: 0 | BF30: 0 | BH30: 0 | BJ30: 0 | BL30: 0 | BN30: 0 | BP30: 0 | BR30: 0 | BT30: 0 | BV30: 0 | BX30: 0 | BZ30: 0 | CB30: 0 | CD30: 0 | CF30: 0 | CM30: =SUMIFS('2019'!H:H,'2019'!A:A,"-81 kg",'2019'!D:D,'-81 kg'!H30,'2019'!E:E,'-81 kg'!I30) -> 0
C31: 5 | J31: 0 | K31: 0 | L31: 0 | M31: 0 | N31: 0 | P31: 0 | R31: 0 | T31: 0 | V31: 0 | X31: 0 | Z31: 0 | AB31: 0 | AD31: 0 | AF31: 0 | AH31: 0 | AJ31: 0 | AL31: 0 | AN31: 0 | AP31: 0 | AR31: 0 | AT31: 0 | AV31: 0 | AX31: 0 | AZ31: 0 | BB31: 0 | BD31: 0 | BF31: 0 | BH31: 0 | BJ31: 0 | BL31: 0 | BN31: 0 | BP31: 0 | BR31: 0 | BT31: 0 | BV31: 0 | BX31: 0 | BZ31: 0 | CB31: 0 | CD31: 0 | CF31: 0 | CM31: =SUMIFS('2019'!H:H,'2019'!A:A,"-81 kg",'2019'!D:D,'-81 kg'!H31,'2019'!E:E,'-81 kg'!I31) -> 0
C32: 5 | J32: 0 | K32: 0 | L32: 0 | M32: 0 | N32: 0 | P32: 0 | R32: 0 | T32: 0 | V32: 0 | X32: 0 | Z32: 0 | AB32: 0 | AD32: 0 | AF32: 0 | AH32: 0 | AJ32: 0 | AL32: 0 | AN32: 0 | AP32: 0 | AR32: 0 | AT32: 0 | AV32: 0 | AX32: 0 | AZ32: 0 | BB32: 0 | BD32: 0 | BF32: 0 | BH32: 0 | BJ32: 0 | BL32: 0 | BN32: 0 | BP32: 0 | BR32: 0 | BT32: 0 | BV32: 0 | BX32: 0 | BZ32: 0 | CB32: 0 | CD32: 0 | CF32: 0 | CM32: =SUMIFS('2019'!H:H,'2019'!A:A,"-81 kg",'2019'!D:D,'-81 kg'!H32,'2019'!E:E,'-81 kg'!I32) -> 0
C33: 5 | J33: 0 | K33: 0 | L33: 0 | M33: 0 | N33: 0 | P33: 0 | R33: 0 | T33: 0 | U33: 0 | V33: 0 | X33: 0 | Z33: 0 | AB33: 0 | AD33: 0 | AF33: 0 | AH33: 0 | AJ33: 0 | AL33: 0 | AN33: 0 | AP33: 0 | AR33: 0 | AT33: 0 | AV33: 0 | AX33: 0 | AZ33: 0 | BB33: 0 | BD33: 0 | BF33: 0 | BH33: 0 | BJ33: 0 | BL33: 0 | BN33: 0 | BP33: 0 | BR33: 0 | BT33: 0 | BV33: 0 | BX33: 0 | BZ33: 0 | CB33: 0 | CD33: 0 | CF33: 0 | CM33: =SUMIFS('2019'!H:H,'2019'!A:A,"-81 kg",'2019'!D:D,'-81 kg'!H33,'2019'!E:E,'-81 kg'!I33) -> 0
C34: 5 | J34: 0 | K34: 0 | L34: 0 | M34: 0 | N34: 0 | P34: 0 | R34: 0 | T34: 0 | V34: 0 | X34: 0 | Z34: 0 | AB34: 0 | AD34: 0 | AF34: 0 | AH34: 0 | AJ34: 0 | AL34: 0 | AN34: 0 | AP34: 0 | AR34: 0 | AT34: 0 | AV34: 0 | AX34: 0 | AZ34: 0 | BB34: 0 | BD34: 0 | BF34: 0 | BH34: 0 | BJ34: 0 | BL34: 0 | BN34: 0 | BP34: 0 | BR34: 0 | BT34: 0 | BV34: 0 | BX34: 0 | BZ34: 0 | CB34: 0 | CD34: 0 | CF34: 0 | CM34: =SUMIFS('2019'!H:H,'2019'!A:A,"-81 kg",'2019'!D:D,'-81 kg'!H34,'2019'!E:E,'-81 kg'!I34) -> 0
C35: 5 | J35: 0 | K35: 0 | L35: 0 | M35: 0 | N35: 0 | P35: 0 | R35: 0 | T35: 0 | V35: 0 | X35: 0 | Z35: 0 | AB35: 0 | AD35: 0 | AF35: 0 | AH35: 0 | AJ35: 0 | AL35: 0 | AN35: 0 | AP35: 0 | AR35: 0 | AT35: 0 | AV35: 0 | AX35: 0 | AZ35: 0 | BB35: 0 | BD35: 0 | BF35: 0 | BH35: 0 | BJ35: 0 | BL35: 0 | BN35: 0 | BP35: 0 | BR35: 0 | BT35: 0 | BV35: 0 | BX35: 0 | BZ35: 0 | CB35: 0 | CD35: 0 | CF35: 0 | CM35: =SUMIFS('2019'!H:H,'2019'!A:A,"-81 kg",'2019'!D:D,'-81 kg'!H35,'2019'!E:E,'-81 kg'!I35) -> 0
C36: 5 | J36: 0 | K36: 0 | L36: 0 | M36: 0 | N36: 0 | P36: 0 | R36: 0 | T36: 0 | V36: 0 | X36: 0 | Z36: 0 | AB36: 0 | AD36: 0 | AF36: 0 | AH36: 0 | AJ36: 0 | AL36: 0 | AN36: 0 | AP36: 0 | AR36: 0 | AT36: 0 | AV36: 0 | AX36: 0 | AZ36: 0 | BB36: 0 | BD36: 0 | BF36: 0 | BH36: 0 | BJ36: 0 | BL36: 0 | BN36: 0 | BP36: 0 | BR36: 0 | BT36: 0 | BV36: 0 | BX36: 0 | BZ36: 0 | CB36: 0 | CD36: 0 | CF36: 0 | CM36: =SUMIFS('2019'!H:H,'2019'!A:A,"-81 kg",'2019'!D:D,'-81 kg'!H36,'2019'!E:E,'-81 kg'!I36) -> 0
C37: 5 | J37: 0 | K37: 0 | L37: 0 | M37: 0 | N37: 0 | P37: 0 | R37: 0 | T37: 0 | V37: 0 | X37: 0 | Z37: 0 | AB37: 0 | AD37: 0 | AF37: 0 | AH37: 0 | AJ37: 0 | AL37: 0 | AN37: 0 | AP37: 0 | AR37: 0 | AT37: 0 | AV37: 0 | AX37: 0 | AZ37: 0 | BB37: 0 | BD37: 0 | BF37: 0 | BH37: 0 | BJ37: 0 | BL37: 0 | BN37: 0 | BP37: 0 | BR37: 0 | BT37: 0 | BV37: 0 | BX37: 0 | BZ37: 0 | CB37: 0 | CD37: 0 | CF37: 0 | CM37: =SUMIFS('2019'!H:H,'2019'!A:A,"-81 kg",'2019'!D:D,'-81 kg'!H37,'2019'!E:E,'-81 kg'!I37) -> 0
C38: 5 | J38: 0 | K38: 0 | L38: 0 | M38: 0 | N38: 0 | P38: 0 | R38: 0 | T38: 0 | V38: 0 | X38: 0 | Z38: 0 | AB38: 0 | AD38: 0 | AF38: 0 | AH38: 0 | AJ38: 0 | AL38: 0 | AN38: 0 | AP38: 0 | AR38: 0 | AT38: 0 | AV38: 0 | AX38: 0 | AZ38: 0 | BB38: 0 | BD38: 0 | BF38: 0 | BH38: 0 | BJ38: 0 | BL38: 0 | BN38: 0 | BP38: 0 | BR38: 0 | BT38: 0 | BV38: 0 | BX38: 0 | BZ38: 0 | CB38: 0 | CD38: 0 | CF38: 0 | CM38: =SUMIFS('2019'!H:H,'2019'!A:A,"-81 kg",'2019'!D:D,'-81 kg'!H38,'2019'!E:E,'-81 kg'!I38) -> 0
C39: 5 | J39: 0 | K39: 0 | L39: 0 | M39: 0 | N39: 0 | P39: 0 | R39: 0 | T39: 0 | V39: 0 | X39: 0 | Z39: 0 | AB39: 0 | AD39: 0 | AF39: 0 | AH39: 0 | AJ39: 0 | AL39: 0 | AN39: 0 | AP39: 0 | AR39: 0 | AT39: 0 | AV39: 0 | AX39: 0 | AZ39: 0 | BB39: 0 | BD39: 0 | BF39: 0 | BH39: 0 | BJ39: 0 | BL39: 0 | BN39: 0 | BP39: 0 | BR39: 0 | BT39: 0 | BV39: 0 | BX39: 0 | BZ39: 0 | CB39: 0 | CD39: 0 | CF39: 0 | CM39: =SUMIFS('2019'!H:H,'2019'!A:A,"-81 kg",'2019'!D:D,'-81 kg'!H39,'2019'!E:E,'-81 kg'!I39) -> 0
C40: 5 | J40: 0 | K40: 0 | L40: 0 | M40: 0 | N40: 0 | P40: 0 | R40: 0 | T40: 0 | V40: 0 | X40: 0 | Z40: 0 | AB40: 0 | AD40: 0 | AF40: 0 | AH40: 0 | AJ40: 0 | AL40: 0 | AN40: 0 | AP40: 0 | AR40: 0 | AT40: 0 | AV40: 0 | AX40: 0 | AZ40: 0 | BB40: 0 | BD40: 0 | BF40: 0 | BH40: 0 | BJ40: 0 | BL40: 0 | BN40: 0 | BP40: 0 | BR40: 0 | BT40: 0 | BV40: 0 | BX40: 0 | BZ40: 0 | CB40: 0 | CD40: 0 | CF40: 0 | CM40: =SUMIFS('2019'!H:H,'2019'!A:A,"-81 kg",'2019'!D:D,'-81 kg'!H40,'2019'!E:E,'-81 kg'!I40) -> 0
C41: 5 | J41: 0 | K41: 0 | L41: 0 | M41: 0 | N41: 0 | P41: 0 | R41: 0 | T41: 0 | V41: 0 | X41: 0 | Z41: 0 | AB41: 0 | AD41: 0 | AF41: 0 | AH41: 0 | AJ41: 0 | AL41: 0 | AN41: 0 | AP41: 0 | AR41: 0 | AT41: 0 | AV41: 0 | AX41: 0 | AZ41: 0 | BB41: 0 | BD41: 0 | BF41: 0 | BH41: 0 | BJ41: 0 | BL41: 0 | BN41: 0 | BP41: 0 | BR41: 0 | BT41: 0 | BV41: 0 | BX41: 0 | BZ41: 0 | CB41: 0 | CD41: 0 | CF41: 0 | CM41: =SUMIFS('2019'!H:H,'2019'!A:A,"-81 kg",'2019'!D:D,'-81 kg'!H41,'2019'!E:E,'-81 kg'!I41) -> 0
C42: 5 | J42: 0 | K42: 0 | L42: 0 | M42: 0 | N42: 0 | P42: 0 | R42: 0 | T42: 0 | V42: 0 | X42: 0 | Z42: 0 | AB42: 0 | AD42: 0 | AF42: 0 | AH42: 0 | AJ42: 0 | AL42: 0 | AN42: 0 | AP42: 0 | AR42: 0 | AT42: 0 | AV42: 0 | AX42: 0 | AZ42: 0 | BB42: 0 | BD42: 0 | BF42: 0 | BH42: 0 | BJ42: 0 | BL42: 0 | BN42: 0 | BP42: 0 | BR42: 0 | BT42: 0 | BV42: 0 | BX42: 0 | BZ42: 0 | CB42: 0 | CD42: 0 | CF42: 0 | CM42: =SUMIFS('2019'!H:H,'2019'!A:A,"-81 kg",'2019'!D:D,'-81 kg'!H42,'2019'!E:E,'-81 kg'!I42) -> 0
C43: 5 | J43: 0 | K43: 0 | L43: 0 | M43: 0 | N43: 0 | P43: 0 | R43: 0 | T43: 0 | V43: 0 | X43: 0 | Z43: 0 | AB43: 0 | AD43: 0 | AF43: 0 | AH43: 0 | AJ43: 0 | AL43: 0 | AN43: 0 | AP43: 0 | AR43: 0 | AT43: 0 | AV43: 0 | AX43: 0 | AZ43: 0 | BB43: 0 | BD43: 0 | BF43: 0 | BH43: 0 | BJ43: 0 | BL43: 0 | BN43: 0 | BP43: 0 | BR43: 0 | BT43: 0 | BV43: 0 | BX43: 0 | BZ43: 0 | CB43: 0 | CD43: 0 | CF43: 0 | CM43: =SUMIFS('2019'!H:H,'2019'!A:A,"-81 kg",'2019'!D:D,'-81 kg'!H43,'2019'!E:E,'-81 kg'!I43) -> 0
C44: 5 | J44: 0 | K44: 0 | L44: 0 | M44: 0 | N44: 0 | P44: 0 | R44: 0 | T44: 0 | V44: 0 | X44: 0 | Z44: 0 | AB44: 0 | AD44: 0 | AF44: 0 | AH44: 0 | AJ44: 0 | AL44: 0 | AN44: 0 | AP44: 0 | AR44: 0 | AT44: 0 | AV44: 0 | AX44: 0 | AZ44: 0 | BB44: 0 | BD44: 0 | BF44: 0 | BH44: 0 | BJ44: 0 | BL44: 0 | BN44: 0 | BP44: 0 | BR44: 0 | BT44: 0 | BV44: 0 | BX44: 0 | BZ44: 0 | CB44: 0 | CD44: 0 | CF44: 0 | CM44: =SUMIFS('2019'!H:H,'2019'!A:A,"-81 kg",'2019'!D:D,'-81 kg'!H44,'2019'!E:E,'-81 kg'!I44) -> 0

Sheet -90 kg (hidden)
C2: Ranking | D2: Nation | E2: Continent | F2: IJF ID | G2: Y.o B. | H2: FAMILY NAME | I2: Given name | J2: Total score
C3: Puesto | D3: Comunidad | E3: Continent | F3: España ID | G3: A. de N. | H3: APELLIDOS | I3: Nombre | J3: Ranking Nacional Absoluto | K3: Puntuación Año Anterior | L3: Clasificación Equipo Absoluto | O3: Master ABS | Q3: Campeonato Mundo | S3: Campeonato Europa | U3: Campeonato Europa S23 | W3: Gran Slam (Francia) | Y3: Grand Slam (Abu Dhabi) | AA3: GRAND SLAM BRASILIA | AC3: GRAND SLAM OSAKA | AK3: Gran Prix Croacia - ZAGREB | AM3: Gran Prix (Marruecos) | AO3: Gran Prix (La Haya) | AQ3: Gran Prix (Tunez) | AS3: Gran Prix (Duseldorf) | AU3: Gran Prix (China) | AW3: Gran Prix (Uzbekistan) | AY3: Gran Prix Budapest | BE3: Juegos Mediterraneo | BG3: Campeonato España | BI3: European Open (Odivelas) | BK3: European Open (Sofia) | BM3: European Open (Roma) | BO3: European Open (POLONIA) | BQ3: European Open (RUMANIA) | BS3: European Open (Glasgow) | BU3: Open Panamericano | CA3: European Cup Málaga | CO3: Puntuación Año Anterior
K4: 0.5 | L4: Oro | M4: Plata | N4: Bronce | O4: Medalla | P4: Puntos | Q4: Medalla | R4: Puntos | S4: Medalla | T4: Puntos | U4: Medalla | V4: Puntos | W4: Medalla | X4: Puntos | Y4: Medalla | Z4: Puntos | AA4: Medalla | AB4: Puntos | AC4: Medalla | AD4: Puntos | AE4: Medalla | AF4: Puntos | AG4: Medalla | AH4: Puntos | AI4: Medalla | AJ4: Puntos | AK4: Medalla | AL4: Puntos | AM4: Medalla | AN4: Puntos | AO4: Medalla | AP4: Puntos | AQ4: Medalla | AR4: Puntos | AS4: Medalla | AT4: Puntos | AU4: Medalla | AV4: Puntos | AW4: Medalla | AX4: Puntos | AY4: Medalla | AZ4: Puntos | BA4: Medalla | BB4: Puntos | BC4: Medalla | BD4: Puntos | BE4: Medalla | BF4: Puntos | BG4: Medalla | BH4: Puntos | BI4: Medalla | BJ4: Puntos | BK4: Medalla | BL4: Puntos | BM4: Medalla | BN4: Puntos | BO4: Medalla | BP4: Puntos | BQ4: Medalla | BR4: Puntos | BS4: Medalla | BT4: Puntos | BU4: Medalla | BV4: Puntos | BW4: Medalla | BX4: Puntos | BY4: Medalla | BZ4: Puntos | CA4: Medalla | CB4: Puntos | CC4: Medalla | CD4: Puntos | CE4: Medalla | CF4: Puntos | CO4: 1
C5: =RANK(J5,$J$5:$J$44,0) -> 1 | D5: GAL | H5: SHERAZADASHVILI SAKVARELIDZE | I5: NIKOLOZ | J5: =SUM(O5:CF5)+K5 -> 317.5 | K5: =CO5*50/100 -> 167.5 | L5: =COUNTIF(O5:CF5,$L$4) -> 2 | M5: =COUNTIF(O5:CF5,$M$4) -> 0 | N5: =COUNTIF(O5:CF5,$N$4) -> 0 | P5: =IF(O5="Oro",150,IF(O5="Plata",120,IF(O5="Bronce",100,IF(O5="Quinto",50,IF(O5="Septimo",30,0))))) -> 0 | R5: =IF(Q5="Oro",150,IF(Q5="Plata",120,IF(Q5="Bronce",100,IF(Q5="Quinto",50,IF(Q5="Septimo",30,0))))) -> 0 | T5: =IF(S5="Oro",100,IF(S5="Plata",85,IF(S5="Bronce",70,IF(S5="Quinto",30,IF(S5="Septimo",15,0))))) -> 0 | V5: =IF(U5="Oro",100,IF(U5="Plata",85,IF(U5="Bronce",70,IF(U5="Quinto",30,IF(U5="Septimo",15,0))))) -> 0 | X5: =IF(W5="Oro",75,IF(W5="Plata",60,IF(W5="Bronce",50,IF(W5="Quinto",20,IF(W5="Septimo",7,0))))) -> 0 | Y5: ORO | Z5: =IF(Y5="Oro",75,IF(Y5="Plata",60,IF(Y5="Bronce",50,IF(Y5="Quinto",20,IF(Y5="Septimo",7,0))))) -> 75 | AA5: Oro | AB5: =IF(AA5="Oro",75,IF(AA5="Plata",60,IF(AA5="Bronce",50,IF(AA5="Quinto",20,IF(AA5="Septimo",7,0))))) -> 75 | AD5: =IF(AC5="Oro",75,IF(AC5="Plata",60,IF(AC5="Bronce",50,IF(AC5="Quinto",20,IF(AC5="Septimo",7,0))))) -> 0 | AF5: =IF(AE5="Oro",75,IF(AE5="Plata",60,IF(AE5="Bronce",50,IF(AE5="Quinto",20,IF(AE5="Septimo",7,0))))) -> 0 | AH5: =IF(AG5="Oro",75,IF(AG5="Plata",60,IF(AG5="Bronce",50,IF(AG5="Quinto",20,IF(AG5="Septimo",7,0))))) -> 0 | AJ5: =IF(AI5="Oro",75,IF(AI5="Plata",60,IF(AI5="Bronce",50,IF(AI5="Quinto",20,IF(AI5="Septimo",7,0))))) -> 0 | AL5: =IF(AK5="Oro",60,IF(AK5="Plata",50,IF(AK5="Bronce",35,IF(AK5="Quinto",15,IF(AK5="Septimo",5,0))))) -> 0 | AN5: =IF(AM5="Oro",60,IF(AM5="Plata",50,IF(AM5="Bronce",35,IF(AM5="Quinto",15,IF(AM5="Septimo",5,0))))) -> 0 | AP5: =IF(AO5="Oro",60,IF(AO5="Plata",50,IF(AO5="Bronce",35,IF(AO5="Quinto",15,IF(AO5="Septimo",5,0))))) -> 0 | AR5: =IF(AQ5="Oro",60,IF(AQ5="Plata",50,IF(AQ5="Bronce",35,IF(AQ5="Quinto",15,IF(AQ5="Septimo",5,0))))) -> 0 | AT5: =IF(AS5="Oro",60,IF(AS5="Plata",50,IF(AS5="Bronce",35,IF(AS5="Quinto",15,IF(AS5="Septimo",5,0))))) -> 0 | AV5: =IF(AU5="Oro",60,IF(AU5="Plata",50,IF(AU5="Bronce",35,IF(AU5="Quinto",15,IF(AU5="Septimo",5,0))))) -> 0 | AX5: =IF(AW5="Oro",60,IF(AW5="Plata",50,IF(AW5="Bronce",35,IF(AW5="Quinto",15,IF(AW5="Septimo",5,0))))) -> 0 | AZ5: =IF(AY5="Oro",60,IF(AY5="Plata",50,IF(AY5="Bronce",35,IF(AY5="Quinto",15,IF(AY5="Septimo",5,0))))) -> 0 | BB5: =IF(BA5="Oro",60,IF(BA5="Plata",50,IF(BA5="Bronce",35,IF(BA5="Quinto",15,IF(BA5="Septimo",5,0))))) -> 0 | BD5: =IF(BC5="Oro",60,IF(BC5="Plata",50,IF(BC5="Bronce",35,IF(BC5="Quinto",15,IF(BC5="Septimo",5,0))))) -> 0 | BF5: =IF(BE5="Oro",60,IF(BE5="Plata",50,IF(BE5="Bronce",35,IF(BE5="Quinto",15,IF(BE5="Septimo",5,0))))) -> 0 | BH5: =IF(BG5="Oro",30,IF(BG5="Plata",20,IF(BG5="Bronce",15,0))) -> 0 | BJ5: =IF(BI5="Oro",30,IF(BI5="Plata",20,IF(BI5="Bronce",15,0))) -> 0 | BL5: =IF(BK5="Oro",30,IF(BK5="Plata",20,IF(BK5="Bronce",15,0))) -> 0 | BN5: =IF(BM5="Oro",30,IF(BM5="Plata",20,IF(BM5="Bronce",15,0))) -> 0 | BP5: =IF(BO5="Oro",30,IF(BO5="Plata",20,IF(BO5="Bronce",15,0))) -> 0 | BR5: =IF(BQ5="Oro",30,IF(BQ5="Plata",20,IF(BQ5="Bronce",15,0))) -> 0 | BT5: =IF(BS5="Oro",30,IF(BS5="Plata",20,IF(BS5="Bronce",15,0))) -> 0 | BV5: =IF(BU5="Oro",30,IF(BU5="Plata",20,IF(BU5="Bronce",15,0))) -> 0 | BX5: =IF(BW5="Oro",30,IF(BW5="Plata",20,IF(BW5="Bronce",15,0))) -> 0 | BZ5: =IF(BY5="Oro",30,IF(BY5="Plata",20,IF(BY5="Bronce",15,0))) -> 0 | CB5: =IF(CA5="Oro",30,IF(CA5="Plata",20,IF(CA5="Bronce",15,0))) -> 0 | CD5: =IF(CC5="Oro",30,IF(CC5="Plata",20,IF(CC5="Bronce",15,0))) -> 0 | CF5: =IF(CE5="Oro",30,IF(CE5="Plata",20,IF(CE5="Bronce",15,0))) -> 0 | CO5: =SUMIFS('2019'!H:H,'2019'!A:A,"-90 kg",'2019'!D:D,'-90 kg'!H5,'2019'!E:E,'-90 kg'!I5) -> 335
C6: 2 | D6: VAL | H6: FLORENTINO TAPIA | I6: Robert Alfonso | J6: 15 | K6: 15 | L6: 0 | M6: 0 | N6: 0 | P6: 0 | R6: 0 | T6: 0 | V6: 0 | X6: 0 | Z6: 0 | AB6: 0 | AD6: 0 | AF6: 0 | AH6: 0 | AJ6: 0 | AL6: 0 | AN6: 0 | AP6: 0 | AR6: 0 | AT6: 0 | AV6: 0 | AX6: 0 | AZ6: 0 | BB6: 0 | BD6: 0 | BF6: 0 | BH6: 0 | BJ6: 0 | BL6: 0 | BN6: 0 | BP6: 0 | BR6: 0 | BT6: 0 | BV6: 0 | BX6: 0 | BZ6: 0 | CB6: 0 | CD6: 0 | CF6: 0 | CO6: =SUMIFS('2019'!H:H,'2019'!A:A,"-90 kg",'2019'!D:D,'-90 kg'!H6,'2019'!E:E,'-90 kg'!I6) -> 30
C7: 3 | D7: MAD | H7: NACIMIENTO LOREZO | I7: Adrian | J7: 10 | K7: 10 | L7: 0 | M7: 0 | N7: 0 | P7: 0 | R7: 0 | T7: 0 | V7: 0 | X7: 0 | Z7: 0 | AB7: 0 | AD7: 0 | AF7: 0 | AH7: 0 | AJ7: 0 | AL7: 0 | AN7: 0 | AP7: 0 | AR7: 0 | AT7: 0 | AV7: 0 | AX7: 0 | AZ7: 0 | BB7: 0 | BD7: 0 | BF7: 0 | BH7: 0 | BJ7: 0 | BL7: 0 | BN7: 0 | BP7: 0 | BR7: 0 | BT7: 0 | BV7: 0 | BX7: 0 | BZ7: 0 | CB7: 0 | CD7: 0 | CF7: 0 | CO7: =SUMIFS('2019'!H:H,'2019'!A:A,"-90 kg",'2019'!D:D,'-90 kg'!H7,'2019'!E:E,'-90 kg'!I7) -> 20
C8: 4 | D8: CAT | H8: KHACHIDZE | I8: Teimuraz | J8: 7.5 | K8: 7.5 | L8: 0 | M8: 0 | N8: 0 | P8: 0 | R8: 0 | T8: 0 | V8: 0 | X8: 0 | Z8: 0 | AB8: 0 | AD8: 0 | AF8: 0 | AH8: 0 | AJ8: 0 | AL8: 0 | AN8: 0 | AP8: 0 | AR8: 0 | AT8: 0 | AV8: 0 | AX8: 0 | AZ8: 0 | BB8: 0 | BD8: 0 | BF8: 0 | BH8: 0 | BJ8: 0 | BL8: 0 | BN8: 0 | BP8: 0 | BR8: 0 | BT8: 0 | BV8: 0 | BX8: 0 | BZ8: 0 | CB8: 0 | CD8: 0 | CF8: 0 | CO8: =SUMIFS('2019'!H:H,'2019'!A:A,"-90 kg",'2019'!D:D,'-90 kg'!H8,'2019'!E:E,'-90 kg'!I8) -> 15
C9: 4 | D9: VAL | H9: DEL ORBE CORTORREAL | I9: Medickson | J9: 7.5 | K9: 7.5 | L9: 0 | M9: 0 | N9: 0 | P9: 0 | R9: 0 | T9: 0 | V9: 0 | X9: 0 | Z9: 0 | AB9: 0 | AD9: 0 | AF9: 0 | AH9: 0 | AJ9: 0 | AL9: 0 | AN9: 0 | AP9: 0 | AR9: 0 | AT9: 0 | AV9: 0 | AX9: 0 | AZ9: 0 | BB9: 0 | BD9: 0 | BF9: 0 | BH9: 0 | BJ9: 0 | BL9: 0 | BN9: 0 | BP9: 0 | BR9: 0 | BT9: 0 | BV9: 0 | BX9: 0 | BZ9: 0 | CB9: 0 | CD9: 0 | CF9: 0 | CO9: =SUMIFS('2019'!H:H,'2019'!A:A,"-90 kg",'2019'!D:D,'-90 kg'!H9,'2019'!E:E,'-90 kg'!I9) -> 15
C10: 6 | J10: 0 | K10: 0 | L10: 0 | M10: 0 | N10: 0 | P10: 0 | R10: 0 | T10: 0 | V10: 0 | X10: 0 | Z10: 0 | AB10: 0 | AD10: 0 | AF10: 0 | AH10: 0 | AJ10: 0 | AL10: 0 | AN10: 0 | AP10: 0 | AR10: 0 | AT10: 0 | AV10: 0 | AX10: 0 | AZ10: 0 | BB10: 0 | BD10: 0 | BF10: 0 | BH10: 0 | BJ10: 0 | BL10: 0 | BN10: 0 | BP10: 0 | BR10: 0 | BT10: 0 | BV10: 0 | BX10: 0 | BZ10: 0 | CA10: BONCE | CB10: 0 | CD10: 0 | CF10: 0 | CO10: =SUMIFS('2019'!H:H,'2019'!A:A,"-90 kg",'2019'!D:D,'-90 kg'!H10,'2019'!E:E,'-90 kg'!I10) -> 0
C11: 6 | J11: 0 | K11: 0 | L11: 0 | M11: 0 | N11: 0 | P11: 0 | R11: 0 | T11: 0 | V11: 0 | X11: 0 | Z11: 0 | AB11: 0 | AD11: 0 | AF11: 0 | AH11: 0 | AJ11: 0 | AL11: 0 | AN11: 0 | AP11: 0 | AR11: 0 | AT11: 0 | AV11: 0 | AX11: 0 | AZ11: 0 | BB11: 0 | BD11: 0 | BF11: 0 | BH11: 0 | BJ11: 0 | BL11: 0 | BN11: 0 | BP11: 0 | BR11: 0 | BT11: 0 | BV11: 0 | BX11: 0 | BZ11: 0 | CB11: 0 | CD11: 0 | CF11: 0 | CO11: =SUMIFS('2019'!H:H,'2019'!A:A,"-90 kg",'2019'!D:D,'-90 kg'!H11,'2019'!E:E,'-90 kg'!I11) -> 0
C12: 6 | J12: 0 | K12: 0 | L12: 0 | M12: 0 | N12: 0 | P12: 0 | R12: 0 | T12: 0 | V12: 0 | X12: 0 | Z12: 0 | AB12: 0 | AD12: 0 | AF12: 0 | AH12: 0 | AJ12: 0 | AL12: 0 | AN12: 0 | AP12: 0 | AR12: 0 | AT12: 0 | AV12: 0 | AX12: 0 | AZ12: 0 | BB12: 0 | BD12: 0 | BF12: 0 | BH12: 0 | BJ12: 0 | BL12: 0 | BN12: 0 | BP12: 0 | BR12: 0 | BT12: 0 | BV12: 0 | BX12: 0 | BZ12: 0 | CB12: 0 | CD12: 0 | CF12: 0 | CO12: =SUMIFS('2019'!H:H,'2019'!A:A,"-90 kg",'2019'!D:D,'-90 kg'!H12,'2019'!E:E,'-90 kg'!I12) -> 0
C13: 6 | J13: 0 | K13: 0 | L13: 0 | M13: 0 | N13: 0 | P13: 0 | R13: 0 | T13: 0 | V13: 0 | X13: 0 | Z13: 0 | AB13: 0 | AD13: 0 | AF13: 0 | AH13: 0 | AJ13: 0 | AL13: 0 | AN13: 0 | AP13: 0 | AR13: 0 | AT13: 0 | AV13: 0 | AX13: 0 | AZ13: 0 | BB13: 0 | BD13: 0 | BF13: 0 | BH13: 0 | BJ13: 0 | BL13: 0 | BN13: 0 | BP13: 0 | BR13: 0 | BT13: 0 | BV13: 0 | BX13: 0 | BZ13: 0 | CB13: 0 | CD13: 0 | CF13: 0 | CO13: =SUMIFS('2019'!H:H,'2019'!A:A,"-90 kg",'2019'!D:D,'-90 kg'!H13,'2019'!E:E,'-90 kg'!I13) -> 0
C14: 6 | J14: 0 | K14: 0 | L14: 0 | M14: 0 | N14: 0 | P14: 0 | R14: 0 | T14: 0 | V14: 0 | X14: 0 | Z14: 0 | AB14: 0 | AD14: 0 | AF14: 0 | AH14: 0 | AJ14: 0 | AL14: 0 | AN14: 0 | AP14: 0 | AR14: 0 | AT14: 0 | AV14: 0 | AX14: 0 | AZ14: 0 | BB14: 0 | BD14: 0 | BF14: 0 | BH14: 0 | BJ14: 0 | BL14: 0 | BN14: 0 | BP14: 0 | BR14: 0 | BT14: 0 | BV14: 0 | BX14: 0 | BZ14: 0 | CB14: 0 | CD14: 0 | CF14: 0 | CO14: =SUMIFS('2019'!H:H,'2019'!A:A,"-90 kg",'2019'!D:D,'-90 kg'!H14,'2019'!E:E,'-90 kg'!I14) -> 0
C15: 6 | J15: 0 | K15: 0 | L15: 0 | M15: 0 | N15: 0 | P15: 0 | R15: 0 | T15: 0 | V15: 0 | X15: 0 | Z15: 0 | AB15: 0 | AD15: 0 | AF15: 0 | AH15: 0 | AJ15: 0 | AL15: 0 | AN15: 0 | AP15: 0 | AR15: 0 | AT15: 0 | AV15: 0 | AX15: 0 | AZ15: 0 | BB15: 0 | BD15: 0 | BF15: 0 | BH15: 0 | BJ15: 0 | BL15: 0 | BN15: 0 | BP15: 0 | BR15: 0 | BT15: 0 | BV15: 0 | BX15: 0 | BZ15: 0 | CB15: 0 | CD15: 0 | CF15: 0 | CO15: =SUMIFS('2019'!H:H,'2019'!A:A,"-90 kg",'2019'!D:D,'-90 kg'!H15,'2019'!E:E,'-90 kg'!I15) -> 0
C16: 6 | J16: 0 | K16: 0 | L16: 0 | M16: 0 | N16: 0 | P16: 0 | R16: 0 | T16: 0 | V16: 0 | X16: 0 | Z16: 0 | AB16: 0 | AD16: 0 | AF16: 0 | AH16: 0 | AJ16: 0 | AL16: 0 | AN16: 0 | AP16: 0 | AR16: 0 | AT16: 0 | AV16: 0 | AX16: 0 | AZ16: 0 | BB16: 0 | BD16: 0 | BF16: 0 | BH16: 0 | BJ16: 0 | BL16: 0 | BN16: 0 | BP16: 0 | BR16: 0 | BT16: 0 | BV16: 0 | BX16: 0 | BZ16: 0 | CB16: 0 | CD16: 0 | CF16: 0 | CO16: =SUMIFS('2019'!H:H,'2019'!A:A,"-90 kg",'2019'!D:D,'-90 kg'!H16,'2019'!E:E,'-90 kg'!I16) -> 0
C17: 6 | J17: 0 | K17: 0 | L17: 0 | M17: 0 | N17: 0 | P17: 0 | R17: 0 | T17: 0 | V17: 0 | X17: 0 | Z17: 0 | AB17: 0 | AD17: 0 | AF17: 0 | AH17: 0 | AJ17: 0 | AL17: 0 | AN17: 0 | AP17: 0 | AR17: 0 | AT17: 0 | AV17: 0 | AX17: 0 | AZ17: 0 | BB17: 0 | BD17: 0 | BF17: 0 | BH17: 0 | BJ17: 0 | BL17: 0 | BN17: 0 | BP17: 0 | BR17: 0 | BT17: 0 | BV17: 0 | BX17: 0 | BZ17: 0 | CB17: 0 | CD17: 0 | CF17: 0 | CO17: =SUMIFS('2019'!H:H,'2019'!A:A,"-90 kg",'2019'!D:D,'-90 kg'!H17,'2019'!E:E,'-90 kg'!I17) -> 0
C18: 6 | J18: 0 | K18: 0 | L18: 0 | M18: 0 | N18: 0 | P18: 0 | R18: 0 | T18: 0 | V18: 0 | X18: 0 | Z18: 0 | AB18: 0 | AD18: 0 | AF18: 0 | AH18: 0 | AJ18: 0 | AL18: 0 | AN18: 0 | AP18: 0 | AR18: 0 | AT18: 0 | AV18: 0 | AX18: 0 | AZ18: 0 | BB18: 0 | BD18: 0 | BF18: 0 | BH18: 0 | BJ18: 0 | BL18: 0 | BN18: 0 | BP18: 0 | BR18: 0 | BT18: 0 | BV18: 0 | BX18: 0 | BZ18: 0 | CB18: 0 | CD18: 0 | CF18: 0 | CO18: =SUMIFS('2019'!H:H,'2019'!A:A,"-90 kg",'2019'!D:D,'-90 kg'!H18,'2019'!E:E,'-90 kg'!I18) -> 0
C19: 6 | J19: 0 | K19: 0 | L19: 0 | M19: 0 | N19: 0 | P19: 0 | R19: 0 | T19: 0 | V19: 0 | X19: 0 | Z19: 0 | AB19: 0 | AD19: 0 | AF19: 0 | AH19: 0 | AJ19: 0 | AL19: 0 | AN19: 0 | AP19: 0 | AR19: 0 | AT19: 0 | AV19: 0 | AX19: 0 | AZ19: 0 | BB19: 0 | BD19: 0 | BF19: 0 | BH19: 0 | BJ19: 0 | BL19: 0 | BN19: 0 | BP19: 0 | BR19: 0 | BT19: 0 | BV19: 0 | BX19: 0 | BZ19: 0 | CB19: 0 | CD19: 0 | CF19: 0 | CO19: =SUMIFS('2019'!H:H,'2019'!A:A,"-90 kg",'2019'!D:D,'-90 kg'!H19,'2019'!E:E,'-90 kg'!I19) -> 0
C20: 6 | J20: 0 | K20: 0 | L20: 0 | M20: 0 | N20: 0 | P20: 0 | R20: 0 | T20: 0 | V20: 0 | X20: 0 | Z20: 0 | AB20: 0 | AD20: 0 | AF20: 0 | AH20: 0 | AJ20: 0 | AL20: 0 | AN20: 0 | AP20: 0 | AR20: 0 | AT20: 0 | AV20: 0 | AX20: 0 | AZ20: 0 | BB20: 0 | BD20: 0 | BF20: 0 | BH20: 0 | BJ20: 0 | BL20: 0 | BN20: 0 | BP20: 0 | BR20: 0 | BT20: 0 | BV20: 0 | BX20: 0 | BZ20: 0 | CB20: 0 | CD20: 0 | CF20: 0 | CO20: =SUMIFS('2019'!H:H,'2019'!A:A,"-90 kg",'2019'!D:D,'-90 kg'!H20,'2019'!E:E,'-90 kg'!I20) -> 0
C21: 6 | J21: 0 | K21: 0 | L21: 0 | M21: 0 | N21: 0 | P21: 0 | R21: 0 | T21: 0 | V21: 0 | X21: 0 | Z21: 0 | AB21: 0 | AD21: 0 | AF21: 0 | AH21: 0 | AJ21: 0 | AL21: 0 | AN21: 0 | AP21: 0 | AR21: 0 | AT21: 0 | AV21: 0 | AX21: 0 | AZ21: 0 | BB21: 0 | BD21: 0 | BF21: 0 | BH21: 0 | BJ21: 0 | BL21: 0 | BN21: 0 | BP21: 0 | BR21: 0 | BT21: 0 | BV21: 0 | BX21: 0 | BZ21: 0 | CB21: 0 | CD21: 0 | CF21: 0 | CO21: =SUMIFS('2019'!H:H,'2019'!A:A,"-90 kg",'2019'!D:D,'-90 kg'!H21,'2019'!E:E,'-90 kg'!I21) -> 0
C22: 6 | J22: 0 | K22: 0 | L22: 0 | M22: 0 | N22: 0 | P22: 0 | R22: 0 | T22: 0 | V22: 0 | X22: 0 | Z22: 0 | AB22: 0 | AD22: 0 | AF22: 0 | AH22: 0 | AJ22: 0 | AL22: 0 | AN22: 0 | AP22: 0 | AR22: 0 | AT22: 0 | AV22: 0 | AX22: 0 | AZ22: 0 | BB22: 0 | BD22: 0 | BF22: 0 | BH22: 0 | BJ22: 0 | BL22: 0 | BN22: 0 | BP22: 0 | BR22: 0 | BT22: 0 | BV22: 0 | BX22: 0 | BZ22: 0 | CB22: 0 | CD22: 0 | CF22: 0 | CO22: =SUMIFS('2019'!H:H,'2019'!A:A,"-90 kg",'2019'!D:D,'-90 kg'!H22,'2019'!E:E,'-90 kg'!I22) -> 0
C23: 6 | J23: 0 | K23: 0 | L23: 0 | M23: 0 | N23: 0 | P23: 0 | R23: 0 | T23: 0 | V23: 0 | X23: 0 | Z23: 0 | AB23: 0 | AD23: 0 | AF23: 0 | AH23: 0 | AJ23: 0 | AL23: 0 | AN23: 0 | AP23: 0 | AR23: 0 | AT23: 0 | AV23: 0 | AX23: 0 | AZ23: 0 | BB23: 0 | BD23: 0 | BF23: 0 | BH23: 0 | BJ23: 0 | BL23: 0 | BN23: 0 | BP23: 0 | BR23: 0 | BT23: 0 | BV23: 0 | BX23: 0 | BZ23: 0 | CB23: 0 | CD23: 0 | CF23: 0 | CO23: =SUMIFS('2019'!H:H,'2019'!A:A,"-90 kg",'2019'!D:D,'-90 kg'!H23,'2019'!E:E,'-90 kg'!I23) -> 0
C24: 6 | J24: 0 | K24: 0 | L24: 0 | M24: 0 | N24: 0 | P24: 0 | R24: 0 | T24: 0 | V24: 0 | X24: 0 | Z24: 0 | AB24: 0 | AD24: 0 | AF24: 0 | AH24: 0 | AJ24: 0 | AL24: 0 | AN24: 0 | AP24: 0 | AR24: 0 | AT24: 0 | AV24: 0 | AX24: 0 | AZ24: 0 | BB24: 0 | BD24: 0 | BF24: 0 | BH24: 0 | BJ24: 0 | BL24: 0 | BN24: 0 | BP24: 0 | BR24: 0 | BT24: 0 | BV24: 0 | BX24: 0 | BZ24: 0 | CB24: 0 | CD24: 0 | CF24: 0 | CO24: =SUMIFS('2019'!H:H,'2019'!A:A,"-90 kg",'2019'!D:D,'-90 kg'!H24,'2019'!E:E,'-90 kg'!I24) -> 0
C25: 6 | J25: 0 | K25: 0 | L25: 0 | M25: 0 | N25: 0 | P25: 0 | R25: 0 | T25: 0 | V25: 0 | X25: 0 | Z25: 0 | AB25: 0 | AD25: 0 | AF25: 0 | AH25: 0 | AJ25: 0 | AL25: 0 | AN25: 0 | AP25: 0 | AR25: 0 | AT25: 0 | AV25: 0 | AX25: 0 | AZ25: 0 | BB25: 0 | BD25: 0 | BF25: 0 | BH25: 0 | BJ25: 0 | BL25: 0 | BN25: 0 | BP25: 0 | BR25: 0 | BT25: 0 | BV25: 0 | BX25: 0 | BZ25: 0 | CB25: 0 | CD25: 0 | CF25: 0 | CO25: =SUMIFS('2019'!H:H,'2019'!A:A,"-90 kg",'2019'!D:D,'-90 kg'!H25,'2019'!E:E,'-90 kg'!I25) -> 0
C26: 6 | J26: 0 | K26: 0 | L26: 0 | M26: 0 | N26: 0 | P26: 0 | R26: 0 | T26: 0 | V26: 0 | X26: 0 | Z26: 0 | AB26: 0 | AD26: 0 | AF26: 0 | AH26: 0 | AJ26: 0 | AL26: 0 | AN26: 0 | AP26: 0 | AR26: 0 | AT26: 0 | AV26: 0 | AX26: 0 | AZ26: 0 | BB26: 0 | BD26: 0 | BF26: 0 | BH26: 0 | BJ26: 0 | BL26: 0 | BN26: 0 | BP26: 0 | BR26: 0 | BT26: 0 | BV26: 0 | BX26: 0 | BZ26: 0 | CB26: 0 | CD26: 0 | CF26: 0 | CO26: =SUMIFS('2019'!H:H,'2019'!A:A,"-90 kg",'2019'!D:D,'-90 kg'!H26,'2019'!E:E,'-90 kg'!I26) -> 0
C27: 6 | J27: 0 | K27: 0 | L27: 0 | M27: 0 | N27: 0 | P27: 0 | R27: 0 | T27: 0 | V27: 0 | X27: 0 | Z27: 0 | AB27: 0 | AD27: 0 | AF27: 0 | AH27: 0 | AJ27: 0 | AL27: 0 | AN27: 0 | AP27: 0 | AR27: 0 | AT27: 0 | AV27: 0 | AX27: 0 | AZ27: 0 | BB27: 0 | BD27: 0 | BF27: 0 | BH27: 0 | BJ27: 0 | BL27: 0 | BN27: 0 | BP27: 0 | BR27: 0 | BT27: 0 | BV27: 0 | BX27: 0 | BZ27: 0 | CB27: 0 | CD27: 0 | CF27: 0 | CO27: =SUMIFS('2019'!H:H,'2019'!A:A,"-90 kg",'2019'!D:D,'-90 kg'!H27,'2019'!E:E,'-90 kg'!I27) -> 0
C28: 6 | J28: 0 | K28: 0 | L28: 0 | M28: 0 | N28: 0 | P28: 0 | R28: 0 | T28: 0 | V28: 0 | X28: 0 | Z28: 0 | AB28: 0 | AD28: 0 | AF28: 0 | AH28: 0 | AJ28: 0 | AL28: 0 | AN28: 0 | AP28: 0 | AR28: 0 | AT28: 0 | AV28: 0 | AX28: 0 | AZ28: 0 | BB28: 0 | BD28: 0 | BF28: 0 | BH28: 0 | BJ28: 0 | BL28: 0 | BN28: 0 | BP28: 0 | BR28: 0 | BT28: 0 | BV28: 0 | BX28: 0 | BZ28: 0 | CB28: 0 | CD28: 0 | CF28: 0 | CO28: =SUMIFS('2019'!H:H,'2019'!A:A,"-90 kg",'2019'!D:D,'-90 kg'!H28,'2019'!E:E,'-90 kg'!I28) -> 0
C29: 6 | J29: 0 | K29: 0 | L29: 0 | M29: 0 | N29: 0 | P29: 0 | R29: 0 | T29: 0 | V29: 0 | X29: 0 | Z29: 0 | AB29: 0 | AD29: 0 | AF29: 0 | AH29: 0 | AJ29: 0 | AL29: 0 | AN29: 0 | AP29: 0 | AR29: 0 | AT29: 0 | AV29: 0 | AX29: 0 | AZ29: 0 | BB29: 0 | BD29: 0 | BF29: 0 | BH29: 0 | BJ29: 0 | BL29: 0 | BN29: 0 | BP29: 0 | BR29: 0 | BT29: 0 | BV29: 0 | BX29: 0 | BZ29: 0 | CB29: 0 | CD29: 0 | CF29: 0 | CO29: =SUMIFS('2019'!H:H,'2019'!A:A,"-90 kg",'2019'!D:D,'-90 kg'!H29,'2019'!E:E,'-90 kg'!I29) -> 0
C30: 6 | J30: 0 | K30: 0 | L30: 0 | M30: 0 | N30: 0 | P30: 0 | R30: 0 | T30: 0 | V30: 0 | X30: 0 | Z30: 0 | AB30: 0 | AD30: 0 | AF30: 0 | AH30: 0 | AJ30: 0 | AL30: 0 | AN30: 0 | AP30: 0 | AR30: 0 | AT30: 0 | AV30: 0 | AX30: 0 | AZ30: 0 | BB30: 0 | BD30: 0 | BF30: 0 | BH30: 0 | BJ30: 0 | BL30: 0 | BN30: 0 | BP30: 0 | BR30: 0 | BT30: 0 | BV30: 0 | BX30: 0 | BZ30: 0 | CB30: 0 | CD30: 0 | CF30: 0 | CO30: =SUMIFS('2019'!H:H,'2019'!A:A,"-90 kg",'2019'!D:D,'-90 kg'!H30,'2019'!E:E,'-90 kg'!I30) -> 0
C31: 6 | J31: 0 | K31: 0 | L31: 0 | M31: 0 | N31: 0 | P31: 0 | R31: 0 | T31: 0 | V31: 0 | X31: 0 | Z31: 0 | AB31: 0 | AD31: 0 | AF31: 0 | AH31: 0 | AJ31: 0 | AL31: 0 | AN31: 0 | AP31: 0 | AR31: 0 | AT31: 0 | AV31: 0 | AX31: 0 | AZ31: 0 | BB31: 0 | BD31: 0 | BF31: 0 | BH31: 0 | BJ31: 0 | BL31: 0 | BN31: 0 | BP31: 0 | BR31: 0 | BT31: 0 | BV31: 0 | BX31: 0 | BZ31: 0 | CB31: 0 | CD31: 0 | CF31: 0 | CO31: =SUMIFS('2019'!H:H,'2019'!A:A,"-90 kg",'2019'!D:D,'-90 kg'!H31,'2019'!E:E,'-90 kg'!I31) -> 0
C32: 6 | J32: 0 | K32: 0 | L32: 0 | M32: 0 | N32: 0 | P32: 0 | R32: 0 | T32: 0 | V32: 0 | X32: 0 | Z32: 0 | AB32: 0 | AD32: 0 | AF32: 0 | AH32: 0 | AJ32: 0 | AL32: 0 | AN32: 0 | AP32: 0 | AR32: 0 | AT32: 0 | AV32: 0 | AX32: 0 | AZ32: 0 | BB32: 0 | BD32: 0 | BF32: 0 | BH32: 0 | BJ32: 0 | BL32: 0 | BN32: 0 | BP32: 0 | BR32: 0 | BT32: 0 | BV32: 0 | BX32: 0 | BZ32: 0 | CB32: 0 | CD32: 0 | CF32: 0 | CO32: =SUMIFS('2019'!H:H,'2019'!A:A,"-90 kg",'2019'!D:D,'-90 kg'!H32,'2019'!E:E,'-90 kg'!I32) -> 0
C33: 6 | J33: 0 | K33: 0 | L33: 0 | M33: 0 | N33: 0 | P33: 0 | R33: 0 | T33: 0 | V33: 0 | X33: 0 | Z33: 0 | AB33: 0 | AD33: 0 | AF33: 0 | AH33: 0 | AJ33: 0 | AL33: 0 | AN33: 0 | AP33: 0 | AR33: 0 | AT33: 0 | AV33: 0 | AX33: 0 | AZ33: 0 | BB33: 0 | BD33: 0 | BF33: 0 | BH33: 0 | BJ33: 0 | BL33: 0 | BN33: 0 | BP33: 0 | BR33: 0 | BT33: 0 | BV33: 0 | BX33: 0 | BZ33: 0 | CB33: 0 | CD33: 0 | CF33: 0 | CO33: =SUMIFS('2019'!H:H,'2019'!A:A,"-90 kg",'2019'!D:D,'-90 kg'!H33,'2019'!E:E,'-90 kg'!I33) -> 0
C34: 6 | J34: 0 | K34: 0 | L34: 0 | M34: 0 | N34: 0 | P34: 0 | R34: 0 | T34: 0 | V34: 0 | X34: 0 | Z34: 0 | AB34: 0 | AD34: 0 | AF34: 0 | AH34: 0 | AJ34: 0 | AL34: 0 | AN34: 0 | AP34: 0 | AR34: 0 | AT34: 0 | AV34: 0 | AX34: 0 | AZ34: 0 | BB34: 0 | BD34: 0 | BF34: 0 | BH34: 0 | BJ34: 0 | BL34: 0 | BN34: 0 | BP34: 0 | BR34: 0 | BT34: 0 | BV34: 0 | BX34: 0 | BZ34: 0 | CB34: 0 | CD34: 0 | CF34: 0 | CO34: =SUMIFS('2019'!H:H,'2019'!A:A,"-90 kg",'2019'!D:D,'-90 kg'!H34,'2019'!E:E,'-90 kg'!I34) -> 0
C35: 6 | J35: 0 | K35: 0 | L35: 0 | M35: 0 | N35: 0 | P35: 0 | R35: 0 | T35: 0 | V35: 0 | X35: 0 | Z35: 0 | AB35: 0 | AD35: 0 | AF35: 0 | AH35: 0 | AJ35: 0 | AL35: 0 | AN35: 0 | AP35: 0 | AR35: 0 | AT35: 0 | AV35: 0 | AX35: 0 | AZ35: 0 | BB35: 0 | BD35: 0 | BF35: 0 | BH35: 0 | BJ35: 0 | BL35: 0 | BN35: 0 | BP35: 0 | BR35: 0 | BT35: 0 | BV35: 0 | BX35: 0 | BZ35: 0 | CB35: 0 | CD35: 0 | CF35: 0 | CO35: =SUMIFS('2019'!H:H,'2019'!A:A,"-90 kg",'2019'!D:D,'-90 kg'!H35,'2019'!E:E,'-90 kg'!I35) -> 0
C36: 6 | J36: 0 | K36: 0 | L36: 0 | M36: 0 | N36: 0 | P36: 0 | R36: 0 | T36: 0 | V36: 0 | X36: 0 | Z36: 0 | AB36: 0 | AD36: 0 | AF36: 0 | AH36: 0 | AJ36: 0 | AL36: 0 | AN36: 0 | AP36: 0 | AR36: 0 | AT36: 0 | AV36: 0 | AX36: 0 | AZ36: 0 | BB36: 0 | BD36: 0 | BF36: 0 | BH36: 0 | BJ36: 0 | BL36: 0 | BN36: 0 | BP36: 0 | BR36: 0 | BT36: 0 | BV36: 0 | BX36: 0 | BZ36: 0 | CB36: 0 | CD36: 0 | CF36: 0 | CO36: =SUMIFS('2019'!H:H,'2019'!A:A,"-90 kg",'2019'!D:D,'-90 kg'!H36,'2019'!E:E,'-90 kg'!I36) -> 0
C37: 6 | J37: 0 | K37: 0 | L37: 0 | M37: 0 | N37: 0 | P37: 0 | R37: 0 | T37: 0 | V37: 0 | X37: 0 | Z37: 0 | AB37: 0 | AD37: 0 | AF37: 0 | AH37: 0 | AJ37: 0 | AL37: 0 | AN37: 0 | AP37: 0 | AR37: 0 | AT37: 0 | AV37: 0 | AX37: 0 | AZ37: 0 | BB37: 0 | BD37: 0 | BF37: 0 | BH37: 0 | BJ37: 0 | BL37: 0 | BN37: 0 | BP37: 0 | BR37: 0 | BT37: 0 | BV37: 0 | BX37: 0 | BZ37: 0 | CB37: 0 | CD37: 0 | CF37: 0 | CO37: =SUMIFS('2019'!H:H,'2019'!A:A,"-90 kg",'2019'!D:D,'-90 kg'!H37,'2019'!E:E,'-90 kg'!I37) -> 0
C38: 6 | J38: 0 | K38: 0 | L38: 0 | M38: 0 | N38: 0 | P38: 0 | R38: 0 | T38: 0 | V38: 0 | X38: 0 | Z38: 0 | AB38: 0 | AD38: 0 | AF38: 0 | AH38: 0 | AJ38: 0 | AL38: 0 | AN38: 0 | AP38: 0 | AR38: 0 | AT38: 0 | AV38: 0 | AX38: 0 | AZ38: 0 | BB38: 0 | BD38: 0 | BF38: 0 | BH38: 0 | BJ38: 0 | BL38: 0 | BN38: 0 | BP38: 0 | BR38: 0 | BT38: 0 | BV38: 0 | BX38: 0 | BZ38: 0 | CB38: 0 | CD38: 0 | CF38: 0 | CO38: =SUMIFS('2019'!H:H,'2019'!A:A,"-90 kg",'2019'!D:D,'-90 kg'!H38,'2019'!E:E,'-90 kg'!I38) -> 0
C39: 6 | J39: 0 | K39: 0 | L39: 0 | M39: 0 | N39: 0 | P39: 0 | R39: 0 | T39: 0 | V39: 0 | X39: 0 | Z39: 0 | AB39: 0 | AD39: 0 | AF39: 0 | AH39: 0 | AJ39: 0 | AL39: 0 | AN39: 0 | AP39: 0 | AR39: 0 | AT39: 0 | AV39: 0 | AX39: 0 | AZ39: 0 | BB39: 0 | BD39: 0 | BF39: 0 | BH39: 0 | BJ39: 0 | BL39: 0 | BN39: 0 | BP39: 0 | BR39: 0 | BT39: 0 | BV39: 0 | BX39: 0 | BZ39: 0 | CB39: 0 | CD39: 0 | CF39: 0 | CO39: =SUMIFS('2019'!H:H,'2019'!A:A,"-90 kg",'2019'!D:D,'-90 kg'!H39,'2019'!E:E,'-90 kg'!I39) -> 0
C40: 6 | J40: 0 | K40: 0 | L40: 0 | M40: 0 | N40: 0 | P40: 0 | R40: 0 | T40: 0 | V40: 0 | X40: 0 | Z40: 0 | AB40: 0 | AD40: 0 | AF40: 0 | AH40: 0 | AJ40: 0 | AL40: 0 | AN40: 0 | AP40: 0 | AR40: 0 | AT40: 0 | AV40: 0 | AX40: 0 | AZ40: 0 | BB40: 0 | BD40: 0 | BF40: 0 | BH40: 0 | BJ40: 0 | BL40: 0 | BN40: 0 | BP40: 0 | BR40: 0 | BT40: 0 | BV40: 0 | BX40: 0 | BZ40: 0 | CB40: 0 | CD40: 0 | CF40: 0 | CO40: =SUMIFS('2019'!H:H,'2019'!A:A,"-90 kg",'2019'!D:D,'-90 kg'!H40,'2019'!E:E,'-90 kg'!I40) -> 0
C41: 6 | J41: 0 | K41: 0 | L41: 0 | M41: 0 | N41: 0 | P41: 0 | R41: 0 | T41: 0 | V41: 0 | X41: 0 | Z41: 0 | AB41: 0 | AD41: 0 | AF41: 0 | AH41: 0 | AJ41: 0 | AL41: 0 | AN41: 0 | AP41: 0 | AR41: 0 | AT41: 0 | AV41: 0 | AX41: 0 | AZ41: 0 | BB41: 0 | BD41: 0 | BF41: 0 | BH41: 0 | BJ41: 0 | BL41: 0 | BN41: 0 | BP41: 0 | BR41: 0 | BT41: 0 | BV41: 0 | BX41: 0 | BZ41: 0 | CB41: 0 | CD41: 0 | CF41: 0 | CO41: =SUMIFS('2019'!H:H,'2019'!A:A,"-90 kg",'2019'!D:D,'-90 kg'!H41,'2019'!E:E,'-90 kg'!I41) -> 0
C42: 6 | J42: 0 | K42: 0 | L42: 0 | M42: 0 | N42: 0 | P42: 0 | R42: 0 | T42: 0 | V42: 0 | X42: 0 | Z42: 0 | AB42: 0 | AD42: 0 | AF42: 0 | AH42: 0 | AJ42: 0 | AL42: 0 | AN42: 0 | AP42: 0 | AR42: 0 | AT42: 0 | AV42: 0 | AX42: 0 | AZ42: 0 | BB42: 0 | BD42: 0 | BF42: 0 | BH42: 0 | BJ42: 0 | BL42: 0 | BN42: 0 | BP42: 0 | BR42: 0 | BT42: 0 | BV42: 0 | BX42: 0 | BZ42: 0 | CB42: 0 | CD42: 0 | CF42: 0 | CO42: =SUMIFS('2019'!H:H,'2019'!A:A,"-90 kg",'2019'!D:D,'-90 kg'!H42,'2019'!E:E,'-90 kg'!I42) -> 0
C43: 6 | J43: 0 | K43: 0 | L43: 0 | M43: 0 | N43: 0 | P43: 0 | R43: 0 | T43: 0 | V43: 0 | X43: 0 | Z43: 0 | AB43: 0 | AD43: 0 | AF43: 0 | AH43: 0 | AJ43: 0 | AL43: 0 | AN43: 0 | AP43: 0 | AR43: 0 | AT43: 0 | AV43: 0 | AX43: 0 | AZ43: 0 | BB43: 0 | BD43: 0 | BF43: 0 | BH43: 0 | BJ43: 0 | BL43: 0 | BN43: 0 | BP43: 0 | BR43: 0 | BT43: 0 | BV43: 0 | BX43: 0 | BZ43: 0 | CB43: 0 | CD43: 0 | CF43: 0 | CO43: =SUMIFS('2019'!H:H,'2019'!A:A,"-90 kg",'2019'!D:D,'-90 kg'!H43,'2019'!E:E,'-90 kg'!I43) -> 0
C44: 6 | J44: 0 | K44: 0 | L44: 0 | M44: 0 | N44: 0 | P44: 0 | R44: 0 | T44: 0 | V44: 0 | X44: 0 | Z44: 0 | AB44: 0 | AD44: 0 | AF44: 0 | AH44: 0 | AJ44: 0 | AL44: 0 | AN44: 0 | AP44: 0 | AR44: 0 | AT44: 0 | AV44: 0 | AX44: 0 | AZ44: 0 | BB44: 0 | BD44: 0 | BF44: 0 | BH44: 0 | BJ44: 0 | BL44: 0 | BN44: 0 | BP44: 0 | BR44: 0 | BT44: 0 | BV44: 0 | BX44: 0 | BZ44: 0 | CB44: 0 | CD44: 0 | CF44: 0 | CO44: =SUMIFS('2019'!H:H,'2019'!A:A,"-90 kg",'2019'!D:D,'-90 kg'!H44,'2019'!E:E,'-90 kg'!I44) -> 0
CO45: =SUMIFS('2019'!H:H,'2019'!A:A,"-90 kg",'2019'!D:D,'-90 kg'!H45,'2019'!E:E,'-90 kg'!I45) -> 0

Sheet -100 kg (hidden)
C2: Ranking | D2: Nation | E2: Continent | F2: IJF ID | G2: Y.o B. | H2: FAMILY NAME | I2: Given name | J2: Total score
C3: Puesto | D3: Comunidad | E3: Continent | F3: España ID | G3: A. de N. | H3: APELLIDOS | I3: Nombre | J3: Ranking Nacional Absoluto | K3: Puntuación Año Anterior | L3: Clasificación Equipo Absoluto | O3: Master ABS | Q3: Campeonato Mundo | S3: Campeonato Europa | U3: Campeonato Europa S23 | W3: Gran Slam (Francia) | Y3: Grand Slam (Abu Dhabi) | AA3: GRAND SLAM BRASILIA | AC3: GRAND SLAM OSAKA | AK3: Gran Prix Croacia - ZAGREB | AM3: Gran Prix (Marruecos) | AO3: Gran Prix (La Haya) | AQ3: Gran Prix (Tunez) | AS3: Gran Prix (Duseldorf) | AU3: Gran Prix (China) | AW3: Gran Prix (Uzbekistan) | AY3: Gran Prix Budapest | BE3: Juegos Mediterraneo | BG3: Campeonato España | BI3: European Open (Odivelas) | BK3: European Open (Sofia) | BM3: European Open (Roma) | BO3: European Open (POLONIA) | BQ3: European Open (RUMANIA) | BS3: European Open (Glasgow) | BU3: Open Panamericano | BW3: Open Tallin | CA3: European Cup Málaga | CN3: Puntuación Año Anterior
K4: 0.5 | L4: Oro | M4: Plata | N4: Bronce | O4: Medalla | P4: Puntos | Q4: Medalla | R4: Puntos | S4: Medalla | T4: Puntos | U4: Medalla | V4: Puntos | W4: Medalla | X4: Puntos | Y4: Medalla | Z4: Puntos | AA4: Medalla | AB4: Puntos | AC4: Medalla | AD4: Puntos | AE4: Medalla | AF4: Puntos | AG4: Medalla | AH4: Puntos | AI4: Medalla | AJ4: Puntos | AK4: Medalla | AL4: Puntos | AM4: Medalla | AN4: Puntos | AO4: Medalla | AP4: Puntos | AQ4: Medalla | AR4: Puntos | AS4: Medalla | AT4: Puntos | AU4: Medalla | AV4: Puntos | AW4: Medalla | AX4: Puntos | AY4: Medalla | AZ4: Puntos | BA4: Medalla | BB4: Puntos | BC4: Medalla | BD4: Puntos | BE4: Medalla | BF4: Puntos | BG4: Medalla | BH4: Puntos | BI4: Medalla | BJ4: Puntos | BK4: Medalla | BL4: Puntos | BM4: Medalla | BN4: Puntos | BO4: Medalla | BP4: Puntos | BQ4: Medalla | BR4: Puntos | BS4: Medalla | BT4: Puntos | BU4: Medalla | BV4: Puntos | BW4: Medalla | BX4: Puntos | BY4: Medalla | BZ4: Puntos | CA4: Medalla | CB4: Puntos | CC4: Medalla | CD4: Puntos | CE4: Medalla | CF4: Puntos | CN4: 1
C5: =RANK(J5,$J$5:$J$44,0) -> 1 | D5: VAL | H5: NOVA ALCANTARA | I5: Jose | J5: =SUM(O5:CF5)+K5 -> 15 | K5: =CN5*50/100 -> 15 | L5: =COUNTIF(O5:CF5,$L$4) -> 0 | M5: =COUNTIF(O5:CF5,$M$4) -> 0 | N5: =COUNTIF(O5:CF5,$N$4) -> 0 | P5: =IF(O5="Oro",150,IF(O5="Plata",120,IF(O5="Bronce",100,IF(O5="Quinto",50,IF(O5="Septimo",30,0))))) -> 0 | R5: =IF(Q5="Oro",150,IF(Q5="Plata",120,IF(Q5="Bronce",100,IF(Q5="Quinto",50,IF(Q5="Septimo",30,0))))) -> 0 | T5: =IF(S5="Oro",100,IF(S5="Plata",85,IF(S5="Bronce",70,IF(S5="Quinto",30,IF(S5="Septimo",15,0))))) -> 0 | V5: =IF(U5="Oro",100,IF(U5="Plata",85,IF(U5="Bronce",70,IF(U5="Quinto",30,IF(U5="Septimo",15,0))))) -> 0 | X5: =IF(W5="Oro",75,IF(W5="Plata",60,IF(W5="Bronce",50,IF(W5="Quinto",20,IF(W5="Septimo",7,0))))) -> 0 | Z5: =IF(Y5="Oro",75,IF(Y5="Plata",60,IF(Y5="Bronce",50,IF(Y5="Quinto",20,IF(Y5="Septimo",7,0))))) -> 0 | AB5: =IF(AA5="Oro",75,IF(AA5="Plata",60,IF(AA5="Bronce",50,IF(AA5="Quinto",20,IF(AA5="Septimo",7,0))))) -> 0 | AD5: =IF(AC5="Oro",75,IF(AC5="Plata",60,IF(AC5="Bronce",50,IF(AC5="Quinto",20,IF(AC5="Septimo",7,0))))) -> 0 | AF5: =IF(AE5="Oro",75,IF(AE5="Plata",60,IF(AE5="Bronce",50,IF(AE5="Quinto",20,IF(AE5="Septimo",7,0))))) -> 0 | AH5: =IF(AG5="Oro",75,IF(AG5="Plata",60,IF(AG5="Bronce",50,IF(AG5="Quinto",20,IF(AG5="Septimo",7,0))))) -> 0 | AJ5: =IF(AI5="Oro",75,IF(AI5="Plata",60,IF(AI5="Bronce",50,IF(AI5="Quinto",20,IF(AI5="Septimo",7,0))))) -> 0 | AL5: =IF(AK5="Oro",60,IF(AK5="Plata",50,IF(AK5="Bronce",35,IF(AK5="Quinto",15,IF(AK5="Septimo",5,0))))) -> 0 | AN5: =IF(AM5="Oro",60,IF(AM5="Plata",50,IF(AM5="Bronce",35,IF(AM5="Quinto",15,IF(AM5="Septimo",5,0))))) -> 0 | AP5: =IF(AO5="Oro",60,IF(AO5="Plata",50,IF(AO5="Bronce",35,IF(AO5="Quinto",15,IF(AO5="Septimo",5,0))))) -> 0 | AR5: =IF(AQ5="Oro",60,IF(AQ5="Plata",50,IF(AQ5="Bronce",35,IF(AQ5="Quinto",15,IF(AQ5="Septimo",5,0))))) -> 0 | AT5: =IF(AS5="Oro",60,IF(AS5="Plata",50,IF(AS5="Bronce",35,IF(AS5="Quinto",15,IF(AS5="Septimo",5,0))))) -> 0 | AV5: =IF(AU5="Oro",60,IF(AU5="Plata",50,IF(AU5="Bronce",35,IF(AU5="Quinto",15,IF(AU5="Septimo",5,0))))) -> 0 | AX5: =IF(AW5="Oro",60,IF(AW5="Plata",50,IF(AW5="Bronce",35,IF(AW5="Quinto",15,IF(AW5="Septimo",5,0))))) -> 0 | AZ5: =IF(AY5="Oro",60,IF(AY5="Plata",50,IF(AY5="Bronce",35,IF(AY5="Quinto",15,IF(AY5="Septimo",5,0))))) -> 0 | BB5: =IF(BA5="Oro",60,IF(BA5="Plata",50,IF(BA5="Bronce",35,IF(BA5="Quinto",15,IF(BA5="Septimo",5,0))))) -> 0 | BD5: =IF(BC5="Oro",60,IF(BC5="Plata",50,IF(BC5="Bronce",35,IF(BC5="Quinto",15,IF(BC5="Septimo",5,0))))) -> 0 | BF5: =IF(BE5="Oro",60,IF(BE5="Plata",50,IF(BE5="Bronce",35,IF(BE5="Quinto",15,IF(BE5="Septimo",5,0))))) -> 0 | BH5: =IF(BG5="Oro",30,IF(BG5="Plata",20,IF(BG5="Bronce",15,0))) -> 0 | BJ5: =IF(BI5="Oro",30,IF(BI5="Plata",20,IF(BI5="Bronce",15,0))) -> 0 | BL5: =IF(BK5="Oro",30,IF(BK5="Plata",20,IF(BK5="Bronce",15,0))) -> 0 | BN5: =IF(BM5="Oro",30,IF(BM5="Plata",20,IF(BM5="Bronce",15,0))) -> 0 | BP5: =IF(BO5="Oro",30,IF(BO5="Plata",20,IF(BO5="Bronce",15,0))) -> 0 | BR5: =IF(BQ5="Oro",30,IF(BQ5="Plata",20,IF(BQ5="Bronce",15,0))) -> 0 | BT5: =IF(BS5="Oro",30,IF(BS5="Plata",20,IF(BS5="Bronce",15,0))) -> 0 | BV5: =IF(BU5="Oro",30,IF(BU5="Plata",20,IF(BU5="Bronce",15,0))) -> 0 | BX5: =IF(BW5="Oro",30,IF(BW5="Plata",20,IF(BW5="Bronce",15,0))) -> 0 | BZ5: =IF(BY5="Oro",30,IF(BY5="Plata",20,IF(BY5="Bronce",15,0))) -> 0 | CB5: =IF(CA5="Oro",30,IF(CA5="Plata",20,IF(CA5="Bronce",15,0))) -> 0 | CD5: =IF(CC5="Oro",30,IF(CC5="Plata",20,IF(CC5="Bronce",15,0))) -> 0 | CF5: =IF(CE5="Oro",30,IF(CE5="Plata",20,IF(CE5="Bronce",15,0))) -> 0 | CN5: =SUMIFS('2019'!H:H,'2019'!A:A,"-100 kg",'2019'!D:D,'-100 kg'!H5,'2019'!E:E,'-100 kg'!I5) -> 30
C6: 2 | D6: CAT | H6: GONZALEZ NAVARRO | I6: Pedro Pablo | J6: 10 | K6: 10 | L6: 0 | M6: 0 | N6: 0 | P6: 0 | R6: 0 | T6: 0 | V6: 0 | X6: 0 | Z6: 0 | AB6: 0 | AD6: 0 | AF6: 0 | AH6: 0 | AJ6: 0 | AL6: 0 | AN6: 0 | AP6: 0 | AR6: 0 | AT6: 0 | AV6: 0 | AX6: 0 | AZ6: 0 | BB6: 0 | BD6: 0 | BF6: 0 | BH6: 0 | BJ6: 0 | BL6: 0 | BN6: 0 | BP6: 0 | BR6: 0 | BT6: 0 | BV6: 0 | BX6: 0 | BZ6: 0 | CA6: QUINTO | CB6: 0 | CD6: 0 | CF6: 0 | CN6: =SUMIFS('2019'!H:H,'2019'!A:A,"-100 kg",'2019'!D:D,'-100 kg'!H6,'2019'!E:E,'-100 kg'!I6) -> 20
C7: 3 | D7: MAD | H7: JIMENEZ PATIÑOS | I7: PEDRO | J7: 7.5 | K7: 7.5 | L7: 0 | M7: 0 | N7: 0 | P7: 0 | R7: 0 | T7: 0 | V7: 0 | X7: 0 | Z7: 0 | AB7: 0 | AD7: 0 | AF7: 0 | AH7: 0 | AJ7: 0 | AL7: 0 | AN7: 0 | AP7: 0 | AR7: 0 | AT7: 0 | AV7: 0 | AX7: 0 | AZ7: 0 | BB7: 0 | BD7: 0 | BF7: 0 | BH7: 0 | BJ7: 0 | BL7: 0 | BN7: 0 | BP7: 0 | BR7: 0 | BT7: 0 | BV7: 0 | BX7: 0 | BZ7: 0 | CA7: QUINTO | CB7: 0 | CD7: 0 | CF7: 0 | CN7: =SUMIFS('2019'!H:H,'2019'!A:A,"-100 kg",'2019'!D:D,'-100 kg'!H7,'2019'!E:E,'-100 kg'!I7) -> 15
C8: 3 | D8: VAL | H8: MEDINA PAULINO | I8: Lewis Rafael | J8: 7.5 | K8: 7.5 | L8: 0 | M8: 0 | N8: 0 | P8: 0 | R8: 0 | T8: 0 | V8: 0 | X8: 0 | Z8: 0 | AB8: 0 | AD8: 0 | AF8: 0 | AH8: 0 | AJ8: 0 | AL8: 0 | AN8: 0 | AP8: 0 | AR8: 0 | AT8: 0 | AV8: 0 | AX8: 0 | AZ8: 0 | BB8: 0 | BD8: 0 | BF8: 0 | BH8: 0 | BJ8: 0 | BL8: 0 | BN8: 0 | BP8: 0 | BR8: 0 | BT8: 0 | BV8: 0 | BX8: 0 | BZ8: 0 | CB8: 0 | CD8: 0 | CF8: 0 | CN8: =SUMIFS('2019'!H:H,'2019'!A:A,"-100 kg",'2019'!D:D,'-100 kg'!H8,'2019'!E:E,'-100 kg'!I8) -> 15
C9: 5 | J9: 0 | K9: 0 | L9: 0 | M9: 0 | N9: 0 | P9: 0 | R9: 0 | T9: 0 | V9: 0 | X9: 0 | Z9: 0 | AB9: 0 | AD9: 0 | AF9: 0 | AH9: 0 | AJ9: 0 | AL9: 0 | AN9: 0 | AP9: 0 | AR9: 0 | AT9: 0 | AV9: 0 | AX9: 0 | AZ9: 0 | BB9: 0 | BD9: 0 | BF9: 0 | BH9: 0 | BJ9: 0 | BL9: 0 | BN9: 0 | BP9: 0 | BR9: 0 | BT9: 0 | BV9: 0 | BX9: 0 | BZ9: 0 | CB9: 0 | CD9: 0 | CF9: 0 | CN9: =SUMIFS('2019'!H:H,'2019'!A:A,"-100 kg",'2019'!D:D,'-100 kg'!H9,'2019'!E:E,'-100 kg'!I9) -> 0
C10: 5 | J10: 0 | K10: 0 | L10: 0 | M10: 0 | N10: 0 | P10: 0 | R10: 0 | T10: 0 | V10: 0 | X10: 0 | Z10: 0 | AB10: 0 | AD10: 0 | AF10: 0 | AH10: 0 | AJ10: 0 | AL10: 0 | AN10: 0 | AP10: 0 | AR10: 0 | AT10: 0 | AU10: 0 | AV10: 0 | AX10: 0 | AZ10: 0 | BB10: 0 | BD10: 0 | BF10: 0 | BH10: 0 | BJ10: 0 | BL10: 0 | BN10: 0 | BP10: 0 | BR10: 0 | BT10: 0 | BV10: 0 | BX10: 0 | BZ10: 0 | CB10: 0 | CD10: 0 | CF10: 0 | CN10: =SUMIFS('2019'!H:H,'2019'!A:A,"-100 kg",'2019'!D:D,'-100 kg'!H10,'2019'!E:E,'-100 kg'!I10) -> 0
C11: 5 | J11: 0 | K11: 0 | L11: 0 | M11: 0 | N11: 0 | P11: 0 | R11: 0 | T11: 0 | V11: 0 | X11: 0 | Z11: 0 | AB11: 0 | AD11: 0 | AF11: 0 | AH11: 0 | AJ11: 0 | AL11: 0 | AN11: 0 | AP11: 0 | AR11: 0 | AT11: 0 | AV11: 0 | AX11: 0 | AZ11: 0 | BB11: 0 | BD11: 0 | BF11: 0 | BH11: 0 | BJ11: 0 | BL11: 0 | BN11: 0 | BP11: 0 | BR11: 0 | BT11: 0 | BV11: 0 | BX11: 0 | BZ11: 0 | CB11: 0 | CD11: 0 | CF11: 0 | CN11: =SUMIFS('2019'!H:H,'2019'!A:A,"-100 kg",'2019'!D:D,'-100 kg'!H11,'2019'!E:E,'-100 kg'!I11) -> 0
C12: 5 | J12: 0 | K12: 0 | L12: 0 | M12: 0 | N12: 0 | P12: 0 | R12: 0 | T12: 0 | V12: 0 | X12: 0 | Z12: 0 | AB12: 0 | AD12: 0 | AF12: 0 | AH12: 0 | AJ12: 0 | AL12: 0 | AN12: 0 | AP12: 0 | AR12: 0 | AT12: 0 | AV12: 0 | AX12: 0 | AZ12: 0 | BB12: 0 | BD12: 0 | BF12: 0 | BH12: 0 | BJ12: 0 | BL12: 0 | BN12: 0 | BP12: 0 | BR12: 0 | BT12: 0 | BV12: 0 | BX12: 0 | BZ12: 0 | CB12: 0 | CD12: 0 | CF12: 0 | CN12: =SUMIFS('2019'!H:H,'2019'!A:A,"-100 kg",'2019'!D:D,'-100 kg'!H12,'2019'!E:E,'-100 kg'!I12) -> 0
C13: 5 | J13: 0 | K13: 0 | L13: 0 | M13: 0 | N13: 0 | P13: 0 | R13: 0 | T13: 0 | V13: 0 | X13: 0 | Z13: 0 | AB13: 0 | AD13: 0 | AF13: 0 | AH13: 0 | AJ13: 0 | AL13: 0 | AN13: 0 | AP13: 0 | AR13: 0 | AT13: 0 | AV13: 0 | AX13: 0 | AZ13: 0 | BB13: 0 | BD13: 0 | BF13: 0 | BH13: 0 | BJ13: 0 | BL13: 0 | BN13: 0 | BP13: 0 | BR13: 0 | BT13: 0 | BV13: 0 | BX13: 0 | BZ13: 0 | CB13: 0 | CD13: 0 | CF13: 0 | CN13: =SUMIFS('2019'!H:H,'2019'!A:A,"-100 kg",'2019'!D:D,'-100 kg'!H13,'2019'!E:E,'-100 kg'!I13) -> 0
C14: 5 | J14: 0 | K14: 0 | L14: 0 | M14: 0 | N14: 0 | P14: 0 | R14: 0 | T14: 0 | V14: 0 | X14: 0 | Z14: 0 | AB14: 0 | AD14: 0 | AF14: 0 | AH14: 0 | AJ14: 0 | AL14: 0 | AN14: 0 | AP14: 0 | AR14: 0 | AT14: 0 | AV14: 0 | AX14: 0 | AZ14: 0 | BB14: 0 | BD14: 0 | BF14: 0 | BH14: 0 | BJ14: 0 | BL14: 0 | BN14: 0 | BP14: 0 | BR14: 0 | BT14: 0 | BV14: 0 | BX14: 0 | BZ14: 0 | CB14: 0 | CD14: 0 | CF14: 0 | CN14: =SUMIFS('2019'!H:H,'2019'!A:A,"-100 kg",'2019'!D:D,'-100 kg'!H14,'2019'!E:E,'-100 kg'!I14) -> 0
C15: 5 | J15: 0 | K15: 0 | L15: 0 | M15: 0 | N15: 0 | P15: 0 | R15: 0 | T15: 0 | V15: 0 | X15: 0 | Z15: 0 | AB15: 0 | AD15: 0 | AF15: 0 | AH15: 0 | AJ15: 0 | AL15: 0 | AN15: 0 | AP15: 0 | AR15: 0 | AT15: 0 | AV15: 0 | AX15: 0 | AZ15: 0 | BB15: 0 | BD15: 0 | BF15: 0 | BH15: 0 | BJ15: 0 | BL15: 0 | BN15: 0 | BP15: 0 | BR15: 0 | BT15: 0 | BV15: 0 | BX15: 0 | BZ15: 0 | CB15: 0 | CD15: 0 | CF15: 0 | CN15: =SUMIFS('2019'!H:H,'2019'!A:A,"-100 kg",'2019'!D:D,'-100 kg'!H15,'2019'!E:E,'-100 kg'!I15) -> 0
C16: 5 | J16: 0 | K16: 0 | L16: 0 | M16: 0 | N16: 0 | P16: 0 | R16: 0 | T16: 0 | V16: 0 | X16: 0 | Z16: 0 | AB16: 0 | AD16: 0 | AF16: 0 | AH16: 0 | AJ16: 0 | AL16: 0 | AN16: 0 | AP16: 0 | AR16: 0 | AT16: 0 | AV16: 0 | AX16: 0 | AZ16: 0 | BB16: 0 | BD16: 0 | BF16: 0 | BH16: 0 | BJ16: 0 | BL16: 0 | BN16: 0 | BP16: 0 | BR16: 0 | BT16: 0 | BV16: 0 | BX16: 0 | BZ16: 0 | CB16: 0 | CD16: 0 | CF16: 0 | CN16: =SUMIFS('2019'!H:H,'2019'!A:A,"-100 kg",'2019'!D:D,'-100 kg'!H16,'2019'!E:E,'-100 kg'!I16) -> 0
C17: 5 | J17: 0 | K17: 0 | L17: 0 | M17: 0 | N17: 0 | P17: 0 | R17: 0 | T17: 0 | V17: 0 | X17: 0 | Z17: 0 | AB17: 0 | AD17: 0 | AF17: 0 | AH17: 0 | AJ17: 0 | AL17: 0 | AN17: 0 | AP17: 0 | AR17: 0 | AT17: 0 | AV17: 0 | AX17: 0 | AZ17: 0 | BB17: 0 | BD17: 0 | BF17: 0 | BH17: 0 | BJ17: 0 | BL17: 0 | BN17: 0 | BP17: 0 | BR17: 0 | BT17: 0 | BV17: 0 | BX17: 0 | BZ17: 0 | CB17: 0 | CD17: 0 | CF17: 0 | CN17: =SUMIFS('2019'!H:H,'2019'!A:A,"-100 kg",'2019'!D:D,'-100 kg'!H17,'2019'!E:E,'-100 kg'!I17) -> 0
C18: 5 | J18: 0 | K18: 0 | L18: 0 | M18: 0 | N18: 0 | P18: 0 | R18: 0 | T18: 0 | V18: 0 | X18: 0 | Z18: 0 | AB18: 0 | AD18: 0 | AF18: 0 | AH18: 0 | AJ18: 0 | AL18: 0 | AN18: 0 | AP18: 0 | AR18: 0 | AT18: 0 | AV18: 0 | AX18: 0 | AZ18: 0 | BB18: 0 | BD18: 0 | BF18: 0 | BH18: 0 | BJ18: 0 | BL18: 0 | BN18: 0 | BP18: 0 | BR18: 0 | BT18: 0 | BV18: 0 | BX18: 0 | BZ18: 0 | CB18: 0 | CD18: 0 | CF18: 0 | CN18: =SUMIFS('2019'!H:H,'2019'!A:A,"-100 kg",'2019'!D:D,'-100 kg'!H18,'2019'!E:E,'-100 kg'!I18) -> 0
C19: 5 | J19: 0 | K19: 0 | L19: 0 | M19: 0 | N19: 0 | P19: 0 | R19: 0 | T19: 0 | V19: 0 | X19: 0 | Z19: 0 | AB19: 0 | AD19: 0 | AF19: 0 | AH19: 0 | AJ19: 0 | AL19: 0 | AN19: 0 | AP19: 0 | AR19: 0 | AT19: 0 | AV19: 0 | AX19: 0 | AZ19: 0 | BB19: 0 | BD19: 0 | BF19: 0 | BH19: 0 | BJ19: 0 | BL19: 0 | BN19: 0 | BP19: 0 | BR19: 0 | BT19: 0 | BV19: 0 | BX19: 0 | BZ19: 0 | CB19: 0 | CD19: 0 | CF19: 0 | CN19: =SUMIFS('2019'!H:H,'2019'!A:A,"-100 kg",'2019'!D:D,'-100 kg'!H19,'2019'!E:E,'-100 kg'!I19) -> 0
C20: 5 | J20: 0 | K20: 0 | L20: 0 | M20: 0 | N20: 0 | P20: 0 | R20: 0 | T20: 0 | V20: 0 | X20: 0 | Z20: 0 | AB20: 0 | AD20: 0 | AF20: 0 | AH20: 0 | AJ20: 0 | AL20: 0 | AN20: 0 | AP20: 0 | AR20: 0 | AT20: 0 | AV20: 0 | AX20: 0 | AZ20: 0 | BB20: 0 | BD20: 0 | BF20: 0 | BH20: 0 | BJ20: 0 | BL20: 0 | BN20: 0 | BP20: 0 | BR20: 0 | BT20: 0 | BV20: 0 | BX20: 0 | BZ20: 0 | CB20: 0 | CD20: 0 | CF20: 0 | CN20: =SUMIFS('2019'!H:H,'2019'!A:A,"-100 kg",'2019'!D:D,'-100 kg'!H20,'2019'!E:E,'-100 kg'!I20) -> 0
C21: 5 | J21: 0 | K21: 0 | L21: 0 | M21: 0 | N21: 0 | P21: 0 | R21: 0 | T21: 0 | V21: 0 | X21: 0 | Z21: 0 | AB21: 0 | AD21: 0 | AF21: 0 | AH21: 0 | AJ21: 0 | AL21: 0 | AN21: 0 | AP21: 0 | AR21: 0 | AT21: 0 | AV21: 0 | AX21: 0 | AZ21: 0 | BB21: 0 | BD21: 0 | BF21: 0 | BH21: 0 | BJ21: 0 | BL21: 0 | BN21: 0 | BP21: 0 | BR21: 0 | BT21: 0 | BV21: 0 | BX21: 0 | BZ21: 0 | CB21: 0 | CD21: 0 | CF21: 0 | CN21: =SUMIFS('2019'!H:H,'2019'!A:A,"-100 kg",'2019'!D:D,'-100 kg'!H21,'2019'!E:E,'-100 kg'!I21) -> 0
C22: 5 | J22: 0 | K22: 0 | L22: 0 | M22: 0 | N22: 0 | P22: 0 | R22: 0 | T22: 0 | V22: 0 | X22: 0 | Z22: 0 | AB22: 0 | AD22: 0 | AF22: 0 | AH22: 0 | AJ22: 0 | AL22: 0 | AN22: 0 | AP22: 0 | AR22: 0 | AT22: 0 | AV22: 0 | AX22: 0 | AZ22: 0 | BB22: 0 | BD22: 0 | BF22: 0 | BH22: 0 | BJ22: 0 | BL22: 0 | BN22: 0 | BP22: 0 | BR22: 0 | BT22: 0 | BV22: 0 | BX22: 0 | BZ22: 0 | CB22: 0 | CD22: 0 | CF22: 0 | CN22: =SUMIFS('2019'!H:H,'2019'!A:A,"-100 kg",'2019'!D:D,'-100 kg'!H22,'2019'!E:E,'-100 kg'!I22) -> 0
C23: 5 | J23: 0 | K23: 0 | L23: 0 | M23: 0 | N23: 0 | P23: 0 | R23: 0 | T23: 0 | V23: 0 | X23: 0 | Z23: 0 | AB23: 0 | AD23: 0 | AF23: 0 | AH23: 0 | AJ23: 0 | AL23: 0 | AN23: 0 | AP23: 0 | AR23: 0 | AT23: 0 | AV23: 0 | AX23: 0 | AZ23: 0 | BB23: 0 | BD23: 0 | BF23: 0 | BH23: 0 | BJ23: 0 | BL23: 0 | BN23: 0 | BP23: 0 | BR23: 0 | BT23: 0 | BV23: 0 | BX23: 0 | BZ23: 0 | CB23: 0 | CD23: 0 | CF23: 0 | CN23: =SUMIFS('2019'!H:H,'2019'!A:A,"-100 kg",'2019'!D:D,'-100 kg'!H23,'2019'!E:E,'-100 kg'!I23) -> 0
C24: 5 | J24: 0 | K24: 0 | L24: 0 | M24: 0 | N24: 0 | P24: 0 | R24: 0 | T24: 0 | V24: 0 | X24: 0 | Z24: 0 | AB24: 0 | AD24: 0 | AF24: 0 | AH24: 0 | AJ24: 0 | AL24: 0 | AN24: 0 | AP24: 0 | AR24: 0 | AT24: 0 | AV24: 0 | AX24: 0 | AZ24: 0 | BB24: 0 | BD24: 0 | BF24: 0 | BH24: 0 | BJ24: 0 | BL24: 0 | BN24: 0 | BP24: 0 | BR24: 0 | BT24: 0 | BV24: 0 | BX24: 0 | BZ24: 0 | CB24: 0 | CD24: 0 | CF24: 0 | CN24: =SUMIFS('2019'!H:H,'2019'!A:A,"-100 kg",'2019'!D:D,'-100 kg'!H24,'2019'!E:E,'-100 kg'!I24) -> 0
C25: 5 | J25: 0 | K25: 0 | L25: 0 | M25: 0 | N25: 0 | P25: 0 | R25: 0 | T25: 0 | V25: 0 | X25: 0 | Z25: 0 | AB25: 0 | AD25: 0 | AF25: 0 | AH25: 0 | AJ25: 0 | AL25: 0 | AN25: 0 | AP25: 0 | AR25: 0 | AT25: 0 | AV25: 0 | AX25: 0 | AZ25: 0 | BB25: 0 | BD25: 0 | BF25: 0 | BH25: 0 | BJ25: 0 | BL25: 0 | BN25: 0 | BP25: 0 | BR25: 0 | BT25: 0 | BV25: 0 | BX25: 0 | BZ25: 0 | CB25: 0 | CD25: 0 | CF25: 0 | CN25: =SUMIFS('2019'!H:H,'2019'!A:A,"-100 kg",'2019'!D:D,'-100 kg'!H25,'2019'!E:E,'-100 kg'!I25) -> 0
C26: 5 | J26: 0 | K26: 0 | L26: 0 | M26: 0 | N26: 0 | P26: 0 | R26: 0 | T26: 0 | V26: 0 | X26: 0 | Z26: 0 | AB26: 0 | AD26: 0 | AF26: 0 | AH26: 0 | AJ26: 0 | AL26: 0 | AN26: 0 | AP26: 0 | AR26: 0 | AT26: 0 | AV26: 0 | AX26: 0 | AZ26: 0 | BB26: 0 | BD26: 0 | BF26: 0 | BH26: 0 | BJ26: 0 | BL26: 0 | BN26: 0 | BP26: 0 | BR26: 0 | BT26: 0 | BV26: 0 | BX26: 0 | BZ26: 0 | CB26: 0 | CD26: 0 | CF26: 0 | CN26: =SUMIFS('2019'!H:H,'2019'!A:A,"-100 kg",'2019'!D:D,'-100 kg'!H26,'2019'!E:E,'-100 kg'!I26) -> 0
C27: 5 | J27: 0 | K27: 0 | L27: 0 | M27: 0 | N27: 0 | P27: 0 | R27: 0 | T27: 0 | V27: 0 | X27: 0 | Z27: 0 | AB27: 0 | AD27: 0 | AF27: 0 | AH27: 0 | AJ27: 0 | AL27: 0 | AN27: 0 | AP27: 0 | AR27: 0 | AT27: 0 | AV27: 0 | AX27: 0 | AZ27: 0 | BB27: 0 | BD27: 0 | BF27: 0 | BH27: 0 | BJ27: 0 | BL27: 0 | BN27: 0 | BP27: 0 | BR27: 0 | BT27: 0 | BV27: 0 | BX27: 0 | BZ27: 0 | CB27: 0 | CD27: 0 | CF27: 0 | CN27: =SUMIFS('2019'!H:H,'2019'!A:A,"-100 kg",'2019'!D:D,'-100 kg'!H27,'2019'!E:E,'-100 kg'!I27) -> 0
C28: 5 | J28: 0 | K28: 0 | L28: 0 | M28: 0 | N28: 0 | P28: 0 | R28: 0 | T28: 0 | V28: 0 | X28: 0 | Z28: 0 | AB28: 0 | AD28: 0 | AF28: 0 | AH28: 0 | AJ28: 0 | AL28: 0 | AN28: 0 | AP28: 0 | AR28: 0 | AT28: 0 | AV28: 0 | AX28: 0 | AZ28: 0 | BB28: 0 | BD28: 0 | BF28: 0 | BH28: 0 | BJ28: 0 | BL28: 0 | BN28: 0 | BP28: 0 | BR28: 0 | BT28: 0 | BV28: 0 | BX28: 0 | BZ28: 0 | CB28: 0 | CD28: 0 | CF28: 0 | CN28: =SUMIFS('2019'!H:H,'2019'!A:A,"-100 kg",'2019'!D:D,'-100 kg'!H28,'2019'!E:E,'-100 kg'!I28) -> 0
C29: 5 | J29: 0 | K29: 0 | L29: 0 | M29: 0 | N29: 0 | P29: 0 | R29: 0 | T29: 0 | V29: 0 | X29: 0 | Z29: 0 | AB29: 0 | AD29: 0 | AF29: 0 | AH29: 0 | AJ29: 0 | AL29: 0 | AN29: 0 | AP29: 0 | AR29: 0 | AT29: 0 | AV29: 0 | AX29: 0 | AZ29: 0 | BB29: 0 | BD29: 0 | BF29: 0 | BH29: 0 | BJ29: 0 | BL29: 0 | BN29: 0 | BP29: 0 | BR29: 0 | BT29: 0 | BV29: 0 | BX29: 0 | BZ29: 0 | CB29: 0 | CD29: 0 | CF29: 0 | CN29: =SUMIFS('2019'!H:H,'2019'!A:A,"-100 kg",'2019'!D:D,'-100 kg'!H29,'2019'!E:E,'-100 kg'!I29) -> 0
C30: 5 | J30: 0 | K30: 0 | L30: 0 | M30: 0 | N30: 0 | P30: 0 | R30: 0 | T30: 0 | V30: 0 | X30: 0 | Z30: 0 | AB30: 0 | AD30: 0 | AF30: 0 | AH30: 0 | AJ30: 0 | AL30: 0 | AN30: 0 | AP30: 0 | AR30: 0 | AT30: 0 | AV30: 0 | AX30: 0 | AZ30: 0 | BB30: 0 | BD30: 0 | BF30: 0 | BH30: 0 | BJ30: 0 | BL30: 0 | BN30: 0 | BP30: 0 | BR30: 0 | BT30: 0 | BV30: 0 | BX30: 0 | BZ30: 0 | CB30: 0 | CD30: 0 | CF30: 0 | CN30: =SUMIFS('2019'!H:H,'2019'!A:A,"-100 kg",'2019'!D:D,'-100 kg'!H30,'2019'!E:E,'-100 kg'!I30) -> 0
C31: 5 | J31: 0 | K31: 0 | L31: 0 | M31: 0 | N31: 0 | P31: 0 | R31: 0 | T31: 0 | V31: 0 | X31: 0 | Z31: 0 | AB31: 0 | AD31: 0 | AF31: 0 | AH31: 0 | AJ31: 0 | AL31: 0 | AN31: 0 | AP31: 0 | AR31: 0 | AT31: 0 | AV31: 0 | AX31: 0 | AZ31: 0 | BB31: 0 | BD31: 0 | BF31: 0 | BH31: 0 | BJ31: 0 | BL31: 0 | BN31: 0 | BP31: 0 | BR31: 0 | BT31: 0 | BV31: 0 | BX31: 0 | BZ31: 0 | CB31: 0 | CD31: 0 | CF31: 0 | CN31: =SUMIFS('2019'!H:H,'2019'!A:A,"-100 kg",'2019'!D:D,'-100 kg'!H31,'2019'!E:E,'-100 kg'!I31) -> 0
C32: 5 | J32: 0 | K32: 0 | L32: 0 | M32: 0 | N32: 0 | P32: 0 | R32: 0 | T32: 0 | V32: 0 | X32: 0 | Z32: 0 | AB32: 0 | AD32: 0 | AF32: 0 | AH32: 0 | AJ32: 0 | AL32: 0 | AN32: 0 | AP32: 0 | AR32: 0 | AT32: 0 | AV32: 0 | AX32: 0 | AZ32: 0 | BB32: 0 | BD32: 0 | BF32: 0 | BH32: 0 | BJ32: 0 | BL32: 0 | BN32: 0 | BP32: 0 | BR32: 0 | BT32: 0 | BV32: 0 | BX32: 0 | BZ32: 0 | CB32: 0 | CD32: 0 | CF32: 0 | CN32: =SUMIFS('2019'!H:H,'2019'!A:A,"-100 kg",'2019'!D:D,'-100 kg'!H32,'2019'!E:E,'-100 kg'!I32) -> 0
C33: 5 | J33: 0 | K33: 0 | L33: 0 | M33: 0 | N33: 0 | P33: 0 | R33: 0 | T33: 0 | V33: 0 | X33: 0 | Z33: 0 | AB33: 0 | AD33: 0 | AF33: 0 | AH33: 0 | AJ33: 0 | AL33: 0 | AN33: 0 | AP33: 0 | AR33: 0 | AT33: 0 | AV33: 0 | AX33: 0 | AZ33: 0 | BB33: 0 | BD33: 0 | BF33: 0 | BH33: 0 | BJ33: 0 | BL33: 0 | BN33: 0 | BP33: 0 | BR33: 0 | BT33: 0 | BV33: 0 | BX33: 0 | BZ33: 0 | CB33: 0 | CD33: 0 | CF33: 0 | CN33: =SUMIFS('2019'!H:H,'2019'!A:A,"-100 kg",'2019'!D:D,'-100 kg'!H33,'2019'!E:E,'-100 kg'!I33) -> 0
C34: 5 | J34: 0 | K34: 0 | L34: 0 | M34: 0 | N34: 0 | P34: 0 | R34: 0 | T34: 0 | V34: 0 | X34: 0 | Z34: 0 | AB34: 0 | AD34: 0 | AF34: 0 | AH34: 0 | AJ34: 0 | AL34: 0 | AN34: 0 | AP34: 0 | AR34: 0 | AT34: 0 | AV34: 0 | AX34: 0 | AZ34: 0 | BB34: 0 | BD34: 0 | BF34: 0 | BH34: 0 | BJ34: 0 | BL34: 0 | BN34: 0 | BP34: 0 | BR34: 0 | BT34: 0 | BV34: 0 | BX34: 0 | BZ34: 0 | CB34: 0 | CD34: 0 | CF34: 0 | CN34: =SUMIFS('2019'!H:H,'2019'!A:A,"-100 kg",'2019'!D:D,'-100 kg'!H34,'2019'!E:E,'-100 kg'!I34) -> 0
C35: 5 | J35: 0 | K35: 0 | L35: 0 | M35: 0 | N35: 0 | P35: 0 | R35: 0 | T35: 0 | V35: 0 | X35: 0 | Z35: 0 | AB35: 0 | AD35: 0 | AF35: 0 | AH35: 0 | AJ35: 0 | AL35: 0 | AN35: 0 | AP35: 0 | AR35: 0 | AT35: 0 | AV35: 0 | AX35: 0 | AZ35: 0 | BB35: 0 | BD35: 0 | BF35: 0 | BH35: 0 | BJ35: 0 | BL35: 0 | BN35: 0 | BP35: 0 | BR35: 0 | BT35: 0 | BV35: 0 | BX35: 0 | BZ35: 0 | CB35: 0 | CD35: 0 | CF35: 0 | CN35: =SUMIFS('2019'!H:H,'2019'!A:A,"-100 kg",'2019'!D:D,'-100 kg'!H35,'2019'!E:E,'-100 kg'!I35) -> 0
C36: 5 | J36: 0 | K36: 0 | L36: 0 | M36: 0 | N36: 0 | P36: 0 | R36: 0 | T36: 0 | V36: 0 | X36: 0 | Z36: 0 | AB36: 0 | AD36: 0 | AF36: 0 | AH36: 0 | AJ36: 0 | AL36: 0 | AN36: 0 | AP36: 0 | AR36: 0 | AT36: 0 | AV36: 0 | AX36: 0 | AZ36: 0 | BB36: 0 | BD36: 0 | BF36: 0 | BH36: 0 | BJ36: 0 | BL36: 0 | BN36: 0 | BP36: 0 | BR36: 0 | BT36: 0 | BV36: 0 | BX36: 0 | BZ36: 0 | CB36: 0 | CD36: 0 | CF36: 0 | CN36: =SUMIFS('2019'!H:H,'2019'!A:A,"-100 kg",'2019'!D:D,'-100 kg'!H36,'2019'!E:E,'-100 kg'!I36) -> 0
C37: 5 | J37: 0 | K37: 0 | L37: 0 | M37: 0 | N37: 0 | P37: 0 | R37: 0 | T37: 0 | V37: 0 | X37: 0 | Z37: 0 | AB37: 0 | AD37: 0 | AF37: 0 | AH37: 0 | AJ37: 0 | AL37: 0 | AN37: 0 | AP37: 0 | AR37: 0 | AT37: 0 | AV37: 0 | AX37: 0 | AZ37: 0 | BB37: 0 | BD37: 0 | BF37: 0 | BH37: 0 | BJ37: 0 | BL37: 0 | BN37: 0 | BP37: 0 | BR37: 0 | BT37: 0 | BV37: 0 | BX37: 0 | BZ37: 0 | CB37: 0 | CD37: 0 | CF37: 0 | CN37: =SUMIFS('2019'!H:H,'2019'!A:A,"-100 kg",'2019'!D:D,'-100 kg'!H37,'2019'!E:E,'-100 kg'!I37) -> 0
C38: 5 | J38: 0 | K38: 0 | L38: 0 | M38: 0 | N38: 0 | P38: 0 | R38: 0 | T38: 0 | V38: 0 | X38: 0 | Z38: 0 | AB38: 0 | AD38: 0 | AF38: 0 | AH38: 0 | AJ38: 0 | AL38: 0 | AN38: 0 | AP38: 0 | AR38: 0 | AT38: 0 | AV38: 0 | AX38: 0 | AZ38: 0 | BB38: 0 | BD38: 0 | BF38: 0 | BH38: 0 | BJ38: 0 | BL38: 0 | BN38: 0 | BP38: 0 | BR38: 0 | BT38: 0 | BV38: 0 | BX38: 0 | BZ38: 0 | CB38: 0 | CD38: 0 | CF38: 0 | CN38: =SUMIFS('2019'!H:H,'2019'!A:A,"-100 kg",'2019'!D:D,'-100 kg'!H38,'2019'!E:E,'-100 kg'!I38) -> 0
C39: 5 | J39: 0 | K39: 0 | L39: 0 | M39: 0 | N39: 0 | P39: 0 | R39: 0 | T39: 0 | V39: 0 | X39: 0 | Z39: 0 | AB39: 0 | AD39: 0 | AF39: 0 | AH39: 0 | AJ39: 0 | AL39: 0 | AN39: 0 | AP39: 0 | AR39: 0 | AT39: 0 | AV39: 0 | AX39: 0 | AZ39: 0 | BB39: 0 | BD39: 0 | BF39: 0 | BH39: 0 | BJ39: 0 | BL39: 0 | BN39: 0 | BP39: 0 | BR39: 0 | BT39: 0 | BV39: 0 | BX39: 0 | BZ39: 0 | CB39: 0 | CD39: 0 | CF39: 0 | CN39: =SUMIFS('2019'!H:H,'2019'!A:A,"-100 kg",'2019'!D:D,'-100 kg'!H39,'2019'!E:E,'-100 kg'!I39) -> 0
C40: 5 | J40: 0 | K40: 0 | L40: 0 | M40: 0 | N40: 0 | P40: 0 | R40: 0 | T40: 0 | V40: 0 | X40: 0 | Z40: 0 | AB40: 0 | AD40: 0 | AF40: 0 | AH40: 0 | AJ40: 0 | AL40: 0 | AN40: 0 | AP40: 0 | AR40: 0 | AT40: 0 | AV40: 0 | AX40: 0 | AZ40: 0 | BB40: 0 | BD40: 0 | BF40: 0 | BH40: 0 | BJ40: 0 | BL40: 0 | BN40: 0 | BP40: 0 | BR40: 0 | BT40: 0 | BV40: 0 | BX40: 0 | BZ40: 0 | CB40: 0 | CD40: 0 | CF40: 0 | CN40: =SUMIFS('2019'!H:H,'2019'!A:A,"-100 kg",'2019'!D:D,'-100 kg'!H40,'2019'!E:E,'-100 kg'!I40) -> 0
C41: 5 | J41: 0 | K41: 0 | L41: 0 | M41: 0 | N41: 0 | P41: 0 | R41: 0 | T41: 0 | V41: 0 | X41: 0 | Z41: 0 | AB41: 0 | AD41: 0 | AF41: 0 | AH41: 0 | AJ41: 0 | AL41: 0 | AN41: 0 | AP41: 0 | AR41: 0 | AT41: 0 | AV41: 0 | AX41: 0 | AZ41: 0 | BB41: 0 | BD41: 0 | BF41: 0 | BH41: 0 | BJ41: 0 | BL41: 0 | BN41: 0 | BP41: 0 | BR41: 0 | BT41: 0 | BV41: 0 | BX41: 0 | BZ41: 0 | CB41: 0 | CD41: 0 | CF41: 0 | CN41: =SUMIFS('2019'!H:H,'2019'!A:A,"-100 kg",'2019'!D:D,'-100 kg'!H41,'2019'!E:E,'-100 kg'!I41) -> 0
C42: 5 | J42: 0 | K42: 0 | L42: 0 | M42: 0 | N42: 0 | P42: 0 | R42: 0 | T42: 0 | V42: 0 | X42: 0 | Z42: 0 | AB42: 0 | AD42: 0 | AF42: 0 | AH42: 0 | AJ42: 0 | AL42: 0 | AN42: 0 | AP42: 0 | AR42: 0 | AT42: 0 | AV42: 0 | AX42: 0 | AZ42: 0 | BB42: 0 | BD42: 0 | BF42: 0 | BH42: 0 | BJ42: 0 | BL42: 0 | BN42: 0 | BP42: 0 | BR42: 0 | BT42: 0 | BV42: 0 | BX42: 0 | BZ42: 0 | CB42: 0 | CD42: 0 | CF42: 0 | CN42: =SUMIFS('2019'!H:H,'2019'!A:A,"-100 kg",'2019'!D:D,'-100 kg'!H42,'2019'!E:E,'-100 kg'!I42) -> 0
C43: 5 | J43: 0 | K43: 0 | L43: 0 | M43: 0 | N43: 0 | P43: 0 | R43: 0 | T43: 0 | V43: 0 | X43: 0 | Z43: 0 | AB43: 0 | AD43: 0 | AF43: 0 | AH43: 0 | AJ43: 0 | AL43: 0 | AN43: 0 | AP43: 0 | AR43: 0 | AT43: 0 | AV43: 0 | AX43: 0 | AZ43: 0 | BB43: 0 | BD43: 0 | BF43: 0 | BH43: 0 | BJ43: 0 | BL43: 0 | BN43: 0 | BP43: 0 | BR43: 0 | BT43: 0 | BV43: 0 | BX43: 0 | BZ43: 0 | CB43: 0 | CD43: 0 | CF43: 0 | CN43: =SUMIFS('2019'!H:H,'2019'!A:A,"-100 kg",'2019'!D:D,'-100 kg'!H43,'2019'!E:E,'-100 kg'!I43) -> 0
C44: 5 | J44: 0 | K44: 0 | L44: 0 | M44: 0 | N44: 0 | P44: 0 | R44: 0 | T44: 0 | V44: 0 | X44: 0 | Z44: 0 | AB44: 0 | AD44: 0 | AF44: 0 | AH44: 0 | AJ44: 0 | AL44: 0 | AN44: 0 | AP44: 0 | AR44: 0 | AT44: 0 | AV44: 0 | AX44: 0 | AZ44: 0 | BB44: 0 | BD44: 0 | BF44: 0 | BH44: 0 | BJ44: 0 | BL44: 0 | BN44: 0 | BP44: 0 | BR44: 0 | BT44: 0 | BV44: 0 | BX44: 0 | BZ44: 0 | CB44: 0 | CD44: 0 | CF44: 0 | CN44: =SUMIFS('2019'!H:H,'2019'!A:A,"-100 kg",'2019'!D:D,'-100 kg'!H44,'2019'!E:E,'-100 kg'!I44) -> 0
CN45: =SUMIFS('2019'!H:H,'2019'!A:A,"-100 kg",'2019'!D:D,'-100 kg'!H45,'2019'!E:E,'-100 kg'!I45) -> 0

Sheet +100 kg (hidden)
C2: Ranking | D2: Nation | E2: Continent | F2: IJF ID | G2: Y.o B. | H2: FAMILY NAME | I2: Given name | J2: Total score
C3: Puesto | D3: Comunidad | E3: Continent | F3: España ID | G3: A. de N. | H3: APELLIDOS | I3: Nombre | J3: Ranking Nacional Absoluto | K3: Puntuación Año Anterior | L3: Clasificación Equipo Absoluto | O3: Master ABS | Q3: Campeonato Mundo | S3: Campeonato Europa | U3: Campeonato Europa S23 | W3: Gran Slam (Francia) | Y3: Grand Slam (Abu Dhabi) | AA3: GRAND SLAM BRASILIA | AC3: GRAND SLAM OSAKA | AK3: Gran Prix Croacia - ZAGREB | AM3: Gran Prix (Marruecos) | AO3: Gran Prix (La Haya) | AQ3: Gran Prix (Tunez) | AS3: Gran Prix (Duseldorf) | AU3: Gran Prix (China) | AW3: Gran Prix (Uzbekistan) | AY3: Gran Prix Budapest | BE3: Juegos Mediterraneo | BG3: Campeonato España | BI3: European Open (Odivelas) | BK3: European Open (Sofia) | BM3: European Open (Roma) | BO3: European Open (POLONIA) | BQ3: European Open (RUMANIA) | BS3: European Open (Glasgow) | BU3: Open Panamericano | BW3: Open Luxemburgo | CA3: European Cup Málaga | CN3: Puntuación Año Anterior
K4: 0.5 | L4: Oro | M4: Plata | N4: Bronce | O4: Medalla | P4: Puntos | Q4: Medalla | R4: Puntos | S4: Medalla | T4: Puntos | U4: Medalla | V4: Puntos | W4: Medalla | X4: Puntos | Y4: Medalla | Z4: Puntos | AA4: Medalla | AB4: Puntos | AC4: Medalla | AD4: Puntos | AE4: Medalla | AF4: Puntos | AG4: Medalla | AH4: Puntos | AI4: Medalla | AJ4: Puntos | AK4: Medalla | AL4: Puntos | AM4: Medalla | AN4: Puntos | AO4: Medalla | AP4: Puntos | AQ4: Medalla | AR4: Puntos | AS4: Medalla | AT4: Puntos | AU4: Medalla | AV4: Puntos | AW4: Medalla | AX4: Puntos | AY4: Medalla | AZ4: Puntos | BA4: Medalla | BB4: Puntos | BC4: Medalla | BD4: Puntos | BE4: Medalla | BF4: Puntos | BG4: Medalla | BH4: Puntos | BI4: Medalla | BJ4: Puntos | BK4: Medalla | BL4: Puntos | BM4: Medalla | BN4: Puntos | BO4: Medalla | BP4: Puntos | BQ4: Medalla | BR4: Puntos | BS4: Medalla | BT4: Puntos | BU4: Medalla | BV4: Puntos | BW4: Medalla | BX4: Puntos | BY4: Medalla | BZ4: Puntos | CA4: Medalla | CB4: Puntos | CC4: Medalla | CD4: Puntos | CE4: Medalla | CF4: Puntos | CN4: 1
C5: =RANK(J5,$J$5:$J$44,0) -> 1 | D5: VAL | H5: CHELARU GRIGORAS | I5: Irinel Vasile | J5: =SUM(O5:CF5)+K5 -> 77.5 | K5: =CN5*50/100 -> 47.5 | L5: =COUNTIF(O5:CF5,$L$4) -> 1 | M5: =COUNTIF(O5:CF5,$M$4) -> 0 | N5: =COUNTIF(O5:CF5,$N$4) -> 0 | P5: =IF(O5="Oro",150,IF(O5="Plata",120,IF(O5="Bronce",100,IF(O5="Quinto",50,IF(O5="Septimo",30,0))))) -> 0 | R5: =IF(Q5="Oro",150,IF(Q5="Plata",120,IF(Q5="Bronce",100,IF(Q5="Quinto",50,IF(Q5="Septimo",30,0))))) -> 0 | T5: =IF(S5="Oro",100,IF(S5="Plata",85,IF(S5="Bronce",70,IF(S5="Quinto",30,IF(S5="Septimo",15,0))))) -> 0 | V5: =IF(U5="Oro",100,IF(U5="Plata",85,IF(U5="Bronce",70,IF(U5="Quinto",30,IF(U5="Septimo",15,0))))) -> 0 | X5: =IF(W5="Oro",75,IF(W5="Plata",60,IF(W5="Bronce",50,IF(W5="Quinto",20,IF(W5="Septimo",7,0))))) -> 0 | Z5: =IF(Y5="Oro",75,IF(Y5="Plata",60,IF(Y5="Bronce",50,IF(Y5="Quinto",20,IF(Y5="Septimo",7,0))))) -> 0 | AB5: =IF(AA5="Oro",75,IF(AA5="Plata",60,IF(AA5="Bronce",50,IF(AA5="Quinto",20,IF(AA5="Septimo",7,0))))) -> 0 | AD5: =IF(AC5="Oro",75,IF(AC5="Plata",60,IF(AC5="Bronce",50,IF(AC5="Quinto",20,IF(AC5="Septimo",7,0))))) -> 0 | AF5: =IF(AE5="Oro",75,IF(AE5="Plata",60,IF(AE5="Bronce",50,IF(AE5="Quinto",20,IF(AE5="Septimo",7,0))))) -> 0 | AH5: =IF(AG5="Oro",75,IF(AG5="Plata",60,IF(AG5="Bronce",50,IF(AG5="Quinto",20,IF(AG5="Septimo",7,0))))) -> 0 | AJ5: =IF(AI5="Oro",75,IF(AI5="Plata",60,IF(AI5="Bronce",50,IF(AI5="Quinto",20,IF(AI5="Septimo",7,0))))) -> 0 | AL5: =IF(AK5="Oro",60,IF(AK5="Plata",50,IF(AK5="Bronce",35,IF(AK5="Quinto",15,IF(AK5="Septimo",5,0))))) -> 0 | AN5: =IF(AM5="Oro",60,IF(AM5="Plata",50,IF(AM5="Bronce",35,IF(AM5="Quinto",15,IF(AM5="Septimo",5,0))))) -> 0 | AP5: =IF(AO5="Oro",60,IF(AO5="Plata",50,IF(AO5="Bronce",35,IF(AO5="Quinto",15,IF(AO5="Septimo",5,0))))) -> 0 | AR5: =IF(AQ5="Oro",60,IF(AQ5="Plata",50,IF(AQ5="Bronce",35,IF(AQ5="Quinto",15,IF(AQ5="Septimo",5,0))))) -> 0 | AT5: =IF(AS5="Oro",60,IF(AS5="Plata",50,IF(AS5="Bronce",35,IF(AS5="Quinto",15,IF(AS5="Septimo",5,0))))) -> 0 | AV5: =IF(AU5="Oro",60,IF(AU5="Plata",50,IF(AU5="Bronce",35,IF(AU5="Quinto",15,IF(AU5="Septimo",5,0))))) -> 0 | AX5: =IF(AW5="Oro",60,IF(AW5="Plata",50,IF(AW5="Bronce",35,IF(AW5="Quinto",15,IF(AW5="Septimo",5,0))))) -> 0 | AZ5: =IF(AY5="Oro",60,IF(AY5="Plata",50,IF(AY5="Bronce",35,IF(AY5="Quinto",15,IF(AY5="Septimo",5,0))))) -> 0 | BB5: =IF(BA5="Oro",60,IF(BA5="Plata",50,IF(BA5="Bronce",35,IF(BA5="Quinto",15,IF(BA5="Septimo",5,0))))) -> 0 | BD5: =IF(BC5="Oro",60,IF(BC5="Plata",50,IF(BC5="Bronce",35,IF(BC5="Quinto",15,IF(BC5="Septimo",5,0))))) -> 0 | BF5: =IF(BE5="Oro",60,IF(BE5="Plata",50,IF(BE5="Bronce",35,IF(BE5="Quinto",15,IF(BE5="Septimo",5,0))))) -> 0 | BH5: =IF(BG5="Oro",30,IF(BG5="Plata",20,IF(BG5="Bronce",15,0))) -> 0 | BJ5: =IF(BI5="Oro",30,IF(BI5="Plata",20,IF(BI5="Bronce",15,0))) -> 0 | BL5: =IF(BK5="Oro",30,IF(BK5="Plata",20,IF(BK5="Bronce",15,0))) -> 0 | BN5: =IF(BM5="Oro",30,IF(BM5="Plata",20,IF(BM5="Bronce",15,0))) -> 0 | BP5: =IF(BO5="Oro",30,IF(BO5="Plata",20,IF(BO5="Bronce",15,0))) -> 0 | BR5: =IF(BQ5="Oro",30,IF(BQ5="Plata",20,IF(BQ5="Bronce",15,0))) -> 0 | BT5: =IF(BS5="Oro",30,IF(BS5="Plata",20,IF(BS5="Bronce",15,0))) -> 0 | BV5: =IF(BU5="Oro",30,IF(BU5="Plata",20,IF(BU5="Bronce",15,0))) -> 0 | BW5: Quinto | BX5: =IF(BW5="Oro",30,IF(BW5="Plata",20,IF(BW5="Bronce",15,0))) -> 0 | BZ5: =IF(BY5="Oro",30,IF(BY5="Plata",20,IF(BY5="Bronce",15,0))) -> 0 | CA5: ORO | CB5: =IF(CA5="Oro",30,IF(CA5="Plata",20,IF(CA5="Bronce",15,0))) -> 30 | CD5: =IF(CC5="Oro",30,IF(CC5="Plata",20,IF(CC5="Bronce",15,0))) -> 0 | CF5: =IF(CE5="Oro",30,IF(CE5="Plata",20,IF(CE5="Bronce",15,0))) -> 0 | CN5: =SUMIFS('2019'!H:H,'2019'!A:A,"+100 kg",'2019'!D:D,'+100 kg'!H5,'2019'!E:E,'+100 kg'!I5) -> 95
C6: 2 | D6: MAD | H6: PARRA LABAJOS | I6: Angel | J6: 15 | K6: 15 | L6: 0 | M6: 0 | N6: 0 | P6: 0 | R6: 0 | T6: 0 | V6: 0 | X6: 0 | Z6: 0 | AB6: 0 | AD6: 0 | AF6: 0 | AH6: 0 | AJ6: 0 | AL6: 0 | AN6: 0 | AP6: 0 | AR6: 0 | AT6: 0 | AV6: 0 | AX6: 0 | AZ6: 0 | BB6: 0 | BD6: 0 | BF6: 0 | BH6: 0 | BJ6: 0 | BL6: 0 | BN6: 0 | BP6: 0 | BR6: 0 | BT6: 0 | BV6: 0 | BX6: 0 | BZ6: 0 | CB6: 0 | CD6: 0 | CF6: 0 | CN6: =SUMIFS('2019'!H:H,'2019'!A:A,"+100 kg",'2019'!D:D,'+100 kg'!H6,'2019'!E:E,'+100 kg'!I6) -> 30
C7: 3 | D7: VAL | H7: FERNANDEZ RODRIGUEZ | I7: David | J7: 7.5 | K7: 7.5 | L7: 0 | M7: 0 | N7: 0 | P7: 0 | R7: 0 | T7: 0 | V7: 0 | X7: 0 | Z7: 0 | AB7: 0 | AD7: 0 | AF7: 0 | AH7: 0 | AJ7: 0 | AL7: 0 | AN7: 0 | AP7: 0 | AR7: 0 | AT7: 0 | AV7: 0 | AX7: 0 | AZ7: 0 | BB7: 0 | BD7: 0 | BF7: 0 | BH7: 0 | BJ7: 0 | BL7: 0 | BN7: 0 | BP7: 0 | BR7: 0 | BT7: 0 | BV7: 0 | BX7: 0 | BZ7: 0 | CB7: 0 | CD7: 0 | CF7: 0 | CN7: =SUMIFS('2019'!H:H,'2019'!A:A,"+100 kg",'2019'!D:D,'+100 kg'!H7,'2019'!E:E,'+100 kg'!I7) -> 15
C8: 3 | D8: NAV | H8: DIAZ LOPEZ | I8: Santyago | J8: 7.5 | K8: 7.5 | L8: 0 | M8: 0 | N8: 0 | P8: 0 | R8: 0 | T8: 0 | V8: 0 | X8: 0 | Z8: 0 | AB8: 0 | AD8: 0 | AF8: 0 | AH8: 0 | AJ8: 0 | AL8: 0 | AN8: 0 | AP8: 0 | AR8: 0 | AT8: 0 | AV8: 0 | AX8: 0 | AZ8: 0 | BB8: 0 | BD8: 0 | BF8: 0 | BH8: 0 | BJ8: 0 | BL8: 0 | BN8: 0 | BP8: 0 | BR8: 0 | BT8: 0 | BV8: 0 | BX8: 0 | BZ8: 0 | CB8: 0 | CD8: 0 | CF8: 0 | CN8: =SUMIFS('2019'!H:H,'2019'!A:A,"+100 kg",'2019'!D:D,'+100 kg'!H8,'2019'!E:E,'+100 kg'!I8) -> 15
C9: 3 | D9: GAL | H9: SANMARTIN CARRERA | I9: Alejandro | J9: 7.5 | K9: 7.5 | L9: 0 | M9: 0 | N9: 0 | P9: 0 | R9: 0 | T9: 0 | V9: 0 | X9: 0 | Z9: 0 | AB9: 0 | AD9: 0 | AF9: 0 | AH9: 0 | AJ9: 0 | AL9: 0 | AN9: 0 | AP9: 0 | AR9: 0 | AT9: 0 | AV9: 0 | AX9: 0 | AZ9: 0 | BB9: 0 | BD9: 0 | BF9: 0 | BH9: 0 | BJ9: 0 | BL9: 0 | BN9: 0 | BP9: 0 | BR9: 0 | BT9: 0 | BV9: 0 | BX9: 0 | BZ9: 0 | CB9: 0 | CD9: 0 | CF9: 0 | CN9: =SUMIFS('2019'!H:H,'2019'!A:A,"+100 kg",'2019'!D:D,'+100 kg'!H9,'2019'!E:E,'+100 kg'!I9) -> 15
C10: 6 | J10: 0 | K10: 0 | L10: 0 | M10: 0 | N10: 0 | P10: 0 | R10: 0 | T10: 0 | V10: 0 | X10: 0 | Z10: 0 | AB10: 0 | AD10: 0 | AF10: 0 | AH10: 0 | AJ10: 0 | AL10: 0 | AN10: 0 | AP10: 0 | AR10: 0 | AT10: 0 | AV10: 0 | AX10: 0 | AZ10: 0 | BB10: 0 | BD10: 0 | BF10: 0 | BH10: 0 | BJ10: 0 | BL10: 0 | BN10: 0 | BP10: 0 | BR10: 0 | BT10: 0 | BV10: 0 | BX10: 0 | BZ10: 0 | CB10: 0 | CD10: 0 | CF10: 0 | CN10: =SUMIFS('2019'!H:H,'2019'!A:A,"+100 kg",'2019'!D:D,'+100 kg'!H10,'2019'!E:E,'+100 kg'!I10) -> 0
C11: 6 | J11: 0 | K11: 0 | L11: 0 | M11: 0 | N11: 0 | P11: 0 | R11: 0 | T11: 0 | V11: 0 | X11: 0 | Z11: 0 | AB11: 0 | AD11: 0 | AF11: 0 | AH11: 0 | AJ11: 0 | AL11: 0 | AN11: 0 | AP11: 0 | AR11: 0 | AT11: 0 | AV11: 0 | AX11: 0 | AZ11: 0 | BB11: 0 | BD11: 0 | BF11: 0 | BH11: 0 | BJ11: 0 | BL11: 0 | BN11: 0 | BP11: 0 | BR11: 0 | BT11: 0 | BV11: 0 | BX11: 0 | BZ11: 0 | CB11: 0 | CD11: 0 | CF11: 0 | CN11: =SUMIFS('2019'!H:H,'2019'!A:A,"+100 kg",'2019'!D:D,'+100 kg'!H11,'2019'!E:E,'+100 kg'!I11) -> 0
C12: 6 | J12: 0 | K12: 0 | L12: 0 | M12: 0 | N12: 0 | P12: 0 | R12: 0 | T12: 0 | V12: 0 | X12: 0 | Z12: 0 | AB12: 0 | AD12: 0 | AF12: 0 | AH12: 0 | AJ12: 0 | AL12: 0 | AN12: 0 | AP12: 0 | AR12: 0 | AT12: 0 | AV12: 0 | AX12: 0 | AZ12: 0 | BB12: 0 | BD12: 0 | BF12: 0 | BH12: 0 | BJ12: 0 | BL12: 0 | BN12: 0 | BP12: 0 | BR12: 0 | BT12: 0 | BV12: 0 | BX12: 0 | BZ12: 0 | CB12: 0 | CD12: 0 | CF12: 0 | CN12: =SUMIFS('2019'!H:H,'2019'!A:A,"+100 kg",'2019'!D:D,'+100 kg'!H12,'2019'!E:E,'+100 kg'!I12) -> 0
C13: 6 | J13: 0 | K13: 0 | L13: 0 | M13: 0 | N13: 0 | P13: 0 | R13: 0 | T13: 0 | V13: 0 | X13: 0 | Z13: 0 | AB13: 0 | AD13: 0 | AF13: 0 | AH13: 0 | AJ13: 0 | AL13: 0 | AN13: 0 | AP13: 0 | AR13: 0 | AT13: 0 | AV13: 0 | AX13: 0 | AZ13: 0 | BB13: 0 | BD13: 0 | BF13: 0 | BH13: 0 | BJ13: 0 | BL13: 0 | BN13: 0 | BP13: 0 | BR13: 0 | BT13: 0 | BV13: 0 | BX13: 0 | BZ13: 0 | CB13: 0 | CD13: 0 | CF13: 0 | CN13: =SUMIFS('2019'!H:H,'2019'!A:A,"+100 kg",'2019'!D:D,'+100 kg'!H13,'2019'!E:E,'+100 kg'!I13) -> 0
C14: 6 | J14: 0 | K14: 0 | L14: 0 | M14: 0 | N14: 0 | P14: 0 | R14: 0 | T14: 0 | V14: 0 | X14: 0 | Z14: 0 | AB14: 0 | AD14: 0 | AF14: 0 | AH14: 0 | AJ14: 0 | AL14: 0 | AN14: 0 | AP14: 0 | AR14: 0 | AT14: 0 | AV14: 0 | AX14: 0 | AZ14: 0 | BB14: 0 | BD14: 0 | BF14: 0 | BH14: 0 | BJ14: 0 | BL14: 0 | BN14: 0 | BP14: 0 | BR14: 0 | BT14: 0 | BV14: 0 | BX14: 0 | BZ14: 0 | CB14: 0 | CD14: 0 | CF14: 0 | CN14: =SUMIFS('2019'!H:H,'2019'!A:A,"+100 kg",'2019'!D:D,'+100 kg'!H14,'2019'!E:E,'+100 kg'!I14) -> 0
C15: 6 | J15: 0 | K15: 0 | L15: 0 | M15: 0 | N15: 0 | P15: 0 | R15: 0 | T15: 0 | V15: 0 | X15: 0 | Z15: 0 | AB15: 0 | AD15: 0 | AF15: 0 | AH15: 0 | AJ15: 0 | AL15: 0 | AN15: 0 | AP15: 0 | AR15: 0 | AT15: 0 | AV15: 0 | AX15: 0 | AZ15: 0 | BB15: 0 | BD15: 0 | BF15: 0 | BH15: 0 | BJ15: 0 | BL15: 0 | BN15: 0 | BP15: 0 | BR15: 0 | BT15: 0 | BV15: 0 | BX15: 0 | BZ15: 0 | CB15: 0 | CD15: 0 | CF15: 0 | CN15: =SUMIFS('2019'!H:H,'2019'!A:A,"+100 kg",'2019'!D:D,'+100 kg'!H15,'2019'!E:E,'+100 kg'!I15) -> 0
C16: 6 | J16: 0 | K16: 0 | L16: 0 | M16: 0 | N16: 0 | P16: 0 | R16: 0 | T16: 0 | V16: 0 | X16: 0 | Z16: 0 | AB16: 0 | AD16: 0 | AF16: 0 | AH16: 0 | AJ16: 0 | AL16: 0 | AN16: 0 | AP16: 0 | AR16: 0 | AT16: 0 | AV16: 0 | AX16: 0 | AZ16: 0 | BB16: 0 | BD16: 0 | BF16: 0 | BH16: 0 | BJ16: 0 | BL16: 0 | BN16: 0 | BP16: 0 | BR16: 0 | BT16: 0 | BV16: 0 | BX16: 0 | BZ16: 0 | CB16: 0 | CD16: 0 | CF16: 0 | CN16: =SUMIFS('2019'!H:H,'2019'!A:A,"+100 kg",'2019'!D:D,'+100 kg'!H16,'2019'!E:E,'+100 kg'!I16) -> 0
C17: 6 | J17: 0 | K17: 0 | L17: 0 | M17: 0 | N17: 0 | P17: 0 | R17: 0 | T17: 0 | V17: 0 | X17: 0 | Z17: 0 | AB17: 0 | AD17: 0 | AF17: 0 | AH17: 0 | AJ17: 0 | AL17: 0 | AN17: 0 | AP17: 0 | AR17: 0 | AT17: 0 | AV17: 0 | AX17: 0 | AZ17: 0 | BB17: 0 | BD17: 0 | BF17: 0 | BH17: 0 | BJ17: 0 | BL17: 0 | BN17: 0 | BP17: 0 | BR17: 0 | BT17: 0 | BV17: 0 | BX17: 0 | BZ17: 0 | CB17: 0 | CD17: 0 | CF17: 0 | CN17: =SUMIFS('2019'!H:H,'2019'!A:A,"+100 kg",'2019'!D:D,'+100 kg'!H17,'2019'!E:E,'+100 kg'!I17) -> 0
C18: 6 | J18: 0 | K18: 0 | L18: 0 | M18: 0 | N18: 0 | P18: 0 | R18: 0 | T18: 0 | V18: 0 | X18: 0 | Z18: 0 | AB18: 0 | AD18: 0 | AF18: 0 | AH18: 0 | AJ18: 0 | AL18: 0 | AN18: 0 | AP18: 0 | AR18: 0 | AT18: 0 | AV18: 0 | AX18: 0 | AZ18: 0 | BB18: 0 | BD18: 0 | BF18: 0 | BH18: 0 | BJ18: 0 | BL18: 0 | BN18: 0 | BP18: 0 | BR18: 0 | BT18: 0 | BV18: 0 | BX18: 0 | BZ18: 0 | CB18: 0 | CD18: 0 | CF18: 0 | CN18: =SUMIFS('2019'!H:H,'2019'!A:A,"+100 kg",'2019'!D:D,'+100 kg'!H18,'2019'!E:E,'+100 kg'!I18) -> 0
C19: 6 | J19: 0 | K19: 0 | L19: 0 | M19: 0 | N19: 0 | P19: 0 | R19: 0 | T19: 0 | V19: 0 | X19: 0 | Z19: 0 | AB19: 0 | AD19: 0 | AF19: 0 | AH19: 0 | AJ19: 0 | AL19: 0 | AN19: 0 | AP19: 0 | AR19: 0 | AT19: 0 | AV19: 0 | AX19: 0 | AZ19: 0 | BB19: 0 | BD19: 0 | BF19: 0 | BH19: 0 | BJ19: 0 | BL19: 0 | BN19: 0 | BP19: 0 | BR19: 0 | BT19: 0 | BV19: 0 | BX19: 0 | BZ19: 0 | CB19: 0 | CD19: 0 | CF19: 0 | CN19: =SUMIFS('2019'!H:H,'2019'!A:A,"+100 kg",'2019'!D:D,'+100 kg'!H19,'2019'!E:E,'+100 kg'!I19) -> 0
C20: 6 | J20: 0 | K20: 0 | L20: 0 | M20: 0 | N20: 0 | P20: 0 | R20: 0 | T20: 0 | V20: 0 | X20: 0 | Z20: 0 | AB20: 0 | AD20: 0 | AF20: 0 | AH20: 0 | AJ20: 0 | AL20: 0 | AN20: 0 | AP20: 0 | AR20: 0 | AT20: 0 | AV20: 0 | AX20: 0 | AZ20: 0 | BB20: 0 | BD20: 0 | BF20: 0 | BH20: 0 | BJ20: 0 | BL20: 0 | BN20: 0 | BP20: 0 | BR20: 0 | BT20: 0 | BV20: 0 | BX20: 0 | BZ20: 0 | CB20: 0 | CD20: 0 | CF20: 0 | CN20: =SUMIFS('2019'!H:H,'2019'!A:A,"+100 kg",'2019'!D:D,'+100 kg'!H20,'2019'!E:E,'+100 kg'!I20) -> 0
C21: 6 | J21: 0 | K21: 0 | L21: 0 | M21: 0 | N21: 0 | P21: 0 | R21: 0 | T21: 0 | V21: 0 | X21: 0 | Z21: 0 | AB21: 0 | AD21: 0 | AF21: 0 | AH21: 0 | AJ21: 0 | AL21: 0 | AN21: 0 | AP21: 0 | AR21: 0 | AT21: 0 | AV21: 0 | AX21: 0 | AZ21: 0 | BB21: 0 | BD21: 0 | BF21: 0 | BH21: 0 | BJ21: 0 | BL21: 0 | BN21: 0 | BP21: 0 | BR21: 0 | BT21: 0 | BV21: 0 | BX21: 0 | BZ21: 0 | CB21: 0 | CD21: 0 | CF21: 0 | CN21: =SUMIFS('2019'!H:H,'2019'!A:A,"+100 kg",'2019'!D:D,'+100 kg'!H21,'2019'!E:E,'+100 kg'!I21) -> 0
C22: 6 | J22: 0 | K22: 0 | L22: 0 | M22: 0 | N22: 0 | P22: 0 | R22: 0 | T22: 0 | V22: 0 | X22: 0 | Z22: 0 | AB22: 0 | AD22: 0 | AF22: 0 | AH22: 0 | AJ22: 0 | AL22: 0 | AN22: 0 | AP22: 0 | AR22: 0 | AT22: 0 | AV22: 0 | AX22: 0 | AZ22: 0 | BB22: 0 | BD22: 0 | BF22: 0 | BH22: 0 | BJ22: 0 | BL22: 0 | BN22: 0 | BP22: 0 | BR22: 0 | BT22: 0 | BV22: 0 | BX22: 0 | BZ22: 0 | CB22: 0 | CD22: 0 | CF22: 0 | CN22: =SUMIFS('2019'!H:H,'2019'!A:A,"+100 kg",'2019'!D:D,'+100 kg'!H22,'2019'!E:E,'+100 kg'!I22) -> 0
C23: 6 | J23: 0 | K23: 0 | L23: 0 | M23: 0 | N23: 0 | P23: 0 | R23: 0 | T23: 0 | V23: 0 | X23: 0 | Z23: 0 | AB23: 0 | AD23: 0 | AF23: 0 | AH23: 0 | AJ23: 0 | AL23: 0 | AN23: 0 | AP23: 0 | AR23: 0 | AT23: 0 | AV23: 0 | AX23: 0 | AZ23: 0 | BB23: 0 | BD23: 0 | BF23: 0 | BH23: 0 | BJ23: 0 | BL23: 0 | BN23: 0 | BP23: 0 | BR23: 0 | BT23: 0 | BV23: 0 | BX23: 0 | BZ23: 0 | CB23: 0 | CD23: 0 | CF23: 0 | CN23: =SUMIFS('2019'!H:H,'2019'!A:A,"+100 kg",'2019'!D:D,'+100 kg'!H23,'2019'!E:E,'+100 kg'!I23) -> 0
C24: 6 | J24: 0 | K24: 0 | L24: 0 | M24: 0 | N24: 0 | P24: 0 | R24: 0 | T24: 0 | V24: 0 | X24: 0 | Z24: 0 | AB24: 0 | AD24: 0 | AF24: 0 | AH24: 0 | AJ24: 0 | AL24: 0 | AN24: 0 | AP24: 0 | AR24: 0 | AT24: 0 | AV24: 0 | AX24: 0 | AZ24: 0 | BB24: 0 | BD24: 0 | BF24: 0 | BH24: 0 | BJ24: 0 | BL24: 0 | BN24: 0 | BP24: 0 | BR24: 0 | BT24: 0 | BV24: 0 | BX24: 0 | BZ24: 0 | CB24: 0 | CD24: 0 | CF24: 0 | CN24: =SUMIFS('2019'!H:H,'2019'!A:A,"+100 kg",'2019'!D:D,'+100 kg'!H24,'2019'!E:E,'+100 kg'!I24) -> 0
C25: 6 | J25: 0 | K25: 0 | L25: 0 | M25: 0 | N25: 0 | P25: 0 | R25: 0 | T25: 0 | V25: 0 | X25: 0 | Z25: 0 | AB25: 0 | AD25: 0 | AF25: 0 | AH25: 0 | AJ25: 0 | AL25: 0 | AN25: 0 | AP25: 0 | AR25: 0 | AT25: 0 | AV25: 0 | AX25: 0 | AZ25: 0 | BB25: 0 | BD25: 0 | BF25: 0 | BH25: 0 | BJ25: 0 | BL25: 0 | BN25: 0 | BP25: 0 | BR25: 0 | BT25: 0 | BV25: 0 | BX25: 0 | BZ25: 0 | CB25: 0 | CD25: 0 | CF25: 0 | CN25: =SUMIFS('2019'!H:H,'2019'!A:A,"+100 kg",'2019'!D:D,'+100 kg'!H25,'2019'!E:E,'+100 kg'!I25) -> 0
C26: 6 | J26: 0 | K26: 0 | L26: 0 | M26: 0 | N26: 0 | P26: 0 | R26: 0 | T26: 0 | V26: 0 | X26: 0 | Z26: 0 | AB26: 0 | AD26: 0 | AF26: 0 | AH26: 0 | AJ26: 0 | AL26: 0 | AN26: 0 | AP26: 0 | AR26: 0 | AT26: 0 | AV26: 0 | AX26: 0 | AZ26: 0 | BB26: 0 | BD26: 0 | BF26: 0 | BH26: 0 | BJ26: 0 | BL26: 0 | BN26: 0 | BP26: 0 | BR26: 0 | BT26: 0 | BV26: 0 | BX26: 0 | BZ26: 0 | CB26: 0 | CD26: 0 | CF26: 0 | CN26: =SUMIFS('2019'!H:H,'2019'!A:A,"+100 kg",'2019'!D:D,'+100 kg'!H26,'2019'!E:E,'+100 kg'!I26) -> 0
C27: 6 | J27: 0 | K27: 0 | L27: 0 | M27: 0 | N27: 0 | P27: 0 | R27: 0 | T27: 0 | V27: 0 | X27: 0 | Z27: 0 | AB27: 0 | AD27: 0 | AF27: 0 | AH27: 0 | AJ27: 0 | AL27: 0 | AN27: 0 | AP27: 0 | AR27: 0 | AT27: 0 | AV27: 0 | AX27: 0 | AZ27: 0 | BB27: 0 | BD27: 0 | BF27: 0 | BH27: 0 | BJ27: 0 | BL27: 0 | BN27: 0 | BP27: 0 | BR27: 0 | BT27: 0 | BV27: 0 | BX27: 0 | BZ27: 0 | CB27: 0 | CD27: 0 | CF27: 0 | CN27: =SUMIFS('2019'!H:H,'2019'!A:A,"+100 kg",'2019'!D:D,'+100 kg'!H27,'2019'!E:E,'+100 kg'!I27) -> 0
C28: 6 | J28: 0 | K28: 0 | L28: 0 | M28: 0 | N28: 0 | P28: 0 | R28: 0 | T28: 0 | V28: 0 | X28: 0 | Z28: 0 | AB28: 0 | AD28: 0 | AF28: 0 | AH28: 0 | AJ28: 0 | AL28: 0 | AN28: 0 | AP28: 0 | AR28: 0 | AT28: 0 | AV28: 0 | AX28: 0 | AZ28: 0 | BB28: 0 | BD28: 0 | BF28: 0 | BH28: 0 | BJ28: 0 | BL28: 0 | BN28: 0 | BP28: 0 | BR28: 0 | BT28: 0 | BV28: 0 | BX28: 0 | BZ28: 0 | CB28: 0 | CD28: 0 | CF28: 0 | CN28: =SUMIFS('2019'!H:H,'2019'!A:A,"+100 kg",'2019'!D:D,'+100 kg'!H28,'2019'!E:E,'+100 kg'!I28) -> 0
C29: 6 | J29: 0 | K29: 0 | L29: 0 | M29: 0 | N29: 0 | P29: 0 | R29: 0 | T29: 0 | V29: 0 | X29: 0 | Z29: 0 | AB29: 0 | AD29: 0 | AF29: 0 | AH29: 0 | AJ29: 0 | AL29: 0 | AN29: 0 | AP29: 0 | AR29: 0 | AT29: 0 | AV29: 0 | AX29: 0 | AZ29: 0 | BB29: 0 | BD29: 0 | BF29: 0 | BH29: 0 | BJ29: 0 | BL29: 0 | BN29: 0 | BP29: 0 | BR29: 0 | BT29: 0 | BV29: 0 | BX29: 0 | BZ29: 0 | CB29: 0 | CD29: 0 | CF29: 0 | CN29: =SUMIFS('2019'!H:H,'2019'!A:A,"+100 kg",'2019'!D:D,'+100 kg'!H29,'2019'!E:E,'+100 kg'!I29) -> 0
C30: 6 | J30: 0 | K30: 0 | L30: 0 | M30: 0 | N30: 0 | P30: 0 | R30: 0 | T30: 0 | V30: 0 | X30: 0 | Z30: 0 | AB30: 0 | AD30: 0 | AF30: 0 | AH30: 0 | AJ30: 0 | AL30: 0 | AN30: 0 | AP30: 0 | AR30: 0 | AT30: 0 | AV30: 0 | AX30: 0 | AZ30: 0 | BB30: 0 | BD30: 0 | BF30: 0 | BH30: 0 | BJ30: 0 | BL30: 0 | BN30: 0 | BP30: 0 | BR30: 0 | BT30: 0 | BV30: 0 | BX30: 0 | BZ30: 0 | CB30: 0 | CD30: 0 | CF30: 0 | CN30: =SUMIFS('2019'!H:H,'2019'!A:A,"+100 kg",'2019'!D:D,'+100 kg'!H30,'2019'!E:E,'+100 kg'!I30) -> 0
C31: 6 | J31: 0 | K31: 0 | L31: 0 | M31: 0 | N31: 0 | P31: 0 | R31: 0 | T31: 0 | V31: 0 | X31: 0 | Z31: 0 | AB31: 0 | AD31: 0 | AF31: 0 | AH31: 0 | AJ31: 0 | AL31: 0 | AN31: 0 | AP31: 0 | AR31: 0 | AT31: 0 | AV31: 0 | AX31: 0 | AZ31: 0 | BB31: 0 | BD31: 0 | BF31: 0 | BH31: 0 | BJ31: 0 | BL31: 0 | BN31: 0 | BP31: 0 | BR31: 0 | BT31: 0 | BV31: 0 | BX31: 0 | BZ31: 0 | CB31: 0 | CD31: 0 | CF31: 0 | CN31: =SUMIFS('2019'!H:H,'2019'!A:A,"+100 kg",'2019'!D:D,'+100 kg'!H31,'2019'!E:E,'+100 kg'!I31) -> 0
C32: 6 | J32: 0 | K32: 0 | L32: 0 | M32: 0 | N32: 0 | P32: 0 | R32: 0 | T32: 0 | V32: 0 | X32: 0 | Z32: 0 | AB32: 0 | AD32: 0 | AF32: 0 | AH32: 0 | AJ32: 0 | AL32: 0 | AN32: 0 | AP32: 0 | AR32: 0 | AT32: 0 | AV32: 0 | AX32: 0 | AZ32: 0 | BB32: 0 | BD32: 0 | BF32: 0 | BH32: 0 | BJ32: 0 | BL32: 0 | BN32: 0 | BP32: 0 | BR32: 0 | BT32: 0 | BV32: 0 | BX32: 0 | BZ32: 0 | CB32: 0 | CD32: 0 | CF32: 0 | CN32: =SUMIFS('2019'!H:H,'2019'!A:A,"+100 kg",'2019'!D:D,'+100 kg'!H32,'2019'!E:E,'+100 kg'!I32) -> 0
C33: 6 | J33: 0 | K33: 0 | L33: 0 | M33: 0 | N33: 0 | P33: 0 | R33: 0 | T33: 0 | V33: 0 | X33: 0 | Z33: 0 | AB33: 0 | AD33: 0 | AF33: 0 | AH33: 0 | AJ33: 0 | AL33: 0 | AN33: 0 | AP33: 0 | AR33: 0 | AT33: 0 | AV33: 0 | AX33: 0 | AZ33: 0 | BB33: 0 | BD33: 0 | BF33: 0 | BH33: 0 | BJ33: 0 | BL33: 0 | BN33: 0 | BP33: 0 | BR33: 0 | BT33: 0 | BV33: 0 | BX33: 0 | BZ33: 0 | CB33: 0 | CD33: 0 | CF33: 0 | CN33: =SUMIFS('2019'!H:H,'2019'!A:A,"+100 kg",'2019'!D:D,'+100 kg'!H33,'2019'!E:E,'+100 kg'!I33) -> 0
C34: 6 | J34: 0 | K34: 0 | L34: 0 | M34: 0 | N34: 0 | P34: 0 | R34: 0 | T34: 0 | V34: 0 | X34: 0 | Z34: 0 | AB34: 0 | AD34: 0 | AF34: 0 | AH34: 0 | AJ34: 0 | AL34: 0 | AN34: 0 | AP34: 0 | AR34: 0 | AT34: 0 | AV34: 0 | AX34: 0 | AZ34: 0 | BB34: 0 | BD34: 0 | BF34: 0 | BH34: 0 | BJ34: 0 | BL34: 0 | BN34: 0 | BP34: 0 | BR34: 0 | BT34: 0 | BV34: 0 | BX34: 0 | BZ34: 0 | CB34: 0 | CD34: 0 | CF34: 0 | CN34: =SUMIFS('2019'!H:H,'2019'!A:A,"+100 kg",'2019'!D:D,'+100 kg'!H34,'2019'!E:E,'+100 kg'!I34) -> 0
C35: 6 | J35: 0 | K35: 0 | L35: 0 | M35: 0 | N35: 0 | P35: 0 | R35: 0 | T35: 0 | V35: 0 | X35: 0 | Z35: 0 | AB35: 0 | AD35: 0 | AF35: 0 | AH35: 0 | AJ35: 0 | AL35: 0 | AN35: 0 | AP35: 0 | AR35: 0 | AT35: 0 | AV35: 0 | AX35: 0 | AZ35: 0 | BB35: 0 | BD35: 0 | BF35: 0 | BH35: 0 | BJ35: 0 | BL35: 0 | BN35: 0 | BP35: 0 | BR35: 0 | BT35: 0 | BV35: 0 | BX35: 0 | BZ35: 0 | CB35: 0 | CD35: 0 | CF35: 0 | CN35: =SUMIFS('2019'!H:H,'2019'!A:A,"+100 kg",'2019'!D:D,'+100 kg'!H35,'2019'!E:E,'+100 kg'!I35) -> 0
C36: 6 | J36: 0 | K36: 0 | L36: 0 | M36: 0 | N36: 0 | P36: 0 | R36: 0 | T36: 0 | V36: 0 | X36: 0 | Z36: 0 | AB36: 0 | AD36: 0 | AF36: 0 | AH36: 0 | AJ36: 0 | AL36: 0 | AN36: 0 | AP36: 0 | AR36: 0 | AT36: 0 | AV36: 0 | AX36: 0 | AZ36: 0 | BB36: 0 | BD36: 0 | BF36: 0 | BH36: 0 | BJ36: 0 | BL36: 0 | BN36: 0 | BP36: 0 | BR36: 0 | BT36: 0 | BV36: 0 | BX36: 0 | BZ36: 0 | CB36: 0 | CD36: 0 | CF36: 0 | CN36: =SUMIFS('2019'!H:H,'2019'!A:A,"+100 kg",'2019'!D:D,'+100 kg'!H36,'2019'!E:E,'+100 kg'!I36) -> 0
C37: 6 | J37: 0 | K37: 0 | L37: 0 | M37: 0 | N37: 0 | P37: 0 | R37: 0 | T37: 0 | V37: 0 | X37: 0 | Z37: 0 | AB37: 0 | AD37: 0 | AF37: 0 | AH37: 0 | AJ37: 0 | AL37: 0 | AN37: 0 | AP37: 0 | AR37: 0 | AT37: 0 | AV37: 0 | AX37: 0 | AZ37: 0 | BB37: 0 | BD37: 0 | BF37: 0 | BH37: 0 | BJ37: 0 | BL37: 0 | BN37: 0 | BP37: 0 | BR37: 0 | BT37: 0 | BV37: 0 | BX37: 0 | BZ37: 0 | CB37: 0 | CD37: 0 | CF37: 0 | CN37: =SUMIFS('2019'!H:H,'2019'!A:A,"+100 kg",'2019'!D:D,'+100 kg'!H37,'2019'!E:E,'+100 kg'!I37) -> 0
C38: 6 | J38: 0 | K38: 0 | L38: 0 | M38: 0 | N38: 0 | P38: 0 | R38: 0 | T38: 0 | V38: 0 | X38: 0 | Z38: 0 | AB38: 0 | AD38: 0 | AF38: 0 | AH38: 0 | AJ38: 0 | AL38: 0 | AN38: 0 | AP38: 0 | AR38: 0 | AT38: 0 | AV38: 0 | AX38: 0 | AZ38: 0 | BB38: 0 | BD38: 0 | BF38: 0 | BH38: 0 | BJ38: 0 | BL38: 0 | BN38: 0 | BP38: 0 | BR38: 0 | BT38: 0 | BV38: 0 | BX38: 0 | BZ38: 0 | CB38: 0 | CD38: 0 | CF38: 0 | CN38: =SUMIFS('2019'!H:H,'2019'!A:A,"+100 kg",'2019'!D:D,'+100 kg'!H38,'2019'!E:E,'+100 kg'!I38) -> 0
C39: 6 | J39: 0 | K39: 0 | L39: 0 | M39: 0 | N39: 0 | P39: 0 | R39: 0 | T39: 0 | V39: 0 | X39: 0 | Z39: 0 | AB39: 0 | AD39: 0 | AF39: 0 | AH39: 0 | AJ39: 0 | AL39: 0 | AN39: 0 | AP39: 0 | AR39: 0 | AT39: 0 | AV39: 0 | AX39: 0 | AZ39: 0 | BB39: 0 | BD39: 0 | BF39: 0 | BH39: 0 | BJ39: 0 | BL39: 0 | BN39: 0 | BP39: 0 | BR39: 0 | BT39: 0 | BV39: 0 | BX39: 0 | BZ39: 0 | CB39: 0 | CD39: 0 | CF39: 0 | CN39: =SUMIFS('2019'!H:H,'2019'!A:A,"+100 kg",'2019'!D:D,'+100 kg'!H39,'2019'!E:E,'+100 kg'!I39) -> 0
C40: 6 | J40: 0 | K40: 0 | L40: 0 | M40: 0 | N40: 0 | P40: 0 | R40: 0 | T40: 0 | V40: 0 | X40: 0 | Z40: 0 | AB40: 0 | AD40: 0 | AF40: 0 | AH40: 0 | AJ40: 0 | AL40: 0 | AN40: 0 | AP40: 0 | AR40: 0 | AT40: 0 | AV40: 0 | AX40: 0 | AZ40: 0 | BB40: 0 | BD40: 0 | BF40: 0 | BH40: 0 | BJ40: 0 | BL40: 0 | BN40: 0 | BP40: 0 | BR40: 0 | BT40: 0 | BV40: 0 | BX40: 0 | BZ40: 0 | CB40: 0 | CD40: 0 | CF40: 0 | CN40: =SUMIFS('2019'!H:H,'2019'!A:A,"+100 kg",'2019'!D:D,'+100 kg'!H40,'2019'!E:E,'+100 kg'!I40) -> 0
C41: 6 | J41: 0 | K41: 0 | L41: 0 | M41: 0 | N41: 0 | P41: 0 | R41: 0 | T41: 0 | V41: 0 | X41: 0 | Z41: 0 | AB41: 0 | AD41: 0 | AF41: 0 | AH41: 0 | AJ41: 0 | AL41: 0 | AN41: 0 | AP41: 0 | AR41: 0 | AT41: 0 | AV41: 0 | AX41: 0 | AZ41: 0 | BB41: 0 | BD41: 0 | BF41: 0 | BH41: 0 | BJ41: 0 | BL41: 0 | BN41: 0 | BP41: 0 | BR41: 0 | BT41: 0 | BV41: 0 | BX41: 0 | BZ41: 0 | CB41: 0 | CD41: 0 | CF41: 0 | CN41: =SUMIFS('2019'!H:H,'2019'!A:A,"+100 kg",'2019'!D:D,'+100 kg'!H41,'2019'!E:E,'+100 kg'!I41) -> 0
C42: 6 | J42: 0 | K42: 0 | L42: 0 | M42: 0 | N42: 0 | P42: 0 | R42: 0 | T42: 0 | V42: 0 | X42: 0 | Z42: 0 | AB42: 0 | AD42: 0 | AF42: 0 | AH42: 0 | AJ42: 0 | AL42: 0 | AN42: 0 | AP42: 0 | AR42: 0 | AT42: 0 | AV42: 0 | AX42: 0 | AZ42: 0 | BB42: 0 | BD42: 0 | BF42: 0 | BH42: 0 | BJ42: 0 | BL42: 0 | BN42: 0 | BP42: 0 | BR42: 0 | BT42: 0 | BV42: 0 | BX42: 0 | BZ42: 0 | CB42: 0 | CD42: 0 | CF42: 0 | CN42: =SUMIFS('2019'!H:H,'2019'!A:A,"+100 kg",'2019'!D:D,'+100 kg'!H42,'2019'!E:E,'+100 kg'!I42) -> 0
C43: 6 | J43: 0 | K43: 0 | L43: 0 | M43: 0 | N43: 0 | P43: 0 | R43: 0 | T43: 0 | V43: 0 | X43: 0 | Z43: 0 | AB43: 0 | AD43: 0 | AF43: 0 | AH43: 0 | AJ43: 0 | AL43: 0 | AN43: 0 | AP43: 0 | AR43: 0 | AT43: 0 | AV43: 0 | AX43: 0 | AZ43: 0 | BB43: 0 | BD43: 0 | BF43: 0 | BH43: 0 | BJ43: 0 | BL43: 0 | BN43: 0 | BP43: 0 | BR43: 0 | BT43: 0 | BV43: 0 | BX43: 0 | BZ43: 0 | CB43: 0 | CD43: 0 | CF43: 0 | CN43: =SUMIFS('2019'!H:H,'2019'!A:A,"+100 kg",'2019'!D:D,'+100 kg'!H43,'2019'!E:E,'+100 kg'!I43) -> 0
C44: 6 | J44: 0 | K44: 0 | L44: 0 | M44: 0 | N44: 0 | P44: 0 | R44: 0 | T44: 0 | V44: 0 | X44: 0 | Z44: 0 | AB44: 0 | AD44: 0 | AF44: 0 | AH44: 0 | AJ44: 0 | AL44: 0 | AN44: 0 | AP44: 0 | AR44: 0 | AT44: 0 | AV44: 0 | AX44: 0 | AZ44: 0 | BB44: 0 | BD44: 0 | BF44: 0 | BH44: 0 | BJ44: 0 | BL44: 0 | BN44: 0 | BP44: 0 | BR44: 0 | BT44: 0 | BV44: 0 | BX44: 0 | BZ44: 0 | CB44: 0 | CD44: 0 | CF44: 0 | CN44: =SUMIFS('2019'!H:H,'2019'!A:A,"+100 kg",'2019'!D:D,'+100 kg'!H44,'2019'!E:E,'+100 kg'!I44) -> 0
CN45: =SUMIFS('2019'!H:H,'2019'!A:A,"+100 kg",'2019'!D:D,'+100 kg'!H45,'2019'!E:E,'+100 kg'!I45) -> 0

Sheet -48 kg (hidden)
C2: Ranking | D2: Nation | E2: Continent | F2: IJF ID | G2: Y.o B. | H2: FAMILY NAME | I2: Given name | J2: Total score
C3: Puesto | D3: Comunidad | E3: Continent | F3: España ID | G3: A. de N. | H3: APELLIDOS | I3: Nombre | J3: Ranking Nacional Absoluto | K3: Puntuación Año Anterior | L3: Clasificación Equipo Absoluto | O3: Master ABS | Q3: Campeonato Mundo | S3: Campeonato Europa | U3: Campeonato Europa S23 | W3: Gran Slam (Francia) | Y3: Grand Slam (Abu Dhabi) | AA3: GRAND SLAM BRASILIA | AC3: GRAND SLAM OSAKA | AK3: Gran Prix Croacia - ZAGREB | AM3: Gran Prix (Marruecos) | AO3: Gran Prix (La Haya) | AQ3: Gran Prix (Tunez) | AS3: Gran Prix (Duseldorf) | AU3: Gran Prix (China) | AW3: Gran Prix (Uzbekistan) | AY3: Gran Prix Budapest | BE3: Open de Oceania | BG3: Campeonato España | BI3: European Open (Odivelas) | BK3: European Open (Sofia) | BM3: European Open (Roma) | BO3: European Open (POLONIA) | BQ3: European Open (RUMANIA) | BS3: European Open (Glasgow) | BU3: Open Panamericano | CA3: European Cup Málaga | CN3: Puntuación Año Anterior
K4: 0.5 | L4: Oro | M4: Plata | N4: Bronce | O4: Medalla | P4: Puntos | Q4: Medalla | R4: Puntos | S4: Medalla | T4: Puntos | U4: Medalla | V4: Puntos | W4: Medalla | X4: Puntos | Y4: Medalla | Z4: Puntos | AA4: Medalla | AB4: Puntos | AC4: Medalla | AD4: Puntos | AE4: Medalla | AF4: Puntos | AG4: Medalla | AH4: Puntos | AI4: Medalla | AJ4: Puntos | AK4: Medalla | AL4: Puntos | AM4: Medalla | AN4: Puntos | AO4: Medalla | AP4: Puntos | AQ4: Medalla | AR4: Puntos | AS4: Medalla | AT4: Puntos | AU4: Medalla | AV4: Puntos | AW4: Medalla | AX4: Puntos | AY4: Medalla | AZ4: Puntos | BA4: Medalla | BB4: Puntos | BC4: Medalla | BD4: Puntos | BE4: Medalla | BF4: Puntos | BG4: Medalla | BH4: Puntos | BI4: Medalla | BJ4: Puntos | BK4: Medalla | BL4: Puntos | BM4: Medalla | BN4: Puntos | BO4: Medalla | BP4: Puntos | BQ4: Medalla | BR4: Puntos | BS4: Medalla | BT4: Puntos | BU4: Medalla | BV4: Puntos | BW4: Medalla | BX4: Puntos | BY4: Medalla | BZ4: Puntos | CA4: Medalla | CB4: Puntos | CC4: Medalla | CD4: Puntos | CE4: Medalla | CF4: Puntos | CN4: 1
C5: =RANK(J5,$J$5:$J$44,0) -> 1 | D5: GAL | H5: MARTÍNEZ ABELENDA | I5: Laura | J5: =SUM(O5:CF5)+K5 -> 242.5 | K5: =CN5*50/100 -> 107.5 | L5: =COUNTIF(O5:CF5,$L$4) -> 0 | M5: =COUNTIF(O5:CF5,$M$4) -> 0 | N5: =COUNTIF(O5:CF5,$N$4) -> 1 | P5: =IF(O5="Oro",150,IF(O5="Plata",120,IF(O5="Bronce",100,IF(O5="Quinto",50,IF(O5="Septimo",30,0))))) -> 0 | Q5: Quinto | R5: =IF(Q5="Oro",150,IF(Q5="Plata",120,IF(Q5="Bronce",100,IF(Q5="Quinto",50,IF(Q5="Septimo",30,0))))) -> 50 | T5: =IF(S5="Oro",100,IF(S5="Plata",85,IF(S5="Bronce",70,IF(S5="Quinto",30,IF(S5="Septimo",15,0))))) -> 0 | V5: =IF(U5="Oro",100,IF(U5="Plata",85,IF(U5="Bronce",70,IF(U5="Quinto",30,IF(U5="Septimo",15,0))))) -> 0 | X5: =IF(W5="Oro",75,IF(W5="Plata",60,IF(W5="Bronce",50,IF(W5="Quinto",20,IF(W5="Septimo",7,0))))) -> 0 | Y5: QUINTO | Z5: =IF(Y5="Oro",75,IF(Y5="Plata",60,IF(Y5="Bronce",50,IF(Y5="Quinto",20,IF(Y5="Septimo",7,0))))) -> 20 | AA5: Bronce | AB5: =IF(AA5="Oro",75,IF(AA5="Plata",60,IF(AA5="Bronce",50,IF(AA5="Quinto",20,IF(AA5="Septimo",7,0))))) -> 50 | AD5: =IF(AC5="Oro",75,IF(AC5="Plata",60,IF(AC5="Bronce",50,IF(AC5="Quinto",20,IF(AC5="Septimo",7,0))))) -> 0 | AF5: =IF(AE5="Oro",75,IF(AE5="Plata",60,IF(AE5="Bronce",50,IF(AE5="Quinto",20,IF(AE5="Septimo",7,0))))) -> 0 | AH5: =IF(AG5="Oro",75,IF(AG5="Plata",60,IF(AG5="Bronce",50,IF(AG5="Quinto",20,IF(AG5="Septimo",7,0))))) -> 0 | AJ5: =IF(AI5="Oro",75,IF(AI5="Plata",60,IF(AI5="Bronce",50,IF(AI5="Quinto",20,IF(AI5="Septimo",7,0))))) -> 0 | AL5: =IF(AK5="Oro",60,IF(AK5="Plata",50,IF(AK5="Bronce",35,IF(AK5="Quinto",15,IF(AK5="Septimo",5,0))))) -> 0 | AN5: =IF(AM5="Oro",60,IF(AM5="Plata",50,IF(AM5="Bronce",35,IF(AM5="Quinto",15,IF(AM5="Septimo",5,0))))) -> 0 | AP5: =IF(AO5="Oro",60,IF(AO5="Plata",50,IF(AO5="Bronce",35,IF(AO5="Quinto",15,IF(AO5="Septimo",5,0))))) -> 0 | AR5: =IF(AQ5="Oro",60,IF(AQ5="Plata",50,IF(AQ5="Bronce",35,IF(AQ5="Quinto",15,IF(AQ5="Septimo",5,0))))) -> 0 | AT5: =IF(AS5="Oro",60,IF(AS5="Plata",50,IF(AS5="Bronce",35,IF(AS5="Quinto",15,IF(AS5="Septimo",5,0))))) -> 0 | AV5: =IF(AU5="Oro",60,IF(AU5="Plata",50,IF(AU5="Bronce",35,IF(AU5="Quinto",15,IF(AU5="Septimo",5,0))))) -> 0 | AX5: =IF(AW5="Oro",60,IF(AW5="Plata",50,IF(AW5="Bronce",35,IF(AW5="Quinto",15,IF(AW5="Septimo",5,0))))) -> 0 | AZ5: =IF(AY5="Oro",60,IF(AY5="Plata",50,IF(AY5="Bronce",35,IF(AY5="Quinto",15,IF(AY5="Septimo",5,0))))) -> 0 | BB5: =IF(BA5="Oro",60,IF(BA5="Plata",50,IF(BA5="Bronce",35,IF(BA5="Quinto",15,IF(BA5="Septimo",5,0))))) -> 0 | BD5: =IF(BC5="Oro",60,IF(BC5="Plata",50,IF(BC5="Bronce",35,IF(BC5="Quinto",15,IF(BC5="Septimo",5,0))))) -> 0 | BE5: QUINTO | BF5: =IF(BE5="Oro",60,IF(BE5="Plata",50,IF(BE5="Bronce",35,IF(BE5="Quinto",15,IF(BE5="Septimo",5,0))))) -> 15 | BH5: =IF(BG5="Oro",30,IF(BG5="Plata",20,IF(BG5="Bronce",15,0))) -> 0 | BJ5: =IF(BI5="Oro",30,IF(BI5="Plata",20,IF(BI5="Bronce",15,0))) -> 0 | BL5: =IF(BK5="Oro",30,IF(BK5="Plata",20,IF(BK5="Bronce",15,0))) -> 0 | BN5: =IF(BM5="Oro",30,IF(BM5="Plata",20,IF(BM5="Bronce",15,0))) -> 0 | BP5: =IF(BO5="Oro",30,IF(BO5="Plata",20,IF(BO5="Bronce",15,0))) -> 0 | BR5: =IF(BQ5="Oro",30,IF(BQ5="Plata",20,IF(BQ5="Bronce",15,0))) -> 0 | BT5: =IF(BS5="Oro",30,IF(BS5="Plata",20,IF(BS5="Bronce",15,0))) -> 0 | BV5: =IF(BU5="Oro",30,IF(BU5="Plata",20,IF(BU5="Bronce",15,0))) -> 0 | BX5: =IF(BW5="Oro",30,IF(BW5="Plata",20,IF(BW5="Bronce",15,0))) -> 0 | BZ5: =IF(BY5="Oro",30,IF(BY5="Plata",20,IF(BY5="Bronce",15,0))) -> 0 | CB5: =IF(CA5="Oro",30,IF(CA5="Plata",20,IF(CA5="Bronce",15,0))) -> 0 | CD5: =IF(CC5="Oro",30,IF(CC5="Plata",20,IF(CC5="Bronce",15,0))) -> 0 | CF5: =IF(CE5="Oro",30,IF(CE5="Plata",20,IF(CE5="Bronce",15,0))) -> 0 | CN5: =SUMIFS('2019'!H:H,'2019'!A:A,"-48 kg",'2019'!D:D,'-48 kg'!H5,'2019'!E:E,'-48 kg'!I5) -> 215
C6: 2 | D6: VAL | H6: FIGUEROA PEÑA | I6: JULIA | J6: 217 | K6: 115 | L6: 0 | M6: 1 | N6: 1 | P6: 0 | R6: 0 | T6: 0 | V6: 0 | X6: 0 | Y6: SEPTIMO | Z6: 7 | AB6: 0 | AC6: Plata | AD6: 60 | AF6: 0 | AH6: 0 | AJ6: 0 | AL6: 0 | AN6: 0 | AP6: 0 | AR6: 0 | AT6: 0 | AV6: 0 | AX6: 0 | AZ6: 0 | BB6: 0 | BD6: 0 | BE6: BRONCE | BF6: 35 | BH6: 0 | BJ6: 0 | BL6: 0 | BN6: 0 | BP6: 0 | BR6: 0 | BT6: 0 | BV6: 0 | BX6: 0 | BZ6: 0 | CB6: 0 | CD6: 0 | CF6: 0 | CN6: =SUMIFS('2019'!H:H,'2019'!A:A,"-48 kg",'2019'!D:D,'-48 kg'!H6,'2019'!E:E,'-48 kg'!I6) -> 230
C7: 3 | D7: CAT | H7: LAPUERTA COMAS | I7: Mireia | J7: 105 | K7: 0 | L7: 0 | M7: 1 | N7: 0 | P7: 0 | R7: 0 | T7: 0 | U7: PLATA | V7: 85 | X7: 0 | Z7: 0 | AB7: 0 | AC7: Quinto | AD7: 20 | AF7: 0 | AH7: 0 | AJ7: 0 | AL7: 0 | AN7: 0 | AP7: 0 | AR7: 0 | AT7: 0 | AV7: 0 | AX7: 0 | AZ7: 0 | BB7: 0 | BD7: 0 | BF7: 0 | BH7: 0 | BJ7: 0 | BL7: 0 | BN7: 0 | BP7: 0 | BR7: 0 | BT7: 0 | BV7: 0 | BX7: 0 | BZ7: 0 | CB7: 0 | CD7: 0 | CF7: 0 | CN7: =SUMIFS('2019'!H:H,'2019'!A:A,"-48 kg",'2019'!D:D,'-48 kg'!H7,'2019'!E:E,'-48 kg'!I7) -> 0
C8: 4 | D8: AND | H8: GARCÍA MESA | I8: Cinta | J8: 27.5 | K8: 27.5 | L8: 0 | M8: 0 | N8: 0 | P8: 0 | R8: 0 | T8: 0 | V8: 0 | X8: 0 | Z8: 0 | AB8: 0 | AD8: 0 | AF8: 0 | AH8: 0 | AJ8: 0 | AL8: 0 | AN8: 0 | AP8: 0 | AR8: 0 | AT8: 0 | AV8: 0 | AX8: 0 | AZ8: 0 | BB8: 0 | BD8: 0 | BF8: 0 | BH8: 0 | BJ8: 0 | BL8: 0 | BN8: 0 | BP8: 0 | BR8: 0 | BT8: 0 | BV8: 0 | BX8: 0 | BZ8: 0 | CA8: QUINTO | CB8: 0 | CD8: 0 | CF8: 0 | CN8: =SUMIFS('2019'!H:H,'2019'!A:A,"-48 kg",'2019'!D:D,'-48 kg'!H8,'2019'!E:E,'-48 kg'!I8) -> 55
C9: 5 | D9: VAL | H9: MONTAÑEZ PEIROT | I9: Carla | J9: 15 | K9: 0 | L9: 0 | M9: 0 | N9: 1 | P9: 0 | R9: 0 | T9: 0 | U9: 0 | V9: 0 | X9: 0 | Z9: 0 | AB9: 0 | AD9: 0 | AF9: 0 | AH9: 0 | AJ9: 0 | AL9: 0 | AN9: 0 | AP9: 0 | AR9: 0 | AT9: 0 | AV9: 0 | AX9: 0 | AZ9: 0 | BB9: 0 | BD9: 0 | BF9: 0 | BH9: 0 | BJ9: 0 | BL9: 0 | BN9: 0 | BP9: 0 | BR9: 0 | BT9: 0 | BV9: 0 | BX9: 0 | BZ9: 0 | CA9: BRONCE | CB9: 15 | CD9: 0 | CF9: 0 | CN9: =SUMIFS('2019'!H:H,'2019'!A:A,"-48 kg",'2019'!D:D,'-48 kg'!H9,'2019'!E:E,'-48 kg'!I9) -> 0
C10: 6 | D10: AND | H10: CASAS MORENO | I10: Cristina | J10: 7.5 | K10: 7.5 | L10: 0 | M10: 0 | N10: 0 | P10: 0 | R10: 0 | T10: 0 | V10: 0 | X10: 0 | Z10: 0 | AB10: 0 | AD10: 0 | AF10: 0 | AH10: 0 | AJ10: 0 | AL10: 0 | AN10: 0 | AP10: 0 | AR10: 0 | AT10: 0 | AV10: 0 | AX10: 0 | AZ10: 0 | BB10: 0 | BD10: 0 | BF10: 0 | BH10: 0 | BJ10: 0 | BL10: 0 | BN10: 0 | BP10: 0 | BR10: 0 | BT10: 0 | BV10: 0 | BX10: 0 | BZ10: 0 | CB10: 0 | CD10: 0 | CF10: 0 | CN10: =SUMIFS('2019'!H:H,'2019'!A:A,"-48 kg",'2019'!D:D,'-48 kg'!H10,'2019'!E:E,'-48 kg'!I10) -> 15
C11: 6 | D11: PVA | H11: CARAZAS HUAYANKAS | I11: Maria Lucia | J11: 7.5 | K11: 7.5 | L11: 0 | M11: 0 | N11: 0 | P11: 0 | R11: 0 | T11: 0 | V11: 0 | X11: 0 | Z11: 0 | AB11: 0 | AD11: 0 | AF11: 0 | AH11: 0 | AJ11: 0 | AL11: 0 | AN11: 0 | AP11: 0 | AR11: 0 | AT11: 0 | AV11: 0 | AX11: 0 | AZ11: 0 | BB11: 0 | BD11: 0 | BF11: 0 | BH11: 0 | BJ11: 0 | BL11: 0 | BN11: 0 | BP11: 0 | BR11: 0 | BT11: 0 | BV11: 0 | BX11: 0 | BZ11: 0 | CB11: 0 | CD11: 0 | CF11: 0 | CN11: =SUMIFS('2019'!H:H,'2019'!A:A,"-48 kg",'2019'!D:D,'-48 kg'!H11,'2019'!E:E,'-48 kg'!I11) -> 15
C12: 8 | D12: GAL | H12: HERRERO NORIEGA | I12: Natalia | J12: 0 | K12: 0 | L12: 0 | M12: 0 | N12: 0 | P12: 0 | R12: 0 | T12: 0 | V12: 0 | X12: 0 | Z12: 0 | AB12: 0 | AD12: 0 | AF12: 0 | AH12: 0 | AJ12: 0 | AL12: 0 | AN12: 0 | AP12: 0 | AR12: 0 | AT12: 0 | AV12: 0 | AX12: 0 | AZ12: 0 | BB12: 0 | BD12: 0 | BF12: 0 | BH12: 0 | BJ12: 0 | BL12: 0 | BN12: 0 | BP12: 0 | BR12: 0 | BT12: 0 | BV12: 0 | BX12: 0 | BZ12: 0 | CA12: SEPTIMO | CB12: 0 | CD12: 0 | CF12: 0 | CN12: =SUMIFS('2019'!H:H,'2019'!A:A,"-48 kg",'2019'!D:D,'-48 kg'!H12,'2019'!E:E,'-48 kg'!I12) -> 0
C13: 8 | J13: 0 | K13: 0 | L13: 0 | M13: 0 | N13: 0 | P13: 0 | R13: 0 | T13: 0 | V13: 0 | X13: 0 | Z13: 0 | AB13: 0 | AD13: 0 | AF13: 0 | AH13: 0 | AJ13: 0 | AL13: 0 | AN13: 0 | AP13: 0 | AR13: 0 | AT13: 0 | AV13: 0 | AX13: 0 | AZ13: 0 | BB13: 0 | BD13: 0 | BF13: 0 | BH13: 0 | BJ13: 0 | BL13: 0 | BN13: 0 | BP13: 0 | BR13: 0 | BT13: 0 | BV13: 0 | BX13: 0 | BZ13: 0 | CB13: 0 | CD13: 0 | CF13: 0 | CN13: =SUMIFS('2019'!H:H,'2019'!A:A,"-48 kg",'2019'!D:D,'-48 kg'!H13,'2019'!E:E,'-48 kg'!I13) -> 0
C14: 8 | J14: 0 | K14: 0 | L14: 0 | M14: 0 | N14: 0 | P14: 0 | R14: 0 | T14: 0 | V14: 0 | X14: 0 | Z14: 0 | AB14: 0 | AD14: 0 | AF14: 0 | AH14: 0 | AJ14: 0 | AL14: 0 | AN14: 0 | AP14: 0 | AR14: 0 | AT14: 0 | AV14: 0 | AX14: 0 | AZ14: 0 | BB14: 0 | BD14: 0 | BF14: 0 | BH14: 0 | BJ14: 0 | BL14: 0 | BN14: 0 | BP14: 0 | BR14: 0 | BT14: 0 | BV14: 0 | BX14: 0 | BZ14: 0 | CB14: 0 | CD14: 0 | CF14: 0 | CN14: =SUMIFS('2019'!H:H,'2019'!A:A,"-48 kg",'2019'!D:D,'-48 kg'!H14,'2019'!E:E,'-48 kg'!I14) -> 0
C15: 8 | J15: 0 | K15: 0 | L15: 0 | M15: 0 | N15: 0 | P15: 0 | R15: 0 | T15: 0 | V15: 0 | X15: 0 | Z15: 0 | AB15: 0 | AD15: 0 | AF15: 0 | AH15: 0 | AJ15: 0 | AL15: 0 | AN15: 0 | AP15: 0 | AR15: 0 | AT15: 0 | AV15: 0 | AX15: 0 | AZ15: 0 | BB15: 0 | BD15: 0 | BF15: 0 | BH15: 0 | BJ15: 0 | BL15: 0 | BN15: 0 | BP15: 0 | BR15: 0 | BT15: 0 | BV15: 0 | BX15: 0 | BZ15: 0 | CB15: 0 | CD15: 0 | CF15: 0 | CN15: =SUMIFS('2019'!H:H,'2019'!A:A,"-48 kg",'2019'!D:D,'-48 kg'!H15,'2019'!E:E,'-48 kg'!I15) -> 0
C16: 8 | J16: 0 | K16: 0 | L16: 0 | M16: 0 | N16: 0 | P16: 0 | R16: 0 | T16: 0 | V16: 0 | X16: 0 | Z16: 0 | AB16: 0 | AD16: 0 | AF16: 0 | AH16: 0 | AJ16: 0 | AL16: 0 | AN16: 0 | AP16: 0 | AR16: 0 | AT16: 0 | AV16: 0 | AX16: 0 | AZ16: 0 | BB16: 0 | BD16: 0 | BF16: 0 | BH16: 0 | BJ16: 0 | BL16: 0 | BN16: 0 | BP16: 0 | BR16: 0 | BT16: 0 | BV16: 0 | BX16: 0 | BZ16: 0 | CB16: 0 | CD16: 0 | CF16: 0 | CN16: =SUMIFS('2019'!H:H,'2019'!A:A,"-48 kg",'2019'!D:D,'-48 kg'!H16,'2019'!E:E,'-48 kg'!I16) -> 0
C17: 8 | J17: 0 | K17: 0 | L17: 0 | M17: 0 | N17: 0 | P17: 0 | R17: 0 | T17: 0 | V17: 0 | X17: 0 | Z17: 0 | AB17: 0 | AD17: 0 | AF17: 0 | AH17: 0 | AJ17: 0 | AL17: 0 | AN17: 0 | AP17: 0 | AR17: 0 | AT17: 0 | AV17: 0 | AX17: 0 | AZ17: 0 | BB17: 0 | BD17: 0 | BF17: 0 | BH17: 0 | BJ17: 0 | BL17: 0 | BN17: 0 | BP17: 0 | BR17: 0 | BT17: 0 | BV17: 0 | BX17: 0 | BZ17: 0 | CB17: 0 | CD17: 0 | CF17: 0 | CN17: =SUMIFS('2019'!H:H,'2019'!A:A,"-48 kg",'2019'!D:D,'-48 kg'!H17,'2019'!E:E,'-48 kg'!I17) -> 0
C18: 8 | J18: 0 | K18: 0 | L18: 0 | M18: 0 | N18: 0 | P18: 0 | R18: 0 | T18: 0 | V18: 0 | X18: 0 | Z18: 0 | AB18: 0 | AD18: 0 | AF18: 0 | AH18: 0 | AJ18: 0 | AL18: 0 | AN18: 0 | AP18: 0 | AR18: 0 | AT18: 0 | AV18: 0 | AX18: 0 | AZ18: 0 | BB18: 0 | BD18: 0 | BF18: 0 | BH18: 0 | BJ18: 0 | BL18: 0 | BN18: 0 | BP18: 0 | BR18: 0 | BT18: 0 | BV18: 0 | BX18: 0 | BZ18: 0 | CB18: 0 | CD18: 0 | CF18: 0 | CN18: =SUMIFS('2019'!H:H,'2019'!A:A,"-48 kg",'2019'!D:D,'-48 kg'!H18,'2019'!E:E,'-48 kg'!I18) -> 0
C19: 8 | J19: 0 | K19: 0 | L19: 0 | M19: 0 | N19: 0 | P19: 0 | R19: 0 | T19: 0 | V19: 0 | X19: 0 | Z19: 0 | AB19: 0 | AD19: 0 | AF19: 0 | AH19: 0 | AJ19: 0 | AL19: 0 | AN19: 0 | AP19: 0 | AR19: 0 | AT19: 0 | AV19: 0 | AX19: 0 | AZ19: 0 | BB19: 0 | BD19: 0 | BF19: 0 | BH19: 0 | BJ19: 0 | BL19: 0 | BN19: 0 | BP19: 0 | BR19: 0 | BT19: 0 | BV19: 0 | BX19: 0 | BZ19: 0 | CB19: 0 | CD19: 0 | CF19: 0 | CN19: =SUMIFS('2019'!H:H,'2019'!A:A,"-48 kg",'2019'!D:D,'-48 kg'!H19,'2019'!E:E,'-48 kg'!I19) -> 0
C20: 8 | J20: 0 | K20: 0 | L20: 0 | M20: 0 | N20: 0 | P20: 0 | R20: 0 | T20: 0 | V20: 0 | X20: 0 | Z20: 0 | AB20: 0 | AD20: 0 | AF20: 0 | AH20: 0 | AJ20: 0 | AL20: 0 | AN20: 0 | AP20: 0 | AR20: 0 | AT20: 0 | AV20: 0 | AX20: 0 | AZ20: 0 | BB20: 0 | BD20: 0 | BF20: 0 | BH20: 0 | BJ20: 0 | BL20: 0 | BN20: 0 | BP20: 0 | BR20: 0 | BT20: 0 | BV20: 0 | BX20: 0 | BZ20: 0 | CB20: 0 | CD20: 0 | CF20: 0 | CN20: =SUMIFS('2019'!H:H,'2019'!A:A,"-48 kg",'2019'!D:D,'-48 kg'!H20,'2019'!E:E,'-48 kg'!I20) -> 0
C21: 8 | J21: 0 | K21: 0 | L21: 0 | M21: 0 | N21: 0 | P21: 0 | R21: 0 | T21: 0 | V21: 0 | X21: 0 | Z21: 0 | AB21: 0 | AD21: 0 | AF21: 0 | AH21: 0 | AJ21: 0 | AL21: 0 | AN21: 0 | AP21: 0 | AR21: 0 | AT21: 0 | AV21: 0 | AX21: 0 | AZ21: 0 | BB21: 0 | BD21: 0 | BF21: 0 | BH21: 0 | BJ21: 0 | BL21: 0 | BN21: 0 | BP21: 0 | BR21: 0 | BT21: 0 | BV21: 0 | BX21: 0 | BZ21: 0 | CB21: 0 | CD21: 0 | CF21: 0 | CN21: =SUMIFS('2019'!H:H,'2019'!A:A,"-48 kg",'2019'!D:D,'-48 kg'!H21,'2019'!E:E,'-48 kg'!I21) -> 0
C22: 8 | J22: 0 | K22: 0 | L22: 0 | M22: 0 | N22: 0 | P22: 0 | R22: 0 | T22: 0 | V22: 0 | X22: 0 | Z22: 0 | AB22: 0 | AD22: 0 | AF22: 0 | AH22: 0 | AJ22: 0 | AL22: 0 | AN22: 0 | AP22: 0 | AR22: 0 | AT22: 0 | AV22: 0 | AX22: 0 | AZ22: 0 | BB22: 0 | BD22: 0 | BF22: 0 | BH22: 0 | BJ22: 0 | BL22: 0 | BN22: 0 | BP22: 0 | BR22: 0 | BT22: 0 | BV22: 0 | BX22: 0 | BZ22: 0 | CB22: 0 | CD22: 0 | CF22: 0 | CN22: =SUMIFS('2019'!H:H,'2019'!A:A,"-48 kg",'2019'!D:D,'-48 kg'!H22,'2019'!E:E,'-48 kg'!I22) -> 0
C23: 8 | J23: 0 | K23: 0 | L23: 0 | M23: 0 | N23: 0 | P23: 0 | R23: 0 | T23: 0 | V23: 0 | X23: 0 | Z23: 0 | AB23: 0 | AD23: 0 | AF23: 0 | AH23: 0 | AJ23: 0 | AL23: 0 | AN23: 0 | AP23: 0 | AR23: 0 | AT23: 0 | AV23: 0 | AX23: 0 | AZ23: 0 | BB23: 0 | BD23: 0 | BF23: 0 | BH23: 0 | BJ23: 0 | BL23: 0 | BN23: 0 | BP23: 0 | BR23: 0 | BT23: 0 | BV23: 0 | BX23: 0 | BZ23: 0 | CB23: 0 | CD23: 0 | CF23: 0 | CN23: =SUMIFS('2019'!H:H,'2019'!A:A,"-48 kg",'2019'!D:D,'-48 kg'!H23,'2019'!E:E,'-48 kg'!I23) -> 0
C24: 8 | J24: 0 | K24: 0 | L24: 0 | M24: 0 | N24: 0 | P24: 0 | R24: 0 | T24: 0 | V24: 0 | X24: 0 | Z24: 0 | AB24: 0 | AD24: 0 | AF24: 0 | AH24: 0 | AJ24: 0 | AL24: 0 | AN24: 0 | AP24: 0 | AR24: 0 | AT24: 0 | AV24: 0 | AX24: 0 | AZ24: 0 | BB24: 0 | BD24: 0 | BF24: 0 | BH24: 0 | BJ24: 0 | BL24: 0 | BN24: 0 | BP24: 0 | BR24: 0 | BT24: 0 | BV24: 0 | BX24: 0 | BZ24: 0 | CB24: 0 | CD24: 0 | CF24: 0 | CN24: =SUMIFS('2019'!H:H,'2019'!A:A,"-48 kg",'2019'!D:D,'-48 kg'!H24,'2019'!E:E,'-48 kg'!I24) -> 0
C25: 8 | J25: 0 | K25: 0 | L25: 0 | M25: 0 | N25: 0 | P25: 0 | R25: 0 | T25: 0 | V25: 0 | X25: 0 | Z25: 0 | AB25: 0 | AD25: 0 | AF25: 0 | AH25: 0 | AJ25: 0 | AL25: 0 | AN25: 0 | AP25: 0 | AR25: 0 | AT25: 0 | AV25: 0 | AX25: 0 | AZ25: 0 | BB25: 0 | BD25: 0 | BF25: 0 | BH25: 0 | BJ25: 0 | BL25: 0 | BN25: 0 | BP25: 0 | BR25: 0 | BT25: 0 | BV25: 0 | BX25: 0 | BZ25: 0 | CB25: 0 | CD25: 0 | CF25: 0 | CN25: =SUMIFS('2019'!H:H,'2019'!A:A,"-48 kg",'2019'!D:D,'-48 kg'!H25,'2019'!E:E,'-48 kg'!I25) -> 0
C26: 8 | J26: 0 | K26: 0 | L26: 0 | M26: 0 | N26: 0 | P26: 0 | R26: 0 | T26: 0 | V26: 0 | X26: 0 | Z26: 0 | AB26: 0 | AD26: 0 | AF26: 0 | AH26: 0 | AJ26: 0 | AL26: 0 | AN26: 0 | AP26: 0 | AR26: 0 | AT26: 0 | AV26: 0 | AX26: 0 | AZ26: 0 | BB26: 0 | BD26: 0 | BF26: 0 | BH26: 0 | BJ26: 0 | BL26: 0 | BN26: 0 | BP26: 0 | BR26: 0 | BT26: 0 | BV26: 0 | BX26: 0 | BZ26: 0 | CB26: 0 | CD26: 0 | CF26: 0 | CN26: =SUMIFS('2019'!H:H,'2019'!A:A,"-48 kg",'2019'!D:D,'-48 kg'!H26,'2019'!E:E,'-48 kg'!I26) -> 0
C27: 8 | J27: 0 | K27: 0 | L27: 0 | M27: 0 | N27: 0 | P27: 0 | R27: 0 | T27: 0 | V27: 0 | X27: 0 | Z27: 0 | AB27: 0 | AD27: 0 | AF27: 0 | AH27: 0 | AJ27: 0 | AL27: 0 | AN27: 0 | AP27: 0 | AR27: 0 | AT27: 0 | AV27: 0 | AX27: 0 | AZ27: 0 | BB27: 0 | BD27: 0 | BF27: 0 | BH27: 0 | BJ27: 0 | BL27: 0 | BN27: 0 | BP27: 0 | BR27: 0 | BT27: 0 | BV27: 0 | BX27: 0 | BZ27: 0 | CB27: 0 | CD27: 0 | CF27: 0 | CN27: =SUMIFS('2019'!H:H,'2019'!A:A,"-48 kg",'2019'!D:D,'-48 kg'!H27,'2019'!E:E,'-48 kg'!I27) -> 0
C28: 8 | J28: 0 | K28: 0 | L28: 0 | M28: 0 | N28: 0 | P28: 0 | R28: 0 | T28: 0 | V28: 0 | X28: 0 | Z28: 0 | AB28: 0 | AD28: 0 | AF28: 0 | AH28: 0 | AJ28: 0 | AL28: 0 | AN28: 0 | AP28: 0 | AR28: 0 | AT28: 0 | AV28: 0 | AX28: 0 | AZ28: 0 | BB28: 0 | BD28: 0 | BF28: 0 | BH28: 0 | BJ28: 0 | BL28: 0 | BN28: 0 | BP28: 0 | BR28: 0 | BT28: 0 | BV28: 0 | BX28: 0 | BZ28: 0 | CB28: 0 | CD28: 0 | CF28: 0 | CN28: =SUMIFS('2019'!H:H,'2019'!A:A,"-48 kg",'2019'!D:D,'-48 kg'!H28,'2019'!E:E,'-48 kg'!I28) -> 0
C29: 8 | J29: 0 | K29: 0 | L29: 0 | M29: 0 | N29: 0 | P29: 0 | R29: 0 | T29: 0 | V29: 0 | X29: 0 | Z29: 0 | AB29: 0 | AD29: 0 | AF29: 0 | AH29: 0 | AJ29: 0 | AL29: 0 | AN29: 0 | AP29: 0 | AR29: 0 | AT29: 0 | AV29: 0 | AX29: 0 | AZ29: 0 | BB29: 0 | BD29: 0 | BF29: 0 | BH29: 0 | BJ29: 0 | BL29: 0 | BN29: 0 | BP29: 0 | BR29: 0 | BT29: 0 | BV29: 0 | BX29: 0 | BZ29: 0 | CB29: 0 | CD29: 0 | CF29: 0 | CN29: =SUMIFS('2019'!H:H,'2019'!A:A,"-48 kg",'2019'!D:D,'-48 kg'!H29,'2019'!E:E,'-48 kg'!I29) -> 0
C30: 8 | J30: 0 | K30: 0 | L30: 0 | M30: 0 | N30: 0 | P30: 0 | R30: 0 | T30: 0 | V30: 0 | X30: 0 | Z30: 0 | AB30: 0 | AD30: 0 | AF30: 0 | AH30: 0 | AJ30: 0 | AL30: 0 | AN30: 0 | AP30: 0 | AR30: 0 | AT30: 0 | AV30: 0 | AX30: 0 | AZ30: 0 | BB30: 0 | BD30: 0 | BF30: 0 | BH30: 0 | BJ30: 0 | BL30: 0 | BN30: 0 | BP30: 0 | BR30: 0 | BT30: 0 | BV30: 0 | BX30: 0 | BZ30: 0 | CB30: 0 | CD30: 0 | CF30: 0 | CN30: =SUMIFS('2019'!H:H,'2019'!A:A,"-48 kg",'2019'!D:D,'-48 kg'!H30,'2019'!E:E,'-48 kg'!I30) -> 0
C31: 8 | J31: 0 | K31: 0 | L31: 0 | M31: 0 | N31: 0 | P31: 0 | R31: 0 | T31: 0 | V31: 0 | X31: 0 | Z31: 0 | AB31: 0 | AD31: 0 | AF31: 0 | AH31: 0 | AJ31: 0 | AL31: 0 | AN31: 0 | AP31: 0 | AR31: 0 | AT31: 0 | AV31: 0 | AX31: 0 | AZ31: 0 | BB31: 0 | BD31: 0 | BF31: 0 | BH31: 0 | BJ31: 0 | BL31: 0 | BN31: 0 | BP31: 0 | BR31: 0 | BT31: 0 | BV31: 0 | BX31: 0 | BZ31: 0 | CB31: 0 | CD31: 0 | CF31: 0 | CN31: =SUMIFS('2019'!H:H,'2019'!A:A,"-48 kg",'2019'!D:D,'-48 kg'!H31,'2019'!E:E,'-48 kg'!I31) -> 0
C32: 8 | J32: 0 | K32: 0 | L32: 0 | M32: 0 | N32: 0 | P32: 0 | R32: 0 | T32: 0 | V32: 0 | X32: 0 | Z32: 0 | AB32: 0 | AD32: 0 | AF32: 0 | AH32: 0 | AJ32: 0 | AL32: 0 | AN32: 0 | AP32: 0 | AR32: 0 | AT32: 0 | AV32: 0 | AX32: 0 | AZ32: 0 | BB32: 0 | BD32: 0 | BF32: 0 | BH32: 0 | BJ32: 0 | BL32: 0 | BN32: 0 | BP32: 0 | BR32: 0 | BT32: 0 | BV32: 0 | BX32: 0 | BZ32: 0 | CB32: 0 | CD32: 0 | CF32: 0 | CN32: =SUMIFS('2019'!H:H,'2019'!A:A,"-48 kg",'2019'!D:D,'-48 kg'!H32,'2019'!E:E,'-48 kg'!I32) -> 0
C33: 8 | J33: 0 | K33: 0 | L33: 0 | M33: 0 | N33: 0 | P33: 0 | R33: 0 | T33: 0 | V33: 0 | X33: 0 | Z33: 0 | AB33: 0 | AD33: 0 | AF33: 0 | AH33: 0 | AJ33: 0 | AL33: 0 | AN33: 0 | AP33: 0 | AR33: 0 | AT33: 0 | AV33: 0 | AX33: 0 | AZ33: 0 | BB33: 0 | BD33: 0 | BF33: 0 | BH33: 0 | BJ33: 0 | BL33: 0 | BN33: 0 | BP33: 0 | BR33: 0 | BT33: 0 | BV33: 0 | BX33: 0 | BZ33: 0 | CB33: 0 | CD33: 0 | CF33: 0 | CN33: =SUMIFS('2019'!H:H,'2019'!A:A,"-48 kg",'2019'!D:D,'-48 kg'!H33,'2019'!E:E,'-48 kg'!I33) -> 0
C34: 8 | J34: 0 | K34: 0 | L34: 0 | M34: 0 | N34: 0 | P34: 0 | R34: 0 | T34: 0 | V34: 0 | X34: 0 | Z34: 0 | AB34: 0 | AD34: 0 | AF34: 0 | AH34: 0 | AJ34: 0 | AL34: 0 | AN34: 0 | AP34: 0 | AR34: 0 | AT34: 0 | AV34: 0 | AX34: 0 | AZ34: 0 | BB34: 0 | BD34: 0 | BF34: 0 | BH34: 0 | BJ34: 0 | BL34: 0 | BN34: 0 | BP34: 0 | BR34: 0 | BT34: 0 | BV34: 0 | BX34: 0 | BZ34: 0 | CB34: 0 | CD34: 0 | CF34: 0 | CN34: =SUMIFS('2019'!H:H,'2019'!A:A,"-48 kg",'2019'!D:D,'-48 kg'!H34,'2019'!E:E,'-48 kg'!I34) -> 0
C35: 8 | J35: 0 | K35: 0 | L35: 0 | M35: 0 | N35: 0 | P35: 0 | R35: 0 | T35: 0 | V35: 0 | X35: 0 | Z35: 0 | AB35: 0 | AD35: 0 | AF35: 0 | AH35: 0 | AJ35: 0 | AL35: 0 | AN35: 0 | AP35: 0 | AR35: 0 | AT35: 0 | AV35: 0 | AX35: 0 | AZ35: 0 | BB35: 0 | BD35: 0 | BF35: 0 | BH35: 0 | BJ35: 0 | BL35: 0 | BN35: 0 | BP35: 0 | BR35: 0 | BT35: 0 | BV35: 0 | BX35: 0 | BZ35: 0 | CB35: 0 | CD35: 0 | CF35: 0 | CN35: =SUMIFS('2019'!H:H,'2019'!A:A,"-48 kg",'2019'!D:D,'-48 kg'!H35,'2019'!E:E,'-48 kg'!I35) -> 0
C36: 8 | J36: 0 | K36: 0 | L36: 0 | M36: 0 | N36: 0 | P36: 0 | R36: 0 | T36: 0 | V36: 0 | X36: 0 | Z36: 0 | AB36: 0 | AD36: 0 | AF36: 0 | AH36: 0 | AJ36: 0 | AL36: 0 | AN36: 0 | AP36: 0 | AR36: 0 | AT36: 0 | AV36: 0 | AX36: 0 | AZ36: 0 | BB36: 0 | BD36: 0 | BF36: 0 | BH36: 0 | BJ36: 0 | BL36: 0 | BN36: 0 | BP36: 0 | BR36: 0 | BT36: 0 | BV36: 0 | BX36: 0 | BZ36: 0 | CB36: 0 | CD36: 0 | CF36: 0 | CN36: =SUMIFS('2019'!H:H,'2019'!A:A,"-48 kg",'2019'!D:D,'-48 kg'!H36,'2019'!E:E,'-48 kg'!I36) -> 0
C37: 8 | J37: 0 | K37: 0 | L37: 0 | M37: 0 | N37: 0 | P37: 0 | R37: 0 | T37: 0 | V37: 0 | X37: 0 | Z37: 0 | AB37: 0 | AD37: 0 | AF37: 0 | AH37: 0 | AJ37: 0 | AL37: 0 | AN37: 0 | AP37: 0 | AR37: 0 | AT37: 0 | AV37: 0 | AX37: 0 | AZ37: 0 | BB37: 0 | BD37: 0 | BF37: 0 | BH37: 0 | BJ37: 0 | BL37: 0 | BN37: 0 | BP37: 0 | BR37: 0 | BT37: 0 | BV37: 0 | BX37: 0 | BZ37: 0 | CB37: 0 | CD37: 0 | CF37: 0 | CN37: =SUMIFS('2019'!H:H,'2019'!A:A,"-48 kg",'2019'!D:D,'-48 kg'!H37,'2019'!E:E,'-48 kg'!I37) -> 0
C38: 8 | J38: 0 | K38: 0 | L38: 0 | M38: 0 | N38: 0 | P38: 0 | R38: 0 | T38: 0 | V38: 0 | X38: 0 | Z38: 0 | AB38: 0 | AD38: 0 | AF38: 0 | AH38: 0 | AJ38: 0 | AL38: 0 | AN38: 0 | AP38: 0 | AR38: 0 | AT38: 0 | AV38: 0 | AX38: 0 | AZ38: 0 | BB38: 0 | BD38: 0 | BF38: 0 | BH38: 0 | BJ38: 0 | BL38: 0 | BN38: 0 | BP38: 0 | BR38: 0 | BT38: 0 | BV38: 0 | BX38: 0 | BZ38: 0 | CB38: 0 | CD38: 0 | CF38: 0 | CN38: =SUMIFS('2019'!H:H,'2019'!A:A,"-48 kg",'2019'!D:D,'-48 kg'!H38,'2019'!E:E,'-48 kg'!I38) -> 0
C39: 8 | J39: 0 | K39: 0 | L39: 0 | M39: 0 | N39: 0 | P39: 0 | R39: 0 | T39: 0 | V39: 0 | X39: 0 | Z39: 0 | AB39: 0 | AD39: 0 | AF39: 0 | AH39: 0 | AJ39: 0 | AL39: 0 | AN39: 0 | AP39: 0 | AR39: 0 | AT39: 0 | AV39: 0 | AX39: 0 | AZ39: 0 | BB39: 0 | BD39: 0 | BF39: 0 | BH39: 0 | BJ39: 0 | BL39: 0 | BN39: 0 | BP39: 0 | BR39: 0 | BT39: 0 | BV39: 0 | BX39: 0 | BZ39: 0 | CB39: 0 | CD39: 0 | CF39: 0 | CN39: =SUMIFS('2019'!H:H,'2019'!A:A,"-48 kg",'2019'!D:D,'-48 kg'!H39,'2019'!E:E,'-48 kg'!I39) -> 0
C40: 8 | J40: 0 | K40: 0 | L40: 0 | M40: 0 | N40: 0 | P40: 0 | R40: 0 | T40: 0 | V40: 0 | X40: 0 | Z40: 0 | AB40: 0 | AD40: 0 | AF40: 0 | AH40: 0 | AJ40: 0 | AL40: 0 | AN40: 0 | AP40: 0 | AR40: 0 | AT40: 0 | AV40: 0 | AX40: 0 | AZ40: 0 | BB40: 0 | BD40: 0 | BF40: 0 | BH40: 0 | BJ40: 0 | BL40: 0 | BN40: 0 | BP40: 0 | BR40: 0 | BT40: 0 | BV40: 0 | BX40: 0 | BZ40: 0 | CB40: 0 | CD40: 0 | CF40: 0 | CN40: =SUMIFS('2019'!H:H,'2019'!A:A,"-48 kg",'2019'!D:D,'-48 kg'!H40,'2019'!E:E,'-48 kg'!I40) -> 0
C41: 8 | J41: 0 | K41: 0 | L41: 0 | M41: 0 | N41: 0 | P41: 0 | R41: 0 | T41: 0 | V41: 0 | X41: 0 | Z41: 0 | AB41: 0 | AD41: 0 | AF41: 0 | AH41: 0 | AJ41: 0 | AL41: 0 | AN41: 0 | AP41: 0 | AR41: 0 | AT41: 0 | AV41: 0 | AX41: 0 | AZ41: 0 | BB41: 0 | BD41: 0 | BF41: 0 | BH41: 0 | BJ41: 0 | BL41: 0 | BN41: 0 | BP41: 0 | BR41: 0 | BT41: 0 | BV41: 0 | BX41: 0 | BZ41: 0 | CB41: 0 | CD41: 0 | CF41: 0 | CN41: =SUMIFS('2019'!H:H,'2019'!A:A,"-48 kg",'2019'!D:D,'-48 kg'!H41,'2019'!E:E,'-48 kg'!I41) -> 0
C42: 8 | J42: 0 | K42: 0 | L42: 0 | M42: 0 | N42: 0 | P42: 0 | R42: 0 | T42: 0 | V42: 0 | X42: 0 | Z42: 0 | AB42: 0 | AD42: 0 | AF42: 0 | AH42: 0 | AJ42: 0 | AL42: 0 | AN42: 0 | AP42: 0 | AR42: 0 | AT42: 0 | AV42: 0 | AX42: 0 | AZ42: 0 | BB42: 0 | BD42: 0 | BF42: 0 | BH42: 0 | BJ42: 0 | BL42: 0 | BN42: 0 | BP42: 0 | BR42: 0 | BT42: 0 | BV42: 0 | BX42: 0 | BZ42: 0 | CB42: 0 | CD42: 0 | CF42: 0 | CN42: =SUMIFS('2019'!H:H,'2019'!A:A,"-48 kg",'2019'!D:D,'-48 kg'!H42,'2019'!E:E,'-48 kg'!I42) -> 0
C43: 8 | J43: 0 | K43: 0 | L43: 0 | M43: 0 | N43: 0 | P43: 0 | R43: 0 | T43: 0 | V43: 0 | X43: 0 | Z43: 0 | AB43: 0 | AD43: 0 | AF43: 0 | AH43: 0 | AJ43: 0 | AL43: 0 | AN43: 0 | AP43: 0 | AR43: 0 | AT43: 0 | AV43: 0 | AX43: 0 | AZ43: 0 | BB43: 0 | BD43: 0 | BF43: 0 | BH43: 0 | BJ43: 0 | BL43: 0 | BN43: 0 | BP43: 0 | BR43: 0 | BT43: 0 | BV43: 0 | BX43: 0 | BZ43: 0 | CB43: 0 | CD43: 0 | CF43: 0 | CN43: =SUMIFS('2019'!H:H,'2019'!A:A,"-48 kg",'2019'!D:D,'-48 kg'!H43,'2019'!E:E,'-48 kg'!I43) -> 0
C44: 8 | J44: 0 | K44: 0 | L44: 0 | M44: 0 | N44: 0 | P44: 0 | R44: 0 | T44: 0 | V44: 0 | X44: 0 | Z44: 0 | AB44: 0 | AD44: 0 | AF44: 0 | AH44: 0 | AJ44: 0 | AL44: 0 | AN44: 0 | AP44: 0 | AR44: 0 | AT44: 0 | AV44: 0 | AX44: 0 | AZ44: 0 | BB44: 0 | BD44: 0 | BF44: 0 | BH44: 0 | BJ44: 0 | BL44: 0 | BN44: 0 | BP44: 0 | BR44: 0 | BT44: 0 | BV44: 0 | BX44: 0 | BZ44: 0 | CB44: 0 | CD44: 0 | CF44: 0 | CN44: =SUMIFS('2019'!H:H,'2019'!A:A,"-48 kg",'2019'!D:D,'-48 kg'!H44,'2019'!E:E,'-48 kg'!I44) -> 0

Sheet -52 kg (hidden)
C2: Ranking | D2: Nation | E2: Continent | F2: IJF ID | G2: Y.o B. | H2: FAMILY NAME | I2: Given name | J2: Total score
C3: Puesto | D3: Comunidad | E3: Continent | F3: España ID | G3: A. de N. | H3: APELLIDOS | I3: Nombre | J3: Ranking Nacional Absoluto | K3: Puntuación Año Anterior | L3: Clasificación Equipo Absoluto | O3: Master ABS | Q3: Campeonato Mundo | S3: Campeonato Europa | U3: Campeonato Europa S23 | W3: Gran Slam (Francia) | Y3: Grand Slam (Abu Dhabi) | AA3: GRAND SLAM BRASILIA | AC3: GRAND SLAM OSAKA | AK3: Gran Prix Croacia - ZAGREB | AM3: Gran Prix (Marruecos) | AO3: Gran Prix (La Haya) | AQ3: Gran Prix (Tunez) | AS3: Gran Prix (Duseldorf) | AU3: Gran Prix (China) | AW3: Gran Prix (Uzbekistan) | AY3: Gran Prix Budapest | BE3: Open de Oceania | BG3: Campeonato España | BI3: European Open (Odivelas) | BK3: European Open (Sofia) | BM3: European Open (Roma) | BO3: European Open (POLONIA) | BQ3: European Open (RUMANIA) | BS3: European Open (Glasgow) | BU3: Open Panamericano | BW3: Open Tallinn | BY3: Open Luxemburgo | CA3: European Cup Málaga | CN3: Puntuación Año Anterior
K4: 0.5 | L4: Oro | M4: Plata | N4: Bronce | O4: Medalla | P4: Puntos | Q4: Medalla | R4: Puntos | S4: Medalla | T4: Puntos | U4: Medalla | V4: Puntos | W4: Medalla | X4: Puntos | Y4: Medalla | Z4: Puntos | AA4: Medalla | AB4: Puntos | AC4: Medalla | AD4: Puntos | AE4: Medalla | AF4: Puntos | AG4: Medalla | AH4: Puntos | AI4: Medalla | AJ4: Puntos | AK4: Medalla | AL4: Puntos | AM4: Medalla | AN4: Puntos | AO4: Medalla | AP4: Puntos | AQ4: Medalla | AR4: Puntos | AS4: Medalla | AT4: Puntos | AU4: Medalla | AV4: Puntos | AW4: Medalla | AX4: Puntos | AY4: Medalla | AZ4: Puntos | BA4: Medalla | BB4: Puntos | BC4: Medalla | BD4: Puntos | BE4: Medalla | BF4: Puntos | BG4: Medalla | BH4: Puntos | BI4: Medalla | BJ4: Puntos | BK4: Medalla | BL4: Puntos | BM4: Medalla | BN4: Puntos | BO4: Medalla | BP4: Puntos | BQ4: Medalla | BR4: Puntos | BS4: Medalla | BT4: Puntos | BU4: Medalla | BV4: Puntos | BW4: Medalla | BX4: Puntos | BY4: Medalla | BZ4: Puntos | CA4: Medalla | CB4: Puntos | CC4: Medalla | CD4: Puntos | CE4: Medalla | CF4: Puntos | CN4: 1
C5: =RANK(J5,$J$5:$J$44,0) -> 1 | D5: VAL | H5: ESTEO LINNE | I5: Nina | J5: =SUM(O5:CF5)+K5 -> 130 | K5: =CN5*50/100 -> 30 | L5: =COUNTIF(O5:CF5,$L$4) -> 0 | M5: =COUNTIF(O5:CF5,$M$4) -> 1 | N5: =COUNTIF(O5:CF5,$N$4) -> 1 | P5: =IF(O5="Oro",150,IF(O5="Plata",120,IF(O5="Bronce",100,IF(O5="Quinto",50,IF(O5="Septimo",30,0))))) -> 0 | R5: =IF(Q5="Oro",150,IF(Q5="Plata",120,IF(Q5="Bronce",100,IF(Q5="Quinto",50,IF(Q5="Septimo",30,0))))) -> 0 | T5: =IF(S5="Oro",100,IF(S5="Plata",85,IF(S5="Bronce",70,IF(S5="Quinto",30,IF(S5="Septimo",15,0))))) -> 0 | U5: PLATA | V5: =IF(U5="Oro",100,IF(U5="Plata",85,IF(U5="Bronce",70,IF(U5="Quinto",30,IF(U5="Septimo",15,0))))) -> 85 | X5: =IF(W5="Oro",75,IF(W5="Plata",60,IF(W5="Bronce",50,IF(W5="Quinto",20,IF(W5="Septimo",7,0))))) -> 0 | Z5: =IF(Y5="Oro",75,IF(Y5="Plata",60,IF(Y5="Bronce",50,IF(Y5="Quinto",20,IF(Y5="Septimo",7,0))))) -> 0 | AB5: =IF(AA5="Oro",75,IF(AA5="Plata",60,IF(AA5="Bronce",50,IF(AA5="Quinto",20,IF(AA5="Septimo",7,0))))) -> 0 | AD5: =IF(AC5="Oro",75,IF(AC5="Plata",60,IF(AC5="Bronce",50,IF(AC5="Quinto",20,IF(AC5="Septimo",7,0))))) -> 0 | AF5: =IF(AE5="Oro",75,IF(AE5="Plata",60,IF(AE5="Bronce",50,IF(AE5="Quinto",20,IF(AE5="Septimo",7,0))))) -> 0 | AH5: =IF(AG5="Oro",75,IF(AG5="Plata",60,IF(AG5="Bronce",50,IF(AG5="Quinto",20,IF(AG5="Septimo",7,0))))) -> 0 | AJ5: =IF(AI5="Oro",75,IF(AI5="Plata",60,IF(AI5="Bronce",50,IF(AI5="Quinto",20,IF(AI5="Septimo",7,0))))) -> 0 | AL5: =IF(AK5="Oro",60,IF(AK5="Plata",50,IF(AK5="Bronce",35,IF(AK5="Quinto",15,IF(AK5="Septimo",5,0))))) -> 0 | AN5: =IF(AM5="Oro",60,IF(AM5="Plata",50,IF(AM5="Bronce",35,IF(AM5="Quinto",15,IF(AM5="Septimo",5,0))))) -> 0 | AP5: =IF(AO5="Oro",60,IF(AO5="Plata",50,IF(AO5="Bronce",35,IF(AO5="Quinto",15,IF(AO5="Septimo",5,0))))) -> 0 | AR5: =IF(AQ5="Oro",60,IF(AQ5="Plata",50,IF(AQ5="Bronce",35,IF(AQ5="Quinto",15,IF(AQ5="Septimo",5,0))))) -> 0 | AT5: =IF(AS5="Oro",60,IF(AS5="Plata",50,IF(AS5="Bronce",35,IF(AS5="Quinto",15,IF(AS5="Septimo",5,0))))) -> 0 | AV5: =IF(AU5="Oro",60,IF(AU5="Plata",50,IF(AU5="Bronce",35,IF(AU5="Quinto",15,IF(AU5="Septimo",5,0))))) -> 0 | AX5: =IF(AW5="Oro",60,IF(AW5="Plata",50,IF(AW5="Bronce",35,IF(AW5="Quinto",15,IF(AW5="Septimo",5,0))))) -> 0 | AZ5: =IF(AY5="Oro",60,IF(AY5="Plata",50,IF(AY5="Bronce",35,IF(AY5="Quinto",15,IF(AY5="Septimo",5,0))))) -> 0 | BB5: =IF(BA5="Oro",60,IF(BA5="Plata",50,IF(BA5="Bronce",35,IF(BA5="Quinto",15,IF(BA5="Septimo",5,0))))) -> 0 | BD5: =IF(BC5="Oro",60,IF(BC5="Plata",50,IF(BC5="Bronce",35,IF(BC5="Quinto",15,IF(BC5="Septimo",5,0))))) -> 0 | BF5: =IF(BE5="Oro",60,IF(BE5="Plata",50,IF(BE5="Bronce",35,IF(BE5="Quinto",15,IF(BE5="Septimo",5,0))))) -> 0 | BH5: =IF(BG5="Oro",30,IF(BG5="Plata",20,IF(BG5="Bronce",15,0))) -> 0 | BJ5: =IF(BI5="Oro",30,IF(BI5="Plata",20,IF(BI5="Bronce",15,0))) -> 0 | BL5: =IF(BK5="Oro",30,IF(BK5="Plata",20,IF(BK5="Bronce",15,0))) -> 0 | BN5: =IF(BM5="Oro",30,IF(BM5="Plata",20,IF(BM5="Bronce",15,0))) -> 0 | BP5: =IF(BO5="Oro",30,IF(BO5="Plata",20,IF(BO5="Bronce",15,0))) -> 0 | BR5: =IF(BQ5="Oro",30,IF(BQ5="Plata",20,IF(BQ5="Bronce",15,0))) -> 0 | BT5: =IF(BS5="Oro",30,IF(BS5="Plata",20,IF(BS5="Bronce",15,0))) -> 0 | BV5: =IF(BU5="Oro",30,IF(BU5="Plata",20,IF(BU5="Bronce",15,0))) -> 0 | BX5: =IF(BW5="Oro",30,IF(BW5="Plata",20,IF(BW5="Bronce",15,0))) -> 0 | BY5: Bronce | BZ5: =IF(BY5="Oro",30,IF(BY5="Plata",20,IF(BY5="Bronce",15,0))) -> 15 | CB5: =IF(CA5="Oro",30,IF(CA5="Plata",20,IF(CA5="Bronce",15,0))) -> 0 | CD5: =IF(CC5="Oro",30,IF(CC5="Plata",20,IF(CC5="Bronce",15,0))) -> 0 | CF5: =IF(CE5="Oro",30,IF(CE5="Plata",20,IF(CE5="Bronce",15,0))) -> 0 | CN5: =SUMIFS('2019'!H:H,'2019'!A:A,"-52 kg",'2019'!D:D,'-52 kg'!H5,'2019'!E:E,'-52 kg'!I5) -> 60
C6: 2 | D6: VAL | H6: PEREZ BOX | I6: ANA | J6: 128.5 | K6: 78.5 | L6: 0 | M6: 1 | N6: 0 | P6: 0 | R6: 0 | T6: 0 | V6: 0 | X6: 0 | Y6: 0 | Z6: 0 | AB6: 0 | AC6: 0 | AD6: 0 | AF6: 0 | AH6: 0 | AJ6: 0 | AL6: 0 | AN6: 0 | AP6: 0 | AR6: 0 | AT6: 0 | AV6: 0 | AX6: 0 | AZ6: 0 | BB6: 0 | BD6: 0 | BE6: PLATA | BF6: 50 | BH6: 0 | BJ6: 0 | BL6: 0 | BN6: 0 | BP6: 0 | BR6: 0 | BT6: 0 | BV6: 0 | BX6: 0 | BZ6: 0 | CB6: 0 | CD6: 0 | CF6: 0 | CN6: =SUMIFS('2019'!H:H,'2019'!A:A,"-52 kg",'2019'!D:D,'-52 kg'!H6,'2019'!E:E,'-52 kg'!I6) -> 157
C7: 3 | D7: GAL | H7: LOPEZ SHERIFF | I7: ESTRELLA | J7: 47.5 | K7: 27.5 | L7: 0 | M7: 0 | N7: 0 | P7: 0 | R7: 0 | T7: 0 | V7: 0 | X7: 0 | Y7: QUINTO | Z7: 20 | AB7: 0 | AD7: 0 | AF7: 0 | AH7: 0 | AJ7: 0 | AL7: 0 | AN7: 0 | AP7: 0 | AR7: 0 | AT7: 0 | AV7: 0 | AX7: 0 | AZ7: 0 | BB7: 0 | BD7: 0 | BE7: 0 | BF7: 0 | BH7: 0 | BJ7: 0 | BL7: 0 | BN7: 0 | BP7: 0 | BR7: 0 | BT7: 0 | BV7: 0 | BX7: 0 | BZ7: 0 | CB7: 0 | CD7: 0 | CF7: 0 | CN7: =SUMIFS('2019'!H:H,'2019'!A:A,"-52 kg",'2019'!D:D,'-52 kg'!H7,'2019'!E:E,'-52 kg'!I7) -> 55
C8: 4 | D8: MAD | H8: HOGREFE ACEA | I8: Sofia | J8: 45 | K8: 15 | L8: 1 | M8: 0 | N8: 0 | P8: 0 | R8: 0 | T8: 0 | V8: 0 | X8: 0 | Z8: 0 | AB8: 0 | AD8: 0 | AF8: 0 | AH8: 0 | AJ8: 0 | AL8: 0 | AN8: 0 | AP8: 0 | AR8: 0 | AT8: 0 | AV8: 0 | AX8: 0 | AZ8: 0 | BB8: 0 | BD8: 0 | BF8: 0 | BH8: 0 | BJ8: 0 | BL8: 0 | BN8: 0 | BP8: 0 | BR8: 0 | BT8: 0 | BV8: 0 | BX8: 0 | BZ8: 0 | CA8: ORO | CB8: 30 | CD8: 0 | CF8: 0 | CN8: =SUMIFS('2019'!H:H,'2019'!A:A,"-52 kg",'2019'!D:D,'-52 kg'!H8,'2019'!E:E,'-52 kg'!I8) -> 30
C9: 5 | D9: GAL | H9: BAJO BORLAN | I9: LAURA | J9: 27.5 | K9: 7.5 | L9: 0 | M9: 1 | N9: 0 | P9: 0 | R9: 0 | T9: 0 | V9: 0 | X9: 0 | Z9: 0 | AB9: 0 | AD9: 0 | AF9: 0 | AH9: 0 | AJ9: 0 | AL9: 0 | AN9: 0 | AP9: 0 | AR9: 0 | AT9: 0 | AV9: 0 | AX9: 0 | AZ9: 0 | BB9: 0 | BD9: 0 | BF9: 0 | BH9: 0 | BJ9: 0 | BL9: 0 | BN9: 0 | BP9: 0 | BR9: 0 | BT9: 0 | BV9: 0 | BX9: 0 | BZ9: 0 | CA9: PLATA | CB9: 20 | CD9: 0 | CF9: 0 | CN9: =SUMIFS('2019'!H:H,'2019'!A:A,"-52 kg",'2019'!D:D,'-52 kg'!H9,'2019'!E:E,'-52 kg'!I9) -> 15
C10: 6 | D10: AND | H10: GOMEZ SIERRA | I10: Almudena | J10: 22.5 | K10: 7.5 | L10: 0 | M10: 0 | N10: 1 | P10: 0 | R10: 0 | T10: 0 | V10: 0 | X10: 0 | Z10: 0 | AB10: 0 | AD10: 0 | AF10: 0 | AH10: 0 | AJ10: 0 | AL10: 0 | AN10: 0 | AP10: 0 | AR10: 0 | AT10: 0 | AV10: 0 | AX10: 0 | AZ10: 0 | BB10: 0 | BD10: 0 | BF10: 0 | BH10: 0 | BJ10: 0 | BL10: 0 | BN10: 0 | BP10: 0 | BR10: 0 | BT10: 0 | BV10: 0 | BX10: 0 | BZ10: 0 | CA10: BRONCE | CB10: 15 | CD10: 0 | CF10: 0 | CN10: =SUMIFS('2019'!H:H,'2019'!A:A,"-52 kg",'2019'!D:D,'-52 kg'!H10,'2019'!E:E,'-52 kg'!I10) -> 15
C11: 7 | D11: GAL | H11: GARCIA TORRES | I11: Rocio | J11: 15 | K11: 0 | L11: 0 | M11: 0 | N11: 0 | P11: 0 | R11: 0 | T11: 0 | U11: SEPTIMO | V11: 15 | X11: 0 | Z11: 0 | AB11: 0 | AD11: 0 | AF11: 0 | AH11: 0 | AJ11: 0 | AL11: 0 | AN11: 0 | AP11: 0 | AR11: 0 | AT11: 0 | AV11: 0 | AX11: 0 | AZ11: 0 | BB11: 0 | BD11: 0 | BF11: 0 | BH11: 0 | BJ11: 0 | BL11: 0 | BN11: 0 | BP11: 0 | BR11: 0 | BT11: 0 | BV11: 0 | BX11: 0 | BZ11: 0 | CB11: 0 | CD11: 0 | CF11: 0 | CN11: =SUMIFS('2019'!H:H,'2019'!A:A,"-52 kg",'2019'!D:D,'-52 kg'!H11,'2019'!E:E,'-52 kg'!I11) -> 0
C12: 8 | D12: MUR | H12: DIAZ VIDAL | I12: Irene | J12: 0 | K12: 0 | L12: 0 | M12: 0 | N12: 0 | P12: 0 | R12: 0 | T12: 0 | V12: 0 | X12: 0 | Z12: 0 | AB12: 0 | AD12: 0 | AF12: 0 | AH12: 0 | AJ12: 0 | AL12: 0 | AN12: 0 | AP12: 0 | AR12: 0 | AT12: 0 | AV12: 0 | AX12: 0 | AZ12: 0 | BB12: 0 | BD12: 0 | BF12: 0 | BH12: 0 | BJ12: 0 | BL12: 0 | BN12: 0 | BP12: 0 | BR12: 0 | BT12: 0 | BV12: 0 | BW12: Quinto | BX12: 0 | BZ12: 0 | CA12: QUINTO | CB12: 0 | CD12: 0 | CF12: 0 | CN12: =SUMIFS('2019'!H:H,'2019'!A:A,"-52 kg",'2019'!D:D,'-52 kg'!H12,'2019'!E:E,'-52 kg'!I12) -> 0
C13: 8 | J13: 0 | K13: 0 | L13: 0 | M13: 0 | N13: 0 | P13: 0 | R13: 0 | T13: 0 | V13: 0 | X13: 0 | Z13: 0 | AB13: 0 | AD13: 0 | AF13: 0 | AH13: 0 | AJ13: 0 | AL13: 0 | AN13: 0 | AP13: 0 | AR13: 0 | AT13: 0 | AV13: 0 | AX13: 0 | AZ13: 0 | BB13: 0 | BD13: 0 | BF13: 0 | BH13: 0 | BJ13: 0 | BL13: 0 | BN13: 0 | BP13: 0 | BR13: 0 | BT13: 0 | BV13: 0 | BX13: 0 | BZ13: 0 | CB13: 0 | CD13: 0 | CF13: 0 | CN13: =SUMIFS('2019'!H:H,'2019'!A:A,"-52 kg",'2019'!D:D,'-52 kg'!H13,'2019'!E:E,'-52 kg'!I13) -> 0
C14: 8 | J14: 0 | K14: 0 | L14: 0 | M14: 0 | N14: 0 | P14: 0 | R14: 0 | T14: 0 | V14: 0 | X14: 0 | Z14: 0 | AB14: 0 | AD14: 0 | AF14: 0 | AH14: 0 | AJ14: 0 | AL14: 0 | AN14: 0 | AP14: 0 | AR14: 0 | AT14: 0 | AV14: 0 | AX14: 0 | AZ14: 0 | BB14: 0 | BD14: 0 | BF14: 0 | BH14: 0 | BJ14: 0 | BL14: 0 | BN14: 0 | BP14: 0 | BR14: 0 | BT14: 0 | BV14: 0 | BX14: 0 | BZ14: 0 | CB14: 0 | CD14: 0 | CF14: 0 | CN14: =SUMIFS('2019'!H:H,'2019'!A:A,"-52 kg",'2019'!D:D,'-52 kg'!H14,'2019'!E:E,'-52 kg'!I14) -> 0
C15: 8 | J15: 0 | K15: 0 | L15: 0 | M15: 0 | N15: 0 | P15: 0 | R15: 0 | T15: 0 | V15: 0 | X15: 0 | Z15: 0 | AB15: 0 | AD15: 0 | AF15: 0 | AH15: 0 | AJ15: 0 | AL15: 0 | AN15: 0 | AP15: 0 | AR15: 0 | AT15: 0 | AV15: 0 | AX15: 0 | AZ15: 0 | BB15: 0 | BD15: 0 | BF15: 0 | BH15: 0 | BJ15: 0 | BL15: 0 | BN15: 0 | BP15: 0 | BR15: 0 | BT15: 0 | BV15: 0 | BX15: 0 | BZ15: 0 | CB15: 0 | CD15: 0 | CF15: 0 | CN15: =SUMIFS('2019'!H:H,'2019'!A:A,"-52 kg",'2019'!D:D,'-52 kg'!H15,'2019'!E:E,'-52 kg'!I15) -> 0
C16: 8 | J16: 0 | K16: 0 | L16: 0 | M16: 0 | N16: 0 | P16: 0 | R16: 0 | T16: 0 | V16: 0 | X16: 0 | Z16: 0 | AB16: 0 | AD16: 0 | AF16: 0 | AH16: 0 | AJ16: 0 | AL16: 0 | AN16: 0 | AP16: 0 | AR16: 0 | AT16: 0 | AV16: 0 | AX16: 0 | AZ16: 0 | BB16: 0 | BD16: 0 | BF16: 0 | BH16: 0 | BJ16: 0 | BL16: 0 | BN16: 0 | BP16: 0 | BR16: 0 | BT16: 0 | BV16: 0 | BX16: 0 | BZ16: 0 | CB16: 0 | CD16: 0 | CF16: 0 | CN16: =SUMIFS('2019'!H:H,'2019'!A:A,"-52 kg",'2019'!D:D,'-52 kg'!H16,'2019'!E:E,'-52 kg'!I16) -> 0
C17: 8 | J17: 0 | K17: 0 | L17: 0 | M17: 0 | N17: 0 | P17: 0 | R17: 0 | T17: 0 | V17: 0 | X17: 0 | Z17: 0 | AB17: 0 | AD17: 0 | AF17: 0 | AH17: 0 | AJ17: 0 | AL17: 0 | AN17: 0 | AP17: 0 | AR17: 0 | AT17: 0 | AV17: 0 | AX17: 0 | AZ17: 0 | BB17: 0 | BD17: 0 | BF17: 0 | BH17: 0 | BJ17: 0 | BL17: 0 | BN17: 0 | BP17: 0 | BR17: 0 | BT17: 0 | BV17: 0 | BX17: 0 | BZ17: 0 | CB17: 0 | CD17: 0 | CF17: 0 | CN17: =SUMIFS('2019'!H:H,'2019'!A:A,"-52 kg",'2019'!D:D,'-52 kg'!H17,'2019'!E:E,'-52 kg'!I17) -> 0
C18: 8 | J18: 0 | K18: 0 | L18: 0 | M18: 0 | N18: 0 | P18: 0 | R18: 0 | T18: 0 | V18: 0 | X18: 0 | Z18: 0 | AB18: 0 | AD18: 0 | AF18: 0 | AH18: 0 | AJ18: 0 | AL18: 0 | AN18: 0 | AP18: 0 | AR18: 0 | AT18: 0 | AV18: 0 | AX18: 0 | AZ18: 0 | BB18: 0 | BD18: 0 | BF18: 0 | BH18: 0 | BJ18: 0 | BL18: 0 | BN18: 0 | BP18: 0 | BR18: 0 | BT18: 0 | BV18: 0 | BX18: 0 | BZ18: 0 | CB18: 0 | CD18: 0 | CF18: 0 | CN18: =SUMIFS('2019'!H:H,'2019'!A:A,"-52 kg",'2019'!D:D,'-52 kg'!H18,'2019'!E:E,'-52 kg'!I18) -> 0
C19: 8 | J19: 0 | K19: 0 | L19: 0 | M19: 0 | N19: 0 | P19: 0 | R19: 0 | T19: 0 | V19: 0 | X19: 0 | Z19: 0 | AB19: 0 | AD19: 0 | AF19: 0 | AH19: 0 | AJ19: 0 | AL19: 0 | AN19: 0 | AP19: 0 | AR19: 0 | AT19: 0 | AV19: 0 | AX19: 0 | AZ19: 0 | BB19: 0 | BD19: 0 | BF19: 0 | BH19: 0 | BJ19: 0 | BL19: 0 | BN19: 0 | BP19: 0 | BR19: 0 | BT19: 0 | BV19: 0 | BX19: 0 | BZ19: 0 | CB19: 0 | CD19: 0 | CF19: 0 | CN19: =SUMIFS('2019'!H:H,'2019'!A:A,"-52 kg",'2019'!D:D,'-52 kg'!H19,'2019'!E:E,'-52 kg'!I19) -> 0
C20: 8 | J20: 0 | K20: 0 | L20: 0 | M20: 0 | N20: 0 | P20: 0 | R20: 0 | T20: 0 | V20: 0 | X20: 0 | Z20: 0 | AB20: 0 | AD20: 0 | AF20: 0 | AH20: 0 | AJ20: 0 | AL20: 0 | AN20: 0 | AP20: 0 | AR20: 0 | AT20: 0 | AV20: 0 | AX20: 0 | AZ20: 0 | BB20: 0 | BD20: 0 | BF20: 0 | BH20: 0 | BJ20: 0 | BL20: 0 | BN20: 0 | BP20: 0 | BR20: 0 | BT20: 0 | BV20: 0 | BX20: 0 | BZ20: 0 | CB20: 0 | CD20: 0 | CF20: 0 | CN20: =SUMIFS('2019'!H:H,'2019'!A:A,"-52 kg",'2019'!D:D,'-52 kg'!H20,'2019'!E:E,'-52 kg'!I20) -> 0
C21: 8 | J21: 0 | K21: 0 | L21: 0 | M21: 0 | N21: 0 | P21: 0 | R21: 0 | T21: 0 | V21: 0 | X21: 0 | Z21: 0 | AB21: 0 | AD21: 0 | AF21: 0 | AH21: 0 | AJ21: 0 | AL21: 0 | AN21: 0 | AP21: 0 | AR21: 0 | AT21: 0 | AV21: 0 | AX21: 0 | AZ21: 0 | BB21: 0 | BD21: 0 | BF21: 0 | BH21: 0 | BJ21: 0 | BL21: 0 | BN21: 0 | BP21: 0 | BR21: 0 | BT21: 0 | BV21: 0 | BX21: 0 | BZ21: 0 | CB21: 0 | CD21: 0 | CF21: 0 | CN21: =SUMIFS('2019'!H:H,'2019'!A:A,"-52 kg",'2019'!D:D,'-52 kg'!H21,'2019'!E:E,'-52 kg'!I21) -> 0
C22: 8 | J22: 0 | K22: 0 | L22: 0 | M22: 0 | N22: 0 | P22: 0 | R22: 0 | T22: 0 | V22: 0 | X22: 0 | Z22: 0 | AB22: 0 | AD22: 0 | AF22: 0 | AH22: 0 | AJ22: 0 | AL22: 0 | AN22: 0 | AP22: 0 | AR22: 0 | AT22: 0 | AV22: 0 | AX22: 0 | AZ22: 0 | BB22: 0 | BD22: 0 | BF22: 0 | BH22: 0 | BJ22: 0 | BL22: 0 | BN22: 0 | BP22: 0 | BR22: 0 | BT22: 0 | BV22: 0 | BX22: 0 | BZ22: 0 | CB22: 0 | CD22: 0 | CF22: 0 | CN22: =SUMIFS('2019'!H:H,'2019'!A:A,"-52 kg",'2019'!D:D,'-52 kg'!H22,'2019'!E:E,'-52 kg'!I22) -> 0
C23: 8 | J23: 0 | K23: 0 | L23: 0 | M23: 0 | N23: 0 | P23: 0 | R23: 0 | T23: 0 | V23: 0 | X23: 0 | Z23: 0 | AB23: 0 | AD23: 0 | AF23: 0 | AH23: 0 | AJ23: 0 | AL23: 0 | AN23: 0 | AP23: 0 | AR23: 0 | AT23: 0 | AV23: 0 | AX23: 0 | AZ23: 0 | BB23: 0 | BD23: 0 | BF23: 0 | BH23: 0 | BJ23: 0 | BL23: 0 | BN23: 0 | BP23: 0 | BR23: 0 | BT23: 0 | BV23: 0 | BX23: 0 | BZ23: 0 | CB23: 0 | CD23: 0 | CF23: 0 | CN23: =SUMIFS('2019'!H:H,'2019'!A:A,"-52 kg",'2019'!D:D,'-52 kg'!H23,'2019'!E:E,'-52 kg'!I23) -> 0
C24: 8 | J24: 0 | K24: 0 | L24: 0 | M24: 0 | N24: 0 | P24: 0 | R24: 0 | T24: 0 | V24: 0 | X24: 0 | Z24: 0 | AB24: 0 | AD24: 0 | AF24: 0 | AH24: 0 | AJ24: 0 | AL24: 0 | AN24: 0 | AP24: 0 | AR24: 0 | AT24: 0 | AV24: 0 | AX24: 0 | AZ24: 0 | BB24: 0 | BD24: 0 | BF24: 0 | BH24: 0 | BJ24: 0 | BL24: 0 | BN24: 0 | BP24: 0 | BR24: 0 | BT24: 0 | BV24: 0 | BX24: 0 | BZ24: 0 | CB24: 0 | CD24: 0 | CF24: 0 | CN24: =SUMIFS('2019'!H:H,'2019'!A:A,"-52 kg",'2019'!D:D,'-52 kg'!H24,'2019'!E:E,'-52 kg'!I24) -> 0
C25: 8 | J25: 0 | K25: 0 | L25: 0 | M25: 0 | N25: 0 | P25: 0 | R25: 0 | T25: 0 | V25: 0 | X25: 0 | Z25: 0 | AB25: 0 | AD25: 0 | AF25: 0 | AH25: 0 | AJ25: 0 | AL25: 0 | AN25: 0 | AP25: 0 | AR25: 0 | AT25: 0 | AV25: 0 | AX25: 0 | AZ25: 0 | BB25: 0 | BD25: 0 | BF25: 0 | BH25: 0 | BJ25: 0 | BL25: 0 | BN25: 0 | BP25: 0 | BR25: 0 | BT25: 0 | BV25: 0 | BX25: 0 | BZ25: 0 | CB25: 0 | CD25: 0 | CF25: 0 | CN25: =SUMIFS('2019'!H:H,'2019'!A:A,"-52 kg",'2019'!D:D,'-52 kg'!H25,'2019'!E:E,'-52 kg'!I25) -> 0
C26: 8 | J26: 0 | K26: 0 | L26: 0 | M26: 0 | N26: 0 | P26: 0 | R26: 0 | T26: 0 | V26: 0 | X26: 0 | Z26: 0 | AB26: 0 | AD26: 0 | AF26: 0 | AH26: 0 | AJ26: 0 | AL26: 0 | AN26: 0 | AP26: 0 | AR26: 0 | AT26: 0 | AV26: 0 | AX26: 0 | AZ26: 0 | BB26: 0 | BD26: 0 | BF26: 0 | BH26: 0 | BJ26: 0 | BL26: 0 | BN26: 0 | BP26: 0 | BR26: 0 | BT26: 0 | BV26: 0 | BX26: 0 | BZ26: 0 | CB26: 0 | CD26: 0 | CF26: 0 | CN26: =SUMIFS('2019'!H:H,'2019'!A:A,"-52 kg",'2019'!D:D,'-52 kg'!H26,'2019'!E:E,'-52 kg'!I26) -> 0
C27: 8 | J27: 0 | K27: 0 | L27: 0 | M27: 0 | N27: 0 | P27: 0 | R27: 0 | T27: 0 | V27: 0 | X27: 0 | Z27: 0 | AB27: 0 | AD27: 0 | AF27: 0 | AH27: 0 | AJ27: 0 | AL27: 0 | AN27: 0 | AP27: 0 | AR27: 0 | AT27: 0 | AV27: 0 | AX27: 0 | AZ27: 0 | BB27: 0 | BD27: 0 | BF27: 0 | BH27: 0 | BJ27: 0 | BL27: 0 | BN27: 0 | BP27: 0 | BR27: 0 | BT27: 0 | BV27: 0 | BX27: 0 | BZ27: 0 | CB27: 0 | CD27: 0 | CF27: 0 | CN27: =SUMIFS('2019'!H:H,'2019'!A:A,"-52 kg",'2019'!D:D,'-52 kg'!H27,'2019'!E:E,'-52 kg'!I27) -> 0
C28: 8 | J28: 0 | K28: 0 | L28: 0 | M28: 0 | N28: 0 | P28: 0 | R28: 0 | T28: 0 | V28: 0 | X28: 0 | Z28: 0 | AB28: 0 | AD28: 0 | AF28: 0 | AH28: 0 | AJ28: 0 | AL28: 0 | AN28: 0 | AP28: 0 | AR28: 0 | AT28: 0 | AV28: 0 | AX28: 0 | AZ28: 0 | BB28: 0 | BD28: 0 | BF28: 0 | BH28: 0 | BJ28: 0 | BL28: 0 | BN28: 0 | BP28: 0 | BR28: 0 | BT28: 0 | BV28: 0 | BX28: 0 | BZ28: 0 | CB28: 0 | CD28: 0 | CF28: 0 | CN28: =SUMIFS('2019'!H:H,'2019'!A:A,"-52 kg",'2019'!D:D,'-52 kg'!H28,'2019'!E:E,'-52 kg'!I28) -> 0
C29: 8 | J29: 0 | K29: 0 | L29: 0 | M29: 0 | N29: 0 | P29: 0 | R29: 0 | T29: 0 | V29: 0 | X29: 0 | Z29: 0 | AB29: 0 | AD29: 0 | AF29: 0 | AH29: 0 | AJ29: 0 | AL29: 0 | AN29: 0 | AP29: 0 | AR29: 0 | AT29: 0 | AV29: 0 | AX29: 0 | AZ29: 0 | BB29: 0 | BD29: 0 | BF29: 0 | BH29: 0 | BJ29: 0 | BL29: 0 | BN29: 0 | BP29: 0 | BR29: 0 | BT29: 0 | BV29: 0 | BX29: 0 | BZ29: 0 | CB29: 0 | CD29: 0 | CF29: 0 | CN29: =SUMIFS('2019'!H:H,'2019'!A:A,"-52 kg",'2019'!D:D,'-52 kg'!H29,'2019'!E:E,'-52 kg'!I29) -> 0
C30: 8 | J30: 0 | K30: 0 | L30: 0 | M30: 0 | N30: 0 | P30: 0 | R30: 0 | T30: 0 | V30: 0 | X30: 0 | Z30: 0 | AB30: 0 | AD30: 0 | AF30: 0 | AH30: 0 | AJ30: 0 | AL30: 0 | AN30: 0 | AP30: 0 | AR30: 0 | AT30: 0 | AV30: 0 | AX30: 0 | AZ30: 0 | BB30: 0 | BD30: 0 | BF30: 0 | BH30: 0 | BJ30: 0 | BL30: 0 | BN30: 0 | BP30: 0 | BR30: 0 | BT30: 0 | BV30: 0 | BX30: 0 | BZ30: 0 | CB30: 0 | CD30: 0 | CF30: 0 | CN30: =SUMIFS('2019'!H:H,'2019'!A:A,"-52 kg",'2019'!D:D,'-52 kg'!H30,'2019'!E:E,'-52 kg'!I30) -> 0
C31: 8 | J31: 0 | K31: 0 | L31: 0 | M31: 0 | N31: 0 | P31: 0 | R31: 0 | T31: 0 | V31: 0 | X31: 0 | Z31: 0 | AB31: 0 | AD31: 0 | AF31: 0 | AH31: 0 | AJ31: 0 | AL31: 0 | AN31: 0 | AP31: 0 | AR31: 0 | AT31: 0 | AV31: 0 | AX31: 0 | AZ31: 0 | BB31: 0 | BD31: 0 | BF31: 0 | BH31: 0 | BJ31: 0 | BL31: 0 | BN31: 0 | BP31: 0 | BR31: 0 | BT31: 0 | BV31: 0 | BX31: 0 | BZ31: 0 | CB31: 0 | CD31: 0 | CF31: 0 | CN31: =SUMIFS('2019'!H:H,'2019'!A:A,"-52 kg",'2019'!D:D,'-52 kg'!H31,'2019'!E:E,'-52 kg'!I31) -> 0
C32: 8 | J32: 0 | K32: 0 | L32: 0 | M32: 0 | N32: 0 | P32: 0 | R32: 0 | T32: 0 | V32: 0 | X32: 0 | Z32: 0 | AB32: 0 | AD32: 0 | AF32: 0 | AH32: 0 | AJ32: 0 | AL32: 0 | AN32: 0 | AP32: 0 | AR32: 0 | AT32: 0 | AV32: 0 | AX32: 0 | AZ32: 0 | BB32: 0 | BD32: 0 | BF32: 0 | BH32: 0 | BJ32: 0 | BL32: 0 | BN32: 0 | BP32: 0 | BR32: 0 | BT32: 0 | BV32: 0 | BX32: 0 | BZ32: 0 | CB32: 0 | CD32: 0 | CF32: 0 | CN32: =SUMIFS('2019'!H:H,'2019'!A:A,"-52 kg",'2019'!D:D,'-52 kg'!H32,'2019'!E:E,'-52 kg'!I32) -> 0
C33: 8 | J33: 0 | K33: 0 | L33: 0 | M33: 0 | N33: 0 | P33: 0 | R33: 0 | T33: 0 | V33: 0 | X33: 0 | Z33: 0 | AB33: 0 | AD33: 0 | AF33: 0 | AH33: 0 | AJ33: 0 | AL33: 0 | AN33: 0 | AP33: 0 | AR33: 0 | AT33: 0 | AV33: 0 | AX33: 0 | AZ33: 0 | BB33: 0 | BD33: 0 | BF33: 0 | BH33: 0 | BJ33: 0 | BL33: 0 | BN33: 0 | BP33: 0 | BR33: 0 | BT33: 0 | BV33: 0 | BX33: 0 | BZ33: 0 | CB33: 0 | CD33: 0 | CF33: 0 | CN33: =SUMIFS('2019'!H:H,'2019'!A:A,"-52 kg",'2019'!D:D,'-52 kg'!H33,'2019'!E:E,'-52 kg'!I33) -> 0
C34: 8 | J34: 0 | K34: 0 | L34: 0 | M34: 0 | N34: 0 | P34: 0 | R34: 0 | T34: 0 | V34: 0 | X34: 0 | Z34: 0 | AB34: 0 | AD34: 0 | AF34: 0 | AH34: 0 | AJ34: 0 | AL34: 0 | AN34: 0 | AP34: 0 | AR34: 0 | AT34: 0 | AV34: 0 | AX34: 0 | AZ34: 0 | BB34: 0 | BD34: 0 | BF34: 0 | BH34: 0 | BJ34: 0 | BL34: 0 | BN34: 0 | BP34: 0 | BR34: 0 | BT34: 0 | BV34: 0 | BX34: 0 | BZ34: 0 | CB34: 0 | CD34: 0 | CF34: 0 | CN34: =SUMIFS('2019'!H:H,'2019'!A:A,"-52 kg",'2019'!D:D,'-52 kg'!H34,'2019'!E:E,'-52 kg'!I34) -> 0
C35: 8 | J35: 0 | K35: 0 | L35: 0 | M35: 0 | N35: 0 | P35: 0 | R35: 0 | T35: 0 | V35: 0 | X35: 0 | Z35: 0 | AB35: 0 | AD35: 0 | AF35: 0 | AH35: 0 | AJ35: 0 | AL35: 0 | AN35: 0 | AP35: 0 | AR35: 0 | AT35: 0 | AV35: 0 | AX35: 0 | AZ35: 0 | BB35: 0 | BD35: 0 | BF35: 0 | BH35: 0 | BJ35: 0 | BL35: 0 | BN35: 0 | BP35: 0 | BR35: 0 | BT35: 0 | BV35: 0 | BX35: 0 | BZ35: 0 | CB35: 0 | CD35: 0 | CF35: 0 | CN35: =SUMIFS('2019'!H:H,'2019'!A:A,"-52 kg",'2019'!D:D,'-52 kg'!H35,'2019'!E:E,'-52 kg'!I35) -> 0
C36: 8 | J36: 0 | K36: 0 | L36: 0 | M36: 0 | N36: 0 | P36: 0 | R36: 0 | T36: 0 | V36: 0 | X36: 0 | Z36: 0 | AB36: 0 | AD36: 0 | AF36: 0 | AH36: 0 | AJ36: 0 | AL36: 0 | AN36: 0 | AP36: 0 | AR36: 0 | AT36: 0 | AV36: 0 | AX36: 0 | AZ36: 0 | BB36: 0 | BD36: 0 | BF36: 0 | BH36: 0 | BJ36: 0 | BL36: 0 | BN36: 0 | BP36: 0 | BR36: 0 | BT36: 0 | BV36: 0 | BX36: 0 | BZ36: 0 | CB36: 0 | CD36: 0 | CF36: 0 | CN36: =SUMIFS('2019'!H:H,'2019'!A:A,"-52 kg",'2019'!D:D,'-52 kg'!H36,'2019'!E:E,'-52 kg'!I36) -> 0
C37: 8 | J37: 0 | K37: 0 | L37: 0 | M37: 0 | N37: 0 | P37: 0 | R37: 0 | T37: 0 | V37: 0 | X37: 0 | Z37: 0 | AB37: 0 | AD37: 0 | AF37: 0 | AH37: 0 | AJ37: 0 | AL37: 0 | AN37: 0 | AP37: 0 | AR37: 0 | AT37: 0 | AV37: 0 | AX37: 0 | AZ37: 0 | BB37: 0 | BD37: 0 | BF37: 0 | BH37: 0 | BJ37: 0 | BL37: 0 | BN37: 0 | BP37: 0 | BR37: 0 | BT37: 0 | BV37: 0 | BX37: 0 | BZ37: 0 | CB37: 0 | CD37: 0 | CF37: 0 | CN37: =SUMIFS('2019'!H:H,'2019'!A:A,"-52 kg",'2019'!D:D,'-52 kg'!H37,'2019'!E:E,'-52 kg'!I37) -> 0
C38: 8 | J38: 0 | K38: 0 | L38: 0 | M38: 0 | N38: 0 | P38: 0 | R38: 0 | T38: 0 | V38: 0 | X38: 0 | Z38: 0 | AB38: 0 | AD38: 0 | AF38: 0 | AH38: 0 | AJ38: 0 | AL38: 0 | AN38: 0 | AP38: 0 | AR38: 0 | AT38: 0 | AV38: 0 | AX38: 0 | AZ38: 0 | BB38: 0 | BD38: 0 | BF38: 0 | BH38: 0 | BJ38: 0 | BL38: 0 | BN38: 0 | BP38: 0 | BR38: 0 | BT38: 0 | BV38: 0 | BX38: 0 | BZ38: 0 | CB38: 0 | CD38: 0 | CF38: 0 | CN38: =SUMIFS('2019'!H:H,'2019'!A:A,"-52 kg",'2019'!D:D,'-52 kg'!H38,'2019'!E:E,'-52 kg'!I38) -> 0
C39: 8 | J39: 0 | K39: 0 | L39: 0 | M39: 0 | N39: 0 | P39: 0 | R39: 0 | T39: 0 | V39: 0 | X39: 0 | Z39: 0 | AB39: 0 | AD39: 0 | AF39: 0 | AH39: 0 | AJ39: 0 | AL39: 0 | AN39: 0 | AP39: 0 | AR39: 0 | AT39: 0 | AV39: 0 | AX39: 0 | AZ39: 0 | BB39: 0 | BD39: 0 | BF39: 0 | BH39: 0 | BJ39: 0 | BL39: 0 | BN39: 0 | BP39: 0 | BR39: 0 | BT39: 0 | BV39: 0 | BX39: 0 | BZ39: 0 | CB39: 0 | CD39: 0 | CF39: 0 | CN39: =SUMIFS('2019'!H:H,'2019'!A:A,"-52 kg",'2019'!D:D,'-52 kg'!H39,'2019'!E:E,'-52 kg'!I39) -> 0
C40: 8 | J40: 0 | K40: 0 | L40: 0 | M40: 0 | N40: 0 | P40: 0 | R40: 0 | T40: 0 | V40: 0 | X40: 0 | Z40: 0 | AB40: 0 | AD40: 0 | AF40: 0 | AH40: 0 | AJ40: 0 | AL40: 0 | AN40: 0 | AP40: 0 | AR40: 0 | AT40: 0 | AV40: 0 | AX40: 0 | AZ40: 0 | BB40: 0 | BD40: 0 | BF40: 0 | BH40: 0 | BJ40: 0 | BL40: 0 | BN40: 0 | BP40: 0 | BR40: 0 | BT40: 0 | BV40: 0 | BX40: 0 | BZ40: 0 | CB40: 0 | CD40: 0 | CF40: 0 | CN40: =SUMIFS('2019'!H:H,'2019'!A:A,"-52 kg",'2019'!D:D,'-52 kg'!H40,'2019'!E:E,'-52 kg'!I40) -> 0
C41: 8 | J41: 0 | K41: 0 | L41: 0 | M41: 0 | N41: 0 | P41: 0 | R41: 0 | T41: 0 | V41: 0 | X41: 0 | Z41: 0 | AB41: 0 | AD41: 0 | AF41: 0 | AH41: 0 | AJ41: 0 | AL41: 0 | AN41: 0 | AP41: 0 | AR41: 0 | AT41: 0 | AV41: 0 | AX41: 0 | AZ41: 0 | BB41: 0 | BD41: 0 | BF41: 0 | BH41: 0 | BJ41: 0 | BL41: 0 | BN41: 0 | BP41: 0 | BR41: 0 | BT41: 0 | BV41: 0 | BX41: 0 | BZ41: 0 | CB41: 0 | CD41: 0 | CF41: 0 | CN41: =SUMIFS('2019'!H:H,'2019'!A:A,"-52 kg",'2019'!D:D,'-52 kg'!H41,'2019'!E:E,'-52 kg'!I41) -> 0
C42: 8 | J42: 0 | K42: 0 | L42: 0 | M42: 0 | N42: 0 | P42: 0 | R42: 0 | T42: 0 | V42: 0 | X42: 0 | Z42: 0 | AB42: 0 | AD42: 0 | AF42: 0 | AH42: 0 | AJ42: 0 | AL42: 0 | AN42: 0 | AP42: 0 | AR42: 0 | AT42: 0 | AV42: 0 | AX42: 0 | AZ42: 0 | BB42: 0 | BD42: 0 | BF42: 0 | BH42: 0 | BJ42: 0 | BL42: 0 | BN42: 0 | BP42: 0 | BR42: 0 | BT42: 0 | BV42: 0 | BX42: 0 | BZ42: 0 | CB42: 0 | CD42: 0 | CF42: 0 | CN42: =SUMIFS('2019'!H:H,'2019'!A:A,"-52 kg",'2019'!D:D,'-52 kg'!H42,'2019'!E:E,'-52 kg'!I42) -> 0
C43: 8 | J43: 0 | K43: 0 | L43: 0 | M43: 0 | N43: 0 | P43: 0 | R43: 0 | T43: 0 | V43: 0 | X43: 0 | Z43: 0 | AB43: 0 | AD43: 0 | AF43: 0 | AH43: 0 | AJ43: 0 | AL43: 0 | AN43: 0 | AP43: 0 | AR43: 0 | AT43: 0 | AV43: 0 | AX43: 0 | AZ43: 0 | BB43: 0 | BD43: 0 | BF43: 0 | BH43: 0 | BJ43: 0 | BL43: 0 | BN43: 0 | BP43: 0 | BR43: 0 | BT43: 0 | BV43: 0 | BX43: 0 | BZ43: 0 | CB43: 0 | CD43: 0 | CF43: 0 | CN43: =SUMIFS('2019'!H:H,'2019'!A:A,"-52 kg",'2019'!D:D,'-52 kg'!H43,'2019'!E:E,'-52 kg'!I43) -> 0
C44: 8 | J44: 0 | K44: 0 | L44: 0 | M44: 0 | N44: 0 | P44: 0 | R44: 0 | T44: 0 | V44: 0 | X44: 0 | Z44: 0 | AB44: 0 | AD44: 0 | AF44: 0 | AH44: 0 | AJ44: 0 | AL44: 0 | AN44: 0 | AP44: 0 | AR44: 0 | AT44: 0 | AV44: 0 | AX44: 0 | AZ44: 0 | BB44: 0 | BD44: 0 | BF44: 0 | BH44: 0 | BJ44: 0 | BL44: 0 | BN44: 0 | BP44: 0 | BR44: 0 | BT44: 0 | BV44: 0 | BX44: 0 | BZ44: 0 | CB44: 0 | CD44: 0 | CF44: 0 | CN44: =SUMIFS('2019'!H:H,'2019'!A:A,"-52 kg",'2019'!D:D,'-52 kg'!H44,'2019'!E:E,'-52 kg'!I44) -> 0
CN45: =SUMIFS('2019'!H:H,'2019'!A:A,"-52 kg",'2019'!D:D,'-52 kg'!H45,'2019'!E:E,'-52 kg'!I45) -> 0

Sheet -57 kg (hidden)
C2: Ranking | D2: Nation | E2: Continent | F2: IJF ID | G2: Y.o B. | H2: FAMILY NAME | I2: Given name | J2: Total score
C3: Puesto | D3: Comunidad | E3: Continent | F3: España ID | G3: A. de N. | H3: APELLIDOS | I3: Nombre | J3: Ranking Nacional Absoluto | K3: Puntuación Año Anterior | L3: Clasificación Equipo Absoluto | O3: Master ABS | Q3: Campeonato Mundo | S3: Campeonato Europa | U3: Campeonato Europa S23 | W3: Gran Slam (Francia) | Y3: Grand Slam (Abu Dhabi) | AA3: GRAND SLAM BRASILIA | AC3: GRAND SLAM OSAKA | AK3: Gran Prix Croacia - ZAGREB | AM3: Gran Prix (Marruecos) | AO3: Gran Prix (La Haya) | AQ3: Gran Prix (Tunez) | AS3: Gran Prix (Duseldorf) | AU3: Gran Prix (China) | AW3: Gran Prix (Uzbekistan) | AY3: Gran Prix Budapest | BE3: Open de Oceania | BG3: Campeonato España | BI3: European Open (Odivelas) | BK3: European Open (Sofia) | BM3: European Open (Roma) | BO3: European Open (POLONIA) | BQ3: European Open (RUMANIA) | BS3: European Open (Glasgow) | BU3: Open Panamericano | BW3: Open Tallinn | CA3: European Cup Málaga | CN3: Puntuación Año Anterior
K4: 0.5 | L4: Oro | M4: Plata | N4: Bronce | O4: Medalla | P4: Puntos | Q4: Medalla | R4: Puntos | S4: Medalla | T4: Puntos | U4: Medalla | V4: Puntos | W4: Medalla | X4: Puntos | Y4: Medalla | Z4: Puntos | AA4: Medalla | AB4: Puntos | AC4: Medalla | AD4: Puntos | AE4: Medalla | AF4: Puntos | AG4: Medalla | AH4: Puntos | AI4: Medalla | AJ4: Puntos | AK4: Medalla | AL4: Puntos | AM4: Medalla | AN4: Puntos | AO4: Medalla | AP4: Puntos | AQ4: Medalla | AR4: Puntos | AS4: Medalla | AT4: Puntos | AU4: Medalla | AV4: Puntos | AW4: Medalla | AX4: Puntos | AY4: Medalla | AZ4: Puntos | BA4: Medalla | BB4: Puntos | BC4: Medalla | BD4: Puntos | BE4: Medalla | BF4: Puntos | BG4: Medalla | BH4: Puntos | BI4: Medalla | BJ4: Puntos | BK4: Medalla | BL4: Puntos | BM4: Medalla | BN4: Puntos | BO4: Medalla | BP4: Puntos | BQ4: Medalla | BR4: Puntos | BS4: Medalla | BT4: Puntos | BU4: Medalla | BV4: Puntos | BW4: Medalla | BX4: Puntos | BY4: Medalla | BZ4: Puntos | CA4: Medalla | CB4: Puntos | CC4: Medalla | CD4: Puntos | CE4: Medalla | CF4: Puntos | CN4: 1
C5: =RANK(J5,$J$5:$J$44,0) -> 1 | D5: NAV | H5: EQUISOAIN ZARAGUETA | I5: Jaione | J5: =SUM(O5:CF5)+K5 -> 70 | K5: =CN5*50/100 -> 35 | L5: =COUNTIF(O5:CF5,$L$4) -> 0 | M5: =COUNTIF(O5:CF5,$M$4) -> 1 | N5: =COUNTIF(O5:CF5,$N$4) -> 1 | P5: =IF(O5="Oro",150,IF(O5="Plata",120,IF(O5="Bronce",100,IF(O5="Quinto",50,IF(O5="Septimo",30,0))))) -> 0 | R5: =IF(Q5="Oro",150,IF(Q5="Plata",120,IF(Q5="Bronce",100,IF(Q5="Quinto",50,IF(Q5="Septimo",30,0))))) -> 0 | T5: =IF(S5="Oro",100,IF(S5="Plata",85,IF(S5="Bronce",70,IF(S5="Quinto",30,IF(S5="Septimo",15,0))))) -> 0 | V5: =IF(U5="Oro",100,IF(U5="Plata",85,IF(U5="Bronce",70,IF(U5="Quinto",30,IF(U5="Septimo",15,0))))) -> 0 | X5: =IF(W5="Oro",75,IF(W5="Plata",60,IF(W5="Bronce",50,IF(W5="Quinto",20,IF(W5="Septimo",7,0))))) -> 0 | Z5: =IF(Y5="Oro",75,IF(Y5="Plata",60,IF(Y5="Bronce",50,IF(Y5="Quinto",20,IF(Y5="Septimo",7,0))))) -> 0 | AB5: =IF(AA5="Oro",75,IF(AA5="Plata",60,IF(AA5="Bronce",50,IF(AA5="Quinto",20,IF(AA5="Septimo",7,0))))) -> 0 | AD5: =IF(AC5="Oro",75,IF(AC5="Plata",60,IF(AC5="Bronce",50,IF(AC5="Quinto",20,IF(AC5="Septimo",7,0))))) -> 0 | AF5: =IF(AE5="Oro",75,IF(AE5="Plata",60,IF(AE5="Bronce",50,IF(AE5="Quinto",20,IF(AE5="Septimo",7,0))))) -> 0 | AH5: =IF(AG5="Oro",75,IF(AG5="Plata",60,IF(AG5="Bronce",50,IF(AG5="Quinto",20,IF(AG5="Septimo",7,0))))) -> 0 | AJ5: =IF(AI5="Oro",75,IF(AI5="Plata",60,IF(AI5="Bronce",50,IF(AI5="Quinto",20,IF(AI5="Septimo",7,0))))) -> 0 | AL5: =IF(AK5="Oro",60,IF(AK5="Plata",50,IF(AK5="Bronce",35,IF(AK5="Quinto",15,IF(AK5="Septimo",5,0))))) -> 0 | AN5: =IF(AM5="Oro",60,IF(AM5="Plata",50,IF(AM5="Bronce",35,IF(AM5="Quinto",15,IF(AM5="Septimo",5,0))))) -> 0 | AP5: =IF(AO5="Oro",60,IF(AO5="Plata",50,IF(AO5="Bronce",35,IF(AO5="Quinto",15,IF(AO5="Septimo",5,0))))) -> 0 | AR5: =IF(AQ5="Oro",60,IF(AQ5="Plata",50,IF(AQ5="Bronce",35,IF(AQ5="Quinto",15,IF(AQ5="Septimo",5,0))))) -> 0 | AT5: =IF(AS5="Oro",60,IF(AS5="Plata",50,IF(AS5="Bronce",35,IF(AS5="Quinto",15,IF(AS5="Septimo",5,0))))) -> 0 | AV5: =IF(AU5="Oro",60,IF(AU5="Plata",50,IF(AU5="Bronce",35,IF(AU5="Quinto",15,IF(AU5="Septimo",5,0))))) -> 0 | AX5: =IF(AW5="Oro",60,IF(AW5="Plata",50,IF(AW5="Bronce",35,IF(AW5="Quinto",15,IF(AW5="Septimo",5,0))))) -> 0 | AZ5: =IF(AY5="Oro",60,IF(AY5="Plata",50,IF(AY5="Bronce",35,IF(AY5="Quinto",15,IF(AY5="Septimo",5,0))))) -> 0 | BB5: =IF(BA5="Oro",60,IF(BA5="Plata",50,IF(BA5="Bronce",35,IF(BA5="Quinto",15,IF(BA5="Septimo",5,0))))) -> 0 | BD5: =IF(BC5="Oro",60,IF(BC5="Plata",50,IF(BC5="Bronce",35,IF(BC5="Quinto",15,IF(BC5="Septimo",5,0))))) -> 0 | BF5: =IF(BE5="Oro",60,IF(BE5="Plata",50,IF(BE5="Bronce",35,IF(BE5="Quinto",15,IF(BE5="Septimo",5,0))))) -> 0 | BH5: =IF(BG5="Oro",30,IF(BG5="Plata",20,IF(BG5="Bronce",15,0))) -> 0 | BJ5: =IF(BI5="Oro",30,IF(BI5="Plata",20,IF(BI5="Bronce",15,0))) -> 0 | BL5: =IF(BK5="Oro",30,IF(BK5="Plata",20,IF(BK5="Bronce",15,0))) -> 0 | BN5: =IF(BM5="Oro",30,IF(BM5="Plata",20,IF(BM5="Bronce",15,0))) -> 0 | BP5: =IF(BO5="Oro",30,IF(BO5="Plata",20,IF(BO5="Bronce",15,0))) -> 0 | BR5: =IF(BQ5="Oro",30,IF(BQ5="Plata",20,IF(BQ5="Bronce",15,0))) -> 0 | BT5: =IF(BS5="Oro",30,IF(BS5="Plata",20,IF(BS5="Bronce",15,0))) -> 0 | BV5: =IF(BU5="Oro",30,IF(BU5="Plata",20,IF(BU5="Bronce",15,0))) -> 0 | BW5: Plata | BX5: =IF(BW5="Oro",30,IF(BW5="Plata",20,IF(BW5="Bronce",15,0))) -> 20 | BZ5: =IF(BY5="Oro",30,IF(BY5="Plata",20,IF(BY5="Bronce",15,0))) -> 0 | CA5: BRONCE | CB5: =IF(CA5="Oro",30,IF(CA5="Plata",20,IF(CA5="Bronce",15,0))) -> 15 | CD5: =IF(CC5="Oro",30,IF(CC5="Plata",20,IF(CC5="Bronce",15,0))) -> 0 | CF5: =IF(CE5="Oro",30,IF(CE5="Plata",20,IF(CE5="Bronce",15,0))) -> 0 | CN5: =SUMIFS('2019'!H:H,'2019'!A:A,"-57 kg",'2019'!D:D,'-57 kg'!H5,'2019'!E:E,'-57 kg'!I5) -> 70
C6: 2 | D6: CAT | H6: UBASART MASCARO | I6: Carla | J6: 15 | K6: 15 | L6: 0 | M6: 0 | N6: 0 | P6: 0 | R6: 0 | T6: 0 | V6: 0 | X6: 0 | Z6: 0 | AB6: 0 | AD6: 0 | AF6: 0 | AH6: 0 | AJ6: 0 | AL6: 0 | AN6: 0 | AP6: 0 | AR6: 0 | AT6: 0 | AV6: 0 | AX6: 0 | AZ6: 0 | BB6: 0 | BD6: 0 | BE6: 0 | BF6: 0 | BH6: 0 | BJ6: 0 | BL6: 0 | BN6: 0 | BP6: 0 | BR6: 0 | BT6: 0 | BV6: 0 | BX6: 0 | BZ6: 0 | CA6: SEPTIMO | CB6: 0 | CD6: 0 | CF6: 0 | CN6: =SUMIFS('2019'!H:H,'2019'!A:A,"-57 kg",'2019'!D:D,'-57 kg'!H6,'2019'!E:E,'-57 kg'!I6) -> 30
C7: 2 | D7: MAD | H7: MONTERO GONZÁLEZ | I7: Sonia | J7: 15 | K7: 0 | L7: 0 | M7: 0 | N7: 1 | P7: 0 | R7: 0 | T7: 0 | V7: 0 | X7: 0 | Z7: 0 | AB7: 0 | AD7: 0 | AF7: 0 | AH7: 0 | AJ7: 0 | AL7: 0 | AN7: 0 | AP7: 0 | AR7: 0 | AT7: 0 | AV7: 0 | AX7: 0 | AZ7: 0 | BB7: 0 | BD7: 0 | BF7: 0 | BH7: 0 | BJ7: 0 | BL7: 0 | BN7: 0 | BP7: 0 | BR7: 0 | BT7: 0 | BV7: 0 | BX7: 0 | BZ7: 0 | CA7: BRONCE | CB7: 15 | CD7: 0 | CF7: 0 | CN7: =SUMIFS('2019'!H:H,'2019'!A:A,"-57 kg",'2019'!D:D,'-57 kg'!H7,'2019'!E:E,'-57 kg'!I7) -> 0
C8: 4 | D8: MAD | H8: FERNÁNDEZ RAMÍREZ | I8: Marina | J8: 7.5 | K8: 7.5 | L8: 0 | M8: 0 | N8: 0 | P8: 0 | R8: 0 | T8: 0 | V8: 0 | X8: 0 | Z8: 0 | AB8: 0 | AD8: 0 | AF8: 0 | AH8: 0 | AJ8: 0 | AL8: 0 | AN8: 0 | AP8: 0 | AR8: 0 | AT8: 0 | AV8: 0 | AX8: 0 | AZ8: 0 | BB8: 0 | BD8: 0 | BF8: 0 | BH8: 0 | BJ8: 0 | BL8: 0 | BN8: 0 | BP8: 0 | BR8: 0 | BT8: 0 | BV8: 0 | BX8: 0 | BZ8: 0 | CB8: 0 | CD8: 0 | CF8: 0 | CN8: =SUMIFS('2019'!H:H,'2019'!A:A,"-57 kg",'2019'!D:D,'-57 kg'!H8,'2019'!E:E,'-57 kg'!I8) -> 15
C9: 4 | D9: CAT | H9: TORRES RAVES | I9: Patricia | J9: 7.5 | K9: 7.5 | L9: 0 | M9: 0 | N9: 0 | P9: 0 | R9: 0 | T9: 0 | V9: 0 | X9: 0 | Z9: 0 | AB9: 0 | AD9: 0 | AF9: 0 | AH9: 0 | AJ9: 0 | AL9: 0 | AN9: 0 | AP9: 0 | AR9: 0 | AT9: 0 | AV9: 0 | AX9: 0 | AZ9: 0 | BB9: 0 | BD9: 0 | BF9: 0 | BH9: 0 | BJ9: 0 | BL9: 0 | BN9: 0 | BP9: 0 | BR9: 0 | BT9: 0 | BV9: 0 | BX9: 0 | BZ9: 0 | CB9: 0 | CD9: 0 | CF9: 0 | CN9: =SUMIFS('2019'!H:H,'2019'!A:A,"-57 kg",'2019'!D:D,'-57 kg'!H9,'2019'!E:E,'-57 kg'!I9) -> 15
C10: 6 | J10: 0 | K10: 0 | L10: 0 | M10: 0 | N10: 0 | P10: 0 | R10: 0 | T10: 0 | V10: 0 | X10: 0 | Z10: 0 | AB10: 0 | AD10: 0 | AF10: 0 | AH10: 0 | AJ10: 0 | AL10: 0 | AN10: 0 | AP10: 0 | AR10: 0 | AT10: 0 | AV10: 0 | AX10: 0 | AZ10: 0 | BB10: 0 | BD10: 0 | BF10: 0 | BH10: 0 | BJ10: 0 | BL10: 0 | BN10: 0 | BP10: 0 | BR10: 0 | BT10: 0 | BV10: 0 | BX10: 0 | BZ10: 0 | CB10: 0 | CD10: 0 | CF10: 0 | CN10: =SUMIFS('2019'!H:H,'2019'!A:A,"-57 kg",'2019'!D:D,'-57 kg'!H10,'2019'!E:E,'-57 kg'!I10) -> 0
C11: 6 | J11: 0 | K11: 0 | L11: 0 | M11: 0 | N11: 0 | P11: 0 | R11: 0 | T11: 0 | V11: 0 | X11: 0 | Z11: 0 | AB11: 0 | AD11: 0 | AF11: 0 | AH11: 0 | AJ11: 0 | AL11: 0 | AN11: 0 | AP11: 0 | AR11: 0 | AT11: 0 | AV11: 0 | AX11: 0 | AZ11: 0 | BB11: 0 | BD11: 0 | BF11: 0 | BH11: 0 | BJ11: 0 | BL11: 0 | BN11: 0 | BP11: 0 | BR11: 0 | BT11: 0 | BV11: 0 | BX11: 0 | BZ11: 0 | CB11: 0 | CD11: 0 | CF11: 0 | CN11: =SUMIFS('2019'!H:H,'2019'!A:A,"-57 kg",'2019'!D:D,'-57 kg'!H11,'2019'!E:E,'-57 kg'!I11) -> 0
C12: 6 | J12: 0 | K12: 0 | L12: 0 | M12: 0 | N12: 0 | P12: 0 | R12: 0 | T12: 0 | V12: 0 | X12: 0 | Z12: 0 | AB12: 0 | AD12: 0 | AF12: 0 | AH12: 0 | AJ12: 0 | AL12: 0 | AN12: 0 | AP12: 0 | AR12: 0 | AT12: 0 | AV12: 0 | AX12: 0 | AZ12: 0 | BB12: 0 | BD12: 0 | BF12: 0 | BH12: 0 | BJ12: 0 | BL12: 0 | BN12: 0 | BP12: 0 | BR12: 0 | BT12: 0 | BV12: 0 | BX12: 0 | BZ12: 0 | CB12: 0 | CD12: 0 | CF12: 0 | CN12: =SUMIFS('2019'!H:H,'2019'!A:A,"-57 kg",'2019'!D:D,'-57 kg'!H12,'2019'!E:E,'-57 kg'!I12) -> 0
C13: 6 | J13: 0 | K13: 0 | L13: 0 | M13: 0 | N13: 0 | P13: 0 | R13: 0 | T13: 0 | V13: 0 | X13: 0 | Z13: 0 | AB13: 0 | AD13: 0 | AF13: 0 | AH13: 0 | AJ13: 0 | AL13: 0 | AN13: 0 | AP13: 0 | AR13: 0 | AT13: 0 | AV13: 0 | AX13: 0 | AZ13: 0 | BB13: 0 | BD13: 0 | BF13: 0 | BH13: 0 | BJ13: 0 | BL13: 0 | BN13: 0 | BP13: 0 | BR13: 0 | BT13: 0 | BV13: 0 | BX13: 0 | BZ13: 0 | CB13: 0 | CD13: 0 | CF13: 0 | CN13: =SUMIFS('2019'!H:H,'2019'!A:A,"-57 kg",'2019'!D:D,'-57 kg'!H13,'2019'!E:E,'-57 kg'!I13) -> 0
C14: 6 | J14: 0 | K14: 0 | L14: 0 | M14: 0 | N14: 0 | P14: 0 | R14: 0 | T14: 0 | V14: 0 | X14: 0 | Z14: 0 | AB14: 0 | AD14: 0 | AF14: 0 | AH14: 0 | AJ14: 0 | AL14: 0 | AN14: 0 | AP14: 0 | AR14: 0 | AT14: 0 | AV14: 0 | AX14: 0 | AZ14: 0 | BB14: 0 | BD14: 0 | BF14: 0 | BH14: 0 | BJ14: 0 | BL14: 0 | BN14: 0 | BP14: 0 | BR14: 0 | BT14: 0 | BV14: 0 | BX14: 0 | BZ14: 0 | CB14: 0 | CD14: 0 | CF14: 0 | CN14: =SUMIFS('2019'!H:H,'2019'!A:A,"-57 kg",'2019'!D:D,'-57 kg'!H14,'2019'!E:E,'-57 kg'!I14) -> 0
C15: 6 | J15: 0 | K15: 0 | L15: 0 | M15: 0 | N15: 0 | P15: 0 | R15: 0 | T15: 0 | V15: 0 | X15: 0 | Z15: 0 | AB15: 0 | AD15: 0 | AF15: 0 | AH15: 0 | AJ15: 0 | AL15: 0 | AN15: 0 | AP15: 0 | AR15: 0 | AT15: 0 | AV15: 0 | AX15: 0 | AZ15: 0 | BB15: 0 | BD15: 0 | BF15: 0 | BH15: 0 | BJ15: 0 | BL15: 0 | BN15: 0 | BP15: 0 | BR15: 0 | BT15: 0 | BV15: 0 | BX15: 0 | BZ15: 0 | CB15: 0 | CD15: 0 | CF15: 0 | CN15: =SUMIFS('2019'!H:H,'2019'!A:A,"-57 kg",'2019'!D:D,'-57 kg'!H15,'2019'!E:E,'-57 kg'!I15) -> 0
C16: 6 | J16: 0 | K16: 0 | L16: 0 | M16: 0 | N16: 0 | P16: 0 | R16: 0 | T16: 0 | V16: 0 | X16: 0 | Z16: 0 | AB16: 0 | AD16: 0 | AF16: 0 | AH16: 0 | AJ16: 0 | AL16: 0 | AN16: 0 | AP16: 0 | AR16: 0 | AT16: 0 | AV16: 0 | AX16: 0 | AZ16: 0 | BB16: 0 | BD16: 0 | BF16: 0 | BH16: 0 | BJ16: 0 | BL16: 0 | BN16: 0 | BP16: 0 | BR16: 0 | BT16: 0 | BV16: 0 | BX16: 0 | BZ16: 0 | CB16: 0 | CD16: 0 | CF16: 0 | CN16: =SUMIFS('2019'!H:H,'2019'!A:A,"-57 kg",'2019'!D:D,'-57 kg'!H16,'2019'!E:E,'-57 kg'!I16) -> 0
C17: 6 | J17: 0 | K17: 0 | L17: 0 | M17: 0 | N17: 0 | P17: 0 | R17: 0 | T17: 0 | V17: 0 | X17: 0 | Z17: 0 | AB17: 0 | AD17: 0 | AF17: 0 | AH17: 0 | AJ17: 0 | AL17: 0 | AN17: 0 | AP17: 0 | AR17: 0 | AT17: 0 | AV17: 0 | AX17: 0 | AZ17: 0 | BB17: 0 | BD17: 0 | BF17: 0 | BH17: 0 | BJ17: 0 | BL17: 0 | BN17: 0 | BP17: 0 | BR17: 0 | BT17: 0 | BV17: 0 | BX17: 0 | BZ17: 0 | CB17: 0 | CD17: 0 | CF17: 0 | CN17: =SUMIFS('2019'!H:H,'2019'!A:A,"-57 kg",'2019'!D:D,'-57 kg'!H17,'2019'!E:E,'-57 kg'!I17) -> 0
C18: 6 | J18: 0 | K18: 0 | L18: 0 | M18: 0 | N18: 0 | P18: 0 | R18: 0 | T18: 0 | V18: 0 | X18: 0 | Y18: 0 | Z18: 0 | AB18: 0 | AD18: 0 | AF18: 0 | AH18: 0 | AJ18: 0 | AL18: 0 | AN18: 0 | AP18: 0 | AR18: 0 | AT18: 0 | AV18: 0 | AX18: 0 | AZ18: 0 | BB18: 0 | BD18: 0 | BF18: 0 | BH18: 0 | BJ18: 0 | BL18: 0 | BN18: 0 | BP18: 0 | BR18: 0 | BT18: 0 | BV18: 0 | BX18: 0 | BZ18: 0 | CB18: 0 | CD18: 0 | CF18: 0 | CN18: =SUMIFS('2019'!H:H,'2019'!A:A,"-57 kg",'2019'!D:D,'-57 kg'!H18,'2019'!E:E,'-57 kg'!I18) -> 0
C19: 6 | J19: 0 | K19: 0 | L19: 0 | M19: 0 | N19: 0 | P19: 0 | R19: 0 | T19: 0 | V19: 0 | X19: 0 | Z19: 0 | AB19: 0 | AD19: 0 | AF19: 0 | AH19: 0 | AJ19: 0 | AL19: 0 | AN19: 0 | AP19: 0 | AR19: 0 | AT19: 0 | AV19: 0 | AX19: 0 | AZ19: 0 | BB19: 0 | BD19: 0 | BF19: 0 | BH19: 0 | BJ19: 0 | BL19: 0 | BN19: 0 | BP19: 0 | BR19: 0 | BT19: 0 | BV19: 0 | BX19: 0 | BZ19: 0 | CB19: 0 | CD19: 0 | CF19: 0 | CN19: =SUMIFS('2019'!H:H,'2019'!A:A,"-57 kg",'2019'!D:D,'-57 kg'!H19,'2019'!E:E,'-57 kg'!I19) -> 0
C20: 6 | J20: 0 | K20: 0 | L20: 0 | M20: 0 | N20: 0 | P20: 0 | R20: 0 | T20: 0 | V20: 0 | X20: 0 | Z20: 0 | AB20: 0 | AD20: 0 | AF20: 0 | AH20: 0 | AJ20: 0 | AL20: 0 | AN20: 0 | AP20: 0 | AR20: 0 | AT20: 0 | AV20: 0 | AX20: 0 | AZ20: 0 | BB20: 0 | BD20: 0 | BF20: 0 | BH20: 0 | BJ20: 0 | BL20: 0 | BN20: 0 | BP20: 0 | BR20: 0 | BT20: 0 | BV20: 0 | BX20: 0 | BZ20: 0 | CB20: 0 | CD20: 0 | CF20: 0 | CN20: =SUMIFS('2019'!H:H,'2019'!A:A,"-57 kg",'2019'!D:D,'-57 kg'!H20,'2019'!E:E,'-57 kg'!I20) -> 0
C21: 6 | J21: 0 | K21: 0 | L21: 0 | M21: 0 | N21: 0 | P21: 0 | R21: 0 | T21: 0 | V21: 0 | X21: 0 | Z21: 0 | AB21: 0 | AD21: 0 | AF21: 0 | AH21: 0 | AJ21: 0 | AL21: 0 | AN21: 0 | AP21: 0 | AR21: 0 | AT21: 0 | AV21: 0 | AX21: 0 | AZ21: 0 | BB21: 0 | BD21: 0 | BF21: 0 | BH21: 0 | BJ21: 0 | BL21: 0 | BN21: 0 | BP21: 0 | BR21: 0 | BT21: 0 | BV21: 0 | BX21: 0 | BZ21: 0 | CB21: 0 | CD21: 0 | CF21: 0 | CN21: =SUMIFS('2019'!H:H,'2019'!A:A,"-57 kg",'2019'!D:D,'-57 kg'!H21,'2019'!E:E,'-57 kg'!I21) -> 0
C22: 6 | J22: 0 | K22: 0 | L22: 0 | M22: 0 | N22: 0 | P22: 0 | R22: 0 | T22: 0 | V22: 0 | X22: 0 | Z22: 0 | AB22: 0 | AD22: 0 | AF22: 0 | AH22: 0 | AJ22: 0 | AL22: 0 | AN22: 0 | AP22: 0 | AR22: 0 | AT22: 0 | AV22: 0 | AX22: 0 | AZ22: 0 | BB22: 0 | BD22: 0 | BF22: 0 | BH22: 0 | BJ22: 0 | BL22: 0 | BN22: 0 | BP22: 0 | BR22: 0 | BT22: 0 | BV22: 0 | BX22: 0 | BZ22: 0 | CB22: 0 | CD22: 0 | CF22: 0 | CN22: =SUMIFS('2019'!H:H,'2019'!A:A,"-57 kg",'2019'!D:D,'-57 kg'!H22,'2019'!E:E,'-57 kg'!I22) -> 0
C23: 6 | J23: 0 | K23: 0 | L23: 0 | M23: 0 | N23: 0 | P23: 0 | R23: 0 | T23: 0 | V23: 0 | X23: 0 | Z23: 0 | AB23: 0 | AD23: 0 | AF23: 0 | AH23: 0 | AJ23: 0 | AL23: 0 | AN23: 0 | AP23: 0 | AR23: 0 | AT23: 0 | AV23: 0 | AX23: 0 | AZ23: 0 | BB23: 0 | BD23: 0 | BF23: 0 | BH23: 0 | BJ23: 0 | BL23: 0 | BN23: 0 | BP23: 0 | BR23: 0 | BT23: 0 | BV23: 0 | BX23: 0 | BZ23: 0 | CB23: 0 | CD23: 0 | CF23: 0 | CN23: =SUMIFS('2019'!H:H,'2019'!A:A,"-57 kg",'2019'!D:D,'-57 kg'!H23,'2019'!E:E,'-57 kg'!I23) -> 0
C24: 6 | J24: 0 | K24: 0 | L24: 0 | M24: 0 | N24: 0 | P24: 0 | R24: 0 | T24: 0 | V24: 0 | X24: 0 | Z24: 0 | AB24: 0 | AD24: 0 | AF24: 0 | AH24: 0 | AJ24: 0 | AL24: 0 | AN24: 0 | AP24: 0 | AR24: 0 | AT24: 0 | AV24: 0 | AX24: 0 | AZ24: 0 | BB24: 0 | BD24: 0 | BF24: 0 | BH24: 0 | BJ24: 0 | BL24: 0 | BN24: 0 | BP24: 0 | BR24: 0 | BT24: 0 | BV24: 0 | BX24: 0 | BZ24: 0 | CB24: 0 | CD24: 0 | CF24: 0 | CN24: =SUMIFS('2019'!H:H,'2019'!A:A,"-57 kg",'2019'!D:D,'-57 kg'!H24,'2019'!E:E,'-57 kg'!I24) -> 0
C25: 6 | J25: 0 | K25: 0 | L25: 0 | M25: 0 | N25: 0 | P25: 0 | R25: 0 | T25: 0 | V25: 0 | X25: 0 | Z25: 0 | AB25: 0 | AD25: 0 | AF25: 0 | AH25: 0 | AJ25: 0 | AL25: 0 | AN25: 0 | AP25: 0 | AR25: 0 | AT25: 0 | AV25: 0 | AX25: 0 | AZ25: 0 | BB25: 0 | BD25: 0 | BF25: 0 | BH25: 0 | BJ25: 0 | BL25: 0 | BN25: 0 | BP25: 0 | BR25: 0 | BT25: 0 | BV25: 0 | BX25: 0 | BZ25: 0 | CB25: 0 | CD25: 0 | CF25: 0 | CN25: =SUMIFS('2019'!H:H,'2019'!A:A,"-57 kg",'2019'!D:D,'-57 kg'!H25,'2019'!E:E,'-57 kg'!I25) -> 0
C26: 6 | J26: 0 | K26: 0 | L26: 0 | M26: 0 | N26: 0 | P26: 0 | R26: 0 | T26: 0 | V26: 0 | X26: 0 | Z26: 0 | AB26: 0 | AD26: 0 | AF26: 0 | AH26: 0 | AJ26: 0 | AL26: 0 | AN26: 0 | AP26: 0 | AR26: 0 | AT26: 0 | AV26: 0 | AX26: 0 | AZ26: 0 | BB26: 0 | BD26: 0 | BF26: 0 | BH26: 0 | BJ26: 0 | BL26: 0 | BN26: 0 | BP26: 0 | BR26: 0 | BT26: 0 | BV26: 0 | BX26: 0 | BZ26: 0 | CB26: 0 | CD26: 0 | CF26: 0 | CN26: =SUMIFS('2019'!H:H,'2019'!A:A,"-57 kg",'2019'!D:D,'-57 kg'!H26,'2019'!E:E,'-57 kg'!I26) -> 0
C27: 6 | J27: 0 | K27: 0 | L27: 0 | M27: 0 | N27: 0 | P27: 0 | R27: 0 | T27: 0 | V27: 0 | X27: 0 | Z27: 0 | AB27: 0 | AD27: 0 | AF27: 0 | AH27: 0 | AJ27: 0 | AL27: 0 | AN27: 0 | AP27: 0 | AR27: 0 | AT27: 0 | AV27: 0 | AX27: 0 | AZ27: 0 | BB27: 0 | BD27: 0 | BF27: 0 | BH27: 0 | BJ27: 0 | BL27: 0 | BN27: 0 | BP27: 0 | BR27: 0 | BT27: 0 | BV27: 0 | BX27: 0 | BZ27: 0 | CB27: 0 | CD27: 0 | CF27: 0 | CN27: =SUMIFS('2019'!H:H,'2019'!A:A,"-57 kg",'2019'!D:D,'-57 kg'!H27,'2019'!E:E,'-57 kg'!I27) -> 0
C28: 6 | J28: 0 | K28: 0 | L28: 0 | M28: 0 | N28: 0 | P28: 0 | R28: 0 | T28: 0 | V28: 0 | X28: 0 | Z28: 0 | AB28: 0 | AD28: 0 | AF28: 0 | AH28: 0 | AJ28: 0 | AL28: 0 | AN28: 0 | AP28: 0 | AR28: 0 | AT28: 0 | AV28: 0 | AX28: 0 | AZ28: 0 | BB28: 0 | BD28: 0 | BF28: 0 | BH28: 0 | BJ28: 0 | BL28: 0 | BN28: 0 | BP28: 0 | BR28: 0 | BT28: 0 | BV28: 0 | BX28: 0 | BZ28: 0 | CB28: 0 | CD28: 0 | CF28: 0 | CN28: =SUMIFS('2019'!H:H,'2019'!A:A,"-57 kg",'2019'!D:D,'-57 kg'!H28,'2019'!E:E,'-57 kg'!I28) -> 0
C29: 6 | J29: 0 | K29: 0 | L29: 0 | M29: 0 | N29: 0 | P29: 0 | R29: 0 | T29: 0 | V29: 0 | X29: 0 | Z29: 0 | AB29: 0 | AD29: 0 | AF29: 0 | AH29: 0 | AJ29: 0 | AL29: 0 | AN29: 0 | AP29: 0 | AR29: 0 | AT29: 0 | AV29: 0 | AX29: 0 | AZ29: 0 | BB29: 0 | BD29: 0 | BF29: 0 | BH29: 0 | BJ29: 0 | BL29: 0 | BN29: 0 | BP29: 0 | BR29: 0 | BT29: 0 | BV29: 0 | BX29: 0 | BZ29: 0 | CB29: 0 | CD29: 0 | CF29: 0 | CN29: =SUMIFS('2019'!H:H,'2019'!A:A,"-57 kg",'2019'!D:D,'-57 kg'!H29,'2019'!E:E,'-57 kg'!I29) -> 0
C30: 6 | J30: 0 | K30: 0 | L30: 0 | M30: 0 | N30: 0 | P30: 0 | R30: 0 | T30: 0 | V30: 0 | X30: 0 | Z30: 0 | AB30: 0 | AD30: 0 | AF30: 0 | AH30: 0 | AJ30: 0 | AL30: 0 | AN30: 0 | AP30: 0 | AR30: 0 | AT30: 0 | AV30: 0 | AX30: 0 | AZ30: 0 | BB30: 0 | BD30: 0 | BF30: 0 | BH30: 0 | BJ30: 0 | BL30: 0 | BN30: 0 | BP30: 0 | BR30: 0 | BT30: 0 | BV30: 0 | BX30: 0 | BZ30: 0 | CB30: 0 | CD30: 0 | CF30: 0 | CN30: =SUMIFS('2019'!H:H,'2019'!A:A,"-57 kg",'2019'!D:D,'-57 kg'!H30,'2019'!E:E,'-57 kg'!I30) -> 0
C31: 6 | J31: 0 | K31: 0 | L31: 0 | M31: 0 | N31: 0 | P31: 0 | R31: 0 | T31: 0 | V31: 0 | X31: 0 | Z31: 0 | AB31: 0 | AD31: 0 | AF31: 0 | AH31: 0 | AJ31: 0 | AL31: 0 | AN31: 0 | AP31: 0 | AR31: 0 | AT31: 0 | AV31: 0 | AX31: 0 | AZ31: 0 | BB31: 0 | BD31: 0 | BF31: 0 | BH31: 0 | BJ31: 0 | BL31: 0 | BN31: 0 | BP31: 0 | BR31: 0 | BT31: 0 | BV31: 0 | BX31: 0 | BZ31: 0 | CB31: 0 | CD31: 0 | CF31: 0 | CN31: =SUMIFS('2019'!H:H,'2019'!A:A,"-57 kg",'2019'!D:D,'-57 kg'!H31,'2019'!E:E,'-57 kg'!I31) -> 0
C32: 6 | J32: 0 | K32: 0 | L32: 0 | M32: 0 | N32: 0 | P32: 0 | R32: 0 | T32: 0 | V32: 0 | X32: 0 | Z32: 0 | AB32: 0 | AD32: 0 | AF32: 0 | AH32: 0 | AJ32: 0 | AL32: 0 | AN32: 0 | AP32: 0 | AR32: 0 | AT32: 0 | AV32: 0 | AX32: 0 | AZ32: 0 | BB32: 0 | BD32: 0 | BF32: 0 | BH32: 0 | BJ32: 0 | BL32: 0 | BN32: 0 | BP32: 0 | BR32: 0 | BT32: 0 | BV32: 0 | BX32: 0 | BZ32: 0 | CB32: 0 | CD32: 0 | CF32: 0 | CN32: =SUMIFS('2019'!H:H,'2019'!A:A,"-57 kg",'2019'!D:D,'-57 kg'!H32,'2019'!E:E,'-57 kg'!I32) -> 0
C33: 6 | J33: 0 | K33: 0 | L33: 0 | M33: 0 | N33: 0 | P33: 0 | R33: 0 | T33: 0 | V33: 0 | X33: 0 | Z33: 0 | AB33: 0 | AD33: 0 | AF33: 0 | AH33: 0 | AJ33: 0 | AL33: 0 | AN33: 0 | AP33: 0 | AR33: 0 | AT33: 0 | AV33: 0 | AX33: 0 | AZ33: 0 | BB33: 0 | BD33: 0 | BF33: 0 | BH33: 0 | BJ33: 0 | BL33: 0 | BN33: 0 | BP33: 0 | BR33: 0 | BT33: 0 | BV33: 0 | BX33: 0 | BZ33: 0 | CB33: 0 | CD33: 0 | CF33: 0 | CN33: =SUMIFS('2019'!H:H,'2019'!A:A,"-57 kg",'2019'!D:D,'-57 kg'!H33,'2019'!E:E,'-57 kg'!I33) -> 0
C34: 6 | J34: 0 | K34: 0 | L34: 0 | M34: 0 | N34: 0 | P34: 0 | R34: 0 | T34: 0 | V34: 0 | X34: 0 | Z34: 0 | AB34: 0 | AD34: 0 | AF34: 0 | AH34: 0 | AJ34: 0 | AL34: 0 | AN34: 0 | AP34: 0 | AR34: 0 | AT34: 0 | AV34: 0 | AX34: 0 | AZ34: 0 | BB34: 0 | BD34: 0 | BF34: 0 | BH34: 0 | BJ34: 0 | BL34: 0 | BN34: 0 | BP34: 0 | BR34: 0 | BT34: 0 | BV34: 0 | BX34: 0 | BZ34: 0 | CB34: 0 | CD34: 0 | CF34: 0 | CN34: =SUMIFS('2019'!H:H,'2019'!A:A,"-57 kg",'2019'!D:D,'-57 kg'!H34,'2019'!E:E,'-57 kg'!I34) -> 0
C35: 6 | J35: 0 | K35: 0 | L35: 0 | M35: 0 | N35: 0 | P35: 0 | R35: 0 | T35: 0 | V35: 0 | X35: 0 | Z35: 0 | AB35: 0 | AD35: 0 | AF35: 0 | AH35: 0 | AJ35: 0 | AL35: 0 | AN35: 0 | AP35: 0 | AR35: 0 | AT35: 0 | AV35: 0 | AX35: 0 | AZ35: 0 | BB35: 0 | BD35: 0 | BF35: 0 | BH35: 0 | BJ35: 0 | BL35: 0 | BN35: 0 | BP35: 0 | BR35: 0 | BT35: 0 | BV35: 0 | BX35: 0 | BZ35: 0 | CB35: 0 | CD35: 0 | CF35: 0 | CN35: =SUMIFS('2019'!H:H,'2019'!A:A,"-57 kg",'2019'!D:D,'-57 kg'!H35,'2019'!E:E,'-57 kg'!I35) -> 0
C36: 6 | J36: 0 | K36: 0 | L36: 0 | M36: 0 | N36: 0 | P36: 0 | R36: 0 | T36: 0 | V36: 0 | X36: 0 | Z36: 0 | AB36: 0 | AD36: 0 | AF36: 0 | AH36: 0 | AJ36: 0 | AL36: 0 | AN36: 0 | AP36: 0 | AR36: 0 | AT36: 0 | AV36: 0 | AX36: 0 | AZ36: 0 | BB36: 0 | BD36: 0 | BF36: 0 | BH36: 0 | BJ36: 0 | BL36: 0 | BN36: 0 | BP36: 0 | BR36: 0 | BT36: 0 | BV36: 0 | BX36: 0 | BZ36: 0 | CB36: 0 | CD36: 0 | CF36: 0 | CN36: =SUMIFS('2019'!H:H,'2019'!A:A,"-57 kg",'2019'!D:D,'-57 kg'!H36,'2019'!E:E,'-57 kg'!I36) -> 0
C37: 6 | J37: 0 | K37: 0 | L37: 0 | M37: 0 | N37: 0 | P37: 0 | R37: 0 | T37: 0 | V37: 0 | X37: 0 | Z37: 0 | AB37: 0 | AD37: 0 | AF37: 0 | AH37: 0 | AJ37: 0 | AL37: 0 | AN37: 0 | AP37: 0 | AR37: 0 | AT37: 0 | AV37: 0 | AX37: 0 | AZ37: 0 | BB37: 0 | BD37: 0 | BF37: 0 | BH37: 0 | BJ37: 0 | BL37: 0 | BN37: 0 | BP37: 0 | BR37: 0 | BT37: 0 | BV37: 0 | BX37: 0 | BZ37: 0 | CB37: 0 | CD37: 0 | CF37: 0 | CN37: =SUMIFS('2019'!H:H,'2019'!A:A,"-57 kg",'2019'!D:D,'-57 kg'!H37,'2019'!E:E,'-57 kg'!I37) -> 0
C38: 6 | J38: 0 | K38: 0 | L38: 0 | M38: 0 | N38: 0 | P38: 0 | R38: 0 | T38: 0 | V38: 0 | X38: 0 | Z38: 0 | AB38: 0 | AD38: 0 | AF38: 0 | AH38: 0 | AJ38: 0 | AL38: 0 | AN38: 0 | AP38: 0 | AR38: 0 | AT38: 0 | AV38: 0 | AX38: 0 | AZ38: 0 | BB38: 0 | BD38: 0 | BF38: 0 | BH38: 0 | BJ38: 0 | BL38: 0 | BN38: 0 | BP38: 0 | BR38: 0 | BT38: 0 | BV38: 0 | BX38: 0 | BZ38: 0 | CB38: 0 | CD38: 0 | CF38: 0 | CN38: =SUMIFS('2019'!H:H,'2019'!A:A,"-57 kg",'2019'!D:D,'-57 kg'!H38,'2019'!E:E,'-57 kg'!I38) -> 0
C39: 6 | J39: 0 | K39: 0 | L39: 0 | M39: 0 | N39: 0 | P39: 0 | R39: 0 | T39: 0 | V39: 0 | X39: 0 | Z39: 0 | AB39: 0 | AD39: 0 | AF39: 0 | AH39: 0 | AJ39: 0 | AL39: 0 | AN39: 0 | AP39: 0 | AR39: 0 | AT39: 0 | AV39: 0 | AX39: 0 | AZ39: 0 | BB39: 0 | BD39: 0 | BF39: 0 | BH39: 0 | BJ39: 0 | BL39: 0 | BN39: 0 | BP39: 0 | BR39: 0 | BT39: 0 | BV39: 0 | BX39: 0 | BZ39: 0 | CB39: 0 | CD39: 0 | CF39: 0 | CN39: =SUMIFS('2019'!H:H,'2019'!A:A,"-57 kg",'2019'!D:D,'-57 kg'!H39,'2019'!E:E,'-57 kg'!I39) -> 0
C40: 6 | J40: 0 | K40: 0 | L40: 0 | M40: 0 | N40: 0 | P40: 0 | R40: 0 | T40: 0 | V40: 0 | X40: 0 | Z40: 0 | AB40: 0 | AD40: 0 | AF40: 0 | AH40: 0 | AJ40: 0 | AL40: 0 | AN40: 0 | AP40: 0 | AR40: 0 | AT40: 0 | AV40: 0 | AX40: 0 | AZ40: 0 | BB40: 0 | BD40: 0 | BF40: 0 | BH40: 0 | BJ40: 0 | BL40: 0 | BN40: 0 | BP40: 0 | BR40: 0 | BT40: 0 | BV40: 0 | BX40: 0 | BZ40: 0 | CB40: 0 | CD40: 0 | CF40: 0 | CN40: =SUMIFS('2019'!H:H,'2019'!A:A,"-57 kg",'2019'!D:D,'-57 kg'!H40,'2019'!E:E,'-57 kg'!I40) -> 0
C41: 6 | J41: 0 | K41: 0 | L41: 0 | M41: 0 | N41: 0 | P41: 0 | R41: 0 | T41: 0 | V41: 0 | X41: 0 | Z41: 0 | AB41: 0 | AD41: 0 | AF41: 0 | AH41: 0 | AJ41: 0 | AL41: 0 | AN41: 0 | AP41: 0 | AR41: 0 | AT41: 0 | AV41: 0 | AX41: 0 | AZ41: 0 | BB41: 0 | BD41: 0 | BF41: 0 | BH41: 0 | BJ41: 0 | BL41: 0 | BN41: 0 | BP41: 0 | BR41: 0 | BT41: 0 | BV41: 0 | BX41: 0 | BZ41: 0 | CB41: 0 | CD41: 0 | CF41: 0 | CN41: =SUMIFS('2019'!H:H,'2019'!A:A,"-57 kg",'2019'!D:D,'-57 kg'!H41,'2019'!E:E,'-57 kg'!I41) -> 0
C42: 6 | J42: 0 | K42: 0 | L42: 0 | M42: 0 | N42: 0 | P42: 0 | R42: 0 | T42: 0 | V42: 0 | X42: 0 | Z42: 0 | AB42: 0 | AD42: 0 | AF42: 0 | AH42: 0 | AJ42: 0 | AL42: 0 | AN42: 0 | AP42: 0 | AR42: 0 | AT42: 0 | AV42: 0 | AX42: 0 | AZ42: 0 | BB42: 0 | BD42: 0 | BF42: 0 | BH42: 0 | BJ42: 0 | BL42: 0 | BN42: 0 | BP42: 0 | BR42: 0 | BT42: 0 | BV42: 0 | BX42: 0 | BZ42: 0 | CB42: 0 | CD42: 0 | CF42: 0 | CN42: =SUMIFS('2019'!H:H,'2019'!A:A,"-57 kg",'2019'!D:D,'-57 kg'!H42,'2019'!E:E,'-57 kg'!I42) -> 0
C43: 6 | J43: 0 | K43: 0 | L43: 0 | M43: 0 | N43: 0 | P43: 0 | R43: 0 | T43: 0 | V43: 0 | X43: 0 | Z43: 0 | AB43: 0 | AD43: 0 | AF43: 0 | AH43: 0 | AJ43: 0 | AL43: 0 | AN43: 0 | AP43: 0 | AR43: 0 | AT43: 0 | AV43: 0 | AX43: 0 | AZ43: 0 | BB43: 0 | BD43: 0 | BF43: 0 | BH43: 0 | BJ43: 0 | BL43: 0 | BN43: 0 | BP43: 0 | BR43: 0 | BT43: 0 | BV43: 0 | BX43: 0 | BZ43: 0 | CB43: 0 | CD43: 0 | CF43: 0 | CN43: =SUMIFS('2019'!H:H,'2019'!A:A,"-57 kg",'2019'!D:D,'-57 kg'!H43,'2019'!E:E,'-57 kg'!I43) -> 0
C44: 6 | J44: 0 | K44: 0 | L44: 0 | M44: 0 | N44: 0 | P44: 0 | R44: 0 | T44: 0 | V44: 0 | X44: 0 | Z44: 0 | AB44: 0 | AD44: 0 | AF44: 0 | AH44: 0 | AJ44: 0 | AL44: 0 | AN44: 0 | AP44: 0 | AR44: 0 | AT44: 0 | AV44: 0 | AX44: 0 | AZ44: 0 | BB44: 0 | BD44: 0 | BF44: 0 | BH44: 0 | BJ44: 0 | BL44: 0 | BN44: 0 | BP44: 0 | BR44: 0 | BT44: 0 | BV44: 0 | BX44: 0 | BZ44: 0 | CB44: 0 | CD44: 0 | CF44: 0 | CN44: =SUMIFS('2019'!H:H,'2019'!A:A,"-57 kg",'2019'!D:D,'-57 kg'!H44,'2019'!E:E,'-57 kg'!I44) -> 0

Sheet -63 kg (hidden)
C2: Ranking | D2: Nation | E2: Continent | F2: IJF ID | G2: Y.o B. | H2: FAMILY NAME | I2: Given name | J2: Total score
C3: Puesto | D3: Comunidad | E3: Continent | F3: España ID | G3: A. de N. | H3: APELLIDOS | I3: Nombre | J3: Ranking Nacional Absoluto | K3: Puntuación Año Anterior | L3: Clasificación Equipo Absoluto | O3: Master ABS | Q3: Campeonato Mundo | S3: Campeonato Europa | U3: Campeonato Europa S23 | W3: Gran Slam (Francia) | Y3: Grand Slam (Abu Dhabi) | AA3: GRAND SLAM BRASILIA | AC3: GRAND SLAM OSAKA | AK3: Gran Prix Croacia - ZAGREB | AM3: Gran Prix (Marruecos) | AO3: Gran Prix (La Haya) | AQ3: Gran Prix (Tunez) | AS3: Gran Prix (Duseldorf) | AU3: Gran Prix (China) | AW3: Gran Prix (Uzbekistan) | AY3: Gran Prix Budapest | BE3: Open de Oceania | BG3: Campeonato España | BI3: European Open (Odivelas) | BK3: European Open (Sofia) | BM3: European Open (Roma) | BO3: European Open (POLONIA) | BQ3: European Open (RUMANIA) | BS3: European Open (Glasgow) | BU3: Open Panamericano | CA3: European Cup Málaga | CN3: Puntuación Año Anterior
K4: 0.5 | L4: Oro | M4: Plata | N4: Bronce | O4: Medalla | P4: Puntos | Q4: Medalla | R4: Puntos | S4: Medalla | T4: Puntos | U4: Medalla | V4: Puntos | W4: Medalla | X4: Puntos | Y4: Medalla | Z4: Puntos | AA4: Medalla | AB4: Puntos | AC4: Medalla | AD4: Puntos | AE4: Medalla | AF4: Puntos | AG4: Medalla | AH4: Puntos | AI4: Medalla | AJ4: Puntos | AK4: Medalla | AL4: Puntos | AM4: Medalla | AN4: Puntos | AO4: Medalla | AP4: Puntos | AQ4: Medalla | AR4: Puntos | AS4: Medalla | AT4: Puntos | AU4: Medalla | AV4: Puntos | AW4: Medalla | AX4: Puntos | AY4: Medalla | AZ4: Puntos | BA4: Medalla | BB4: Puntos | BC4: Medalla | BD4: Puntos | BE4: Medalla | BF4: Puntos | BG4: Medalla | BH4: Puntos | BI4: Medalla | BJ4: Puntos | BK4: Medalla | BL4: Puntos | BM4: Medalla | BN4: Puntos | BO4: Medalla | BP4: Puntos | BQ4: Medalla | BR4: Puntos | BS4: Medalla | BT4: Puntos | BU4: Medalla | BV4: Puntos | BW4: Medalla | BX4: Puntos | BY4: Medalla | BZ4: Puntos | CA4: Medalla | CB4: Puntos | CC4: Medalla | CD4: Puntos | CE4: Medalla | CF4: Puntos | CN4: 1
C5: =RANK(J5,$J$5:$J$44,0) -> 1 | D5: EXT | H5: CABAÑA PEREZ | I5: Cristina | J5: =SUM(O5:CF5)+K5 -> 65 | K5: =CN5*50/100 -> 30 | L5: =COUNTIF(O5:CF5,$L$4) -> 0 | M5: =COUNTIF(O5:CF5,$M$4) -> 1 | N5: =COUNTIF(O5:CF5,$N$4) -> 0 | P5: =IF(O5="Oro",150,IF(O5="Plata",120,IF(O5="Bronce",100,IF(O5="Quinto",50,IF(O5="Septimo",30,0))))) -> 0 | R5: =IF(Q5="Oro",150,IF(Q5="Plata",120,IF(Q5="Bronce",100,IF(Q5="Quinto",50,IF(Q5="Septimo",30,0))))) -> 0 | T5: =IF(S5="Oro",100,IF(S5="Plata",85,IF(S5="Bronce",70,IF(S5="Quinto",30,IF(S5="Septimo",15,0))))) -> 0 | V5: =IF(U5="Oro",100,IF(U5="Plata",85,IF(U5="Bronce",70,IF(U5="Quinto",30,IF(U5="Septimo",15,0))))) -> 0 | X5: =IF(W5="Oro",75,IF(W5="Plata",60,IF(W5="Bronce",50,IF(W5="Quinto",20,IF(W5="Septimo",7,0))))) -> 0 | Y5: 0 | Z5: =IF(Y5="Oro",75,IF(Y5="Plata",60,IF(Y5="Bronce",50,IF(Y5="Quinto",20,IF(Y5="Septimo",7,0))))) -> 0 | AB5: =IF(AA5="Oro",75,IF(AA5="Plata",60,IF(AA5="Bronce",50,IF(AA5="Quinto",20,IF(AA5="Septimo",7,0))))) -> 0 | AC5: 0 | AD5: =IF(AC5="Oro",75,IF(AC5="Plata",60,IF(AC5="Bronce",50,IF(AC5="Quinto",20,IF(AC5="Septimo",7,0))))) -> 0 | AF5: =IF(AE5="Oro",75,IF(AE5="Plata",60,IF(AE5="Bronce",50,IF(AE5="Quinto",20,IF(AE5="Septimo",7,0))))) -> 0 | AH5: =IF(AG5="Oro",75,IF(AG5="Plata",60,IF(AG5="Bronce",50,IF(AG5="Quinto",20,IF(AG5="Septimo",7,0))))) -> 0 | AJ5: =IF(AI5="Oro",75,IF(AI5="Plata",60,IF(AI5="Bronce",50,IF(AI5="Quinto",20,IF(AI5="Septimo",7,0))))) -> 0 | AL5: =IF(AK5="Oro",60,IF(AK5="Plata",50,IF(AK5="Bronce",35,IF(AK5="Quinto",15,IF(AK5="Septimo",5,0))))) -> 0 | AN5: =IF(AM5="Oro",60,IF(AM5="Plata",50,IF(AM5="Bronce",35,IF(AM5="Quinto",15,IF(AM5="Septimo",5,0))))) -> 0 | AP5: =IF(AO5="Oro",60,IF(AO5="Plata",50,IF(AO5="Bronce",35,IF(AO5="Quinto",15,IF(AO5="Septimo",5,0))))) -> 0 | AR5: =IF(AQ5="Oro",60,IF(AQ5="Plata",50,IF(AQ5="Bronce",35,IF(AQ5="Quinto",15,IF(AQ5="Septimo",5,0))))) -> 0 | AT5: =IF(AS5="Oro",60,IF(AS5="Plata",50,IF(AS5="Bronce",35,IF(AS5="Quinto",15,IF(AS5="Septimo",5,0))))) -> 0 | AV5: =IF(AU5="Oro",60,IF(AU5="Plata",50,IF(AU5="Bronce",35,IF(AU5="Quinto",15,IF(AU5="Septimo",5,0))))) -> 0 | AW5: Quinto | AX5: =IF(AW5="Oro",60,IF(AW5="Plata",50,IF(AW5="Bronce",35,IF(AW5="Quinto",15,IF(AW5="Septimo",5,0))))) -> 15 | AZ5: =IF(AY5="Oro",60,IF(AY5="Plata",50,IF(AY5="Bronce",35,IF(AY5="Quinto",15,IF(AY5="Septimo",5,0))))) -> 0 | BB5: =IF(BA5="Oro",60,IF(BA5="Plata",50,IF(BA5="Bronce",35,IF(BA5="Quinto",15,IF(BA5="Septimo",5,0))))) -> 0 | BD5: =IF(BC5="Oro",60,IF(BC5="Plata",50,IF(BC5="Bronce",35,IF(BC5="Quinto",15,IF(BC5="Septimo",5,0))))) -> 0 | BE5: 0 | BF5: =IF(BE5="Oro",60,IF(BE5="Plata",50,IF(BE5="Bronce",35,IF(BE5="Quinto",15,IF(BE5="Septimo",5,0))))) -> 0 | BH5: =IF(BG5="Oro",30,IF(BG5="Plata",20,IF(BG5="Bronce",15,0))) -> 0 | BJ5: =IF(BI5="Oro",30,IF(BI5="Plata",20,IF(BI5="Bronce",15,0))) -> 0 | BL5: =IF(BK5="Oro",30,IF(BK5="Plata",20,IF(BK5="Bronce",15,0))) -> 0 | BN5: =IF(BM5="Oro",30,IF(BM5="Plata",20,IF(BM5="Bronce",15,0))) -> 0 | BP5: =IF(BO5="Oro",30,IF(BO5="Plata",20,IF(BO5="Bronce",15,0))) -> 0 | BR5: =IF(BQ5="Oro",30,IF(BQ5="Plata",20,IF(BQ5="Bronce",15,0))) -> 0 | BT5: =IF(BS5="Oro",30,IF(BS5="Plata",20,IF(BS5="Bronce",15,0))) -> 0 | BV5: =IF(BU5="Oro",30,IF(BU5="Plata",20,IF(BU5="Bronce",15,0))) -> 0 | BX5: =IF(BW5="Oro",30,IF(BW5="Plata",20,IF(BW5="Bronce",15,0))) -> 0 | BZ5: =IF(BY5="Oro",30,IF(BY5="Plata",20,IF(BY5="Bronce",15,0))) -> 0 | CA5: PLATA | CB5: =IF(CA5="Oro",30,IF(CA5="Plata",20,IF(CA5="Bronce",15,0))) -> 20 | CD5: =IF(CC5="Oro",30,IF(CC5="Plata",20,IF(CC5="Bronce",15,0))) -> 0 | CF5: =IF(CE5="Oro",30,IF(CE5="Plata",20,IF(CE5="Bronce",15,0))) -> 0 | CN5: =SUMIFS('2019'!H:H,'2019'!A:A,"-63 kg",'2019'!D:D,'-63 kg'!H5,'2019'!E:E,'-63 kg'!I5) -> 60
C6: 2 | D6: MAD | H6: PADILLA GUERRERO | I6: SARAY | J6: 62.5 | K6: 32.5 | L6: 1 | M6: 0 | N6: 0 | P6: 0 | R6: 0 | T6: 0 | V6: 0 | X6: 0 | Z6: 0 | AB6: 0 | AD6: 0 | AF6: 0 | AH6: 0 | AJ6: 0 | AL6: 0 | AN6: 0 | AP6: 0 | AR6: 0 | AT6: 0 | AV6: 0 | AX6: 0 | AZ6: 0 | BB6: 0 | BD6: 0 | BF6: 0 | BH6: 0 | BJ6: 0 | BL6: 0 | BN6: 0 | BP6: 0 | BR6: 0 | BT6: 0 | BV6: 0 | BX6: 0 | BZ6: 0 | CA6: ORO | CB6: 30 | CD6: 0 | CF6: 0 | CN6: =SUMIFS('2019'!H:H,'2019'!A:A,"-63 kg",'2019'!D:D,'-63 kg'!H6,'2019'!E:E,'-63 kg'!I6) -> 65
C7: 3 | D7: VAL | H7: ROBLES LOZANO | I7: Patricia | J7: 30 | K7: 15 | L7: 0 | M7: 0 | N7: 1 | P7: 0 | R7: 0 | T7: 0 | V7: 0 | X7: 0 | Z7: 0 | AB7: 0 | AD7: 0 | AF7: 0 | AH7: 0 | AJ7: 0 | AL7: 0 | AN7: 0 | AP7: 0 | AR7: 0 | AT7: 0 | AV7: 0 | AX7: 0 | AZ7: 0 | BB7: 0 | BD7: 0 | BF7: 0 | BH7: 0 | BJ7: 0 | BL7: 0 | BN7: 0 | BP7: 0 | BR7: 0 | BT7: 0 | BV7: 0 | BX7: 0 | BZ7: 0 | CA7: BRONCE | CB7: 15 | CD7: 0 | CF7: 0 | CN7: =SUMIFS('2019'!H:H,'2019'!A:A,"-63 kg",'2019'!D:D,'-63 kg'!H7,'2019'!E:E,'-63 kg'!I7) -> 30
C8: 4 | D8: VAL | H8: PUCHE PALAO | I8: Isabel | J8: 17.5 | K8: 17.5 | L8: 0 | M8: 0 | N8: 0 | P8: 0 | R8: 0 | T8: 0 | V8: 0 | X8: 0 | Y8: 0 | Z8: 0 | AB8: 0 | AC8: 0 | AD8: 0 | AF8: 0 | AH8: 0 | AJ8: 0 | AL8: 0 | AN8: 0 | AP8: 0 | AR8: 0 | AT8: 0 | AV8: 0 | AX8: 0 | AZ8: 0 | BB8: 0 | BD8: 0 | BE8: 0 | BF8: 0 | BH8: 0 | BJ8: 0 | BL8: 0 | BN8: 0 | BP8: 0 | BR8: 0 | BT8: 0 | BV8: 0 | BX8: 0 | BZ8: 0 | CB8: 0 | CD8: 0 | CF8: 0 | CN8: =SUMIFS('2019'!H:H,'2019'!A:A,"-63 kg",'2019'!D:D,'-63 kg'!H8,'2019'!E:E,'-63 kg'!I8) -> 35
C9: 5 | D9: MAD | H9: CABAS GÓMEZ | I9: María | J9: 7.5 | K9: 7.5 | L9: 0 | M9: 0 | N9: 0 | P9: 0 | R9: 0 | T9: 0 | V9: 0 | X9: 0 | Z9: 0 | AB9: 0 | AD9: 0 | AF9: 0 | AH9: 0 | AJ9: 0 | AL9: 0 | AN9: 0 | AP9: 0 | AR9: 0 | AT9: 0 | AV9: 0 | AX9: 0 | AZ9: 0 | BB9: 0 | BD9: 0 | BF9: 0 | BH9: 0 | BJ9: 0 | BL9: 0 | BN9: 0 | BP9: 0 | BR9: 0 | BT9: 0 | BV9: 0 | BX9: 0 | BZ9: 0 | CB9: 0 | CD9: 0 | CF9: 0 | CN9: =SUMIFS('2019'!H:H,'2019'!A:A,"-63 kg",'2019'!D:D,'-63 kg'!H9,'2019'!E:E,'-63 kg'!I9) -> 15
C10: 6 | J10: 0 | K10: 0 | L10: 0 | M10: 0 | N10: 0 | P10: 0 | R10: 0 | T10: 0 | V10: 0 | X10: 0 | Z10: 0 | AB10: 0 | AD10: 0 | AF10: 0 | AH10: 0 | AJ10: 0 | AL10: 0 | AN10: 0 | AP10: 0 | AR10: 0 | AT10: 0 | AV10: 0 | AX10: 0 | AZ10: 0 | BB10: 0 | BD10: 0 | BF10: 0 | BH10: 0 | BJ10: 0 | BL10: 0 | BN10: 0 | BP10: 0 | BR10: 0 | BT10: 0 | BV10: 0 | BX10: 0 | BZ10: 0 | CB10: 0 | CD10: 0 | CF10: 0 | CN10: =SUMIFS('2019'!H:H,'2019'!A:A,"-63 kg",'2019'!D:D,'-63 kg'!H10,'2019'!E:E,'-63 kg'!I10) -> 0
C11: 6 | J11: 0 | K11: 0 | L11: 0 | M11: 0 | N11: 0 | P11: 0 | R11: 0 | T11: 0 | V11: 0 | X11: 0 | Z11: 0 | AB11: 0 | AD11: 0 | AF11: 0 | AH11: 0 | AJ11: 0 | AL11: 0 | AN11: 0 | AP11: 0 | AR11: 0 | AT11: 0 | AV11: 0 | AX11: 0 | AZ11: 0 | BB11: 0 | BD11: 0 | BF11: 0 | BH11: 0 | BJ11: 0 | BL11: 0 | BN11: 0 | BP11: 0 | BR11: 0 | BT11: 0 | BV11: 0 | BX11: 0 | BZ11: 0 | CB11: 0 | CD11: 0 | CF11: 0 | CN11: =SUMIFS('2019'!H:H,'2019'!A:A,"-63 kg",'2019'!D:D,'-63 kg'!H11,'2019'!E:E,'-63 kg'!I11) -> 0
C12: 6 | J12: 0 | K12: 0 | L12: 0 | M12: 0 | N12: 0 | P12: 0 | R12: 0 | T12: 0 | V12: 0 | X12: 0 | Z12: 0 | AB12: 0 | AD12: 0 | AF12: 0 | AH12: 0 | AJ12: 0 | AL12: 0 | AN12: 0 | AP12: 0 | AR12: 0 | AT12: 0 | AV12: 0 | AX12: 0 | AZ12: 0 | BB12: 0 | BD12: 0 | BF12: 0 | BH12: 0 | BJ12: 0 | BL12: 0 | BN12: 0 | BP12: 0 | BR12: 0 | BT12: 0 | BV12: 0 | BX12: 0 | BZ12: 0 | CB12: 0 | CD12: 0 | CF12: 0 | CN12: =SUMIFS('2019'!H:H,'2019'!A:A,"-63 kg",'2019'!D:D,'-63 kg'!H12,'2019'!E:E,'-63 kg'!I12) -> 0
C13: 6 | J13: 0 | K13: 0 | L13: 0 | M13: 0 | N13: 0 | P13: 0 | R13: 0 | T13: 0 | V13: 0 | X13: 0 | Z13: 0 | AB13: 0 | AD13: 0 | AF13: 0 | AH13: 0 | AJ13: 0 | AL13: 0 | AN13: 0 | AP13: 0 | AR13: 0 | AT13: 0 | AV13: 0 | AX13: 0 | AZ13: 0 | BB13: 0 | BD13: 0 | BF13: 0 | BH13: 0 | BJ13: 0 | BL13: 0 | BN13: 0 | BP13: 0 | BR13: 0 | BT13: 0 | BV13: 0 | BX13: 0 | BZ13: 0 | CB13: 0 | CD13: 0 | CF13: 0 | CN13: =SUMIFS('2019'!H:H,'2019'!A:A,"-63 kg",'2019'!D:D,'-63 kg'!H13,'2019'!E:E,'-63 kg'!I13) -> 0
C14: 6 | J14: 0 | K14: 0 | L14: 0 | M14: 0 | N14: 0 | P14: 0 | R14: 0 | T14: 0 | V14: 0 | X14: 0 | Z14: 0 | AB14: 0 | AD14: 0 | AF14: 0 | AH14: 0 | AJ14: 0 | AL14: 0 | AN14: 0 | AP14: 0 | AR14: 0 | AT14: 0 | AV14: 0 | AX14: 0 | AZ14: 0 | BB14: 0 | BD14: 0 | BF14: 0 | BH14: 0 | BJ14: 0 | BL14: 0 | BN14: 0 | BP14: 0 | BR14: 0 | BT14: 0 | BV14: 0 | BX14: 0 | BZ14: 0 | CA14: QUINTO | CB14: 0 | CD14: 0 | CF14: 0 | CN14: =SUMIFS('2019'!H:H,'2019'!A:A,"-63 kg",'2019'!D:D,'-63 kg'!H14,'2019'!E:E,'-63 kg'!I14) -> 0
C15: 6 | J15: 0 | K15: 0 | L15: 0 | M15: 0 | N15: 0 | P15: 0 | R15: 0 | T15: 0 | V15: 0 | X15: 0 | Z15: 0 | AB15: 0 | AD15: 0 | AF15: 0 | AH15: 0 | AJ15: 0 | AL15: 0 | AN15: 0 | AP15: 0 | AR15: 0 | AT15: 0 | AV15: 0 | AX15: 0 | AZ15: 0 | BB15: 0 | BD15: 0 | BF15: 0 | BH15: 0 | BJ15: 0 | BL15: 0 | BN15: 0 | BP15: 0 | BR15: 0 | BT15: 0 | BV15: 0 | BX15: 0 | BZ15: 0 | CB15: 0 | CD15: 0 | CF15: 0 | CN15: =SUMIFS('2019'!H:H,'2019'!A:A,"-63 kg",'2019'!D:D,'-63 kg'!H15,'2019'!E:E,'-63 kg'!I15) -> 0
C16: 6 | J16: 0 | K16: 0 | L16: 0 | M16: 0 | N16: 0 | P16: 0 | R16: 0 | T16: 0 | V16: 0 | X16: 0 | Z16: 0 | AB16: 0 | AD16: 0 | AF16: 0 | AH16: 0 | AJ16: 0 | AL16: 0 | AN16: 0 | AP16: 0 | AR16: 0 | AT16: 0 | AV16: 0 | AX16: 0 | AZ16: 0 | BB16: 0 | BD16: 0 | BF16: 0 | BH16: 0 | BJ16: 0 | BL16: 0 | BN16: 0 | BP16: 0 | BR16: 0 | BT16: 0 | BV16: 0 | BX16: 0 | BZ16: 0 | CB16: 0 | CD16: 0 | CF16: 0 | CN16: =SUMIFS('2019'!H:H,'2019'!A:A,"-63 kg",'2019'!D:D,'-63 kg'!H16,'2019'!E:E,'-63 kg'!I16) -> 0
C17: 6 | J17: 0 | K17: 0 | L17: 0 | M17: 0 | N17: 0 | P17: 0 | R17: 0 | T17: 0 | V17: 0 | X17: 0 | Z17: 0 | AB17: 0 | AD17: 0 | AF17: 0 | AH17: 0 | AJ17: 0 | AL17: 0 | AN17: 0 | AP17: 0 | AR17: 0 | AT17: 0 | AV17: 0 | AX17: 0 | AZ17: 0 | BB17: 0 | BD17: 0 | BF17: 0 | BH17: 0 | BJ17: 0 | BL17: 0 | BN17: 0 | BP17: 0 | BR17: 0 | BT17: 0 | BV17: 0 | BX17: 0 | BZ17: 0 | CB17: 0 | CD17: 0 | CF17: 0 | CN17: =SUMIFS('2019'!H:H,'2019'!A:A,"-63 kg",'2019'!D:D,'-63 kg'!H17,'2019'!E:E,'-63 kg'!I17) -> 0
C18: 6 | J18: 0 | K18: 0 | L18: 0 | M18: 0 | N18: 0 | P18: 0 | R18: 0 | T18: 0 | V18: 0 | X18: 0 | Z18: 0 | AB18: 0 | AD18: 0 | AF18: 0 | AH18: 0 | AJ18: 0 | AL18: 0 | AN18: 0 | AP18: 0 | AR18: 0 | AT18: 0 | AV18: 0 | AX18: 0 | AZ18: 0 | BB18: 0 | BD18: 0 | BF18: 0 | BH18: 0 | BJ18: 0 | BL18: 0 | BN18: 0 | BP18: 0 | BR18: 0 | BT18: 0 | BV18: 0 | BX18: 0 | BZ18: 0 | CB18: 0 | CD18: 0 | CF18: 0 | CN18: =SUMIFS('2019'!H:H,'2019'!A:A,"-63 kg",'2019'!D:D,'-63 kg'!H18,'2019'!E:E,'-63 kg'!I18) -> 0
C19: 6 | J19: 0 | K19: 0 | L19: 0 | M19: 0 | N19: 0 | P19: 0 | R19: 0 | T19: 0 | V19: 0 | X19: 0 | Z19: 0 | AB19: 0 | AD19: 0 | AF19: 0 | AH19: 0 | AJ19: 0 | AL19: 0 | AN19: 0 | AP19: 0 | AR19: 0 | AT19: 0 | AV19: 0 | AX19: 0 | AZ19: 0 | BB19: 0 | BD19: 0 | BF19: 0 | BH19: 0 | BJ19: 0 | BL19: 0 | BN19: 0 | BP19: 0 | BR19: 0 | BT19: 0 | BV19: 0 | BX19: 0 | BZ19: 0 | CB19: 0 | CD19: 0 | CF19: 0 | CN19: =SUMIFS('2019'!H:H,'2019'!A:A,"-63 kg",'2019'!D:D,'-63 kg'!H19,'2019'!E:E,'-63 kg'!I19) -> 0
C20: 6 | J20: 0 | K20: 0 | L20: 0 | M20: 0 | N20: 0 | P20: 0 | R20: 0 | T20: 0 | V20: 0 | X20: 0 | Z20: 0 | AB20: 0 | AD20: 0 | AF20: 0 | AH20: 0 | AJ20: 0 | AL20: 0 | AN20: 0 | AP20: 0 | AR20: 0 | AT20: 0 | AV20: 0 | AX20: 0 | AZ20: 0 | BB20: 0 | BD20: 0 | BF20: 0 | BH20: 0 | BJ20: 0 | BL20: 0 | BN20: 0 | BP20: 0 | BR20: 0 | BT20: 0 | BV20: 0 | BX20: 0 | BZ20: 0 | CB20: 0 | CD20: 0 | CF20: 0 | CN20: =SUMIFS('2019'!H:H,'2019'!A:A,"-63 kg",'2019'!D:D,'-63 kg'!H20,'2019'!E:E,'-63 kg'!I20) -> 0
C21: 6 | J21: 0 | K21: 0 | L21: 0 | M21: 0 | N21: 0 | P21: 0 | R21: 0 | T21: 0 | V21: 0 | X21: 0 | Z21: 0 | AB21: 0 | AD21: 0 | AF21: 0 | AH21: 0 | AJ21: 0 | AL21: 0 | AN21: 0 | AP21: 0 | AR21: 0 | AT21: 0 | AV21: 0 | AX21: 0 | AZ21: 0 | BB21: 0 | BD21: 0 | BF21: 0 | BH21: 0 | BJ21: 0 | BL21: 0 | BN21: 0 | BP21: 0 | BR21: 0 | BT21: 0 | BV21: 0 | BX21: 0 | BZ21: 0 | CB21: 0 | CD21: 0 | CF21: 0 | CN21: =SUMIFS('2019'!H:H,'2019'!A:A,"-63 kg",'2019'!D:D,'-63 kg'!H21,'2019'!E:E,'-63 kg'!I21) -> 0
C22: 6 | J22: 0 | K22: 0 | L22: 0 | M22: 0 | N22: 0 | P22: 0 | R22: 0 | T22: 0 | V22: 0 | X22: 0 | Z22: 0 | AB22: 0 | AD22: 0 | AF22: 0 | AH22: 0 | AJ22: 0 | AL22: 0 | AN22: 0 | AP22: 0 | AR22: 0 | AT22: 0 | AV22: 0 | AX22: 0 | AZ22: 0 | BB22: 0 | BD22: 0 | BF22: 0 | BH22: 0 | BJ22: 0 | BL22: 0 | BN22: 0 | BP22: 0 | BR22: 0 | BT22: 0 | BV22: 0 | BX22: 0 | BZ22: 0 | CB22: 0 | CD22: 0 | CF22: 0 | CN22: =SUMIFS('2019'!H:H,'2019'!A:A,"-63 kg",'2019'!D:D,'-63 kg'!H22,'2019'!E:E,'-63 kg'!I22) -> 0
C23: 6 | J23: 0 | K23: 0 | L23: 0 | M23: 0 | N23: 0 | P23: 0 | R23: 0 | T23: 0 | V23: 0 | X23: 0 | Z23: 0 | AB23: 0 | AD23: 0 | AF23: 0 | AH23: 0 | AJ23: 0 | AL23: 0 | AN23: 0 | AP23: 0 | AR23: 0 | AT23: 0 | AV23: 0 | AX23: 0 | AZ23: 0 | BB23: 0 | BD23: 0 | BF23: 0 | BH23: 0 | BJ23: 0 | BL23: 0 | BN23: 0 | BP23: 0 | BR23: 0 | BT23: 0 | BV23: 0 | BX23: 0 | BZ23: 0 | CB23: 0 | CD23: 0 | CF23: 0 | CN23: =SUMIFS('2019'!H:H,'2019'!A:A,"-63 kg",'2019'!D:D,'-63 kg'!H23,'2019'!E:E,'-63 kg'!I23) -> 0
C24: 6 | J24: 0 | K24: 0 | L24: 0 | M24: 0 | N24: 0 | P24: 0 | R24: 0 | T24: 0 | V24: 0 | X24: 0 | Z24: 0 | AB24: 0 | AD24: 0 | AF24: 0 | AH24: 0 | AJ24: 0 | AL24: 0 | AN24: 0 | AP24: 0 | AR24: 0 | AT24: 0 | AV24: 0 | AX24: 0 | AZ24: 0 | BB24: 0 | BD24: 0 | BF24: 0 | BH24: 0 | BJ24: 0 | BL24: 0 | BN24: 0 | BP24: 0 | BR24: 0 | BT24: 0 | BV24: 0 | BX24: 0 | BZ24: 0 | CB24: 0 | CD24: 0 | CF24: 0 | CN24: =SUMIFS('2019'!H:H,'2019'!A:A,"-63 kg",'2019'!D:D,'-63 kg'!H24,'2019'!E:E,'-63 kg'!I24) -> 0
C25: 6 | J25: 0 | K25: 0 | L25: 0 | M25: 0 | N25: 0 | P25: 0 | R25: 0 | T25: 0 | V25: 0 | X25: 0 | Z25: 0 | AB25: 0 | AD25: 0 | AF25: 0 | AH25: 0 | AJ25: 0 | AL25: 0 | AN25: 0 | AP25: 0 | AR25: 0 | AT25: 0 | AV25: 0 | AX25: 0 | AZ25: 0 | BB25: 0 | BD25: 0 | BF25: 0 | BH25: 0 | BJ25: 0 | BL25: 0 | BN25: 0 | BP25: 0 | BR25: 0 | BT25: 0 | BV25: 0 | BX25: 0 | BZ25: 0 | CB25: 0 | CD25: 0 | CF25: 0 | CN25: =SUMIFS('2019'!H:H,'2019'!A:A,"-63 kg",'2019'!D:D,'-63 kg'!H25,'2019'!E:E,'-63 kg'!I25) -> 0
C26: 6 | J26: 0 | K26: 0 | L26: 0 | M26: 0 | N26: 0 | P26: 0 | R26: 0 | T26: 0 | V26: 0 | X26: 0 | Z26: 0 | AB26: 0 | AD26: 0 | AF26: 0 | AH26: 0 | AJ26: 0 | AL26: 0 | AN26: 0 | AP26: 0 | AR26: 0 | AT26: 0 | AV26: 0 | AX26: 0 | AZ26: 0 | BB26: 0 | BD26: 0 | BF26: 0 | BH26: 0 | BJ26: 0 | BL26: 0 | BN26: 0 | BP26: 0 | BR26: 0 | BT26: 0 | BV26: 0 | BX26: 0 | BZ26: 0 | CB26: 0 | CD26: 0 | CF26: 0 | CN26: =SUMIFS('2019'!H:H,'2019'!A:A,"-63 kg",'2019'!D:D,'-63 kg'!H26,'2019'!E:E,'-63 kg'!I26) -> 0
C27: 6 | J27: 0 | K27: 0 | L27: 0 | M27: 0 | N27: 0 | P27: 0 | R27: 0 | T27: 0 | V27: 0 | X27: 0 | Z27: 0 | AB27: 0 | AD27: 0 | AF27: 0 | AH27: 0 | AJ27: 0 | AL27: 0 | AN27: 0 | AP27: 0 | AR27: 0 | AT27: 0 | AV27: 0 | AX27: 0 | AZ27: 0 | BB27: 0 | BD27: 0 | BF27: 0 | BH27: 0 | BJ27: 0 | BL27: 0 | BN27: 0 | BP27: 0 | BR27: 0 | BT27: 0 | BV27: 0 | BX27: 0 | BZ27: 0 | CB27: 0 | CD27: 0 | CF27: 0 | CN27: =SUMIFS('2019'!H:H,'2019'!A:A,"-63 kg",'2019'!D:D,'-63 kg'!H27,'2019'!E:E,'-63 kg'!I27) -> 0
C28: 6 | J28: 0 | K28: 0 | L28: 0 | M28: 0 | N28: 0 | P28: 0 | R28: 0 | T28: 0 | V28: 0 | X28: 0 | Z28: 0 | AB28: 0 | AD28: 0 | AF28: 0 | AH28: 0 | AJ28: 0 | AL28: 0 | AN28: 0 | AP28: 0 | AR28: 0 | AT28: 0 | AV28: 0 | AX28: 0 | AZ28: 0 | BB28: 0 | BD28: 0 | BF28: 0 | BH28: 0 | BJ28: 0 | BL28: 0 | BN28: 0 | BP28: 0 | BR28: 0 | BT28: 0 | BV28: 0 | BX28: 0 | BZ28: 0 | CB28: 0 | CD28: 0 | CF28: 0 | CN28: =SUMIFS('2019'!H:H,'2019'!A:A,"-63 kg",'2019'!D:D,'-63 kg'!H28,'2019'!E:E,'-63 kg'!I28) -> 0
C29: 6 | J29: 0 | K29: 0 | L29: 0 | M29: 0 | N29: 0 | P29: 0 | R29: 0 | T29: 0 | V29: 0 | X29: 0 | Z29: 0 | AB29: 0 | AD29: 0 | AF29: 0 | AH29: 0 | AJ29: 0 | AL29: 0 | AN29: 0 | AP29: 0 | AR29: 0 | AT29: 0 | AV29: 0 | AX29: 0 | AZ29: 0 | BB29: 0 | BD29: 0 | BF29: 0 | BH29: 0 | BJ29: 0 | BL29: 0 | BN29: 0 | BP29: 0 | BR29: 0 | BT29: 0 | BV29: 0 | BX29: 0 | BZ29: 0 | CB29: 0 | CD29: 0 | CF29: 0 | CN29: =SUMIFS('2019'!H:H,'2019'!A:A,"-63 kg",'2019'!D:D,'-63 kg'!H29,'2019'!E:E,'-63 kg'!I29) -> 0
C30: 6 | J30: 0 | K30: 0 | L30: 0 | M30: 0 | N30: 0 | P30: 0 | R30: 0 | T30: 0 | V30: 0 | X30: 0 | Z30: 0 | AB30: 0 | AD30: 0 | AF30: 0 | AH30: 0 | AJ30: 0 | AL30: 0 | AN30: 0 | AP30: 0 | AR30: 0 | AT30: 0 | AV30: 0 | AX30: 0 | AZ30: 0 | BB30: 0 | BD30: 0 | BF30: 0 | BH30: 0 | BJ30: 0 | BL30: 0 | BN30: 0 | BP30: 0 | BR30: 0 | BT30: 0 | BV30: 0 | BX30: 0 | BZ30: 0 | CB30: 0 | CD30: 0 | CF30: 0 | CN30: =SUMIFS('2019'!H:H,'2019'!A:A,"-63 kg",'2019'!D:D,'-63 kg'!H30,'2019'!E:E,'-63 kg'!I30) -> 0
C31: 6 | J31: 0 | K31: 0 | L31: 0 | M31: 0 | N31: 0 | P31: 0 | R31: 0 | T31: 0 | V31: 0 | X31: 0 | Z31: 0 | AB31: 0 | AD31: 0 | AF31: 0 | AH31: 0 | AJ31: 0 | AL31: 0 | AN31: 0 | AP31: 0 | AR31: 0 | AT31: 0 | AV31: 0 | AX31: 0 | AZ31: 0 | BB31: 0 | BD31: 0 | BF31: 0 | BH31: 0 | BJ31: 0 | BL31: 0 | BN31: 0 | BP31: 0 | BR31: 0 | BT31: 0 | BV31: 0 | BX31: 0 | BZ31: 0 | CB31: 0 | CD31: 0 | CF31: 0 | CN31: =SUMIFS('2019'!H:H,'2019'!A:A,"-63 kg",'2019'!D:D,'-63 kg'!H31,'2019'!E:E,'-63 kg'!I31) -> 0
C32: 6 | J32: 0 | K32: 0 | L32: 0 | M32: 0 | N32: 0 | P32: 0 | R32: 0 | T32: 0 | V32: 0 | X32: 0 | Z32: 0 | AB32: 0 | AD32: 0 | AF32: 0 | AH32: 0 | AJ32: 0 | AL32: 0 | AN32: 0 | AP32: 0 | AR32: 0 | AT32: 0 | AV32: 0 | AX32: 0 | AZ32: 0 | BB32: 0 | BD32: 0 | BF32: 0 | BH32: 0 | BJ32: 0 | BL32: 0 | BN32: 0 | BP32: 0 | BR32: 0 | BT32: 0 | BV32: 0 | BX32: 0 | BZ32: 0 | CB32: 0 | CD32: 0 | CF32: 0 | CN32: =SUMIFS('2019'!H:H,'2019'!A:A,"-63 kg",'2019'!D:D,'-63 kg'!H32,'2019'!E:E,'-63 kg'!I32) -> 0
C33: 6 | J33: 0 | K33: 0 | L33: 0 | M33: 0 | N33: 0 | P33: 0 | R33: 0 | T33: 0 | V33: 0 | X33: 0 | Z33: 0 | AB33: 0 | AD33: 0 | AF33: 0 | AH33: 0 | AJ33: 0 | AL33: 0 | AN33: 0 | AP33: 0 | AR33: 0 | AT33: 0 | AV33: 0 | AX33: 0 | AZ33: 0 | BB33: 0 | BD33: 0 | BF33: 0 | BH33: 0 | BJ33: 0 | BL33: 0 | BN33: 0 | BP33: 0 | BR33: 0 | BT33: 0 | BV33: 0 | BX33: 0 | BZ33: 0 | CB33: 0 | CD33: 0 | CF33: 0 | CN33: =SUMIFS('2019'!H:H,'2019'!A:A,"-63 kg",'2019'!D:D,'-63 kg'!H33,'2019'!E:E,'-63 kg'!I33) -> 0
C34: 6 | J34: 0 | K34: 0 | L34: 0 | M34: 0 | N34: 0 | P34: 0 | R34: 0 | T34: 0 | V34: 0 | X34: 0 | Z34: 0 | AB34: 0 | AD34: 0 | AF34: 0 | AH34: 0 | AJ34: 0 | AL34: 0 | AN34: 0 | AP34: 0 | AR34: 0 | AT34: 0 | AV34: 0 | AX34: 0 | AZ34: 0 | BB34: 0 | BD34: 0 | BF34: 0 | BH34: 0 | BJ34: 0 | BL34: 0 | BN34: 0 | BP34: 0 | BR34: 0 | BT34: 0 | BV34: 0 | BX34: 0 | BZ34: 0 | CB34: 0 | CD34: 0 | CF34: 0 | CN34: =SUMIFS('2019'!H:H,'2019'!A:A,"-63 kg",'2019'!D:D,'-63 kg'!H34,'2019'!E:E,'-63 kg'!I34) -> 0
C35: 6 | J35: 0 | K35: 0 | L35: 0 | M35: 0 | N35: 0 | P35: 0 | R35: 0 | T35: 0 | V35: 0 | X35: 0 | Z35: 0 | AB35: 0 | AD35: 0 | AF35: 0 | AH35: 0 | AJ35: 0 | AL35: 0 | AN35: 0 | AP35: 0 | AR35: 0 | AT35: 0 | AV35: 0 | AX35: 0 | AZ35: 0 | BB35: 0 | BD35: 0 | BF35: 0 | BH35: 0 | BJ35: 0 | BL35: 0 | BN35: 0 | BP35: 0 | BR35: 0 | BT35: 0 | BV35: 0 | BX35: 0 | BZ35: 0 | CB35: 0 | CD35: 0 | CF35: 0 | CN35: =SUMIFS('2019'!H:H,'2019'!A:A,"-63 kg",'2019'!D:D,'-63 kg'!H35,'2019'!E:E,'-63 kg'!I35) -> 0
C36: 6 | J36: 0 | K36: 0 | L36: 0 | M36: 0 | N36: 0 | P36: 0 | R36: 0 | T36: 0 | V36: 0 | X36: 0 | Z36: 0 | AB36: 0 | AD36: 0 | AF36: 0 | AH36: 0 | AJ36: 0 | AL36: 0 | AN36: 0 | AP36: 0 | AR36: 0 | AT36: 0 | AV36: 0 | AX36: 0 | AZ36: 0 | BB36: 0 | BD36: 0 | BF36: 0 | BH36: 0 | BJ36: 0 | BL36: 0 | BN36: 0 | BP36: 0 | BR36: 0 | BT36: 0 | BV36: 0 | BX36: 0 | BZ36: 0 | CB36: 0 | CD36: 0 | CF36: 0 | CN36: =SUMIFS('2019'!H:H,'2019'!A:A,"-63 kg",'2019'!D:D,'-63 kg'!H36,'2019'!E:E,'-63 kg'!I36) -> 0
C37: 6 | J37: 0 | K37: 0 | L37: 0 | M37: 0 | N37: 0 | P37: 0 | R37: 0 | T37: 0 | V37: 0 | X37: 0 | Z37: 0 | AB37: 0 | AD37: 0 | AF37: 0 | AH37: 0 | AJ37: 0 | AL37: 0 | AN37: 0 | AP37: 0 | AR37: 0 | AT37: 0 | AV37: 0 | AX37: 0 | AZ37: 0 | BB37: 0 | BD37: 0 | BF37: 0 | BH37: 0 | BJ37: 0 | BL37: 0 | BN37: 0 | BP37: 0 | BR37: 0 | BT37: 0 | BV37: 0 | BX37: 0 | BZ37: 0 | CB37: 0 | CD37: 0 | CF37: 0 | CN37: =SUMIFS('2019'!H:H,'2019'!A:A,"-63 kg",'2019'!D:D,'-63 kg'!H37,'2019'!E:E,'-63 kg'!I37) -> 0
C38: 6 | J38: 0 | K38: 0 | L38: 0 | M38: 0 | N38: 0 | P38: 0 | R38: 0 | T38: 0 | V38: 0 | X38: 0 | Z38: 0 | AB38: 0 | AD38: 0 | AF38: 0 | AH38: 0 | AJ38: 0 | AL38: 0 | AN38: 0 | AP38: 0 | AR38: 0 | AT38: 0 | AV38: 0 | AX38: 0 | AZ38: 0 | BB38: 0 | BD38: 0 | BF38: 0 | BH38: 0 | BJ38: 0 | BL38: 0 | BN38: 0 | BP38: 0 | BR38: 0 | BT38: 0 | BV38: 0 | BX38: 0 | BZ38: 0 | CB38: 0 | CD38: 0 | CF38: 0 | CN38: =SUMIFS('2019'!H:H,'2019'!A:A,"-63 kg",'2019'!D:D,'-63 kg'!H38,'2019'!E:E,'-63 kg'!I38) -> 0
C39: 6 | J39: 0 | K39: 0 | L39: 0 | M39: 0 | N39: 0 | P39: 0 | R39: 0 | T39: 0 | V39: 0 | X39: 0 | Z39: 0 | AB39: 0 | AD39: 0 | AF39: 0 | AH39: 0 | AJ39: 0 | AL39: 0 | AN39: 0 | AP39: 0 | AR39: 0 | AT39: 0 | AV39: 0 | AX39: 0 | AZ39: 0 | BB39: 0 | BD39: 0 | BF39: 0 | BH39: 0 | BJ39: 0 | BL39: 0 | BN39: 0 | BP39: 0 | BR39: 0 | BT39: 0 | BV39: 0 | BX39: 0 | BZ39: 0 | CB39: 0 | CD39: 0 | CF39: 0 | CN39: =SUMIFS('2019'!H:H,'2019'!A:A,"-63 kg",'2019'!D:D,'-63 kg'!H39,'2019'!E:E,'-63 kg'!I39) -> 0
C40: 6 | J40: 0 | K40: 0 | L40: 0 | M40: 0 | N40: 0 | P40: 0 | R40: 0 | T40: 0 | V40: 0 | X40: 0 | Z40: 0 | AB40: 0 | AD40: 0 | AF40: 0 | AH40: 0 | AJ40: 0 | AL40: 0 | AN40: 0 | AP40: 0 | AR40: 0 | AT40: 0 | AV40: 0 | AX40: 0 | AZ40: 0 | BB40: 0 | BD40: 0 | BF40: 0 | BH40: 0 | BJ40: 0 | BL40: 0 | BN40: 0 | BP40: 0 | BR40: 0 | BT40: 0 | BV40: 0 | BX40: 0 | BZ40: 0 | CB40: 0 | CD40: 0 | CF40: 0 | CN40: =SUMIFS('2019'!H:H,'2019'!A:A,"-63 kg",'2019'!D:D,'-63 kg'!H40,'2019'!E:E,'-63 kg'!I40) -> 0
C41: 6 | J41: 0 | K41: 0 | L41: 0 | M41: 0 | N41: 0 | P41: 0 | R41: 0 | T41: 0 | V41: 0 | X41: 0 | Z41: 0 | AB41: 0 | AD41: 0 | AF41: 0 | AH41: 0 | AJ41: 0 | AL41: 0 | AN41: 0 | AP41: 0 | AR41: 0 | AT41: 0 | AV41: 0 | AX41: 0 | AZ41: 0 | BB41: 0 | BD41: 0 | BF41: 0 | BH41: 0 | BJ41: 0 | BL41: 0 | BN41: 0 | BP41: 0 | BR41: 0 | BT41: 0 | BV41: 0 | BX41: 0 | BZ41: 0 | CB41: 0 | CD41: 0 | CF41: 0 | CN41: =SUMIFS('2019'!H:H,'2019'!A:A,"-63 kg",'2019'!D:D,'-63 kg'!H41,'2019'!E:E,'-63 kg'!I41) -> 0
C42: 6 | J42: 0 | K42: 0 | L42: 0 | M42: 0 | N42: 0 | P42: 0 | R42: 0 | T42: 0 | V42: 0 | X42: 0 | Z42: 0 | AB42: 0 | AD42: 0 | AF42: 0 | AH42: 0 | AJ42: 0 | AL42: 0 | AN42: 0 | AP42: 0 | AR42: 0 | AT42: 0 | AV42: 0 | AX42: 0 | AZ42: 0 | BB42: 0 | BD42: 0 | BF42: 0 | BH42: 0 | BJ42: 0 | BL42: 0 | BN42: 0 | BP42: 0 | BR42: 0 | BT42: 0 | BV42: 0 | BX42: 0 | BZ42: 0 | CB42: 0 | CD42: 0 | CF42: 0 | CN42: =SUMIFS('2019'!H:H,'2019'!A:A,"-63 kg",'2019'!D:D,'-63 kg'!H42,'2019'!E:E,'-63 kg'!I42) -> 0
C43: 6 | J43: 0 | K43: 0 | L43: 0 | M43: 0 | N43: 0 | P43: 0 | R43: 0 | T43: 0 | V43: 0 | X43: 0 | Z43: 0 | AB43: 0 | AD43: 0 | AF43: 0 | AH43: 0 | AJ43: 0 | AL43: 0 | AN43: 0 | AP43: 0 | AR43: 0 | AT43: 0 | AV43: 0 | AX43: 0 | AZ43: 0 | BB43: 0 | BD43: 0 | BF43: 0 | BH43: 0 | BJ43: 0 | BL43: 0 | BN43: 0 | BP43: 0 | BR43: 0 | BT43: 0 | BV43: 0 | BX43: 0 | BZ43: 0 | CB43: 0 | CD43: 0 | CF43: 0 | CN43: =SUMIFS('2019'!H:H,'2019'!A:A,"-63 kg",'2019'!D:D,'-63 kg'!H43,'2019'!E:E,'-63 kg'!I43) -> 0
C44: 6 | J44: 0 | K44: 0 | L44: 0 | M44: 0 | N44: 0 | P44: 0 | R44: 0 | T44: 0 | V44: 0 | X44: 0 | Z44: 0 | AB44: 0 | AD44: 0 | AF44: 0 | AH44: 0 | AJ44: 0 | AL44: 0 | AN44: 0 | AP44: 0 | AR44: 0 | AT44: 0 | AV44: 0 | AX44: 0 | AZ44: 0 | BB44: 0 | BD44: 0 | BF44: 0 | BH44: 0 | BJ44: 0 | BL44: 0 | BN44: 0 | BP44: 0 | BR44: 0 | BT44: 0 | BV44: 0 | BX44: 0 | BZ44: 0 | CB44: 0 | CD44: 0 | CF44: 0 | CN44: =SUMIFS('2019'!H:H,'2019'!A:A,"-63 kg",'2019'!D:D,'-63 kg'!H44,'2019'!E:E,'-63 kg'!I44) -> 0

Sheet -70 kg (hidden)
C2: Ranking | D2: Nation | E2: Continent | F2: IJF ID | G2: Y.o B. | H2: FAMILY NAME | I2: Given name | J2: Total score
C3: Puesto | D3: Comunidad | E3: Continent | F3: España ID | G3: A. de N. | H3: APELLIDOS | I3: Nombre | J3: Ranking Nacional Absoluto | K3: Puntuación Año Anterior | L3: Clasificación Equipo Absoluto | O3: Master ABS | Q3: Campeonato Mundo | S3: Campeonato Europa | U3: Campeonato Europa S23 | W3: Gran Slam (Francia) | Y3: Grand Slam (Abu Dhabi) | AA3: GRAND SLAM BRASILIA | AC3: GRAND SLAM OSAKA | AK3: Gran Prix Croacia - ZAGREB | AM3: Gran Prix (Marruecos) | AO3: Gran Prix (La Haya) | AQ3: Gran Prix (Tunez) | AS3: Gran Prix (Duseldorf) | AU3: Gran Prix (China) | AW3: Gran Prix (Uzbekistan) | AY3: Gran Prix Budapest | BE3: Open de Oceania | BG3: Campeonato España | BI3: European Open (Odivelas) | BK3: European Open (Sofia) | BM3: European Open (Roma) | BO3: European Open (POLONIA) | BQ3: European Open (RUMANIA) | BS3: European Open (Glasgow) | BU3: Open Panamericano | CA3: European Cup Málaga | CN3: Puntuación Año Anterior
K4: 0.5 | L4: Oro | M4: Plata | N4: Bronce | O4: Medalla | P4: Puntos | Q4: Medalla | R4: Puntos | S4: Medalla | T4: Puntos | U4: Medalla | V4: Puntos | W4: Medalla | X4: Puntos | Y4: Medalla | Z4: Puntos | AA4: Medalla | AB4: Puntos | AC4: Medalla | AD4: Puntos | AE4: Medalla | AF4: Puntos | AG4: Medalla | AH4: Puntos | AI4: Medalla | AJ4: Puntos | AK4: Medalla | AL4: Puntos | AM4: Medalla | AN4: Puntos | AO4: Medalla | AP4: Puntos | AQ4: Medalla | AR4: Puntos | AS4: Medalla | AT4: Puntos | AU4: Medalla | AV4: Puntos | AW4: Medalla | AX4: Puntos | AY4: Medalla | AZ4: Puntos | BA4: Medalla | BB4: Puntos | BC4: Medalla | BD4: Puntos | BE4: Medalla | BF4: Puntos | BG4: Medalla | BH4: Puntos | BI4: Medalla | BJ4: Puntos | BK4: Medalla | BL4: Puntos | BM4: Medalla | BN4: Puntos | BO4: Medalla | BP4: Puntos | BQ4: Medalla | BR4: Puntos | BS4: Medalla | BT4: Puntos | BU4: Medalla | BV4: Puntos | BW4: Medalla | BX4: Puntos | BY4: Medalla | BZ4: Puntos | CA4: Medalla | CB4: Puntos | CC4: Medalla | CD4: Puntos | CE4: Medalla | CF4: Puntos | CN4: 1
C5: =RANK(J5,$J$5:$J$44,0) -> 1 | D5: GAL | H5: BERNABEU AVOMO | I5: Maria | J5: =SUM(O5:CF5)+K5 -> 70 | K5: =CN5*50/100 -> 70 | L5: =COUNTIF(O5:CF5,$L$4) -> 0 | M5: =COUNTIF(O5:CF5,$M$4) -> 0 | N5: =COUNTIF(O5:CF5,$N$4) -> 0 | P5: =IF(O5="Oro",150,IF(O5="Plata",120,IF(O5="Bronce",100,IF(O5="Quinto",50,IF(O5="Septimo",30,0))))) -> 0 | R5: =IF(Q5="Oro",150,IF(Q5="Plata",120,IF(Q5="Bronce",100,IF(Q5="Quinto",50,IF(Q5="Septimo",30,0))))) -> 0 | T5: =IF(S5="Oro",100,IF(S5="Plata",85,IF(S5="Bronce",70,IF(S5="Quinto",30,IF(S5="Septimo",15,0))))) -> 0 | V5: =IF(U5="Oro",100,IF(U5="Plata",85,IF(U5="Bronce",70,IF(U5="Quinto",30,IF(U5="Septimo",15,0))))) -> 0 | X5: =IF(W5="Oro",75,IF(W5="Plata",60,IF(W5="Bronce",50,IF(W5="Quinto",20,IF(W5="Septimo",7,0))))) -> 0 | Y5: 0 | Z5: =IF(Y5="Oro",75,IF(Y5="Plata",60,IF(Y5="Bronce",50,IF(Y5="Quinto",20,IF(Y5="Septimo",7,0))))) -> 0 | AB5: =IF(AA5="Oro",75,IF(AA5="Plata",60,IF(AA5="Bronce",50,IF(AA5="Quinto",20,IF(AA5="Septimo",7,0))))) -> 0 | AC5: 0 | AD5: =IF(AC5="Oro",75,IF(AC5="Plata",60,IF(AC5="Bronce",50,IF(AC5="Quinto",20,IF(AC5="Septimo",7,0))))) -> 0 | AF5: =IF(AE5="Oro",75,IF(AE5="Plata",60,IF(AE5="Bronce",50,IF(AE5="Quinto",20,IF(AE5="Septimo",7,0))))) -> 0 | AH5: =IF(AG5="Oro",75,IF(AG5="Plata",60,IF(AG5="Bronce",50,IF(AG5="Quinto",20,IF(AG5="Septimo",7,0))))) -> 0 | AJ5: =IF(AI5="Oro",75,IF(AI5="Plata",60,IF(AI5="Bronce",50,IF(AI5="Quinto",20,IF(AI5="Septimo",7,0))))) -> 0 | AL5: =IF(AK5="Oro",60,IF(AK5="Plata",50,IF(AK5="Bronce",35,IF(AK5="Quinto",15,IF(AK5="Septimo",5,0))))) -> 0 | AN5: =IF(AM5="Oro",60,IF(AM5="Plata",50,IF(AM5="Bronce",35,IF(AM5="Quinto",15,IF(AM5="Septimo",5,0))))) -> 0 | AP5: =IF(AO5="Oro",60,IF(AO5="Plata",50,IF(AO5="Bronce",35,IF(AO5="Quinto",15,IF(AO5="Septimo",5,0))))) -> 0 | AR5: =IF(AQ5="Oro",60,IF(AQ5="Plata",50,IF(AQ5="Bronce",35,IF(AQ5="Quinto",15,IF(AQ5="Septimo",5,0))))) -> 0 | AT5: =IF(AS5="Oro",60,IF(AS5="Plata",50,IF(AS5="Bronce",35,IF(AS5="Quinto",15,IF(AS5="Septimo",5,0))))) -> 0 | AV5: =IF(AU5="Oro",60,IF(AU5="Plata",50,IF(AU5="Bronce",35,IF(AU5="Quinto",15,IF(AU5="Septimo",5,0))))) -> 0 | AX5: =IF(AW5="Oro",60,IF(AW5="Plata",50,IF(AW5="Bronce",35,IF(AW5="Quinto",15,IF(AW5="Septimo",5,0))))) -> 0 | AZ5: =IF(AY5="Oro",60,IF(AY5="Plata",50,IF(AY5="Bronce",35,IF(AY5="Quinto",15,IF(AY5="Septimo",5,0))))) -> 0 | BB5: =IF(BA5="Oro",60,IF(BA5="Plata",50,IF(BA5="Bronce",35,IF(BA5="Quinto",15,IF(BA5="Septimo",5,0))))) -> 0 | BD5: =IF(BC5="Oro",60,IF(BC5="Plata",50,IF(BC5="Bronce",35,IF(BC5="Quinto",15,IF(BC5="Septimo",5,0))))) -> 0 | BF5: =IF(BE5="Oro",60,IF(BE5="Plata",50,IF(BE5="Bronce",35,IF(BE5="Quinto",15,IF(BE5="Septimo",5,0))))) -> 0 | BH5: =IF(BG5="Oro",30,IF(BG5="Plata",20,IF(BG5="Bronce",15,0))) -> 0 | BJ5: =IF(BI5="Oro",30,IF(BI5="Plata",20,IF(BI5="Bronce",15,0))) -> 0 | BL5: =IF(BK5="Oro",30,IF(BK5="Plata",20,IF(BK5="Bronce",15,0))) -> 0 | BN5: =IF(BM5="Oro",30,IF(BM5="Plata",20,IF(BM5="Bronce",15,0))) -> 0 | BP5: =IF(BO5="Oro",30,IF(BO5="Plata",20,IF(BO5="Bronce",15,0))) -> 0 | BR5: =IF(BQ5="Oro",30,IF(BQ5="Plata",20,IF(BQ5="Bronce",15,0))) -> 0 | BT5: =IF(BS5="Oro",30,IF(BS5="Plata",20,IF(BS5="Bronce",15,0))) -> 0 | BV5: =IF(BU5="Oro",30,IF(BU5="Plata",20,IF(BU5="Bronce",15,0))) -> 0 | BX5: =IF(BW5="Oro",30,IF(BW5="Plata",20,IF(BW5="Bronce",15,0))) -> 0 | BZ5: =IF(BY5="Oro",30,IF(BY5="Plata",20,IF(BY5="Bronce",15,0))) -> 0 | CB5: =IF(CA5="Oro",30,IF(CA5="Plata",20,IF(CA5="Bronce",15,0))) -> 0 | CD5: =IF(CC5="Oro",30,IF(CC5="Plata",20,IF(CC5="Bronce",15,0))) -> 0 | CF5: =IF(CE5="Oro",30,IF(CE5="Plata",20,IF(CE5="Bronce",15,0))) -> 0 | CN5: =SUMIFS('2019'!H:H,'2019'!A:A,"-70 kg",'2019'!D:D,'-70 kg'!H5,'2019'!E:E,'-70 kg'!I5) -> 140
C6: 2 | D6: GAL | H6: RODRIGUEZ RODRIGUEZ | I6: Sara | J6: 47.5 | K6: 32.5 | L6: 0 | M6: 0 | N6: 0 | P6: 0 | R6: 0 | T6: 0 | V6: 0 | X6: 0 | Y6: 0 | Z6: 0 | AB6: 0 | AD6: 0 | AF6: 0 | AH6: 0 | AJ6: 0 | AL6: 0 | AN6: 0 | AP6: 0 | AR6: 0 | AT6: 0 | AV6: 0 | AX6: 0 | AZ6: 0 | BB6: 0 | BD6: 0 | BE6: QUINTO | BF6: 15 | BH6: 0 | BJ6: 0 | BL6: 0 | BN6: 0 | BP6: 0 | BR6: 0 | BT6: 0 | BV6: 0 | BX6: 0 | BZ6: 0 | CB6: 0 | CD6: 0 | CF6: 0 | CN6: =SUMIFS('2019'!H:H,'2019'!A:A,"-70 kg",'2019'!D:D,'-70 kg'!H6,'2019'!E:E,'-70 kg'!I6) -> 65
C7: 3 | D7: CAT | H7: TSUNODA TSUNODA | I7: Ai | J7: 7.5 | K7: 7.5 | L7: 0 | M7: 0 | N7: 0 | P7: 0 | R7: 0 | T7: 0 | V7: 0 | X7: 0 | Z7: 0 | AB7: 0 | AD7: 0 | AF7: 0 | AH7: 0 | AJ7: 0 | AL7: 0 | AN7: 0 | AP7: 0 | AR7: 0 | AT7: 0 | AV7: 0 | AX7: 0 | AZ7: 0 | BB7: 0 | BD7: 0 | BF7: 0 | BH7: 0 | BJ7: 0 | BL7: 0 | BN7: 0 | BP7: 0 | BR7: 0 | BT7: 0 | BV7: 0 | BX7: 0 | BZ7: 0 | CB7: 0 | CD7: 0 | CF7: 0 | CN7: =SUMIFS('2019'!H:H,'2019'!A:A,"-70 kg",'2019'!D:D,'-70 kg'!H7,'2019'!E:E,'-70 kg'!I7) -> 15
C8: 3 | D8: VAL | H8: LOPEZ MANCHON | I8: Alba | J8: 7.5 | K8: 7.5 | L8: 0 | M8: 0 | N8: 0 | P8: 0 | R8: 0 | T8: 0 | V8: 0 | X8: 0 | Z8: 0 | AB8: 0 | AD8: 0 | AF8: 0 | AH8: 0 | AJ8: 0 | AL8: 0 | AN8: 0 | AP8: 0 | AR8: 0 | AT8: 0 | AV8: 0 | AX8: 0 | AZ8: 0 | BB8: 0 | BD8: 0 | BF8: 0 | BH8: 0 | BJ8: 0 | BL8: 0 | BN8: 0 | BP8: 0 | BR8: 0 | BT8: 0 | BV8: 0 | BX8: 0 | BZ8: 0 | CB8: 0 | CD8: 0 | CF8: 0 | CN8: =SUMIFS('2019'!H:H,'2019'!A:A,"-70 kg",'2019'!D:D,'-70 kg'!H8,'2019'!E:E,'-70 kg'!I8) -> 15
C9: 5 | D9: RIO | H9: SANCHEZ-PRIETO LANDALUCE | I9: Vega | J9: 0 | K9: 0 | L9: 0 | M9: 0 | N9: 0 | P9: 0 | R9: 0 | T9: 0 | V9: 0 | X9: 0 | Z9: 0 | AB9: 0 | AD9: 0 | AF9: 0 | AH9: 0 | AJ9: 0 | AL9: 0 | AN9: 0 | AP9: 0 | AR9: 0 | AT9: 0 | AV9: 0 | AX9: 0 | AZ9: 0 | BB9: 0 | BD9: 0 | BF9: 0 | BH9: 0 | BJ9: 0 | BL9: 0 | BN9: 0 | BP9: 0 | BR9: 0 | BT9: 0 | BV9: 0 | BX9: 0 | BZ9: 0 | CA9: SEPTIMO | CB9: 0 | CD9: 0 | CF9: 0 | CN9: =SUMIFS('2019'!H:H,'2019'!A:A,"-70 kg",'2019'!D:D,'-70 kg'!H9,'2019'!E:E,'-70 kg'!I9) -> 0
C10: 5 | J10: 0 | K10: 0 | L10: 0 | M10: 0 | N10: 0 | P10: 0 | R10: 0 | T10: 0 | V10: 0 | X10: 0 | Z10: 0 | AB10: 0 | AD10: 0 | AF10: 0 | AH10: 0 | AJ10: 0 | AL10: 0 | AN10: 0 | AP10: 0 | AR10: 0 | AT10: 0 | AV10: 0 | AX10: 0 | AZ10: 0 | BB10: 0 | BD10: 0 | BF10: 0 | BH10: 0 | BJ10: 0 | BL10: 0 | BN10: 0 | BP10: 0 | BR10: 0 | BT10: 0 | BV10: 0 | BX10: 0 | BZ10: 0 | CB10: 0 | CD10: 0 | CF10: 0 | CN10: =SUMIFS('2019'!H:H,'2019'!A:A,"-70 kg",'2019'!D:D,'-70 kg'!H10,'2019'!E:E,'-70 kg'!I10) -> 0
C11: 5 | J11: 0 | K11: 0 | L11: 0 | M11: 0 | N11: 0 | P11: 0 | R11: 0 | T11: 0 | V11: 0 | X11: 0 | Z11: 0 | AB11: 0 | AD11: 0 | AF11: 0 | AH11: 0 | AJ11: 0 | AL11: 0 | AN11: 0 | AP11: 0 | AR11: 0 | AT11: 0 | AV11: 0 | AX11: 0 | AZ11: 0 | BB11: 0 | BD11: 0 | BF11: 0 | BH11: 0 | BJ11: 0 | BL11: 0 | BN11: 0 | BP11: 0 | BR11: 0 | BT11: 0 | BV11: 0 | BX11: 0 | BZ11: 0 | CB11: 0 | CD11: 0 | CF11: 0 | CN11: =SUMIFS('2019'!H:H,'2019'!A:A,"-70 kg",'2019'!D:D,'-70 kg'!H11,'2019'!E:E,'-70 kg'!I11) -> 0
C12: 5 | J12: 0 | K12: 0 | L12: 0 | M12: 0 | N12: 0 | P12: 0 | R12: 0 | T12: 0 | V12: 0 | X12: 0 | Z12: 0 | AB12: 0 | AD12: 0 | AF12: 0 | AH12: 0 | AJ12: 0 | AL12: 0 | AN12: 0 | AP12: 0 | AR12: 0 | AT12: 0 | AV12: 0 | AX12: 0 | AZ12: 0 | BB12: 0 | BD12: 0 | BF12: 0 | BH12: 0 | BJ12: 0 | BL12: 0 | BN12: 0 | BP12: 0 | BR12: 0 | BT12: 0 | BV12: 0 | BX12: 0 | BZ12: 0 | CB12: 0 | CD12: 0 | CF12: 0 | CN12: =SUMIFS('2019'!H:H,'2019'!A:A,"-70 kg",'2019'!D:D,'-70 kg'!H12,'2019'!E:E,'-70 kg'!I12) -> 0
C13: 5 | J13: 0 | K13: 0 | L13: 0 | M13: 0 | N13: 0 | P13: 0 | R13: 0 | T13: 0 | V13: 0 | X13: 0 | Z13: 0 | AB13: 0 | AD13: 0 | AF13: 0 | AH13: 0 | AJ13: 0 | AL13: 0 | AN13: 0 | AP13: 0 | AR13: 0 | AT13: 0 | AV13: 0 | AX13: 0 | AZ13: 0 | BB13: 0 | BD13: 0 | BF13: 0 | BH13: 0 | BJ13: 0 | BL13: 0 | BN13: 0 | BP13: 0 | BR13: 0 | BT13: 0 | BV13: 0 | BX13: 0 | BZ13: 0 | CB13: 0 | CD13: 0 | CF13: 0 | CN13: =SUMIFS('2019'!H:H,'2019'!A:A,"-70 kg",'2019'!D:D,'-70 kg'!H13,'2019'!E:E,'-70 kg'!I13) -> 0
C14: 5 | J14: 0 | K14: 0 | L14: 0 | M14: 0 | N14: 0 | P14: 0 | R14: 0 | T14: 0 | V14: 0 | X14: 0 | Z14: 0 | AB14: 0 | AD14: 0 | AF14: 0 | AH14: 0 | AJ14: 0 | AL14: 0 | AN14: 0 | AP14: 0 | AR14: 0 | AT14: 0 | AV14: 0 | AX14: 0 | AZ14: 0 | BB14: 0 | BD14: 0 | BF14: 0 | BH14: 0 | BJ14: 0 | BL14: 0 | BN14: 0 | BP14: 0 | BR14: 0 | BT14: 0 | BV14: 0 | BX14: 0 | BZ14: 0 | CB14: 0 | CD14: 0 | CF14: 0 | CN14: =SUMIFS('2019'!H:H,'2019'!A:A,"-70 kg",'2019'!D:D,'-70 kg'!H14,'2019'!E:E,'-70 kg'!I14) -> 0
C15: 5 | J15: 0 | K15: 0 | L15: 0 | M15: 0 | N15: 0 | P15: 0 | R15: 0 | T15: 0 | V15: 0 | X15: 0 | Z15: 0 | AB15: 0 | AD15: 0 | AF15: 0 | AH15: 0 | AJ15: 0 | AL15: 0 | AN15: 0 | AP15: 0 | AR15: 0 | AT15: 0 | AV15: 0 | AX15: 0 | AZ15: 0 | BB15: 0 | BD15: 0 | BF15: 0 | BH15: 0 | BJ15: 0 | BL15: 0 | BN15: 0 | BP15: 0 | BR15: 0 | BT15: 0 | BV15: 0 | BX15: 0 | BZ15: 0 | CB15: 0 | CD15: 0 | CF15: 0 | CN15: =SUMIFS('2019'!H:H,'2019'!A:A,"-70 kg",'2019'!D:D,'-70 kg'!H15,'2019'!E:E,'-70 kg'!I15) -> 0
C16: 5 | J16: 0 | K16: 0 | L16: 0 | M16: 0 | N16: 0 | P16: 0 | R16: 0 | T16: 0 | V16: 0 | X16: 0 | Z16: 0 | AB16: 0 | AD16: 0 | AF16: 0 | AH16: 0 | AJ16: 0 | AL16: 0 | AN16: 0 | AP16: 0 | AR16: 0 | AT16: 0 | AV16: 0 | AX16: 0 | AZ16: 0 | BB16: 0 | BD16: 0 | BF16: 0 | BH16: 0 | BJ16: 0 | BL16: 0 | BN16: 0 | BP16: 0 | BR16: 0 | BT16: 0 | BV16: 0 | BX16: 0 | BZ16: 0 | CB16: 0 | CD16: 0 | CF16: 0 | CN16: =SUMIFS('2019'!H:H,'2019'!A:A,"-70 kg",'2019'!D:D,'-70 kg'!H16,'2019'!E:E,'-70 kg'!I16) -> 0
C17: 5 | J17: 0 | K17: 0 | L17: 0 | M17: 0 | N17: 0 | P17: 0 | R17: 0 | T17: 0 | V17: 0 | X17: 0 | Z17: 0 | AB17: 0 | AD17: 0 | AF17: 0 | AH17: 0 | AJ17: 0 | AL17: 0 | AN17: 0 | AP17: 0 | AR17: 0 | AT17: 0 | AV17: 0 | AX17: 0 | AZ17: 0 | BB17: 0 | BD17: 0 | BF17: 0 | BH17: 0 | BJ17: 0 | BL17: 0 | BN17: 0 | BP17: 0 | BR17: 0 | BT17: 0 | BV17: 0 | BX17: 0 | BZ17: 0 | CB17: 0 | CD17: 0 | CF17: 0 | CN17: =SUMIFS('2019'!H:H,'2019'!A:A,"-70 kg",'2019'!D:D,'-70 kg'!H17,'2019'!E:E,'-70 kg'!I17) -> 0
C18: 5 | J18: 0 | K18: 0 | L18: 0 | M18: 0 | N18: 0 | P18: 0 | R18: 0 | T18: 0 | V18: 0 | X18: 0 | Z18: 0 | AB18: 0 | AD18: 0 | AF18: 0 | AH18: 0 | AJ18: 0 | AL18: 0 | AN18: 0 | AP18: 0 | AR18: 0 | AT18: 0 | AV18: 0 | AX18: 0 | AZ18: 0 | BB18: 0 | BD18: 0 | BF18: 0 | BH18: 0 | BJ18: 0 | BL18: 0 | BN18: 0 | BP18: 0 | BR18: 0 | BT18: 0 | BV18: 0 | BX18: 0 | BZ18: 0 | CB18: 0 | CD18: 0 | CF18: 0 | CN18: =SUMIFS('2019'!H:H,'2019'!A:A,"-70 kg",'2019'!D:D,'-70 kg'!H18,'2019'!E:E,'-70 kg'!I18) -> 0
C19: 5 | J19: 0 | K19: 0 | L19: 0 | M19: 0 | N19: 0 | P19: 0 | R19: 0 | T19: 0 | V19: 0 | X19: 0 | Z19: 0 | AB19: 0 | AD19: 0 | AF19: 0 | AH19: 0 | AJ19: 0 | AL19: 0 | AN19: 0 | AP19: 0 | AR19: 0 | AT19: 0 | AV19: 0 | AX19: 0 | AZ19: 0 | BB19: 0 | BD19: 0 | BF19: 0 | BH19: 0 | BJ19: 0 | BL19: 0 | BN19: 0 | BP19: 0 | BR19: 0 | BT19: 0 | BV19: 0 | BX19: 0 | BZ19: 0 | CB19: 0 | CD19: 0 | CF19: 0 | CN19: =SUMIFS('2019'!H:H,'2019'!A:A,"-70 kg",'2019'!D:D,'-70 kg'!H19,'2019'!E:E,'-70 kg'!I19) -> 0
C20: 5 | J20: 0 | K20: 0 | L20: 0 | M20: 0 | N20: 0 | P20: 0 | R20: 0 | T20: 0 | V20: 0 | X20: 0 | Z20: 0 | AB20: 0 | AD20: 0 | AF20: 0 | AH20: 0 | AJ20: 0 | AL20: 0 | AN20: 0 | AP20: 0 | AR20: 0 | AT20: 0 | AV20: 0 | AX20: 0 | AZ20: 0 | BB20: 0 | BD20: 0 | BF20: 0 | BH20: 0 | BJ20: 0 | BL20: 0 | BN20: 0 | BP20: 0 | BR20: 0 | BT20: 0 | BV20: 0 | BX20: 0 | BZ20: 0 | CB20: 0 | CD20: 0 | CF20: 0 | CN20: =SUMIFS('2019'!H:H,'2019'!A:A,"-70 kg",'2019'!D:D,'-70 kg'!H20,'2019'!E:E,'-70 kg'!I20) -> 0
C21: 5 | J21: 0 | K21: 0 | L21: 0 | M21: 0 | N21: 0 | P21: 0 | R21: 0 | T21: 0 | V21: 0 | X21: 0 | Z21: 0 | AB21: 0 | AD21: 0 | AF21: 0 | AH21: 0 | AJ21: 0 | AL21: 0 | AN21: 0 | AP21: 0 | AR21: 0 | AT21: 0 | AV21: 0 | AX21: 0 | AZ21: 0 | BB21: 0 | BD21: 0 | BF21: 0 | BH21: 0 | BJ21: 0 | BL21: 0 | BN21: 0 | BP21: 0 | BR21: 0 | BT21: 0 | BV21: 0 | BX21: 0 | BZ21: 0 | CB21: 0 | CD21: 0 | CF21: 0 | CN21: =SUMIFS('2019'!H:H,'2019'!A:A,"-70 kg",'2019'!D:D,'-70 kg'!H21,'2019'!E:E,'-70 kg'!I21) -> 0
